Workbook

Sheet Mkting, Edu, & Outreach
A1: Montana-Dakota Utilities Co.
A2: Gas Administration and Promotional Costs
A5: Allocated Program Costs | F5: Notes
C6: Year 1 | D6: Year 2 | E6: Year 3
A7: News Paper Inserts | C7: 2500 | D7: 3000 | E7: 3000
A8: Radio Advertising
A9: Television Advertising
A10: Billboards | C10: 5500 | D10: 6500 | E10: 8000
A11: Direct Mail
A12: Co-op Ads with Dealers
A13: Share of Apogee Home Energy Suite
A14: Dealer & Builder Meetings | C14: 1000 | D14: 1000 | E14: 1000
A15: Customer Education & Promotion | C15: 1000 | D15: 2000 | E15: 3000
A16: Administration | C16: 8000 | D16: 8500 | E16: 9000
A17: Allocated Administration and Promotional Costs | C17: =SUM(C7:C16) -> 18000 | D17: =SUM(D7:D16) -> 21000 | E17: =SUM(E7:E16) -> 24000
A19: Energy Audit program | C19: 25000 | D19: 25000 | E19: 25000
C20: =SUM(C19:C19) -> 25000 | D20: =SUM(D19:D19) -> 25000 | E20: =SUM(E19:E19) -> 25000
A22: Total Administration and Promotional Costs | C22: =+C17+C20 -> 43000 | D22: =+D17+D20 -> 46000 | E22: =+E17+E20 -> 49000
A26: =+A17 -> Allocated Administration and Promotional Costs | C26: =+C17-C30 -> 18000 | D26: =+D17-D30 -> 21000 | E26: =+E17-E30 -> 24000

Sheet Adminstrative Costs
A1: Montana-Dakota Utilities Co.
A2: Gas Administration and Promotion Allocation
G3: % Program's
G4: Incentives | O4: Total | P4: Total Admin
B5: Incentives | G5: to Total | H5: Admin Allocated | K5: Total Admin | L5: Debit Card Cost | O5: Debit Card | P5: & Operating | Q5: Total
A6: Program | B6: Year 1 | C6: Year 2 | D6: Year 3 | E6: Total | G6: Incentives | H6: Year 1 | I6: Year 2 | J6: Year 3 | K6: Excl Ed | L6: Year 1 | M6: Year 2 | N6: Year 3 | O6: Cost | P6: Cost | Q6: Costs
A7: Residential Programs
A8: Furnace Tier 1 (92-94% AFUE) | B8: =+'Res. 92-94% Res Furnace'!F12 -> 0 | C8: =+'Res. 92-94% Res Furnace'!G12 -> 0 | D8: =+'Res. 92-94% Res Furnace'!H12 -> 0 | E8: =SUM(B8:D8) -> 0 | G8: =(D8+C8+B8)/($B$48+$C$48+$D$48) -> 0 | H8: =ROUND((B8/$B$48)*$C$73,0) -> 0 | I8: =ROUND((C8/$C$48)*$D$73,0) -> 0 | J8: =ROUND((D8/$D$48)*$E$73,0) -> 0 | K8: =SUM(H8:J8) -> 0 | L8: =+ROUND(C58*$B$55,0) -> 0 | M8: 0 | N8: 0 | O8: =+L8+M8+N8 -> 0 | P8: =+K8+O8 -> 0 | Q8: =+E8+P8 -> 0
A9: Furnace Tier 2 (95% AFUE Min) - New | B9: =+'Res .95+% Res Furnace - NEW'!F12 -> 45000 | C9: =+'Res .95+% Res Furnace - NEW'!G12 -> 51000 | D9: =+'Res .95+% Res Furnace - NEW'!H12 -> 57000 | E9: =SUM(B9:D9) -> 153000 | G9: 0.3786191537 | H9: =ROUND((B9/$B$48)*$C$73,0) -> 6750 | I9: =ROUND((C9/$C$48)*$D$73,0) -> 7945 | J9: =ROUND((D9/$D$48)*$E$73,0) -> 9163 | K9: =SUM(H9:J9) -> 23858 | L9: 0 | M9: 0 | N9: 0 | O9: =+L9+M9+N9 -> 0 | P9: =+K9+O9 -> 23858 | Q9: =+E9+P9 -> 176858
A10: Furnace Tier 2 (95% AFUE Min) - Repl. | B10: ='Res .95+% Res Furnace - Replace'!F12 -> 67500 | C10: ='Res .95+% Res Furnace - Replace'!G12 -> 75000 | D10: ='Res .95+% Res Furnace - Replace'!H12 -> 82500 | E10: 225000 | G10: 0.5567928731 | H10: =ROUND((B10/$B$48)*$C$73,0) -> 10125 | I10: =ROUND((C10/$C$48)*$D$73,0) -> 11684 | J10: =ROUND((D10/$D$48)*$E$73,0) -> 13262 | K10: 35071 | L10: =+ROUND(C60*$B$55,0) -> 0 | M10: =+ROUND(D60*$B$55,0) -> 0 | N10: =+ROUND(E60*$B$55,0) -> 0 | O10: 0 | P10: 35071 | Q10: 260071
A11: Boiler Tier 1 (85% AFUE) | B11: =+'Res Boiler 85%'!F12 -> 0 | C11: =+'Res Boiler 85%'!G12 -> 0 | D11: =+'Res Boiler 85%'!H12 -> 0 | E11: 0 | G11: 0
A12: Boiler (90% AFUE) | B12: =+'Res Boiler 90%'!F12 -> 0 | C12: =+'Res Boiler 90%'!G12 -> 0 | D12: =+'Res Boiler 90%'!H12 -> 0 | E12: 0
A13: Furnace Tune-up | B13: =+'Res Furnace Tune-Up'!F12 -> 0 | C13: =+'Res Furnace Tune-Up'!G12 -> 0 | D13: =+'Res Furnace Tune-Up'!H12 -> 0 | E13: 0 | G13: 0 | H13: =ROUND((B13/$B$48)*$C$73,0) -> 0 | I13: =ROUND((C13/$C$48)*$D$73,0) -> 0 | J13: =ROUND((D13/$D$48)*$E$73,0) -> 0 | K13: 0 | L13: =+ROUND(C63*$B$55,0) -> 0 | M13: =+ROUND(D63*$B$55,0) -> 0 | N13: 0 | O13: 0 | P13: 0 | Q13: 0
A14: Water Heating Tier 1 (.62 EF) | B14: =+'Res Water Heating .62 EF'!F12 -> 0 | C14: =+'Res Water Heating .62 EF'!G12 -> 0 | D14: =+'Res Water Heating .62 EF'!H12 -> 0 | E14: 0 | G14: 0 | H14: =ROUND((B14/$B$48)*$C$73,0) -> 0 | I14: =ROUND((C14/$C$48)*$D$73,0) -> 0 | J14: =ROUND((D14/$D$48)*$E$73,0) -> 0 | K14: 0 | L14: =+ROUND(C64*$B$55,0) -> 0 | M14: 0 | N14: 0 | O14: 0 | P14: 0 | Q14: 0
A15: Water Heating Tier 2 (.67 EF) | B15: =+'Res Water Heating .67 EF'!F12 -> 0 | C15: =+'Res Water Heating .67 EF'!G12 -> 0 | D15: =+'Res Water Heating .67 EF'!H12 -> 0 | E15: 0 | G15: 0 | H15: =ROUND((B15/$B$48)*$C$73,0) -> 0 | I15: =ROUND((C15/$C$48)*$D$73,0) -> 0 | J15: =ROUND((D15/$D$48)*$E$73,0) -> 0 | K15: 0 | L15: =+ROUND(C65*$B$55,0) -> 0 | M15: 0 | N15: 0 | O15: 0 | P15: 0 | Q15: 0
A16: Attic Insulation | B16: =+'Res Attic Insulation'!F12 -> 0 | C16: =+'Res Attic Insulation'!G12 -> 0 | D16: =+'Res Attic Insulation'!H12 -> 0 | E16: 0 | G16: 0 | L16: 0 | M16: 0 | N16: 0 | O16: 0
A17: Retrofit Bundle | B17: =+'Res Retrofit Bundle'!F12 -> 0 | C17: =+'Res Retrofit Bundle'!G12 -> 0 | D17: =+'Res Retrofit Bundle'!H12 -> 0 | E17: 0 | G17: 0 | L17: =+ROUND(C67*$B$55,0) -> 0 | M17: 0 | N17: 0 | O17: 0
A18: New Home Bundle | B18: =+'Res New Home Bundle'!F12 -> 0 | C18: =+'Res New Home Bundle'!G12 -> 0 | D18: =+'Res New Home Bundle'!H12 -> 0 | E18: 0 | G18: 0 | H18: =ROUND((B18/$B$48)*$C$73,0) -> 0 | I18: =ROUND((C18/$C$48)*$D$73,0) -> 0 | J18: =ROUND((D18/$D$48)*$E$73,0) -> 0 | K18: 0 | L18: 0 | M18: 0 | N18: 0 | O18: 0 | P18: 0 | Q18: 0
A19: ='Database Inputs'!A21 -> DO NOT PRINT - Energy Star Home - not filing | B19: ='New Home ES'!F12 -> 0 | C19: ='New Home ES'!G12 -> 0 | D19: ='New Home ES'!H12 -> 0 | E19: 0 | G19: 0 | H19: 0 | I19: 0 | J19: 0 | K19: 0 | L19: 0 | M19: 0 | N19: 0 | O19: 0 | P19: 0 | Q19: =E19+K19 -> 0
A20: ='Database Inputs'!A22 -> Low Flow Showerheads | B20: ='Low Flow Showerhead'!$F$12 -> 0 | C20: ='Low Flow Showerhead'!$G$12 -> 0 | D20: ='Low Flow Showerhead'!$H$12 -> 0 | E20: 0 | G20: 0 | H20: 0 | I20: 0 | J20: 0 | K20: 0 | L20: 0 | M20: 0 | N20: 0 | O20: 0 | P20: 0 | Q20: =E20+K20 -> 0
A21: Programmable Thermostats | B21: ='Programmable Thermostats'!$F$12 -> 3600 | C21: ='Programmable Thermostats'!$G$12 -> 4000 | D21: ='Programmable Thermostats'!$H$12 -> 4400 | E21: 12000 | G21: 0.0296956199 | H21: 540 | I21: 623 | J21: 707 | K21: 1870 | L21: =+ROUND(C66*$B$55,0) -> 0 | M21: =+ROUND(D66*$B$55,0) -> 0 | N21: =+ROUND(E66*$B$55,0) -> 0 | O21: 0 | P21: 1870 | Q21: =E21+K21 -> 13870
A22: ='Database Inputs'!A24 -> New Residential Program 4 - not filing | B22: ='New Residential 4'!$F$12 -> 0 | C22: ='New Residential 4'!$G$12 -> 0 | D22: ='New Residential 4'!$H$12 -> 0 | E22: 0 | G22: 0 | H22: 0 | I22: 0 | J22: 0 | K22: 0 | P22: 0 | Q22: =E22+K22 -> 0
A23: ='Database Inputs'!A25 -> New Residential Program 5 - not filing | B23: ='New Residential 5'!$F$12 -> 0 | C23: ='New Residential 5'!$G$12 -> 0 | D23: ='New Residential 5'!$H$12 -> 0 | E23: 0 | G23: 0 | H23: 0 | I23: 0 | J23: 0 | K23: 0 | P23: 0 | Q23: =E23+K23 -> 0
A24: Commercial Programs
A25: Furnace Tier 1 (92-94% AFUE) | B25: =+'Comm 92-94% Furnace'!F12 -> 0 | C25: =+'Comm 92-94% Furnace'!G12 -> 0 | D25: =+'Comm 92-94% Furnace'!H12 -> 0 | E25: 0 | G25: =(D25+C25+B25)/($B$48+$C$48+$D$48) -> 0 | H25: =ROUND((B25/$B$48)*$C$73,0) -> 0 | I25: =ROUND((C25/$C$48)*$D$73,0) -> 0 | J25: =ROUND((D25/$D$48)*$E$73,0) -> 0 | K25: 0 | P25: 0 | Q25: =E25+K25 -> 0
A26: Furnace Tier 2 (95% AFUE Min) - New | B26: =+'Comm 95+% Furnace - NEW'!F12 -> 300 | C26: =+'Comm 95+% Furnace - NEW'!G12 -> 600 | D26: =+'Comm 95+% Furnace - NEW'!H12 -> 600 | E26: 1500 | G26: =(D26+C26+B26)/($B$48+$C$48+$D$48) -> 0.003711952487 | H26: =ROUND((B26/$B$48)*$C$73,0) -> 45 | I26: =ROUND((C26/$C$48)*$D$73,0) -> 93 | J26: =ROUND((D26/$D$48)*$E$73,0) -> 96 | K26: 234 | P26: 234 | Q26: =E26+K26 -> 1734
A27: Furnace Tier 2 (95% AFUE Min) - Repl. | B27: =+'Comm 95+% Furnace - Replace'!F12 -> 3000 | C27: =+'Comm 95+% Furnace - Replace'!G12 -> 3600 | D27: =+'Comm 95+% Furnace - Replace'!H12 -> 4200 | E27: 10800 | G27: =(D27+C27+B27)/($B$48+$C$48+$D$48) -> 0.02672605791 | H27: =ROUND((B27/$B$48)*$C$73,0) -> 450 | I27: =ROUND((C27/$C$48)*$D$73,0) -> 561 | J27: =ROUND((D27/$D$48)*$E$73,0) -> 675 | K27: 1686 | P27: 1686 | Q27: =E27+K27 -> 12486
A28: Hot Water Boiler Tier 1 (85% AFUE)
A29: ='Database Inputs'!A31 -> Level 1 | B29: =+'Comm Boiler (85%) Level 1'!F12 -> 0 | C29: =+'Comm Boiler (85%) Level 1'!G12 -> 0 | D29: =+'Comm Boiler (85%) Level 1'!H12 -> 0 | E29: 0 | G29: =(D29+C29+B29)/($B$48+$C$48+$D$48) -> 0 | H29: =ROUND((B29/$B$48)*$C$73,0) -> 0 | I29: =ROUND((C29/$C$48)*$D$73,0) -> 0 | J29: =ROUND((D29/$D$48)*$E$73,0) -> 0 | K29: 0 | P29: 0 | Q29: =E29+K29 -> 0
A30: ='Database Inputs'!A32 -> Level 2 | B30: =+'Comm Boiler (85%) Level 2'!F12 -> 0 | C30: =+'Comm Boiler (85%) Level 2'!G12 -> 0 | D30: =+'Comm Boiler (85%) Level 2'!H12 -> 0 | E30: 0 | G30: =(D30+C30+B30)/($B$48+$C$48+$D$48) -> 0 | H30: =ROUND((B30/$B$48)*$C$73,0) -> 0 | I30: =ROUND((C30/$C$48)*$D$73,0) -> 0 | J30: =ROUND((D30/$D$48)*$E$73,0) -> 0 | K30: 0 | P30: 0 | Q30: =E30+K30 -> 0
A31: ='Database Inputs'!A33 -> Level 3 | B31: =+'Comm Boiler (85%) Level 3'!F12 -> 0 | C31: =+'Comm Boiler (85%) Level 3'!G12 -> 0 | D31: =+'Comm Boiler (85%) Level 3'!H12 -> 0 | E31: 0 | G31: =(D31+C31+B31)/($B$48+$C$48+$D$48) -> 0 | H31: =ROUND((B31/$B$48)*$C$73,0) -> 0 | I31: =ROUND((C31/$C$48)*$D$73,0) -> 0 | J31: =ROUND((D31/$D$48)*$E$73,0) -> 0 | K31: 0 | P31: 0 | Q31: =E31+K31 -> 0
A32: Hot Water Boiler Tier 2 (90% AFUE)
A33: ='Database Inputs'!A35 -> Level 1 | B33: =+'Comm Boiler (90%) Level 1'!F12 -> 0 | C33: =+'Comm Boiler (90%) Level 1'!G12 -> 0 | D33: =+'Comm Boiler (90%) Level 1'!H12 -> 0 | E33: 0 | G33: =(D33+C33+B33)/($B$48+$C$48+$D$48) -> 0 | H33: =ROUND((B33/$B$48)*$C$73,0) -> 0 | I33: =ROUND((C33/$C$48)*$D$73,0) -> 0 | J33: =ROUND((D33/$D$48)*$E$73,0) -> 0 | K33: 0 | P33: 0 | Q33: =E33+K33 -> 0
A34: ='Database Inputs'!A36 -> Level 2 | B34: =+'Comm Boiler (90%) Level 2'!F12 -> 0 | C34: =+'Comm Boiler (90%) Level 2'!G12 -> 0 | D34: =+'Comm Boiler (90%) Level 2'!H12 -> 0 | E34: 0 | G34: =(D34+C34+B34)/($B$48+$C$48+$D$48) -> 0 | H34: =ROUND((B34/$B$48)*$C$73,0) -> 0 | I34: =ROUND((C34/$C$48)*$D$73,0) -> 0 | J34: =ROUND((D34/$D$48)*$E$73,0) -> 0 | K34: 0 | P34: 0 | Q34: =E34+K34 -> 0
A35: ='Database Inputs'!A37 -> Level 3 | B35: =+'Comm Boiler (90%) Level 3'!F12 -> 0 | C35: =+'Comm Boiler (90%) Level 3'!G12 -> 0 | D35: =+'Comm Boiler (90%) Level 3'!H12 -> 0 | E35: 0 | G35: =(D35+C35+B35)/($B$48+$C$48+$D$48) -> 0 | H35: =ROUND((B35/$B$48)*$C$73,0) -> 0 | I35: =ROUND((C35/$C$48)*$D$73,0) -> 0 | J35: =ROUND((D35/$D$48)*$E$73,0) -> 0 | K35: 0 | P35: 0 | Q35: =E35+K35 -> 0
A36: LP & HP Steam Boilers
A37: ='Database Inputs'!A39 -> Level 1 | B37: =+'Comm LP&HP Steam Boilers - LV1'!F12 -> 0 | C37: =+'Comm LP&HP Steam Boilers - LV1'!G12 -> 0 | D37: =+'Comm LP&HP Steam Boilers - LV1'!H12 -> 0 | E37: 0 | G37: =(D37+C37+B37)/($B$48+$C$48+$D$48) -> 0 | H37: =ROUND((B37/$B$48)*$C$73,0) -> 0 | I37: =ROUND((C37/$C$48)*$D$73,0) -> 0 | J37: =ROUND((D37/$D$48)*$E$73,0) -> 0 | K37: 0 | P37: 0 | Q37: =E37+K37 -> 0
A38: ='Database Inputs'!A40 -> Level 2 | B38: =+'Comm LP&HP Steam Boilers - LV2'!F12 -> 0 | C38: =+'Comm LP&HP Steam Boilers - LV2'!G12 -> 0 | D38: =+'Comm LP&HP Steam Boilers - LV2'!H12 -> 0 | E38: 0 | G38: 0 | H38: 0 | I38: 0 | J38: 0 | K38: 0 | P38: 0 | Q38: 0
A39: ='Database Inputs'!A41 -> Level 3 | B39: =+'Comm LP&HP Steam Boilers - LV3'!F12 -> 0 | C39: =+'Comm LP&HP Steam Boilers - LV3'!G12 -> 0 | D39: =+'Comm LP&HP Steam Boilers - LV3'!H12 -> 0 | E39: 0 | G39: 0 | H39: 0 | I39: 0 | J39: 0 | K39: 0 | P39: 0 | Q39: 0
A40: Water Heating (.64 EF < 50 Gallon) | B40: =+'Comm WH .64 EF'!F12 -> 0 | C40: =+'Comm WH .64 EF'!G12 -> 0 | D40: =+'Comm WH .64 EF'!H12 -> 0 | E40: 0 | G40: 0 | H40: 0 | I40: 0 | J40: 0 | K40: 0 | P40: 0 | Q40: 0
A41: Water Heating (Storage 88% Cond) | B41: =+'Comm WH Storage 88% Cond'!F12 -> 0 | C41: =+'Comm WH Storage 88% Cond'!G12 -> 0 | D41: =+'Comm WH Storage 88% Cond'!H12 -> 0 | E41: 0 | G41: 0 | H41: 0 | I41: 0 | J41: 0 | K41: 0 | P41: 0 | Q41: 0
A42: ='Database Inputs'!A44 -> New Commercial Program 1 - not filing | B42: ='New Comm 1'!F$12 -> 0 | C42: ='New Comm 1'!G$12 -> 0 | D42: ='New Comm 1'!H$12 -> 0 | E42: 0 | G42: 0 | H42: 0 | I42: 0 | J42: 0 | K42: 0 | P42: 0 | Q42: 0
A43: ='Database Inputs'!A45 -> New Commercial Program 2 - not filing | B43: ='New Comm 2'!F$12 -> 0 | C43: ='New Comm 2'!G$12 -> 0 | D43: ='New Comm 2'!H$12 -> 0 | E43: 0 | G43: 0 | H43: 0 | I43: 0 | J43: 0 | K43: 0 | P43: 0 | Q43: 0
A44: ='Database Inputs'!A46 -> New Commercial Program 3 - not filing | B44: ='New Comm 3'!F$12 -> 0 | C44: ='New Comm 3'!G$12 -> 0 | D44: ='New Comm 3'!H$12 -> 0 | E44: 0 | G44: 0 | H44: 0 | I44: 0 | J44: 0 | K44: 0 | P44: 0 | Q44: 0
A45: ='Database Inputs'!A47 -> New Commercial Program 4 - not filing | B45: ='New Comm 4'!F$12 -> 0 | C45: ='New Comm 4'!G$12 -> 0 | D45: ='New Comm 4'!H$12 -> 0 | E45: 0 | G45: 0 | H45: 0 | I45: 0 | J45: 0 | K45: 0 | P45: 0 | Q45: 0
A46: ='Database Inputs'!A48 -> New Commercial Program 5 - not filing | B46: ='New Comm 5'!F$12 -> 0 | C46: ='New Comm 5'!G$12 -> 0 | D46: ='New Comm 5'!H$12 -> 0 | E46: 0 | G46: 0 | H46: 0 | I46: 0 | J46: 0 | K46: 0 | P46: 0 | Q46: 0
A47: Custom Efficiency | B47: =+'Comm Custom'!F12 -> 600 | C47: =+'Comm Custom'!G12 -> 600 | D47: =+'Comm Custom'!H12 -> 600 | E47: 1800 | G47: 0.004454342984 | H47: 90 | I47: =ROUND((C47/$C$48)*$D$73,0)+1 -> 94 | J47: =ROUND((D47/$D$48)*$E$73,0)+1 -> 97 | K47: 281 | P47: 281 | Q47: 2081
A48: Total Incentives | B48: =SUM(B8:B47) -> 120000 | C48: =SUM(C8:C47) -> 134800 | D48: =SUM(D8:D47) -> 149300 | E48: =SUM(B48:D48) -> 404100 | G48: =SUM(G8:G47) -> 1 | H48: 18000 | I48: 21000 | J48: 24000 | K48: 63000 | L48: 0 | M48: 0 | N48: 0 | O48: 0 | P48: 63000 | Q48: 467100
A50: Customer Education & Outreach | B50: =+'Mkting, Edu, & Outreach'!C17 -> 18000 | C50: =+'Mkting, Edu, & Outreach'!D17 -> 21000 | D50: =+'Mkting, Edu, & Outreach'!E17 -> 24000 | E50: =SUM(B50:D50) -> 63000
A51: Energy Audit Program Costs | B51: =+'Mkting, Edu, & Outreach'!C20 -> 25000 | C51: =+'Mkting, Edu, & Outreach'!D20 -> 25000 | D51: =+'Mkting, Edu, & Outreach'!E20 -> 25000 | E51: =SUM(B51:D51) -> 75000
A52: Total Program Costs | B52: =+B48+B50+B51 -> 163000 | C52: =+C48+C50+C51 -> 180800 | D52: =+D48+D50+D51 -> 198300 | E52: =+B52+C52+D52 -> 542100
A57: Number Participants | C57: Yr. 1 | D57: Yr. 2 | E57: Yr. 3
A58: Furnace Tier 1 (92-94% AFUE) | B58: Residential | C58: 0 | D58: 0 | E58: 0
A59: Furnace Tier 2 (95% AFUE Min) - New | B59: Residential | C59: 150 | D59: 170 | E59: 190
A60: Furnace Tier 2 (95% AFUE Min) - Repl. | B60: Residential | C60: 225 | D60: 250 | E60: 275
A61: DO NOT PRINT - 85% afue boiler - not filing
A62: Boiler Tier 2 (90% AFUE) | B62: Residential
A63: Furnace Tune-up | B63: Residential | C63: 0 | D63: 0 | E63: 0
A64: Water Heating Tier 1 (.62 EF) | B64: Residential | C64: 0 | D64: 0 | E64: 0
A65: Water Heating Tier 2 (.67 EF) | B65: Residential | C65: 40 | D65: 48 | E65: 56
A66: Programmable Thermostats | B66: Residential | C66: 180 | D66: 200 | E66: 220
A67: Attic Insulation | B67: Residential
A68: Retrofit Bundle | B68: Residential | E68: 0
A69: New Home Bundle | B69: Residential
C70: =SUM(C58:C69) -> 595 | D70: =SUM(D58:D69) -> 668 | E70: =SUM(E58:E69) -> 741
A73: Admin | C73: =+'Mkting, Edu, & Outreach'!C26 -> 18000 | D73: =+'Mkting, Edu, & Outreach'!D26 -> 21000 | E73: =+'Mkting, Edu, & Outreach'!E26 -> 24000
A77: Yr. 1 Costs | C77: 92549
A79: Projected Firm Sales from CTA filing | C79: 2220000
C81: =+ROUND(C77/C79,5) -> 0.04169
A83: Avg dk/yr. for Residential customer | C83: 100
A85: Dk/Customer | C85: =+ROUND(C81*C83,2) -> 4.17

Sheet Gas Input Table Summary
A1: Montana-Dakota Utilities Co.
A2: 2014 Input Data Summary
A3: South Dakota Natural Gas Conservation Model
A6: Input No. | B6: Input Data Description | C6: Information Source | D6: SD Res. | E6: SD Comm.
A7: 1 | B7: Retail Rate ($/dk) | C7: Weighted Average of SD retail rate using projected 2014-2015 winter gas costs & October 2014 pipeline and distribution rates | D7: 7.691 | E7: 7.249
B8: Escalation Rate | D8: 0.035 | E8: 0.035
A9: 2 | B9: Non-Gas Fuel Retail ($/fuel/unit) | C9: Average retail cost of non gas fuel if measures also saves kWh, gallons of water, etc. (for analysis purposes, used electric as Non-Gas Fuel Retail Rate) | D9: 0.1264 | E9: 0.1293 | F9: We keep a file with the Electric Rate Compsion and took the information off that as the base and then verified with Black Hills website
B10: Escalation Rate | D10: 0.035 | E10: 0.035
B11: Non-Gas Fuel Units (ie. kWh, Gallons, etc) | D11: Kwh | E11: Kwh
A12: 3 | B12: Commodity Cost ($/dk) | C12: Estimated gas costs using projected 2014-15 winter gas costs October 2014 pipeline commodity | D12: 4.187 | E12: 4.187
B13: Escalation Rate | D13: 0.035 | E13: 0.035
A14: 4 | B14: Demand Cost ($/dk/Yr) | C14: Annual cost of firm capacity on pipeline | D14: 146.26 | E14: 146.26
B15: Escalation Rate | D15: 0.01 | E15: 0.01
A16: 5 | B16: Peak Reduction Factor | C16: Estimated average peak day reduction factor caused by implementing the measure (s) | D16: 0.01 | E16: 0.01
A17: 6 | B17: Variable O&M ($/dk) | C17: Estimated variable O&M that will be avoided due the implementing the measure | D17: 0 | E17: 0
B18: Escalation Rate | D18: 0 | E18: 0
A19: 7 | B19: Non-Gas Fuel Cost ($/Fuel Unit) | C19: Average commodity cost of non gas fuel if measures also saves kWh, gallons of water, etc. (for analysis purposes, used electric as Non-Gas Fuel Cost) | D19: 0.0199 | E19: 0.0199 | F19: Black Hills Fuel & Purchased power adjustment per website
B20: Escalation Rate | D20: 0.035 | E20: 0.035
A21: 8 | B21: Non-Gas Fuel Loss Factor | C21: Non-Gas fuel loss factor (for analysis purposes, used Montana-Dakota Utilities 12 month ending July 2014 line loss factor) | D21: 0.051 | E21: 0.051
A22: 9 | B22: Gas Environmental Damage Factor | C22: Per the 2013-2015 CIP triennium from Minnesota approved by the Minnesota Division of Energy Resources Staff | D22: 0.35 | E22: 0.35 | F22: changed to correspond to MN filing
B23: Escalation Rate | D23: 0.023 | E23: 0.023
A24: 10 | B24: Non Gas Fuel Environmental Damage Factor | C24: Not Applicable | D24: 0 | E24: 0
B25: Escalation Rate | D25: 0 | E25: 0
A26: 11 | B26: Participant Discount Rate | D26: 0.1 | E26: 0.1
A27: 12 | B27: Utility Discount Rate | C27: Montana-Dakota's authorized average cost of capital | D27: 0.076 | E27: 0.076
A28: 13 | B28: Societal Discount Rate | C28: Equal to the 30 year T-Bill rate average for Twelve Months Ending September 16, 2014 | D28: 0.0356 | E28: 0.0356
A29: 14 | B29: General Input Data Year = | C29: Year data was input | D29: 2014 | E29: 2014
A30: 15 | B30: Project Analysis Year | C30: Year(s) program will be implemented | D30: 2015 | E30: 2015
D31: 2016 | E31: 2016
D32: 2017 | E32: 2017
A33: 16 | B33: Utility Project Costs | C33: Total direct cost to the utility caused by implementing the program(s)
A34: 17 | B34: Direct Participant Costs ($/Part.) | C34: Direct costs that the participant would have to participate in the program
A35: 18 | B35: Participant Non-Energy Costs (Annual $/Part.) Yr. 1 | C35: Annual participant non-energy costs if applicable caused by implementing the measure (Not Applicable) | D35: 0 | E35: 0
B36: Yr. 2 | D36: 0 | E36: 0
B37: Yr. 3 | D37: 0 | E37: 0
B38: Escalation Rate Yr. 1 | D38: 0 | E38: 0
B39: Escalation Rate Yr. 2 | D39: 0 | E39: 0
B40: Escalation Rate Yr. 3 | D40: 0 | E40: 0
A41: 19 | B41: Participant Non-Energy Savings (Annual $/Part) Yr. 1 | C41: Participant non energy savings if applicable caused by implementing the measure (Not Applicable) | D41: 0 | E41: 0
B42: Yr. 2 | D42: 0 | E42: 0
B43: Yr. 3 | D43: 0 | E43: 0
B44: Escalation Rate Yr. 1 | D44: 0 | E44: 0
B45: Escalation Rate Yr. 2 | D45: 0 | E45: 0
B46: Escalation Rate Yr. 3 | D46: 0.014 | E46: 0.014
A47: 20 | B47: Project Life (Years) | C47: Based on the estimated useful life of the energy saving equipment (20 years maximum)
A48: 21 | B48: Avg. Dk/Part. Saved | C48: Avg energy reduction (Dk) caused by the program(s)
A49: 22 | B49: Avg Non-Gas Fuel Units/Part. Saved Yr. 1 | C49: Average non-gas fuel units saved or added due to implementing the measure (for analysis purposes, used Kwh)
B50: Yr. 2 | D50: 0 | E50: 0
B51: Yr. 3 | D51: 0 | E51: 0
A52: 22a | B52: Avg Additional Non-Gas Fuel Units/ Part. Used Yr. 1 | D52: 0 | E52: 0
B53: Yr. 2 | D53: 0 | E53: 0
B54: Yr. 3 | D54: 0 | E54: 0
A55: 23 | B55: Number of Participants | C55: Total number of expected participants is the program(s)
A56: 24 | B56: Total Annual Dk Saved | C56: Total Dk saved from the program in the year implemented
A57: 25 | B57: Incentive/Participant | C57: Incentive provided to the participant
A58: 26 | B58: Distribution Delivery Charge | C58: Weighted Average of Montana-Dakota's Distribution Delivery Charge | D58: 1.744 | E58: 1.302
A59: 27 | B59: Effective Fed & State Income Tax Rate | C59: Montana-Dakota's effective tax rate | D59: 0.35 | E59: 0.35

Sheet Total Summary
A1: Montana-Dakota Utilities Co.
A2: Gas Utility - South Dakota
A3: Conservation Portfolio Summary
A4: 2015 - 2017 Program Years
E6: Total
C7: Total | E7: Energy | G7: Total | I7: Lifetime
A8: Programs | C8: Participants | E8: Reduction | G8: Cost | I8: Cost/Dk
A9: Conservation Programs
A10: Residential Program
A11: Furnaces - 92-94% AFUE | C11: =SUM('Res. 92-94% Res Furnace'!F30:H30) -> 0 | E11: ='Res. 92-94% Res Furnace'!$M$38 -> 0 | G11: =SUM('Res. 92-94% Res Furnace'!F13:H13) -> 0
A12: Furnaces - 95+% AFUE - New | C12: =SUM('Res .95+% Res Furnace - NEW'!F30:H30) -> 510 | E12: ='Res .95+% Res Furnace - NEW'!$M$38 -> 47940 | G12: =SUM('Res .95+% Res Furnace - NEW'!F13:H13) -> 176858 | I12: =ROUND(G12/E12,2) -> 3.69
A13: Furnaces - 95+% AFUE - Replacement | C13: =ROUND(SUM('Res .95+% Res Furnace - Replace'!F30:H30),0) -> 750 | E13: =ROUND('Res .95+% Res Furnace - Replace'!$M$38,0) -> 213000 | G13: =SUM('Res .95+% Res Furnace - Replace'!F13:H13) -> 260071 | I13: =ROUND(G13/E13,2) -> 1.22
A14: Boiler - 85% AFUE | C14: =SUM('Res Boiler 85%'!F30:H30) -> 0 | E14: ='Res Boiler 85%'!M38 -> 0 | G14: =SUM('Res Boiler 85%'!F13:H13) -> 0 | I14: =ROUND(G14/E14,2) -> 
A15: Boiler - 90% AFUE | C15: =SUM('Res Boiler 90%'!F30:H30) -> 0 | E15: ='Res Boiler 90%'!$M$38 -> 0 | G15: =SUM('Res Boiler 90%'!F13:H13) -> 0
A16: Furnace Tune-Up | C16: =SUM('Res Furnace Tune-Up'!F30:H30) -> 0 | E16: ='Res Furnace Tune-Up'!$M$38 -> 0 | G16: =SUM('Res Furnace Tune-Up'!F13:H13) -> 0
A17: Water Heating (.62 EF) | C17: =SUM('Res Water Heating .62 EF'!F30:H30) -> 0 | E17: ='Res Water Heating .62 EF'!$M$38 -> 0 | G17: =SUM('Res Water Heating .62 EF'!F13:H13) -> 0
A18: Water Heating (.67 EF) | C18: =SUM('Res Water Heating .67 EF'!F30:H30) -> 0 | E18: ='Res Water Heating .67 EF'!$M$38 -> 0 | G18: =SUM('Res Water Heating .67 EF'!F13:H13) -> 0
A19: Attic Insulation | C19: =SUM('Res Attic Insulation'!F30:H30) -> 0 | E19: ='Res Attic Insulation'!$M$39 -> 0 | G19: =SUM('Res Attic Insulation'!F13:H13) -> 0
A20: Retrofit Bundle | C20: =SUM('Res Retrofit Bundle'!F30:H30) -> 0 | E20: ='Res Retrofit Bundle'!$M$38 -> 0 | G20: =SUM('Res Retrofit Bundle'!F13:H13) -> 0
A21: New Home Bundle | C21: =SUM('Res New Home Bundle'!F30:H30) -> 0 | E21: ='Res New Home Bundle'!$M$38 -> 0 | G21: =SUM('Res New Home Bundle'!F13:H13) -> 0
A22: New Home Energy Star | C22: =SUM('New Home ES'!$F$30:$H$30) -> 0 | E22: =ROUND('New Home ES'!$M$38,0) -> 0 | G22: =SUM('New Home ES'!$F$13:$H$13) -> 0
A23: Low Flow Showerheads | C23: =SUM('Low Flow Showerhead'!$F$30:$H$30) -> 0 | E23: =ROUND('Low Flow Showerhead'!$M$38,0) -> 0 | G23: =SUM('Low Flow Showerhead'!$F$13:$H$13) -> 0
A24: Programmable Thermostats | C24: =SUM('Programmable Thermostats'!$F$30:$H$30) -> 600 | E24: =ROUND('Programmable Thermostats'!$M$38,0) -> 12600 | G24: =SUM('Programmable Thermostats'!$F$13:$H$13) -> 13870 | I24: 1.1
A25: New Residential Program 4 | C25: =SUM('New Residential 4'!$F$30:$H$30) -> 0 | E25: =ROUND('New Residential 4'!$M$38,0) -> 0 | G25: =SUM('New Residential 4'!$F$13:$H$13) -> 0
A26: New Residential Program 5 | C26: =SUM('New Residential 5'!$F$30:$H$30) -> 0 | E26: =ROUND('New Residential 5'!$M$38,0) -> 0 | G26: =SUM('New Residential 5'!$F$13:$H$13) -> 0
C27: =SUM(C11:C26) -> 1860 | E27: =SUM(E11:E26) -> 273540 | G27: =SUM(G11:G26) -> 450799 | I27: 1.65
A28: Commercial Program
A29: Furnaces - 92-94% AFUE | C29: =SUM('Comm 92-94% Furnace'!F30:H30) -> 0 | E29: ='Comm 92-94% Furnace'!$M$38 -> 0 | G29: =SUM('Comm 92-94% Furnace'!F13:H13) -> 0
A30: Furnaces - 95+% AFUE - New | C30: =SUM('Comm 95+% Furnace - NEW'!F30:H30) -> 5 | E30: ='Comm 95+% Furnace - NEW'!$M$38 -> 479 | G30: =SUM('Comm 95+% Furnace - NEW'!F13:H13) -> 1734 | I30: =ROUND(G30/E30,2) -> 3.62
A31: Furnaces - 95+% AFUE - Replacement | C31: =SUM('Comm 95+% Furnace - Replace'!F30:H30) -> 36 | E31: ='Comm 95+% Furnace - Replace'!$M$38 -> 10220 | G31: =SUM('Comm 95+% Furnace - Replace'!F13:H13) -> 12486 | I31: 1.22
A32: Hot Water Boiler 85% AFUE
A33: Level 1 | C33: =SUM('Comm Boiler (85%) Level 1'!F30:H30) -> 0 | E33: ='Comm Boiler (85%) Level 1'!$M$39 -> 0 | G33: =SUM('Comm Boiler (85%) Level 1'!F13:H13) -> 0
A34: Level 2 | C34: =SUM('Comm Boiler (85%) Level 2'!F30:H30) -> 0 | E34: ='Comm Boiler (85%) Level 2'!$M$39 -> 0 | G34: =SUM('Comm Boiler (85%) Level 2'!F13:H13) -> 0
A35: Level 3 | C35: =SUM('Comm Boiler (85%) Level 3'!F30:H30) -> 0 | E35: ='Comm Boiler (85%) Level 3'!$M$39 -> 0 | G35: =SUM('Comm Boiler (85%) Level 3'!F13:H13) -> 0
A36: Hot Water Boiler 90% AFUE
A37: Level 1 | C37: =SUM('Comm Boiler (90%) Level 1'!F30:H30) -> 0 | E37: ='Comm Boiler (90%) Level 1'!$M$39 -> 0 | G37: =SUM('Comm Boiler (90%) Level 1'!F13:H13) -> 0
A38: Level 2 | C38: =SUM('Comm Boiler (90%) Level 2'!F30:H30) -> 0 | E38: ='Comm Boiler (90%) Level 2'!$M$39 -> 0 | G38: =SUM('Comm Boiler (90%) Level 2'!F13:H13) -> 0
A39: Level 3 | C39: =SUM('Comm Boiler (90%) Level 3'!F30:H30) -> 0 | E39: ='Comm Boiler (90%) Level 3'!$M$39 -> 0 | G39: =SUM('Comm Boiler (90%) Level 3'!F13:H13) -> 0
A40: LP & HP Steam Boilers
A41: Level 1 | C41: =SUM('Comm LP&HP Steam Boilers - LV1'!F30:H30) -> 0 | E41: ='Comm LP&HP Steam Boilers - LV1'!$M$39 -> 0 | G41: =SUM('Comm LP&HP Steam Boilers - LV1'!F13:H13) -> 0
A42: Level 2 | C42: =SUM('Comm LP&HP Steam Boilers - LV2'!F30:H30) -> 0 | E42: ='Comm LP&HP Steam Boilers - LV2'!$M$39 -> 0 | G42: =SUM('Comm LP&HP Steam Boilers - LV2'!F13:H13) -> 0
A43: Level 3 | C43: =SUM('Comm LP&HP Steam Boilers - LV3'!F30:H30) -> 0 | E43: ='Comm LP&HP Steam Boilers - LV3'!$M$39 -> 0 | G43: =SUM('Comm LP&HP Steam Boilers - LV3'!F13:H13) -> 0
A44: Water Heating (.64 EF) | C44: =SUM('Comm WH .64 EF'!F30:H30) -> 0 | E44: =SUM('Comm WH .64 EF'!M38) -> 0 | G44: =SUM('Comm WH .64 EF'!F13:H13) -> 0
A45: Water Heating Storage (88% Cond) | C45: =SUM('Comm WH Storage 88% Cond'!F30:H30) -> 0 | E45: ='Comm WH Storage 88% Cond'!M38 -> 0 | G45: =SUM('Comm WH Storage 88% Cond'!F13:H13) -> 0
A46: New Commercial Program 1 | C46: =SUM('New Comm 1'!F$30:H$30) -> 0 | E46: ='New Comm 1'!$M$38 -> 0 | G46: =SUM('New Comm 1'!$F$13:$H$13) -> 0
A47: New Commercial Program 2 | C47: =SUM('New Comm 2'!F$30:H$30) -> 0 | E47: ='New Comm 2'!$M$38 -> 0 | G47: =SUM('New Comm 2'!$F$13:$H$13) -> 0
A48: New Commercial Program 3 | C48: =SUM('New Comm 3'!F$30:H$30) -> 0 | E48: ='New Comm 3'!$M$38 -> 0 | G48: =SUM('New Comm 3'!$F$13:$H$13) -> 0
A49: New Commercial Program 4 | C49: =SUM('New Comm 4'!F$30:H$30) -> 0 | E49: ='New Comm 4'!$M$38 -> 0 | G49: =SUM('New Comm 4'!$F$13:$H$13) -> 0
A50: New Commercial Program 5 | C50: =SUM('New Comm 5'!F$30:H$30) -> 0 | E50: ='New Comm 5'!$M$38 -> 0 | G50: =SUM('New Comm 5'!$F$13:$H$13) -> 0
A51: Custom Efficiency | C51: =SUM('Comm Custom'!F30:H30) -> 3 | E51: ='Comm Custom'!$M$38 -> 4500 | G51: =SUM('Comm Custom'!F13:H13) -> 2081 | I51: 0.46
C52: =SUM(C29:C51) -> 44 | E52: =SUM(E29:E51) -> 15199 | G52: =SUM(G29:G51) -> 16301 | I52: 1.07
A54: Energy Audit Program Costs | G54: =+'Mkting, Edu, & Outreach'!C19+'Mkting, Edu, & Outreach'!D19+'Mkting, Edu, & Outreach'!E19 -> 75000
A56: Total Programs | C56: =C27+C52+C54 -> 1904 | E56: =E27+E52+E54 -> 288739 | G56: =G27+G52+G54 -> 542100 | I56: =ROUND(G56/E56,2) -> 1.88

Sheet Summary by Yr
A1: Montana-Dakota Utilities Co.
A2: Gas Utility - South Dakota
A3: Conservation Portfolio Summary
A4: 2015 - 2017 Program Years
C6: 2015 | I6: 2016 | O6: 2017 | U6: Lifetime
A7: Programs | C7: Participants | E7: Cost | G7: Dk Savings | I7: Participants | K7: Cost | M7: Dk Savings | O7: Participants | Q7: Cost | S7: Dk Savings | U7: Dk Savings
A8: Residential Program
A9: Furnaces - 92-94% AFUE | C9: =+'Database Inputs'!C10 -> 0 | E9: =+'Res. 92-94% Res Furnace'!F13 -> 0 | G9: =+'Res. 92-94% Res Furnace'!F34 -> 0 | I9: =+'Database Inputs'!D10 -> 0 | K9: =+'Res. 92-94% Res Furnace'!G13 -> 0 | M9: =+'Res. 92-94% Res Furnace'!G34 -> 0 | O9: =+'Database Inputs'!E10 -> 0 | Q9: =+'Res. 92-94% Res Furnace'!H13 -> 0 | S9: =+'Res. 92-94% Res Furnace'!H34 -> 0 | U9: =+'Res. 92-94% Res Furnace'!M38 -> 0
A10: Furnaces - 95+% AFUE - New | C10: =+'Database Inputs'!C11 -> 150 | E10: =+'Res .95+% Res Furnace - NEW'!F13 -> 51750 | G10: =+'Res .95+% Res Furnace - NEW'!F32 -> 705 | I10: =+'Database Inputs'!D11 -> 170 | K10: =+'Res .95+% Res Furnace - NEW'!G13 -> 58945 | M10: =+'Res .95+% Res Furnace - NEW'!G32 -> 799 | O10: =+'Database Inputs'!E11 -> 190 | Q10: =+'Res .95+% Res Furnace - NEW'!H13 -> 66163 | S10: =+'Res .95+% Res Furnace - NEW'!H32 -> 893 | U10: =+'Res .95+% Res Furnace - NEW'!M38 -> 47940
A11: Furnaces - 95+% AFUE - Repl. | C11: =+'Database Inputs'!C12 -> 225 | E11: =+'Res .95+% Res Furnace - Replace'!F13 -> 77625 | G11: =+'Res .95+% Res Furnace - Replace'!F32 -> 3195 | I11: =+'Database Inputs'!D12 -> 250 | K11: =+'Res .95+% Res Furnace - Replace'!G13 -> 86684 | M11: =+'Res .95+% Res Furnace - Replace'!G32 -> 3550 | O11: =+'Database Inputs'!E12 -> 275 | Q11: =+'Res .95+% Res Furnace - Replace'!H13 -> 95762 | S11: =+'Res .95+% Res Furnace - Replace'!H32 -> 3905 | U11: =+'Res .95+% Res Furnace - Replace'!M38 -> 213000
A12: Furnace Tune-Up | C12: =+'Database Inputs'!C15 -> 0 | E12: =+'Res Furnace Tune-Up'!F13 -> 0 | G12: =+'Res Furnace Tune-Up'!F34 -> 0 | I12: =+'Database Inputs'!D15 -> 0 | K12: =+'Res Furnace Tune-Up'!G13 -> 0 | M12: =+'Res Furnace Tune-Up'!G34 -> 0 | O12: =+'Database Inputs'!E15 -> 0 | Q12: =+'Res Furnace Tune-Up'!H13 -> 0 | S12: =+'Res Furnace Tune-Up'!H34 -> 0 | U12: =+'Res Furnace Tune-Up'!M38 -> 0
A13: Water Heating (.62 EF) | C13: =+'Database Inputs'!C16 -> 0 | E13: =+'Res Water Heating .62 EF'!F13 -> 0 | G13: =+'Res Water Heating .62 EF'!F34 -> 0 | I13: =+'Database Inputs'!D16 -> 0 | K13: =+'Res Water Heating .62 EF'!G13 -> 0 | M13: =+'Res Water Heating .62 EF'!G34 -> 0 | O13: =+'Database Inputs'!E16 -> 0 | Q13: =+'Res Water Heating .62 EF'!H13 -> 0 | S13: =+'Res Water Heating .62 EF'!H34 -> 0 | U13: =+'Res Water Heating .62 EF'!M38 -> 0
A14: Water Heating (.67 EF) | C14: =+'Database Inputs'!C17 -> 0 | E14: =+'Res Water Heating .67 EF'!F13 -> 0 | G14: =+'Res Water Heating .67 EF'!F34 -> 0 | I14: =+'Database Inputs'!D17 -> 0 | K14: =+'Res Water Heating .67 EF'!G13 -> 0 | M14: =+'Res Water Heating .67 EF'!G34 -> 0 | O14: =+'Database Inputs'!E17 -> 0 | Q14: =+'Res Water Heating .67 EF'!H13 -> 0 | S14: =+'Res Water Heating .67 EF'!H34 -> 0 | U14: =+'Res Water Heating .67 EF'!M38 -> 0
A15: Programmable Thermostats | C15: =+'Database Inputs'!C23 -> 180 | E15: =+'Programmable Thermostats'!F13 -> 4140 | G15: =+'Programmable Thermostats'!F32 -> 378 | I15: =+'Database Inputs'!D23 -> 200 | K15: =+'Programmable Thermostats'!G13 -> 4623 | M15: =+'Programmable Thermostats'!G32 -> 420 | O15: =+'Database Inputs'!E23 -> 220 | Q15: =+'Programmable Thermostats'!H13 -> 5107 | S15: =+'Programmable Thermostats'!H32 -> 462 | U15: =+'Programmable Thermostats'!M38 -> 12600
A16: Total Residential | C16: =SUM(C9:C15) -> 555 | E16: =SUM(E9:E15) -> 133515 | G16: =SUM(G9:G15) -> 4278 | I16: =SUM(I9:I15) -> 620 | K16: =SUM(K9:K15) -> 150252 | M16: =SUM(M9:M15) -> 4769 | O16: =SUM(O9:O15) -> 685 | Q16: =SUM(Q9:Q15) -> 167032 | S16: =SUM(S9:S15) -> 5260 | U16: =SUM(U9:U15) -> 273540
A18: Commercial Program
A19: Furnaces - 92-94% AFUE | C19: =+'Database Inputs'!C27 -> 0 | E19: =+'Comm 92-94% Furnace'!F13 -> 0 | G19: =+'Comm 92-94% Furnace'!F34 -> 0 | I19: =+'Database Inputs'!D27 -> 0 | K19: =+'Comm 92-94% Furnace'!G13 -> 0 | M19: =+'Comm 92-94% Furnace'!G34 -> 0 | O19: =+'Database Inputs'!E27 -> 0 | Q19: =+'Comm 92-94% Furnace'!H13 -> 0 | S19: =+'Comm 92-94% Furnace'!H34 -> 0 | U19: =+'Comm 92-94% Furnace'!M38 -> 0
A20: Furnaces - 95+% AFUE - New | C20: =+'Database Inputs'!C28 -> 1 | E20: =+'Comm 95+% Furnace - NEW'!F13 -> 345 | G20: =+'Comm 95+% Furnace - NEW'!F32 -> 5 | I20: =+'Database Inputs'!D28 -> 2 | K20: =+'Comm 95+% Furnace - NEW'!G13 -> 693 | M20: =+'Comm 95+% Furnace - NEW'!G32 -> 9 | O20: =+'Database Inputs'!E28 -> 2 | Q20: =+'Comm 95+% Furnace - NEW'!H13 -> 696 | S20: =+'Comm 95+% Furnace - NEW'!H32 -> 9 | U20: =+'Comm 95+% Furnace - NEW'!M38 -> 479
A21: Furnaces - 95+% AFUE - Repl. | C21: =+'Database Inputs'!C29 -> 10 | E21: =+'Comm 95+% Furnace - Replace'!F13 -> 3450 | G21: =+'Comm 95+% Furnace - Replace'!F33 -> 142 | I21: =+'Database Inputs'!D29 -> 12 | K21: =+'Comm 95+% Furnace - Replace'!G13 -> 4161 | M21: =+'Comm 95+% Furnace - Replace'!G33 -> 170 | O21: =+'Database Inputs'!E29 -> 14 | Q21: =+'Comm 95+% Furnace - Replace'!H13 -> 4875 | S21: =+'Comm 95+% Furnace - Replace'!H33 -> 199 | U21: =+'Comm 95+% Furnace - Replace'!M38 -> 10220
A22: Custom Efficiency | C22: =+'Database Inputs'!C49 -> 1 | E22: =+'Comm Custom'!F13 -> 690 | G22: =+'Comm Custom'!F32 -> 100 | I22: =+'Database Inputs'!D49 -> 1 | K22: =+'Comm Custom'!G13 -> 694 | M22: =+'Comm Custom'!G32 -> 100 | O22: =+'Database Inputs'!E49 -> 1 | Q22: =+'Comm Custom'!H13 -> 697 | S22: =+'Comm Custom'!H32 -> 100 | U22: =+'Comm Custom'!M38 -> 4500
A23: Total Commercial | C23: =SUM(C19:C22) -> 12 | E23: =SUM(E19:E22) -> 4485 | G23: =SUM(G19:G22) -> 247 | I23: =SUM(I19:I22) -> 15 | K23: =SUM(K19:K22) -> 5548 | M23: =SUM(M19:M22) -> 279 | O23: =SUM(O19:O22) -> 17 | Q23: =SUM(Q19:Q22) -> 6268 | S23: =SUM(S19:S22) -> 308 | U23: =SUM(U19:U22) -> 15199
A25: Energy Audit Program Costs | E25: =+'Mkting, Edu, & Outreach'!C19 -> 25000 | K25: =+'Mkting, Edu, & Outreach'!D19 -> 25000 | Q25: =+'Mkting, Edu, & Outreach'!E19 -> 25000
A27: Total Programs | C27: =+C16+C23+C25 -> 567 | E27: =+E16+E23+E25 -> 163000 | G27: =+G16+G23+G25 -> 4525 | I27: =+I16+I23+I25 -> 635 | K27: =+K16+K23+K25 -> 180800 | M27: =+M16+M23+M25 -> 5048 | O27: =+O16+O23+O25 -> 702 | Q27: =+Q16+Q23+Q25 -> 198300 | S27: =+S16+S23+S25 -> 5568 | U27: =+U16+U23+U25 -> 288739
E29: =+E27-E25 -> 138000
C32: =+C27+I27+O27 -> 1904 | E32: =+E27+K27+Q27 -> 542100 | G32: =+G27+M27+S27 -> 15141

Sheet Summary of Ratios
A1: Montana-Dakota Utilities Co.
A2: South Dakota Gas DSM Program Summary
A4: Benefit/Cost Ratios
B6: Customer | G6: Total Resource
A7: Program | B7: Class | C7: RIM | D7: Utility | E7: Societal | F7: Participant | G7: Cost
A8: Total Portfolio | C8: ='Total Program'!G43 -> 1.66 | D8: ='Total Program'!G44 -> 2.54 | E8: ='Total Program'!G45 -> 2.79 | F8: ='Total Program'!G46 -> 4.747270653 | G8: ='Total Program'!G47 -> 1.92
A10: Education and Outreach
A12: Furnace (92-94%) | B12: Residential | C12: ='Res. 92-94% Res Furnace'!$G$44 ->  | D12: ='Res. 92-94% Res Furnace'!$G$45 ->  | E12: ='Res. 92-94% Res Furnace'!$G$46 ->  | F12: ='Res. 92-94% Res Furnace'!$G$47 ->  | G12: ='Res. 92-94% Res Furnace'!G48 -> 
A13: Furnace (95+%) - New | B13: Residential | C13: ='Res .95+% Res Furnace - NEW'!G43 -> 0.89 | D13: ='Res .95+% Res Furnace - NEW'!G44 -> 1.1 | E13: ='Res .95+% Res Furnace - NEW'!G45 -> 2.56 | F13: ='Res .95+% Res Furnace - NEW'!G46 -> 6.436431984 | G13: ='Res .95+% Res Furnace - NEW'!G47 -> 1.77
A14: Furnace (95+%) - Replacement | B14: Residential | C14: ='Res .95+% Res Furnace - Replace'!G42 -> 1.95 | D14: ='Res .95+% Res Furnace - Replace'!G43 -> 3.32 | E14: ='Res .95+% Res Furnace - Replace'!G44 -> 2.91 | F14: ='Res .95+% Res Furnace - Replace'!G45 -> 4.425209133 | G14: ='Res .95+% Res Furnace - Replace'!G46 -> 1.99
A15: Boiler (85%) | B15: Residential | C15: ='Res Boiler 85%'!G44 ->  | D15: ='Res Boiler 85%'!G45 ->  | E15: ='Res Boiler 85%'!G46 ->  | F15: ='Res Boiler 85%'!G47 ->  | G15: ='Res Boiler 85%'!G48 -> 
A16: Boiler (90%) | B16: Residential
A17: Furnace Tune-Up | B17: Residential | C17: ='Res Furnace Tune-Up'!G44 ->  | D17: ='Res Furnace Tune-Up'!G45 ->  | E17: ='Res Furnace Tune-Up'!G46 ->  | F17: ='Res Furnace Tune-Up'!G47 ->  | G17: ='Res Furnace Tune-Up'!G48 -> 
A18: Water Heating (.62 EF) | B18: Residential | C18: ='Res Water Heating .62 EF'!G44 ->  | D18: ='Res Water Heating .62 EF'!G45 ->  | E18: ='Res Water Heating .62 EF'!G46 ->  | F18: ='Res Water Heating .62 EF'!G47 ->  | G18: ='Res Water Heating .62 EF'!G48 -> 
A19: Water Heating (.67 EF) | B19: Residential | C19: ='Res Water Heating .67 EF'!G44 ->  | D19: ='Res Water Heating .67 EF'!G45 ->  | E19: ='Res Water Heating .67 EF'!G46 ->  | F19: ='Res Water Heating .67 EF'!G47 ->  | G19: ='Res Water Heating .67 EF'!G48 -> 
A20: Attic Insulation | B20: Residential
A21: Retrofit Bundle | B21: Residential | C21: ='Res Retrofit Bundle'!G44 ->  | D21: ='Res Retrofit Bundle'!G45 ->  | E21: ='Res Retrofit Bundle'!G46 ->  | F21: ='Res Retrofit Bundle'!G47 ->  | G21: ='Res Retrofit Bundle'!G48 -> 
A22: New Home Bundle | B22: Residential
A23: ='Database Inputs'!A21 -> DO NOT PRINT - Energy Star Home - not filing | B23: Residential | C23: ='New Home ES'!G44 ->  | D23: =+'New Home ES'!AG42 ->  | E23: ='New Home ES'!G46 ->  | F23: ='New Home ES'!G47 ->  | G23: ='New Home ES'!G48 -> 
A24: ='Database Inputs'!A22 -> Low Flow Showerheads | B24: Residential | C24: ='Low Flow Showerhead'!G44 ->  | D24: =+'Low Flow Showerhead'!AG42 ->  | E24: ='Low Flow Showerhead'!G46 ->  | F24: NA | G24: ='Low Flow Showerhead'!G48 -> 
A25: Programmable Thermostats | B25: Residential | C25: ='Programmable Thermostats'!G42 -> 2.32 | D25: ='Programmable Thermostats'!G43 -> 4.48 | E25: ='Programmable Thermostats'!G44 -> 2.05 | F25: ='Programmable Thermostats'!G45 -> 2.560488074 | G25: ='Programmable Thermostats'!G46 -> 1.64
A26: ='Database Inputs'!A24 -> New Residential Program 4 - not filing | B26: Residential | C26: ='New Residential 4'!G44 ->  | D26: ='New Residential 4'!G45 ->  | E26: ='New Residential 4'!G46 ->  | F26: ='New Residential 4'!G47 ->  | G26: ='New Residential 4'!G48 -> 
A27: ='Database Inputs'!A25 -> New Residential Program 5 - not filing | B27: Residential | C27: ='New Residential 5'!G44 ->  | D27: ='New Residential 5'!G45 ->  | E27: ='New Residential 5'!G46 ->  | F27: ='New Residential 5'!G47 ->  | G27: ='New Residential 5'!G48 -> 
A29: Furnace (92-94%) | B29: Commercial | C29: ='Comm 92-94% Furnace'!G44 ->  | D29: ='Comm 92-94% Furnace'!G45 ->  | E29: ='Comm 92-94% Furnace'!G46 ->  | F29: ='Comm 92-94% Furnace'!G47 ->  | G29: ='Comm 92-94% Furnace'!G48 -> 
A30: Furnace (95+%) - New | B30: Commercial | C30: ='Comm 95+% Furnace - NEW'!G42 -> 0.93 | D30: ='Comm 95+% Furnace - NEW'!G43 -> 1.09 | E30: ='Comm 95+% Furnace - NEW'!G44 -> 2.55 | F30: ='Comm 95+% Furnace - NEW'!G45 -> 6.493333333 | G30: ='Comm 95+% Furnace - NEW'!G46 -> 1.76
A31: Furnace (95+%) - Replacement | B31: Commercial | C31: ='Comm 95+% Furnace - Replace'!G43 -> 2.18 | D31: ='Comm 95+% Furnace - Replace'!G44 -> 3.32 | E31: ='Comm 95+% Furnace - Replace'!G45 -> 2.91 | F31: ='Comm 95+% Furnace - Replace'!G46 -> 4.348995832 | G31: ='Comm 95+% Furnace - Replace'!G47 -> 1.99
A32: Hot Water Boiler (85%)
A33: ='Database Inputs'!A31 -> Level 1 | B33: Commercial | C33: ='Comm Boiler (85%) Level 1'!G44 ->  | D33: ='Comm Boiler (85%) Level 1'!G45 ->  | E33: ='Comm Boiler (85%) Level 1'!G46 ->  | F33: ='Comm Boiler (85%) Level 1'!G47 ->  | G33: ='Comm Boiler (85%) Level 1'!G48 -> 
A34: ='Database Inputs'!A32 -> Level 2 | B34: Commercial | C34: ='Comm Boiler (85%) Level 2'!G44 ->  | D34: ='Comm Boiler (85%) Level 2'!G45 ->  | E34: ='Comm Boiler (85%) Level 2'!G46 ->  | F34: ='Comm Boiler (85%) Level 2'!G47 ->  | G34: ='Comm Boiler (85%) Level 2'!G48 -> 
A35: ='Database Inputs'!A33 -> Level 3 | B35: Commercial | C35: ='Comm Boiler (85%) Level 3'!G44 ->  | D35: =+'Comm Boiler (85%) Level 3'!G45 ->  | E35: ='Comm Boiler (85%) Level 3'!G46 ->  | F35: ='Comm Boiler (85%) Level 3'!G47 ->  | G35: ='Comm Boiler (85%) Level 3'!G48 -> 
A36: Hot Water Boiler (90%)
A37: ='Database Inputs'!A35 -> Level 1 | B37: Commercial | C37: ='Comm Boiler (90%) Level 1'!G44 ->  | D37: ='Comm Boiler (90%) Level 1'!G45 ->  | E37: ='Comm Boiler (90%) Level 1'!G46 ->  | F37: ='Comm Boiler (90%) Level 1'!G47 ->  | G37: ='Comm Boiler (90%) Level 1'!G48 -> 
A38: ='Database Inputs'!A36 -> Level 2 | B38: Commercial | C38: ='Comm Boiler (90%) Level 2'!G44 ->  | D38: ='Comm Boiler (90%) Level 2'!G45 ->  | E38: ='Comm Boiler (90%) Level 2'!G46 ->  | F38: ='Comm Boiler (90%) Level 2'!G47 ->  | G38: ='Comm Boiler (90%) Level 2'!G48 -> 
A39: ='Database Inputs'!A37 -> Level 3 | B39: Commercial | C39: ='Comm Boiler (90%) Level 3'!G44 ->  | D39: ='Comm Boiler (90%) Level 3'!G45 ->  | E39: ='Comm Boiler (90%) Level 3'!G46 ->  | F39: ='Comm Boiler (90%) Level 3'!G47 ->  | G39: ='Comm Boiler (90%) Level 3'!G48 -> 
A40: LP & HP Steam Boilers
A41: ='Database Inputs'!A39 -> Level 1 | B41: Commercial | C41: ='Comm LP&HP Steam Boilers - LV1'!G44 ->  | D41: ='Comm LP&HP Steam Boilers - LV1'!G45 ->  | E41: ='Comm LP&HP Steam Boilers - LV1'!G46 ->  | F41: ='Comm LP&HP Steam Boilers - LV1'!G47 ->  | G41: ='Comm LP&HP Steam Boilers - LV1'!G48 -> 
A42: ='Database Inputs'!A40 -> Level 2 | B42: Commercial | C42: ='Comm LP&HP Steam Boilers - LV2'!G44 ->  | D42: ='Comm LP&HP Steam Boilers - LV2'!G45 ->  | E42: ='Comm LP&HP Steam Boilers - LV2'!G46 ->  | F42: ='Comm LP&HP Steam Boilers - LV2'!G47 ->  | G42: ='Comm LP&HP Steam Boilers - LV2'!G48 -> 
A43: ='Database Inputs'!A41 -> Level 3 | B43: Commercial | C43: ='Comm LP&HP Steam Boilers - LV3'!G44 ->  | D43: ='Comm LP&HP Steam Boilers - LV3'!G45 ->  | E43: ='Comm LP&HP Steam Boilers - LV3'!G46 ->  | F43: ='Comm LP&HP Steam Boilers - LV3'!G47 ->  | G43: ='Comm LP&HP Steam Boilers - LV3'!G48 -> 
A44: Water Heating (.64EF) | B44: Commercial | C44: ='Comm WH .64 EF'!G44 ->  | D44: ='Comm WH .64 EF'!G45 ->  | E44: ='Comm WH .64 EF'!G46 ->  | F44: ='Comm WH .64 EF'!G47 ->  | G44: ='Comm WH .64 EF'!G48 -> 
A45: Water Heating (Storage 88% Cond) | B45: Commercial | C45: ='Comm WH Storage 88% Cond'!G44 ->  | D45: ='Comm WH Storage 88% Cond'!G45 ->  | E45: ='Comm WH Storage 88% Cond'!G46 ->  | F45: ='Comm WH Storage 88% Cond'!G47 ->  | G45: ='Comm WH Storage 88% Cond'!G48 -> 
A46: ='Database Inputs'!A44 -> New Commercial Program 1 - not filing | B46: Commercial | C46: ='New Comm 1'!G$44 ->  | D46: ='New Comm 1'!$G$45 ->  | E46: ='New Comm 1'!$G$46 ->  | F46: ='New Comm 1'!$G$47 ->  | G46: ='New Comm 1'!$G$48 -> 
A47: ='Database Inputs'!A45 -> New Commercial Program 2 - not filing | B47: Commercial | C47: ='New Comm 2'!G$44 ->  | D47: ='New Comm 2'!$G$45 ->  | E47: ='New Comm 2'!$G$46 ->  | F47: ='New Comm 2'!$G$47 ->  | G47: ='New Comm 2'!$G$48 -> 
A48: ='Database Inputs'!A46 -> New Commercial Program 3 - not filing | B48: Commercial | C48: ='New Comm 3'!G$44 ->  | D48: ='New Comm 3'!$G$45 ->  | E48: ='New Comm 3'!$G$46 ->  | F48: ='New Comm 3'!$G$47 ->  | G48: ='New Comm 3'!$G$48 -> 
A49: ='Database Inputs'!A47 -> New Commercial Program 4 - not filing | B49: Commercial | C49: ='New Comm 4'!G$44 ->  | D49: ='New Comm 4'!$G$45 ->  | E49: ='New Comm 4'!$G$46 ->  | F49: ='New Comm 4'!$G$47 ->  | G49: ='New Comm 4'!$G$48 -> 
A50: ='Database Inputs'!A48 -> New Commercial Program 5 - not filing | B50: Commercial | C50: ='New Comm 5'!G$44 ->  | D50: ='New Comm 5'!$G$45 ->  | E50: ='New Comm 5'!$G$46 ->  | F50: ='New Comm 5'!$G$47 ->  | G50: ='New Comm 5'!$G$48 -> 
A51: Custom Efficiency | B51: Commercial | C51: ='Comm Custom'!G42 -> 3.83 | D51: ='Comm Custom'!G43 -> 9.64 | E51: ='Comm Custom'!G44 -> 2.94 | F51: ='Comm Custom'!G45 -> 2.818691361 | G51: ='Comm Custom'!G46 -> 2.160300926

Sheet Database Inputs
A1: South Dakota Natural Gas DSM Programs
A2: Technical Assumptions
K3: Cost Assumptions
J5: Average | O5: Year 1 | P5: Total
C6: # of | D6: Number of | E6: Number of | H6: Average | I6: Average | J6: Non-Energy | N6: Avg | O6: Total | P6: Operating/
B7: Customer | C7: Particip | D7: Particip | E7: Particip | F7: Project | G7: Baseline | H7: High | I7: dk Saved | J7: Benefits | K7: Cost | L7: Cost High | M7: Increm | N7: Incentive | O7: Admin | P7: Marketing | Q7: Admin & Promo | R7: Admin & Promo | S7: Admin & Promo | V7: Total | W7: Total | X7: Total
A8: 2015 - 2017 Program Years | B8: Class | C8: Year 1 | D8: Year 2 | E8: Year 3 | F8: Life | G8: Efficiency | H8: Efficiency | I8: / part | J8: / Part | K8: Std Equip | L8: Eff Equip | M8: Cost | N8: / Part | O8: Costs | P8: Costs | Q8: Cost Yr. 1 | R8: Cost Yr. 2 | S8: Cost Yr. 3 | T8: Technical Notes | U8: Participation Notes | V8: Incentives | W8: Incentives | X8: Incentives
A9: Residential | V9: Year 1 | W9: Year 2 | X9: Year 3
A10: Furnace Tier 1 - 92-94% AFUE | B10: Residential
A11: Furnace Tier 2 - 95%+ AFUE - New | B11: Res | C11: 150 | D11: 170 | E11: 190 | F11: 20 | G11: 90 | H11: 95 | I11: 4.7 | J11: 732 | K11: 1380 | L11: 2000 | M11: 302 | N11: 300 | O11: =+'Res .95+% Res Furnace - NEW'!$F$11 -> 6750 | P11: 0 | Q11: =+'Adminstrative Costs'!H9+'Adminstrative Costs'!L9 -> 6750 | R11: =+'Adminstrative Costs'!I9+'Adminstrative Costs'!M9 -> 7945 | S11: =+'Adminstrative Costs'!J9+'Adminstrative Costs'!N9 -> 9163 | T11: 75,000 btuh Average | U11: Past program History | V11: =ROUND(N11*C11,0) -> 45000 | W11: =ROUND(D11*N11,0) -> 51000 | X11: =ROUND(N11*E11,0) -> 57000 | Z11: 75,000 btuh Avg.
A12: Furnace Tier 2 - 95%+ AFUE - Replacement | B12: Res | C12: 225 | D12: 250 | E12: 275 | F12: 20 | G12: 80 | H12: 95 | I12: 14.2 | J12: 732 | K12: 880 | L12: 2000 | M12: 650 | N12: 300 | O12: =+'Res .95+% Res Furnace - Replace'!$F$11 -> 10125 | P12: 0 | Q12: =+'Adminstrative Costs'!H10+'Adminstrative Costs'!L10 -> 10125 | R12: =+'Adminstrative Costs'!I10+'Adminstrative Costs'!M10 -> 11684 | S12: =+'Adminstrative Costs'!J10+'Adminstrative Costs'!N10 -> 13262 | T12: 75,000 btuh Average | U12: Past program History | V12: 67500 | W12: 75000 | X12: 82500 | Z12: 75,000 btuh Avg.
A13: DO NOT PRINT - 85% afue boiler - not filing | B13: Resident | M13: =+ROUND(L13-K13,0) -> 0 | Q13: =+'Adminstrative Costs'!H11+'Adminstrative Costs'!L11 -> 0 | S13: =+'Adminstrative Costs'!J11+'Adminstrative Costs'!N11 -> 0 | W13: 0 | X13: 0
A14: Boiler - 90% AFUE | B14: Resident | K14: 1000 | L14: 1600 | O14: =+'Res Boiler 90%'!F11 -> 0 | P14: 0 | T14: 75,000 btuh Average | U14: Market Information | V14: 0 | W14: 0 | X14: 0
A15: Furnace Tune-up | B15: Resident
A16: Water Heating Tier 1 (.62 EF) | B16: Resident
A17: Water Heating Tier 2 (.67 EF) | B17: Res | F17: 15 | G17: 0.594 | H17: 0.67 | I17: 2.1 | J17: 0 | K17: NA | L17: NA | O17: =+'Res Water Heating .67 EF'!F11 -> 0 | P17: 0 | Q17: =+'Adminstrative Costs'!H15+'Adminstrative Costs'!L15 -> 0 | R17: =+'Adminstrative Costs'!I15+'Adminstrative Costs'!M15 -> 0 | S17: =+'Adminstrative Costs'!J15+'Adminstrative Costs'!N15 -> 0 | T17: 40 Gallon | U17: Market Information | V17: 0 | W17: 0 | X17: 0 | Z17: 40 gal.
A18: DO Not Print Attic Insulation | B18: Resident
A19: Retrofit Bundle | B19: Resident | C19: 0 | D19: 0 | E19: 0 | F19: 18 | G19: 78,.58 | H19: 95,.62 | I19: 15.7 | J19: 669 | K19: NA | L19: NA | M19: 1170 | N19: 600 | O19: =+'Res Retrofit Bundle'!F11 -> 0 | P19: 0 | Q19: =+'Adminstrative Costs'!H17+'Adminstrative Costs'!L17 -> 0 | R19: =+'Adminstrative Costs'!I17+'Adminstrative Costs'!M17 -> 0 | S19: =+'Adminstrative Costs'!J17+'Adminstrative Costs'!N17 -> 0 | T19: Furnace / Water Heater | U19: Market Information | V19: 0 | W19: 0 | X19: 0
A20: New Home Bundle | B20: Resident | K20: NA | L20: NA | O20: =+'Res New Home Bundle'!F11 -> 0 | P20: 0 | T20: Furnace, DHW, Insulation | U20: Market Information | V20: 0 | W20: 0 | X20: 0
A21: DO NOT PRINT - Energy Star Home - not filing | B21: Resident | Q21: =+'Adminstrative Costs'!H19+'Adminstrative Costs'!L19 -> 0 | W21: 0 | X21: 0
A22: Low Flow Showerheads | B22: Resident | C22: 0 | D22: 0 | E22: 0 | F22: 15 | G22: 2.5 | H22: 1.5 | I22: 1.9 | J22: 0 | K22: NA | L22: NA | M22: 0 | N22: 0 | O22: ='Low Flow Showerhead'!$F$11 -> 0 | P22: 0 | Q22: =+'Adminstrative Costs'!H20 -> 0 | R22: =+'Adminstrative Costs'!I20 -> 0 | S22: =+'Adminstrative Costs'!J20 -> 0 | T22: 1 showerhead, 1kitchen, 2 faucet | U22: assume 50% app rate | V22: 0 | W22: 0 | X22: 0
A23: Programmable Thermostats | B23: Res | C23: 180 | D23: 200 | E23: 220 | F23: 10 | G23: NA | H23: NA | I23: 2.1 | J23: 0 | M23: 60 | N23: 20 | Q23: =+'Adminstrative Costs'!H21+'Adminstrative Costs'!L21 -> 540 | R23: =+'Adminstrative Costs'!I21+'Adminstrative Costs'!M21 -> 623 | S23: =+'Adminstrative Costs'!J21+'Adminstrative Costs'!N21 -> 707 | W23: 4000
A24: New Residential Program 4 - not filing | W24: 0
A25: New Residential Program 5 - not filing | W25: 0
A26: Commercial
A27: Furnace Tier 1 - 92-94% AFUE | B27: Commerical | O27: =+'Comm 92-94% Furnace'!F11 -> 0 | P27: 0
A28: Furnace Tier 2 - 95%+ AFUE - New | B28: Comm | C28: 1 | D28: 2 | E28: 2 | F28: 20 | G28: 90 | H28: 95 | I28: 4.7 | J28: 732 | K28: 880 | L28: 2000 | M28: 302 | N28: 300 | O28: =+'Comm 95+% Furnace - NEW'!$F$11 -> 45 | P28: 0 | Q28: =+'Adminstrative Costs'!H26 -> 45 | R28: =+'Adminstrative Costs'!I26 -> 93 | S28: =+'Adminstrative Costs'!J26 -> 96 | T28: 75,000 btuh Average | U28: Market Information | V28: =ROUND(N28*C28,0) -> 300 | W28: 600 | X28: =ROUND(N28*E28,0) -> 600
A29: Furnace Tier 2 - 95%+ AFUE - Replacement | B29: Comm | C29: 10 | D29: 12 | E29: 14 | F29: 20 | G29: 80 | H29: 95 | I29: 14.2 | J29: 732 | K29: 880 | L29: 2000 | M29: 650 | N29: 300 | O29: =+'Comm 95+% Furnace - Replace'!$F$11 -> 450 | P29: 0 | Q29: =+'Adminstrative Costs'!H27 -> 450 | R29: =+'Adminstrative Costs'!I27 -> 561 | S29: =+'Adminstrative Costs'!J27 -> 675 | T29: 75,000 btuh Average | U29: Market Information | V29: 3000 | W29: 3600 | X29: 4200
A30: Commercial Hot Water Boiler Tier 1 (85% AFUE) | B30: Comm
A31: Level 1 | B31: Comm | C31: 0 | D31: 0 | E31: 0 | F31: 20 | G31: 80 | H31: 85 | I31: 32 | J31: 0 | K31: NA | L31: NA | M31: 1071 | N31: 400 | O31: =+'Comm Boiler (85%) Level 1'!$F$11 -> 0 | P31: 0 | Q31: =+'Adminstrative Costs'!H29 -> 0 | R31: =+'Adminstrative Costs'!I29 -> 0 | S31: =+'Adminstrative Costs'!J29 -> 0 | T31: 300 kbtu Average | U31: Market Information | V31: 0 | W31: 0 | X31: 0
A32: Level 2 | B32: Comm | C32: 0 | D32: 0 | E32: 0 | F32: 20 | G32: 80 | H32: 85 | I32: 80 | J32: 0 | K32: NA | L32: NA | M32: 2678 | N32: 800 | O32: =+'Comm Boiler (85%) Level 2'!$F$11 -> 0 | P32: 0 | Q32: =+'Adminstrative Costs'!H30 -> 0 | R32: =+'Adminstrative Costs'!I30 -> 0 | S32: =+'Adminstrative Costs'!J30 -> 0 | T32: 750 kbtu Average | U32: Market Information | V32: 0 | W32: 0 | X32: 0
A33: Level 3 | B33: Comm | C33: 0 | D33: 0 | E33: 0 | F33: 20 | G33: 80 | H33: 85 | I33: 266.7 | J33: 0 | K33: NA | L33: NA | M33: 8925 | N33: 2500 | O33: =+'Comm Boiler (85%) Level 3'!$F$11 -> 0 | P33: 0 | Q33: =+'Adminstrative Costs'!H31 -> 0 | R33: =+'Adminstrative Costs'!I31 -> 0 | S33: =+'Adminstrative Costs'!J31 -> 0 | T33: 2500 kbtu Average | U33: Market Information | V33: 0 | W33: 0 | X33: 0
A34: Commercial Hot Water Boiler Tier 2 (90% AFUE) | B34: Comm
A35: Level 1 | B35: Comm | C35: 0 | D35: 0 | E35: 0 | F35: 20 | G35: 80 | H35: 90 | I35: 60.4 | J35: 0 | K35: NA | L35: NA | M35: 1758 | N35: 800 | O35: =+'Comm Boiler (90%) Level 1'!$F$11 -> 0 | P35: 0 | Q35: =+'Adminstrative Costs'!H33 -> 0 | R35: =+'Adminstrative Costs'!I33 -> 0 | S35: =+'Adminstrative Costs'!J33 -> 0 | T35: 300 kbtu Average | U35: Market Information | V35: 0 | W35: 0 | X35: 0
A36: Level 2 | B36: Comm | C36: 0 | D36: 0 | E36: 0 | F36: 20 | G36: 80 | H36: 90 | I36: 151.1 | J36: 0 | K36: NA | L36: NA | M36: 3722 | N36: 1600 | O36: =+'Comm Boiler (90%) Level 2'!$F$11 -> 0 | P36: 0 | Q36: =+'Adminstrative Costs'!H34 -> 0 | R36: =+'Adminstrative Costs'!I34 -> 0 | S36: =+'Adminstrative Costs'!J34 -> 0 | T36: 750 kbtu Average | U36: Market Information | V36: 0 | W36: 0 | X36: 0
A37: Level 3 | B37: Comm | C37: 0 | D37: 0 | E37: 0 | F37: 20 | G37: 80 | H37: 90 | I37: 503.7 | J37: 0 | K37: NA | L37: NA | M37: 12316 | N37: 5000 | O37: =+'Comm Boiler (90%) Level 3'!$F$11 -> 0 | P37: 0 | Q37: =+'Adminstrative Costs'!H35 -> 0 | R37: =+'Adminstrative Costs'!I35 -> 0 | S37: =+'Adminstrative Costs'!J35 -> 0 | T37: 2500 kbtu Average | U37: Market Information | V37: 0 | W37: 0 | X37: 0
A38: Commercial LP & HP Steam Boilers | B38: Comm
A39: Level 1 | B39: Comm | C39: 0 | D39: 0 | E39: 0 | F39: 20 | G39: 75 | H39: 84 | I39: 25.9 | J39: 0 | K39: NA | L39: NA | M39: 1758 | N39: 800 | O39: =+'Comm LP&HP Steam Boilers - LV1'!$F$11 -> 0 | P39: 0 | Q39: =+'Adminstrative Costs'!H37 -> 0 | R39: =+'Adminstrative Costs'!I37 -> 0 | S39: =+'Adminstrative Costs'!J37 -> 0 | T39: 300 kbtu Average | U39: Market Information | V39: 0 | W39: 0 | X39: 0
A40: Level 2 | B40: Comm | C40: 0 | D40: 0 | E40: 0 | F40: 20 | G40: 75 | H40: 84 | I40: 64.8 | J40: 0 | K40: NA | L40: NA | M40: 3722 | N40: 1600 | O40: =+'Comm LP&HP Steam Boilers - LV2'!$F$11 -> 0 | P40: 0 | Q40: =+'Adminstrative Costs'!H38 -> 0 | R40: =+'Adminstrative Costs'!I38 -> 0 | S40: =+'Adminstrative Costs'!J38 -> 0 | T40: 750 kbtu Average | U40: Market Information | V40: 0 | W40: 0 | X40: 0
A41: Level 3 | B41: Comm | C41: 0 | D41: 0 | E41: 0 | F41: 20 | G41: 75 | H41: 84 | I41: 215.9 | J41: 0 | K41: NA | L41: NA | M41: 12316 | N41: 5000 | O41: =+'Comm LP&HP Steam Boilers - LV3'!$F$11 -> 0 | P41: 0 | Q41: =+'Adminstrative Costs'!H39 -> 0 | R41: =+'Adminstrative Costs'!I39 -> 0 | S41: =+'Adminstrative Costs'!J39 -> 0 | T41: 2500 kbtu Average | U41: Market Information | V41: 0 | W41: 0 | X41: 0
A42: DO NOT PRINT - Water Heater .64 EF - not filing | B42: Comm | Q42: =+'Adminstrative Costs'!H40 -> 0 | R42: =+'Adminstrative Costs'!I40 -> 0 | S42: =+'Adminstrative Costs'!J40 -> 0 | W42: 0 | X42: 0
A43: DO NOT PRINT - Water Heater Storage 88% cond - not filing | B43: Comm | Q43: =+'Adminstrative Costs'!H41 -> 0 | R43: =+'Adminstrative Costs'!I41 -> 0 | S43: =+'Adminstrative Costs'!J41 -> 0 | W43: 0 | X43: 0
A44: New Commercial Program 1 - not filing | B44: Comm | Q44: =+'Adminstrative Costs'!H42 -> 0 | R44: =+'Adminstrative Costs'!I42 -> 0 | S44: =+'Adminstrative Costs'!J42 -> 0 | W44: 0 | X44: 0
A45: New Commercial Program 2 - not filing | B45: Comm | Q45: =+'Adminstrative Costs'!H43 -> 0 | R45: =+'Adminstrative Costs'!I43 -> 0 | S45: =+'Adminstrative Costs'!J43 -> 0 | W45: 0 | X45: 0
A46: New Commercial Program 3 - not filing | B46: Comm | Q46: =+'Adminstrative Costs'!H44 -> 0 | R46: =+'Adminstrative Costs'!I44 -> 0 | S46: =+'Adminstrative Costs'!J44 -> 0 | W46: 0 | X46: 0
A47: New Commercial Program 4 - not filing | B47: Comm | Q47: =+'Adminstrative Costs'!H45 -> 0 | R47: =+'Adminstrative Costs'!I45 -> 0 | S47: =+'Adminstrative Costs'!J45 -> 0 | W47: 0 | X47: 0
A48: New Commercial Program 5 - not filing | B48: Comm | Q48: =+'Adminstrative Costs'!H46 -> 0 | R48: =+'Adminstrative Costs'!I46 -> 0 | S48: =+'Adminstrative Costs'!J46 -> 0 | W48: 0 | X48: 0
A49: Custom Efficiency | B49: Comm | C49: 1 | D49: 1 | E49: 1 | F49: 15 | G49: NA | H49: NA | I49: 100 | J49: 0 | K49: NA | L49: NA | M49: 3000 | N49: 600 | O49: =+'Comm Custom'!F11 -> 90 | P49: 0 | Q49: =+'Adminstrative Costs'!H47 -> 90 | R49: =+'Adminstrative Costs'!I47 -> 94 | S49: =+'Adminstrative Costs'!J47 -> 97 | V49: =ROUND(N49*C49,0) -> 600 | W49: 600 | X49: 600
A50: Totals | B50: =SUM(C50:E50) -> 1904 | C50: =SUM(C10:C49) -> 567 | D50: =SUM(D10:D49) -> 635 | E50: =SUM(E10:E49) -> 702 | U50: Total Incentives
U51: Customer Education/info
A52: Additional Notes
U53: Admin as % of Incentives + Customer Education
A54: Retrofit Bundle
A55: Heating (Furnace / Boiler) | C55: 95/90
A56: Water Heating | C56: 0.62
A58: New Construction Bundle
A59: Heating (Furnace / Boiler) | C59: 95/85 | E59: 7.7
A60: Water Heating | C60: 0.62 | E60: 1.4
A61: Insulation levels | C61: R-19 & R-49 | E61: 9.8
A63: Low flow shower head savings is 3.88 dk but model reflects on 50% installation rate per number of kits distributed.
A66: Program & Inputs excluded from BENCOST runs as programs not included:
A67: Boiler Tier 1 (85% AFUE) | B67: Residential | C67: 5 | D67: 5 | E67: 5 | F67: 18 | G67: 80 | H67: 85 | I67: 4.6 | J67: 0 | K67: 1000 | L67: 1500 | M67: 500 | N67: 200 | O67: =+'Res Boiler 85%'!F67 -> 0 | P67: 0 | T67: 75,000 btuh Average | V67: =ROUND(N67*C67,0) -> 1000
A68: Water Heating (.64 EF) | B68: Commerical | C68: 5 | D68: 5 | E68: 5 | F68: 10 | G68: 0.58 | H68: 0.64 | I68: 0.806 | J68: 0 | K68: NA | L68: NA | M68: 175 | N68: 75 | O68: =+'Comm WH .64 EF'!F39 -> 0 | P68: 0 | T68: 40 Gallon | V68: =ROUND(N68*C68,0) -> 375
A69: Water Heating (Storage 88% Cond) | B69: Commerical | C69: 5 | D69: 10 | E69: 10 | F69: 10 | G69: 78 | H69: 88 | I69: 11.2 | J69: 0 | K69: NA | L69: NA | M69: 1000 | N69: 280 | O69: =+'Comm WH Storage 88% Cond'!F39 -> 0 | P69: 0 | V69: =ROUND(N69*C69,0) -> 1400
A70: Energy Star Home | B70: Residential | C70: 10 | D70: 15 | E70: 20 | F70: 18 | G70: 85,.58 | H70: 95,.62 | I70: 25.9 | J70: 669 | K70: NA | L70: NA | M70: 2400 | N70: 1500 | O70: 1037 | P70: 0 | T70: Precriptive (Cheyenne program) | U70: Market Information | V70: 15000

Sheet Total Program
A1: NATURAL GAS CONSERVATION PROGRAMS/DEMAND-SIDE MANAGEMENT | K1: Table 1 | AD1: Table 2 | AP1: Table 3 | BG1: Table 4 | BV1: Table 5
A2: BEN/COST ANALYSIS FOR GAS CONSERVATION | K2: Ratepayer Impact Measure Test | AD2: Utility Cost Test | AP2: Societal Test | BG2: Participant Test | BV2: Total Resource Cost Test
A4: Company: | B4: Montana-Dakota Utilities Co. | K4: Company: | M4: =B4 -> Montana-Dakota Utilities Co. | AD4: Company: | AF4: =B4 -> Montana-Dakota Utilities Co. | AP4: Company: | AR4: =AF4 -> Montana-Dakota Utilities Co. | BH4: Company: | BI4: =AR4 -> Montana-Dakota Utilities Co. | BW4: Company: | BX4: =BI4 -> Montana-Dakota Utilities Co.
A5: Project: | B5: Total South Dakota Program | K5: Project: | M5: =$B$5 -> Total South Dakota Program | AD5: Project: | AF5: =$B$5 -> Total South Dakota Program | AP5: Project: | AR5: =$B$5 -> Total South Dakota Program | BH5: Project: | BI5: =$B$5 -> Total South Dakota Program | BW5: Project: | BX5: =$B$5 -> Total South Dakota Program
A6: Program Years: | B6: 2015 - 2017
N7: Benefits | X7: Costs | AF7: Benefits | AJ7: Costs | AR7: Benefits | BB7: Costs | BI7: Benefits | BR7: Costs | BX7: Benefits | CC7: Costs
A8: Input Data | F8: First Year | G8: Second Year | H8: Third Year | AB8: Annual | AN8: Annual | AT8: Non-Gas | BE8: Annual | BT8: Annual | CG8: Annual
M9: Total | N9: Gas | O9: Gas | P9: Variable | Q9: Variable | R9: Total | S9: Peak Dk | T9: Dmd | U9: Total | W9: Distribution | Y9: Program | AA9: Total | AB9: Benefits | AF9: Total | AG9: Total | AH9: Annual | AJ9: Program | AL9: Utility | AN9: Benefits | AR9: Total | AS9: Total | AT9: Energy | AU9: Non-Gas | AV9: Environmental | AW9: Environmental | AZ9: Annual | BB9: Utility | BC9: Participants' | BD9: Annual | BE9: Benefits | BJ9: Total | BL9: Gas | BM9: Non-Gas | BN9: Non-Gas | BP9: Total | BR9: Direct | BT9: Benefits | BX9: Total | BY9: Total | BZ9: Non-Gas | CA9: Total | CC9: Utility | CD9: Participants' | CG9: Benefits
A10: 1) Retail Rate ($/Dk) = | E10: 16) Utility Project Costs | M10: Energy | N10: Commodity | O10: Commodity | P10: O & M | Q10: O & M | R10: Energy | S10: Demand | T10: Savings | U10: Demand | V10: Total | W10: Delivery | X10: Lost | Y10: Admin | Z10: Incentive | AA10: Program | AB10: Less | AF10: Energy | AG10: Demand | AH10: Total | AJ10: Admin | AK10: Incentive | AL10: Program | AN10: Less | AR10: Energy | AS10: Demand | AT10: Savings | AU10: Energy | AV10: Damage | AW10: Damage | AZ10: Total | BB10: Program | BC10: Costs Net | BD10: Total | BE10: Less | BI10: Incentives | BJ10: Energy | BK10: Retail | BL10: Bill | BM10: Fuel | BN10: Energy | BP10: Annual | BR10: Participant | BT10: Less | BX10: Energy | BY10: Demand | BZ10: Energy | CA10: Annual | CC10: Program | CD10: Costs Net | CE10: Total | CG10: Less
A11: Escalation Rate = | E11: 16a) Administrative & Operating Costs = 1/ | F11: ='Res. 92-94% Res Furnace'!F11+'Res .95+% Res Furnace - NEW'!F11+'Res Boiler 85%'!F11+'Res Boiler 90%'!F11+'Res Furnace Tune-Up'!F11+'Res Water Heating .62 EF'!F11+'Res Water Heating .67 EF'!F11+'Res Attic Insulation'!F11+'Res Retrofit Bundle'!F11+'Res New Home Bundle'!F11+'Comm 92-94% Furnace'!F11+'Comm 95+% Furnace - NEW'!F11+'Comm Boiler (85%) Level 1'!F11+'Comm Boiler (90%) Level 1'!F11+'Comm LP&HP Steam Boilers - LV1'!F11+'Comm WH .64 EF'!F11+'Comm WH Storage 88% Cond'!F11+'Comm Custom'!F11+'Res .95+% Res Furnace - Replace'!F11+'New Home ES'!F11+'Low Flow Showerhead'!F11+'Programmable Thermostats'!F11+'New Residential 4'!F11+'New Residential 5'!F11+'Comm 95+% Furnace - Replace'!F11+'Comm Boiler (85%) Level 2'!F11+'Comm Boiler (85%) Level 3'!F11+'Comm Boiler (90%) Level 2'!F11+'Comm Boiler (90%) Level 3'!F11+'Comm LP&HP Steam Boilers - LV2'!F11+'Comm LP&HP Steam Boilers - LV3'!F11+'New Comm 1'!F11+'New Comm 2'!F11+'New Comm 3'!F11+'New Comm 4'!F11+'New Comm 5'!F11+'Mkting, Edu, & Outreach'!C19 -> 43000 | G11: =+'Res. 92-94% Res Furnace'!G11+'Res .95+% Res Furnace - NEW'!G11+'Res .95+% Res Furnace - Replace'!G11+'Res Boiler 90%'!G11+'Res Furnace Tune-Up'!G11+'Res Water Heating .62 EF'!G11+'Res Water Heating .67 EF'!G11+'Res New Home Bundle'!G11+'Comm 92-94% Furnace'!G11+'Comm 95+% Furnace - NEW'!G11+'Comm 95+% Furnace - Replace'!G11+'Comm Custom'!G11+'Comm Boiler (85%) Level 1'!G11+'Comm Boiler (85%) Level 2'!G11+'Comm Boiler (85%) Level 3'!G11+'Comm Boiler (90%) Level 1'!G11+'Comm Boiler (90%) Level 2'!G11+'Comm Boiler (90%) Level 3'!G11+'Comm LP&HP Steam Boilers - LV1'!G11+'Comm LP&HP Steam Boilers - LV2'!G11+'Comm LP&HP Steam Boilers - LV3'!G11+'Res Retrofit Bundle'!G11+'Low Flow Showerhead'!G11+'Res Boiler 85%'!G11+'Res Attic Insulation'!G11+'New Home ES'!G11+'Programmable Thermostats'!G11+'New Residential 4'!G11+'New Residential 5'!G11+'Comm WH .64 EF'!G11+'Comm WH Storage 88% Cond'!G11+'New Comm 1'!G11+'New Comm 2'!G11+'New Comm 3'!G11+'New Comm 4'!G11+'New Comm 5'!G11+'Mkting, Edu, & Outreach'!D19 -> 46000 | H11: ='Res. 92-94% Res Furnace'!H11+'Res .95+% Res Furnace - NEW'!H11+'Res Boiler 85%'!H11+'Res Boiler 90%'!H11+'Res Furnace Tune-Up'!H11+'Res Water Heating .62 EF'!H11+'Res Water Heating .67 EF'!H11+'Res Attic Insulation'!H11+'Res Retrofit Bundle'!H11+'Res New Home Bundle'!H11+'Comm 92-94% Furnace'!H11+'Comm 95+% Furnace - NEW'!H11+'Comm Boiler (85%) Level 1'!H11+'Comm Boiler (90%) Level 1'!H11+'Comm LP&HP Steam Boilers - LV1'!H11+'Comm WH .64 EF'!H11+'Comm WH Storage 88% Cond'!H11+'Comm Custom'!H11+'Res .95+% Res Furnace - Replace'!H11+'New Home ES'!H11+'Low Flow Showerhead'!H11+'Programmable Thermostats'!H11+'New Residential 4'!H11+'New Residential 5'!H11+'Comm 95+% Furnace - Replace'!H11+'Comm Boiler (85%) Level 2'!H11+'Comm Boiler (85%) Level 3'!H11+'Comm Boiler (90%) Level 2'!H11+'Comm Boiler (90%) Level 3'!H11+'Comm LP&HP Steam Boilers - LV2'!H11+'Comm LP&HP Steam Boilers - LV3'!H11+'New Comm 1'!H11+'New Comm 2'!H11+'New Comm 3'!H11+'New Comm 4'!H11+'New Comm 5'!H11+'Mkting, Edu, & Outreach'!E19 -> 49000 | J11: t | M11: Reduction | N11: Cost/Dk | O11: Savings | P11: Cost/Dk | Q11: Savings | R11: Savings | S11: Reduction | T11: '/ Unit | U11: Savings | V11: Savings | W11: Charge | X11: Margin | Y11: Costs | Z11: Costs | AA11: Costs | AB11: Costs | AF11: Savings | AG11: Savings | AH11: Savings | AJ11: Costs | AK11: Costs | AL11: Costs | AN11: Costs | AR11: Savings | AS11: Savings | AT11: ($/Part.) | AU11: Savings | AV11: Savings/Dk | AW11: Savings | AZ11: Savings | BB11: Costs | BC11: of Rebate | BD11: Costs | BE11: Costs | BI11: Received | BJ11: Reduction | BK11: Rate | BL11: Savings | BM11: Retail Rate | BN11: Savings | BP11: Benefits | BR11: Costs | BT11: Costs | BX11: Savings | BY11: Savings | BZ11: Savings | CA11: Benefits | CC11: Costs | CD11: of Rebate | CE11: Costs | CG11: Costs
E12: 16b) Incentive Costs = | F12: ='Res. 92-94% Res Furnace'!F12+'Res .95+% Res Furnace - NEW'!F12+'Res Boiler 85%'!F12+'Res Boiler 90%'!F12+'Res Furnace Tune-Up'!F12+'Res Water Heating .62 EF'!F12+'Res Water Heating .67 EF'!F12+'Res Attic Insulation'!F12+'Res Retrofit Bundle'!F12+'Res New Home Bundle'!F12+'Comm 92-94% Furnace'!F12+'Comm 95+% Furnace - NEW'!F12+'Comm Boiler (85%) Level 1'!F12+'Comm Boiler (90%) Level 1'!F12+'Comm LP&HP Steam Boilers - LV1'!F12+'Comm WH .64 EF'!F12+'Comm WH Storage 88% Cond'!F12+'Res .95+% Res Furnace - Replace'!F12+'New Home ES'!F12+'Low Flow Showerhead'!F12+'Programmable Thermostats'!F12+'New Residential 4'!F12+'New Residential 5'!F12+'Comm 95+% Furnace - Replace'!F12+'Comm Boiler (85%) Level 2'!F12+'Comm Boiler (85%) Level 3'!F12+'Comm Boiler (90%) Level 2'!F12+'Comm Boiler (90%) Level 3'!F12+'Comm LP&HP Steam Boilers - LV2'!F12+'Comm LP&HP Steam Boilers - LV3'!F12+'New Comm 1'!F12+'New Comm 2'!F12+'New Comm 3'!F12+'New Comm 4'!F12+'New Comm 5'!F12+'Comm Custom'!F12 -> 120000 | G12: ='Res. 92-94% Res Furnace'!G12+'Res .95+% Res Furnace - NEW'!G12+'Res Boiler 85%'!G12+'Res Boiler 90%'!G12+'Res Furnace Tune-Up'!G12+'Res Water Heating .62 EF'!G12+'Res Water Heating .67 EF'!G12+'Res Attic Insulation'!G12+'Res Retrofit Bundle'!G12+'Res New Home Bundle'!G12+'Comm 92-94% Furnace'!G12+'Comm 95+% Furnace - NEW'!G12+'Comm Boiler (85%) Level 1'!G12+'Comm Boiler (90%) Level 1'!G12+'Comm LP&HP Steam Boilers - LV1'!G12+'Comm WH .64 EF'!G12+'Comm WH Storage 88% Cond'!G12+'Res .95+% Res Furnace - Replace'!G12+'New Home ES'!G12+'Low Flow Showerhead'!G12+'Programmable Thermostats'!G12+'New Residential 4'!G12+'New Residential 5'!G12+'Comm 95+% Furnace - Replace'!G12+'Comm Boiler (85%) Level 2'!G12+'Comm Boiler (85%) Level 3'!G12+'Comm Boiler (90%) Level 2'!G12+'Comm Boiler (90%) Level 3'!G12+'Comm LP&HP Steam Boilers - LV2'!G12+'Comm LP&HP Steam Boilers - LV3'!G12+'New Comm 1'!G12+'New Comm 2'!G12+'New Comm 3'!G12+'New Comm 4'!G12+'New Comm 5'!G12+'Comm Custom'!G12 -> 134800 | H12: ='Res. 92-94% Res Furnace'!H12+'Res .95+% Res Furnace - NEW'!H12+'Res Boiler 85%'!H12+'Res Boiler 90%'!H12+'Res Furnace Tune-Up'!H12+'Res Water Heating .62 EF'!H12+'Res Water Heating .67 EF'!H12+'Res Attic Insulation'!H12+'Res Retrofit Bundle'!H12+'Res New Home Bundle'!H12+'Comm 92-94% Furnace'!H12+'Comm 95+% Furnace - NEW'!H12+'Comm Boiler (85%) Level 1'!H12+'Comm Boiler (90%) Level 1'!H12+'Comm LP&HP Steam Boilers - LV1'!H12+'Comm WH .64 EF'!H12+'Comm WH Storage 88% Cond'!H12+'Res .95+% Res Furnace - Replace'!H12+'New Home ES'!H12+'Low Flow Showerhead'!H12+'Programmable Thermostats'!H12+'New Residential 4'!H12+'New Residential 5'!H12+'Comm 95+% Furnace - Replace'!H12+'Comm Boiler (85%) Level 2'!H12+'Comm Boiler (85%) Level 3'!H12+'Comm Boiler (90%) Level 2'!H12+'Comm Boiler (90%) Level 3'!H12+'Comm LP&HP Steam Boilers - LV2'!H12+'Comm LP&HP Steam Boilers - LV3'!H12+'New Comm 1'!H12+'New Comm 2'!H12+'New Comm 3'!H12+'New Comm 4'!H12+'New Comm 5'!H12+'Comm Custom'!H12 -> 149300 | L12: Year | M12: (A) | N12: (B) | O12: (C) | P12: (D) | Q12: (E) | R12: (F) | S12: (G) | T12: (H) | U12: (I) | V12: (J) | W12: (K) | X12: (L) | Y12: (M) | Z12: (N) | AA12: (O) | AB12: (P) | AE12: Year | AF12: (A) | AG12: (B) | AH12: (C) | AJ12: (D) | AK12: (E) | AL12: (F) | AN12: (G) | AQ12: Year | AR12: (A) | AS12: (B) | AT12: (C) | AU12: (D) | AV12: (E) | AW12: (F) | AZ12: (G) | BB12: (H) | BC12: (I) | BD12: (J) | BE12: (K) | BH12: Year | BI12: (A) | BJ12: (B) | BK12: (C) | BL12: (D) | BM12: (E) | BN12: (F) | BP12: (G) | BR12: (H) | BT12: (I) | BW12: Year | BX12: (A) | BY12: (B) | BZ12: (C) | CA12: (D) | CC12: (E) | CD12: (F) | CE12: (G) | CG12: (H)
A13: 2) Non-Gas Fuel Retail Rate ($/Fuel Unit) = | E13: 16c) Total Utility Project Costs = | F13: =SUM(F11:F12) -> 163000 | G13: =SUM(G11:G12) -> 180800 | H13: =SUM(H11:H12) -> 198300
A14: Escalation Rate = | J14: =$C$48-$C$46 -> 1 | L14: =$C$48 -> 2015 | M14: =ROUND('Res. 92-94% Res Furnace'!M14+'Res .95+% Res Furnace - NEW'!M14+'Res Boiler 85%'!M14+'Res Boiler 90%'!M14+'Res Furnace Tune-Up'!M14+'Res Water Heating .62 EF'!M14+'Res Water Heating .67 EF'!M14+'Res Attic Insulation'!M14+'Res Retrofit Bundle'!M14+'Res New Home Bundle'!M14+'Comm 92-94% Furnace'!M14+'Comm 95+% Furnace - NEW'!M14+'Comm Boiler (85%) Level 1'!M14+'Comm Boiler (90%) Level 1'!M14+'Comm LP&HP Steam Boilers - LV1'!M14+'Comm WH .64 EF'!M14+'Comm WH Storage 88% Cond'!M14+'Comm Custom'!M14+'Res .95+% Res Furnace - Replace'!M14+'New Home ES'!M14+'Low Flow Showerhead'!M14+'Programmable Thermostats'!M14+'New Residential 4'!M14+'New Residential 5'!M14+'Comm 95+% Furnace - Replace'!M14+'Comm Boiler (85%) Level 2'!M14+'Comm Boiler (85%) Level 3'!M14+'Comm Boiler (90%) Level 2'!M14+'Comm Boiler (90%) Level 3'!M14+'Comm LP&HP Steam Boilers - LV2'!M14+'Comm LP&HP Steam Boilers - LV3'!M14+'New Comm 1'!M14+'New Comm 2'!M14+'New Comm 3'!M14+'New Comm 4'!M14+'New Comm 5'!M14,0) -> 4525 | O14: =ROUND('Res. 92-94% Res Furnace'!O14+'Res .95+% Res Furnace - NEW'!O14+'Res Boiler 85%'!O14+'Res Boiler 90%'!O14+'Res Furnace Tune-Up'!O14+'Res Water Heating .62 EF'!O14+'Res Water Heating .67 EF'!O14+'Res Attic Insulation'!O14+'Res Retrofit Bundle'!O14+'Res New Home Bundle'!O14+'Comm 92-94% Furnace'!O14+'Comm 95+% Furnace - NEW'!O14+'Comm Boiler (85%) Level 1'!O14+'Comm Boiler (90%) Level 1'!O14+'Comm LP&HP Steam Boilers - LV1'!O14+'Comm WH .64 EF'!O14+'Comm WH Storage 88% Cond'!O14+'Comm Custom'!O14+'Res .95+% Res Furnace - Replace'!O14+'New Home ES'!O14+'Low Flow Showerhead'!O14+'Programmable Thermostats'!O14+'New Residential 4'!O14+'New Residential 5'!O14+'Comm 95+% Furnace - Replace'!O14+'Comm Boiler (85%) Level 2'!O14+'Comm Boiler (85%) Level 3'!O14+'Comm Boiler (90%) Level 2'!O14+'Comm Boiler (90%) Level 3'!O14+'Comm LP&HP Steam Boilers - LV2'!O14+'Comm LP&HP Steam Boilers - LV3'!O14+'New Comm 1'!O14+'New Comm 2'!O14+'New Comm 3'!O14+'New Comm 4'!O14+'New Comm 5'!O14,0) -> 19610 | Q14: =ROUND('Res. 92-94% Res Furnace'!Q14+'Res .95+% Res Furnace - NEW'!Q14+'Res Boiler 85%'!Q14+'Res Boiler 90%'!Q14+'Res Furnace Tune-Up'!Q14+'Res Water Heating .62 EF'!Q14+'Res Water Heating .67 EF'!Q14+'Res Attic Insulation'!Q14+'Res Retrofit Bundle'!Q14+'Res New Home Bundle'!Q14+'Comm 92-94% Furnace'!Q14+'Comm 95+% Furnace - NEW'!Q14+'Comm Boiler (85%) Level 1'!Q14+'Comm Boiler (90%) Level 1'!Q14+'Comm LP&HP Steam Boilers - LV1'!Q14+'Comm WH .64 EF'!Q14+'Comm WH Storage 88% Cond'!Q14+'Comm Custom'!Q14+'Res .95+% Res Furnace - Replace'!Q14+'New Home ES'!Q14+'Low Flow Showerhead'!Q14+'Programmable Thermostats'!Q14+'New Residential 4'!Q14+'New Residential 5'!Q14+'Comm 95+% Furnace - Replace'!Q14+'Comm Boiler (85%) Level 2'!Q14+'Comm Boiler (85%) Level 3'!Q14+'Comm Boiler (90%) Level 2'!Q14+'Comm Boiler (90%) Level 3'!Q14+'Comm LP&HP Steam Boilers - LV2'!Q14+'Comm LP&HP Steam Boilers - LV3'!Q14+'New Comm 1'!Q14+'New Comm 2'!Q14+'New Comm 3'!Q14+'New Comm 4'!Q14+'New Comm 5'!Q14,0) -> 0 | R14: =ROUND('Res. 92-94% Res Furnace'!R14+'Res .95+% Res Furnace - NEW'!R14+'Res Boiler 85%'!R14+'Res Boiler 90%'!R14+'Res Furnace Tune-Up'!R14+'Res Water Heating .62 EF'!R14+'Res Water Heating .67 EF'!R14+'Res Attic Insulation'!R14+'Res Retrofit Bundle'!R14+'Res New Home Bundle'!R14+'Comm 92-94% Furnace'!R14+'Comm 95+% Furnace - NEW'!R14+'Comm Boiler (85%) Level 1'!R14+'Comm Boiler (90%) Level 1'!R14+'Comm LP&HP Steam Boilers - LV1'!R14+'Comm WH .64 EF'!R14+'Comm WH Storage 88% Cond'!R14+'Comm Custom'!R14+'Res .95+% Res Furnace - Replace'!R14+'New Home ES'!R14+'Low Flow Showerhead'!R14+'Programmable Thermostats'!R14+'New Residential 4'!R14+'New Residential 5'!R14+'Comm 95+% Furnace - Replace'!R14+'Comm Boiler (85%) Level 2'!R14+'Comm Boiler (85%) Level 3'!R14+'Comm Boiler (90%) Level 2'!R14+'Comm Boiler (90%) Level 3'!R14+'Comm LP&HP Steam Boilers - LV2'!R14+'Comm LP&HP Steam Boilers - LV3'!R14+'New Comm 1'!R14+'New Comm 2'!R14+'New Comm 3'!R14+'New Comm 4'!R14+'New Comm 5'!R14,0) -> 19610 | S14: =ROUND('Res. 92-94% Res Furnace'!S14+'Res .95+% Res Furnace - NEW'!S14+'Res Boiler 85%'!S14+'Res Boiler 90%'!S14+'Res Furnace Tune-Up'!S14+'Res Water Heating .62 EF'!S14+'Res Water Heating .67 EF'!S14+'Res Attic Insulation'!S14+'Res Retrofit Bundle'!S14+'Res New Home Bundle'!S14+'Comm 92-94% Furnace'!S14+'Comm 95+% Furnace - NEW'!S14+'Comm Boiler (85%) Level 1'!S14+'Comm Boiler (90%) Level 1'!S14+'Comm LP&HP Steam Boilers - LV1'!S14+'Comm WH .64 EF'!S14+'Comm WH Storage 88% Cond'!S14+'Comm Custom'!S14+'Res .95+% Res Furnace - Replace'!S14+'New Home ES'!S14+'Low Flow Showerhead'!S14+'Programmable Thermostats'!S14+'New Residential 4'!S14+'New Residential 5'!S14+'Comm 95+% Furnace - Replace'!S14+'Comm Boiler (85%) Level 2'!S14+'Comm Boiler (85%) Level 3'!S14+'Comm Boiler (90%) Level 2'!S14+'Comm Boiler (90%) Level 3'!S14+'Comm LP&HP Steam Boilers - LV2'!S14+'Comm LP&HP Steam Boilers - LV3'!S14+'New Comm 1'!S14+'New Comm 2'!S14+'New Comm 3'!S14+'New Comm 4'!S14+'New Comm 5'!S14,0) -> 45 | U14: =ROUND('Res. 92-94% Res Furnace'!U14+'Res .95+% Res Furnace - NEW'!U14+'Res Boiler 85%'!U14+'Res Boiler 90%'!U14+'Res Furnace Tune-Up'!U14+'Res Water Heating .62 EF'!U14+'Res Water Heating .67 EF'!U14+'Res Attic Insulation'!U14+'Res Retrofit Bundle'!U14+'Res New Home Bundle'!U14+'Comm 92-94% Furnace'!U14+'Comm 95+% Furnace - NEW'!U14+'Comm Boiler (85%) Level 1'!U14+'Comm Boiler (90%) Level 1'!U14+'Comm LP&HP Steam Boilers - LV1'!U14+'Comm WH .64 EF'!U14+'Comm WH Storage 88% Cond'!U14+'Comm Custom'!U14+'Res .95+% Res Furnace - Replace'!U14+'New Home ES'!U14+'Low Flow Showerhead'!U14+'Programmable Thermostats'!U14+'New Residential 4'!U14+'New Residential 5'!U14+'Comm 95+% Furnace - Replace'!U14+'Comm Boiler (85%) Level 2'!U14+'Comm Boiler (85%) Level 3'!U14+'Comm Boiler (90%) Level 2'!U14+'Comm Boiler (90%) Level 3'!U14+'Comm LP&HP Steam Boilers - LV2'!U14+'Comm LP&HP Steam Boilers - LV3'!U14+'New Comm 1'!U14+'New Comm 2'!U14+'New Comm 3'!U14+'New Comm 4'!U14+'New Comm 5'!U14,0) -> 6719 | V14: =ROUND(+U14+R14,0) -> 26329 | X14: =ROUND('Res. 92-94% Res Furnace'!X14+'Res .95+% Res Furnace - NEW'!X14+'Res Boiler 85%'!X14+'Res Boiler 90%'!X14+'Res Furnace Tune-Up'!X14+'Res Water Heating .62 EF'!X14+'Res Water Heating .67 EF'!X14+'Res Attic Insulation'!X14+'Res Retrofit Bundle'!X14+'Res New Home Bundle'!X14+'Comm 92-94% Furnace'!X14+'Comm 95+% Furnace - NEW'!X14+'Comm Boiler (85%) Level 1'!X14+'Comm Boiler (90%) Level 1'!X14+'Comm LP&HP Steam Boilers - LV1'!X14+'Comm WH .64 EF'!X14+'Comm WH Storage 88% Cond'!X14+'Comm Custom'!X14+'Res .95+% Res Furnace - Replace'!X14+'New Home ES'!X14+'Low Flow Showerhead'!X14+'Programmable Thermostats'!X14+'New Residential 4'!X14+'New Residential 5'!X14+'Comm 95+% Furnace - Replace'!X14+'Comm Boiler (85%) Level 2'!X14+'Comm Boiler (85%) Level 3'!X14+'Comm Boiler (90%) Level 2'!X14+'Comm Boiler (90%) Level 3'!X14+'Comm LP&HP Steam Boilers - LV2'!X14+'Comm LP&HP Steam Boilers - LV3'!X14+'New Comm 1'!X14+'New Comm 2'!X14+'New Comm 3'!X14+'New Comm 4'!X14+'New Comm 5'!X14,0) -> 5235 | Y14: =ROUND('Res. 92-94% Res Furnace'!Y14+'Res .95+% Res Furnace - NEW'!Y14+'Res Boiler 85%'!Y14+'Res Boiler 90%'!Y14+'Res Furnace Tune-Up'!Y14+'Res Water Heating .62 EF'!Y14+'Res Water Heating .67 EF'!Y14+'Res Attic Insulation'!Y14+'Res Retrofit Bundle'!Y14+'Res New Home Bundle'!Y14+'Comm 92-94% Furnace'!Y14+'Comm 95+% Furnace - NEW'!Y14+'Comm Boiler (85%) Level 1'!Y14+'Comm Boiler (90%) Level 1'!Y14+'Comm LP&HP Steam Boilers - LV1'!Y14+'Comm WH .64 EF'!Y14+'Comm WH Storage 88% Cond'!Y14+'Comm Custom'!Y14+'Res .95+% Res Furnace - Replace'!Y14+'New Home ES'!Y14+'Low Flow Showerhead'!Y14+'Programmable Thermostats'!Y14+'New Residential 4'!Y14+'New Residential 5'!Y14+'Comm 95+% Furnace - Replace'!Y14+'Comm Boiler (85%) Level 2'!Y14+'Comm Boiler (85%) Level 3'!Y14+'Comm Boiler (90%) Level 2'!Y14+'Comm Boiler (90%) Level 3'!Y14+'Comm LP&HP Steam Boilers - LV2'!Y14+'Comm LP&HP Steam Boilers - LV3'!Y14+'New Comm 1'!Y14+'New Comm 2'!Y14+'New Comm 3'!Y14+'New Comm 4'!Y14+'New Comm 5'!Y14,0) -> 18000 | Z14: =ROUND('Res. 92-94% Res Furnace'!Z14+'Res .95+% Res Furnace - NEW'!Z14+'Res Boiler 85%'!Z14+'Res Boiler 90%'!Z14+'Res Furnace Tune-Up'!Z14+'Res Water Heating .62 EF'!Z14+'Res Water Heating .67 EF'!Z14+'Res Attic Insulation'!Z14+'Res Retrofit Bundle'!Z14+'Res New Home Bundle'!Z14+'Comm 92-94% Furnace'!Z14+'Comm 95+% Furnace - NEW'!Z14+'Comm Boiler (85%) Level 1'!Z14+'Comm Boiler (90%) Level 1'!Z14+'Comm LP&HP Steam Boilers - LV1'!Z14+'Comm WH .64 EF'!Z14+'Comm WH Storage 88% Cond'!Z14+'Comm Custom'!Z14+'Res .95+% Res Furnace - Replace'!Z14+'New Home ES'!Z14+'Low Flow Showerhead'!Z14+'Programmable Thermostats'!Z14+'New Residential 4'!Z14+'New Residential 5'!Z14+'Comm 95+% Furnace - Replace'!Z14+'Comm Boiler (85%) Level 2'!Z14+'Comm Boiler (85%) Level 3'!Z14+'Comm Boiler (90%) Level 2'!Z14+'Comm Boiler (90%) Level 3'!Z14+'Comm LP&HP Steam Boilers - LV2'!Z14+'Comm LP&HP Steam Boilers - LV3'!Z14+'New Comm 1'!Z14+'New Comm 2'!Z14+'New Comm 3'!Z14+'New Comm 4'!Z14+'New Comm 5'!Z14,0) -> 120000 | AA14: =SUM(X14:Z14) -> 143235 | AB14: =V14-AA14 -> -116906 | AE14: =$C$48 -> 2015 | AF14: =+R14 -> 19610 | AG14: =+U14 -> 6719 | AH14: =+AG14+AF14 -> 26329 | AJ14: =ROUND(Y14,0) -> 18000 | AK14: =ROUND(Z14,0) -> 120000 | AL14: =SUM(AJ14:AK14) -> 138000 | AN14: =+AH14-AL14 -> -111671 | AQ14: =$C$48 -> 2015 | AR14: =AF14 -> 19610 | AS14: =+AG14 -> 6719 | AU14: =ROUND('Res. 92-94% Res Furnace'!AU14+'Res .95+% Res Furnace - NEW'!AU14+'Res Boiler 85%'!AU14+'Res Boiler 90%'!AU14+'Res Furnace Tune-Up'!AU14+'Res Water Heating .62 EF'!AU14+'Res Water Heating .67 EF'!AU14+'Res Attic Insulation'!AU14+'Res Retrofit Bundle'!AU14+'Res New Home Bundle'!AU14+'Comm 92-94% Furnace'!AU14+'Comm 95+% Furnace - NEW'!AU14+'Comm Boiler (85%) Level 1'!AU14+'Comm Boiler (90%) Level 1'!AU14+'Comm LP&HP Steam Boilers - LV1'!AU14+'Comm WH .64 EF'!AU14+'Comm WH Storage 88% Cond'!AU14+'Comm Custom'!AU14+'Res .95+% Res Furnace - Replace'!AU14+'New Home ES'!AU14+'Low Flow Showerhead'!AU14+'Programmable Thermostats'!AU14+'New Residential 4'!AU14+'New Residential 5'!AU14+'Comm 95+% Furnace - Replace'!AU14+'Comm Boiler (85%) Level 2'!AU14+'Comm Boiler (85%) Level 3'!AU14+'Comm Boiler (90%) Level 2'!AU14+'Comm Boiler (90%) Level 3'!AU14+'Comm LP&HP Steam Boilers - LV2'!AU14+'Comm LP&HP Steam Boilers - LV3'!AU14+'New Comm 1'!AU14+'New Comm 2'!AU14+'New Comm 3'!AU14+'New Comm 4'!AU14+'New Comm 5'!AU14,0) -> 6216 | AW14: =ROUND('Res. 92-94% Res Furnace'!AW14+'Res .95+% Res Furnace - NEW'!AW14+'Res Boiler 85%'!AW14+'Res Boiler 90%'!AW14+'Res Furnace Tune-Up'!AW14+'Res Water Heating .62 EF'!AW14+'Res Water Heating .67 EF'!AW14+'Res Attic Insulation'!AW14+'Res Retrofit Bundle'!AW14+'Res New Home Bundle'!AW14+'Comm 92-94% Furnace'!AW14+'Comm 95+% Furnace - NEW'!AW14+'Comm Boiler (85%) Level 1'!AW14+'Comm Boiler (90%) Level 1'!AW14+'Comm LP&HP Steam Boilers - LV1'!AW14+'Comm WH .64 EF'!AW14+'Comm WH Storage 88% Cond'!AW14+'Comm Custom'!AW14+'Res .95+% Res Furnace - Replace'!AW14+'New Home ES'!AW14+'Low Flow Showerhead'!AW14+'Programmable Thermostats'!AW14+'New Residential 4'!AW14+'New Residential 5'!AW14+'Comm 95+% Furnace - Replace'!AW14+'Comm Boiler (85%) Level 2'!AW14+'Comm Boiler (85%) Level 3'!AW14+'Comm Boiler (90%) Level 2'!AW14+'Comm Boiler (90%) Level 3'!AW14+'Comm LP&HP Steam Boilers - LV2'!AW14+'Comm LP&HP Steam Boilers - LV3'!AW14+'New Comm 1'!AW14+'New Comm 2'!AW14+'New Comm 3'!AW14+'New Comm 4'!AW14+'New Comm 5'!AW14,0) -> 1620 | AZ14: =ROUND(AR14+AS14+AU14+AW14+AY14,0) -> 34165 | BB14: =ROUND('Res. 92-94% Res Furnace'!BB14+'Res .95+% Res Furnace - NEW'!BB14+'Res Boiler 85%'!BB14+'Res Boiler 90%'!BB14+'Res Furnace Tune-Up'!BB14+'Res Water Heating .62 EF'!BB14+'Res Water Heating .67 EF'!BB14+'Res Attic Insulation'!BB14+'Res Retrofit Bundle'!BB14+'Res New Home Bundle'!BB14+'Comm 92-94% Furnace'!BB14+'Comm 95+% Furnace - NEW'!BB14+'Comm Boiler (85%) Level 1'!BB14+'Comm Boiler (90%) Level 1'!BB14+'Comm LP&HP Steam Boilers - LV1'!BB14+'Comm WH .64 EF'!BB14+'Comm WH Storage 88% Cond'!BB14+'Comm Custom'!BB14+'Res .95+% Res Furnace - Replace'!BB14+'New Home ES'!BB14+'Low Flow Showerhead'!BB14+'Programmable Thermostats'!BB14+'New Residential 4'!BB14+'New Residential 5'!BB14+'Comm 95+% Furnace - Replace'!BB14+'Comm Boiler (85%) Level 2'!BB14+'Comm Boiler (85%) Level 3'!BB14+'Comm Boiler (90%) Level 2'!BB14+'Comm Boiler (90%) Level 3'!BB14+'Comm LP&HP Steam Boilers - LV2'!BB14+'Comm LP&HP Steam Boilers - LV3'!BB14+'New Comm 1'!BB14+'New Comm 2'!BB14+'New Comm 3'!BB14+'New Comm 4'!BB14+'New Comm 5'!BB14,0) -> 138000 | BC14: =ROUND('Res. 92-94% Res Furnace'!BC14+'Res .95+% Res Furnace - NEW'!BC14+'Res Boiler 85%'!BC14+'Res Boiler 90%'!BC14+'Res Furnace Tune-Up'!BC14+'Res Water Heating .62 EF'!BC14+'Res Water Heating .67 EF'!BC14+'Res Attic Insulation'!BC14+'Res Retrofit Bundle'!BC14+'Res New Home Bundle'!BC14+'Comm 92-94% Furnace'!BC14+'Comm 95+% Furnace - NEW'!BC14+'Comm Boiler (85%) Level 1'!BC14+'Comm Boiler (90%) Level 1'!BC14+'Comm LP&HP Steam Boilers - LV1'!BC14+'Comm WH .64 EF'!BC14+'Comm WH Storage 88% Cond'!BC14+'Comm Custom'!BC14+'Res .95+% Res Furnace - Replace'!BC14+'New Home ES'!BC14+'Low Flow Showerhead'!BC14+'Programmable Thermostats'!BC14+'New Residential 4'!BC14+'New Residential 5'!BC14+'Comm 95+% Furnace - Replace'!BC14+'Comm Boiler (85%) Level 2'!BC14+'Comm Boiler (85%) Level 3'!BC14+'Comm Boiler (90%) Level 2'!BC14+'Comm Boiler (90%) Level 3'!BC14+'Comm LP&HP Steam Boilers - LV2'!BC14+'Comm LP&HP Steam Boilers - LV3'!BC14+'New Comm 1'!BC14+'New Comm 2'!BC14+'New Comm 3'!BC14+'New Comm 4'!BC14+'New Comm 5'!BC14,0) -> 92152 | BD14: =BB14+BC14 -> 230152 | BE14: =AZ14-BD14 -> -195987 | BH14: =$C$48 -> 2015 | BI14: =ROUND('Res. 92-94% Res Furnace'!BI14+'Res .95+% Res Furnace - NEW'!BI14+'Res Boiler 85%'!BI14+'Res Boiler 90%'!BI14+'Res Furnace Tune-Up'!BI14+'Res Water Heating .62 EF'!BI14+'Res Water Heating .67 EF'!BI14+'Res Attic Insulation'!BI14+'Res Retrofit Bundle'!BI14+'Res New Home Bundle'!BI14+'Comm 92-94% Furnace'!BI14+'Comm 95+% Furnace - NEW'!BI14+'Comm Boiler (85%) Level 1'!BI14+'Comm Boiler (90%) Level 1'!BI14+'Comm LP&HP Steam Boilers - LV1'!BI14+'Comm WH .64 EF'!BI14+'Comm WH Storage 88% Cond'!BI14+'Comm Custom'!BI14+'Res .95+% Res Furnace - Replace'!BI14+'New Home ES'!BI14+'Low Flow Showerhead'!BI14+'Programmable Thermostats'!BI14+'New Residential 4'!BI14+'New Residential 5'!BI14+'Comm 95+% Furnace - Replace'!BI14+'Comm Boiler (85%) Level 2'!BI14+'Comm Boiler (85%) Level 3'!BI14+'Comm Boiler (90%) Level 2'!BI14+'Comm Boiler (90%) Level 3'!BI14+'Comm LP&HP Steam Boilers - LV2'!BI14+'Comm LP&HP Steam Boilers - LV3'!BI14+'New Comm 1'!BI14+'New Comm 2'!BI14+'New Comm 3'!BI14+'New Comm 4'!BI14+'New Comm 5'!BI14,0) -> 120000 | BJ14: =ROUND('Res. 92-94% Res Furnace'!BJ14+'Res .95+% Res Furnace - NEW'!BJ14+'Res Boiler 85%'!BJ14+'Res Boiler 90%'!BJ14+'Res Furnace Tune-Up'!BJ14+'Res Water Heating .62 EF'!BJ14+'Res Water Heating .67 EF'!BJ14+'Res Attic Insulation'!BJ14+'Res Retrofit Bundle'!BJ14+'Res New Home Bundle'!BJ14+'Comm 92-94% Furnace'!BJ14+'Comm 95+% Furnace - NEW'!BJ14+'Comm Boiler (85%) Level 1'!BJ14+'Comm Boiler (90%) Level 1'!BJ14+'Comm LP&HP Steam Boilers - LV1'!BJ14+'Comm WH .64 EF'!BJ14+'Comm WH Storage 88% Cond'!BJ14+'Comm Custom'!BJ14+'Res .95+% Res Furnace - Replace'!BJ14+'New Home ES'!BJ14+'Low Flow Showerhead'!BJ14+'Programmable Thermostats'!BJ14+'New Residential 4'!BJ14+'New Residential 5'!BJ14+'Comm 95+% Furnace - Replace'!BJ14+'Comm Boiler (85%) Level 2'!BJ14+'Comm Boiler (85%) Level 3'!BJ14+'Comm Boiler (90%) Level 2'!BJ14+'Comm Boiler (90%) Level 3'!BJ14+'Comm LP&HP Steam Boilers - LV2'!BJ14+'Comm LP&HP Steam Boilers - LV3'!BJ14+'New Comm 1'!BJ14+'New Comm 2'!BJ14+'New Comm 3'!BJ14+'New Comm 4'!BJ14+'New Comm 5'!BJ14,0) -> 4525 | BL14: =ROUND('Res. 92-94% Res Furnace'!BL14+'Res .95+% Res Furnace - NEW'!BL14+'Res Boiler 85%'!BL14+'Res Boiler 90%'!BL14+'Res Furnace Tune-Up'!BL14+'Res Water Heating .62 EF'!BL14+'Res Water Heating .67 EF'!BL14+'Res Attic Insulation'!BL14+'Res Retrofit Bundle'!BL14+'Res New Home Bundle'!BL14+'Comm 92-94% Furnace'!BL14+'Comm 95+% Furnace - NEW'!BL14+'Comm Boiler (85%) Level 1'!BL14+'Comm Boiler (90%) Level 1'!BL14+'Comm LP&HP Steam Boilers - LV1'!BL14+'Comm WH .64 EF'!BL14+'Comm WH Storage 88% Cond'!BL14+'Comm Custom'!BL14+'Res .95+% Res Furnace - Replace'!BL14+'New Home ES'!BL14+'Low Flow Showerhead'!BL14+'Programmable Thermostats'!BL14+'New Residential 4'!BL14+'New Residential 5'!BL14+'Comm 95+% Furnace - Replace'!BL14+'Comm Boiler (85%) Level 2'!BL14+'Comm Boiler (85%) Level 3'!BL14+'Comm Boiler (90%) Level 2'!BL14+'Comm Boiler (90%) Level 3'!BL14+'Comm LP&HP Steam Boilers - LV2'!BL14+'Comm LP&HP Steam Boilers - LV3'!BL14+'New Comm 1'!BL14+'New Comm 2'!BL14+'New Comm 3'!BL14+'New Comm 4'!BL14+'New Comm 5'!BL14,0) -> 35906 | BN14: =ROUND('Res. 92-94% Res Furnace'!BN14+'Res .95+% Res Furnace - NEW'!BN14+'Res Boiler 85%'!BN14+'Res Boiler 90%'!BN14+'Res Furnace Tune-Up'!BN14+'Res Water Heating .62 EF'!BN14+'Res Water Heating .67 EF'!BN14+'Res Attic Insulation'!BN14+'Res Retrofit Bundle'!BN14+'Res New Home Bundle'!BN14+'Comm 92-94% Furnace'!BN14+'Comm 95+% Furnace - NEW'!BN14+'Comm Boiler (85%) Level 1'!BN14+'Comm Boiler (90%) Level 1'!BN14+'Comm LP&HP Steam Boilers - LV1'!BN14+'Comm WH .64 EF'!BN14+'Comm WH Storage 88% Cond'!BN14+'Comm Custom'!BN14+'Res .95+% Res Furnace - Replace'!BN14+'New Home ES'!BN14+'Low Flow Showerhead'!BN14+'Programmable Thermostats'!BN14+'New Residential 4'!BN14+'New Residential 5'!BN14+'Comm 95+% Furnace - Replace'!BN14+'Comm Boiler (85%) Level 2'!BN14+'Comm Boiler (85%) Level 3'!BN14+'Comm Boiler (90%) Level 2'!BN14+'Comm Boiler (90%) Level 3'!BN14+'Comm LP&HP Steam Boilers - LV2'!BN14+'Comm LP&HP Steam Boilers - LV3'!BN14+'New Comm 1'!BN14+'New Comm 2'!BN14+'New Comm 3'!BN14+'New Comm 4'!BN14+'New Comm 5'!BN14,0) -> 37039 | BP14: =BI14+BL14+BN14+BO14 -> 192945 | BR14: =ROUND('Res. 92-94% Res Furnace'!BR14+'Res .95+% Res Furnace - NEW'!BR14+'Res Boiler 85%'!BR14+'Res Boiler 90%'!BR14+'Res Furnace Tune-Up'!BR14+'Res Water Heating .62 EF'!BR14+'Res Water Heating .67 EF'!BR14+'Res Attic Insulation'!BR14+'Res Retrofit Bundle'!BR14+'Res New Home Bundle'!BR14+'Comm 92-94% Furnace'!BR14+'Comm 95+% Furnace - NEW'!BR14+'Comm Boiler (85%) Level 1'!BR14+'Comm Boiler (90%) Level 1'!BR14+'Comm LP&HP Steam Boilers - LV1'!BR14+'Comm WH .64 EF'!BR14+'Comm WH Storage 88% Cond'!BR14+'Comm Custom'!BR14+'Res .95+% Res Furnace - Replace'!BR14+'New Home ES'!BR14+'Low Flow Showerhead'!BR14+'Programmable Thermostats'!BR14+'New Residential 4'!BR14+'New Residential 5'!BR14+'Comm 95+% Furnace - Replace'!BR14+'Comm Boiler (85%) Level 2'!BR14+'Comm Boiler (85%) Level 3'!BR14+'Comm Boiler (90%) Level 2'!BR14+'Comm Boiler (90%) Level 3'!BR14+'Comm LP&HP Steam Boilers - LV2'!BR14+'Comm LP&HP Steam Boilers - LV3'!BR14+'New Comm 1'!BR14+'New Comm 2'!BR14+'New Comm 3'!BR14+'New Comm 4'!BR14+'New Comm 5'!BR14,0) -> 212152 | BT14: =BP14-BR14 -> -19207 | BW14: =$C$48 -> 2015 | BX14: =$R14 -> 19610 | BY14: =U14 -> 6719 | BZ14: =AU14 -> 6216 | CA14: =SUM(BX14:BZ14) -> 32545 | CC14: =BB14 -> 138000 | CD14: =BC14 -> 92152 | CE14: =SUM(CC14:CD14) -> 230152 | CG14: =CA14-CE14 -> -197607
A15: Non-Gas Fuel Units (ie. kWh,Gallons, etc) = | E15: 17) Direct Participant Costs ($/Part.) = | J15: =J14+1 -> 2 | L15: =L14+1 -> 2016 | M15: =ROUND('Res. 92-94% Res Furnace'!M15+'Res .95+% Res Furnace - NEW'!M15+'Res Boiler 85%'!M15+'Res Boiler 90%'!M15+'Res Furnace Tune-Up'!M15+'Res Water Heating .62 EF'!M15+'Res Water Heating .67 EF'!M15+'Res Attic Insulation'!M15+'Res Retrofit Bundle'!M15+'Res New Home Bundle'!M15+'Comm 92-94% Furnace'!M15+'Comm 95+% Furnace - NEW'!M15+'Comm Boiler (85%) Level 1'!M15+'Comm Boiler (90%) Level 1'!M15+'Comm LP&HP Steam Boilers - LV1'!M15+'Comm WH .64 EF'!M15+'Comm WH Storage 88% Cond'!M15+'Comm Custom'!M15+'Res .95+% Res Furnace - Replace'!M15+'New Home ES'!M15+'Low Flow Showerhead'!M15+'Programmable Thermostats'!M15+'New Residential 4'!M15+'New Residential 5'!M15+'Comm 95+% Furnace - Replace'!M15+'Comm Boiler (85%) Level 2'!M15+'Comm Boiler (85%) Level 3'!M15+'Comm Boiler (90%) Level 2'!M15+'Comm Boiler (90%) Level 3'!M15+'Comm LP&HP Steam Boilers - LV2'!M15+'Comm LP&HP Steam Boilers - LV3'!M15+'New Comm 1'!M15+'New Comm 2'!M15+'New Comm 3'!M15+'New Comm 4'!M15+'New Comm 5'!M15,0) -> 9573 | O15: =ROUND('Res. 92-94% Res Furnace'!O15+'Res .95+% Res Furnace - NEW'!O15+'Res Boiler 85%'!O15+'Res Boiler 90%'!O15+'Res Furnace Tune-Up'!O15+'Res Water Heating .62 EF'!O15+'Res Water Heating .67 EF'!O15+'Res Attic Insulation'!O15+'Res Retrofit Bundle'!O15+'Res New Home Bundle'!O15+'Comm 92-94% Furnace'!O15+'Comm 95+% Furnace - NEW'!O15+'Comm Boiler (85%) Level 1'!O15+'Comm Boiler (90%) Level 1'!O15+'Comm LP&HP Steam Boilers - LV1'!O15+'Comm WH .64 EF'!O15+'Comm WH Storage 88% Cond'!O15+'Comm Custom'!O15+'Res .95+% Res Furnace - Replace'!O15+'New Home ES'!O15+'Low Flow Showerhead'!O15+'Programmable Thermostats'!O15+'New Residential 4'!O15+'New Residential 5'!O15+'Comm 95+% Furnace - Replace'!O15+'Comm Boiler (85%) Level 2'!O15+'Comm Boiler (85%) Level 3'!O15+'Comm Boiler (90%) Level 2'!O15+'Comm Boiler (90%) Level 3'!O15+'Comm LP&HP Steam Boilers - LV2'!O15+'Comm LP&HP Steam Boilers - LV3'!O15+'New Comm 1'!O15+'New Comm 2'!O15+'New Comm 3'!O15+'New Comm 4'!O15+'New Comm 5'!O15,0) -> 42934 | Q15: =ROUND('Res. 92-94% Res Furnace'!Q15+'Res .95+% Res Furnace - NEW'!Q15+'Res Boiler 85%'!Q15+'Res Boiler 90%'!Q15+'Res Furnace Tune-Up'!Q15+'Res Water Heating .62 EF'!Q15+'Res Water Heating .67 EF'!Q15+'Res Attic Insulation'!Q15+'Res Retrofit Bundle'!Q15+'Res New Home Bundle'!Q15+'Comm 92-94% Furnace'!Q15+'Comm 95+% Furnace - NEW'!Q15+'Comm Boiler (85%) Level 1'!Q15+'Comm Boiler (90%) Level 1'!Q15+'Comm LP&HP Steam Boilers - LV1'!Q15+'Comm WH .64 EF'!Q15+'Comm WH Storage 88% Cond'!Q15+'Comm Custom'!Q15+'Res .95+% Res Furnace - Replace'!Q15+'New Home ES'!Q15+'Low Flow Showerhead'!Q15+'Programmable Thermostats'!Q15+'New Residential 4'!Q15+'New Residential 5'!Q15+'Comm 95+% Furnace - Replace'!Q15+'Comm Boiler (85%) Level 2'!Q15+'Comm Boiler (85%) Level 3'!Q15+'Comm Boiler (90%) Level 2'!Q15+'Comm Boiler (90%) Level 3'!Q15+'Comm LP&HP Steam Boilers - LV2'!Q15+'Comm LP&HP Steam Boilers - LV3'!Q15+'New Comm 1'!Q15+'New Comm 2'!Q15+'New Comm 3'!Q15+'New Comm 4'!Q15+'New Comm 5'!Q15,0) -> 0 | R15: =ROUND('Res. 92-94% Res Furnace'!R15+'Res .95+% Res Furnace - NEW'!R15+'Res Boiler 85%'!R15+'Res Boiler 90%'!R15+'Res Furnace Tune-Up'!R15+'Res Water Heating .62 EF'!R15+'Res Water Heating .67 EF'!R15+'Res Attic Insulation'!R15+'Res Retrofit Bundle'!R15+'Res New Home Bundle'!R15+'Comm 92-94% Furnace'!R15+'Comm 95+% Furnace - NEW'!R15+'Comm Boiler (85%) Level 1'!R15+'Comm Boiler (90%) Level 1'!R15+'Comm LP&HP Steam Boilers - LV1'!R15+'Comm WH .64 EF'!R15+'Comm WH Storage 88% Cond'!R15+'Comm Custom'!R15+'Res .95+% Res Furnace - Replace'!R15+'New Home ES'!R15+'Low Flow Showerhead'!R15+'Programmable Thermostats'!R15+'New Residential 4'!R15+'New Residential 5'!R15+'Comm 95+% Furnace - Replace'!R15+'Comm Boiler (85%) Level 2'!R15+'Comm Boiler (85%) Level 3'!R15+'Comm Boiler (90%) Level 2'!R15+'Comm Boiler (90%) Level 3'!R15+'Comm LP&HP Steam Boilers - LV2'!R15+'Comm LP&HP Steam Boilers - LV3'!R15+'New Comm 1'!R15+'New Comm 2'!R15+'New Comm 3'!R15+'New Comm 4'!R15+'New Comm 5'!R15,0) -> 42934 | S15: =ROUND('Res. 92-94% Res Furnace'!S15+'Res .95+% Res Furnace - NEW'!S15+'Res Boiler 85%'!S15+'Res Boiler 90%'!S15+'Res Furnace Tune-Up'!S15+'Res Water Heating .62 EF'!S15+'Res Water Heating .67 EF'!S15+'Res Attic Insulation'!S15+'Res Retrofit Bundle'!S15+'Res New Home Bundle'!S15+'Comm 92-94% Furnace'!S15+'Comm 95+% Furnace - NEW'!S15+'Comm Boiler (85%) Level 1'!S15+'Comm Boiler (90%) Level 1'!S15+'Comm LP&HP Steam Boilers - LV1'!S15+'Comm WH .64 EF'!S15+'Comm WH Storage 88% Cond'!S15+'Comm Custom'!S15+'Res .95+% Res Furnace - Replace'!S15+'New Home ES'!S15+'Low Flow Showerhead'!S15+'Programmable Thermostats'!S15+'New Residential 4'!S15+'New Residential 5'!S15+'Comm 95+% Furnace - Replace'!S15+'Comm Boiler (85%) Level 2'!S15+'Comm Boiler (85%) Level 3'!S15+'Comm Boiler (90%) Level 2'!S15+'Comm Boiler (90%) Level 3'!S15+'Comm LP&HP Steam Boilers - LV2'!S15+'Comm LP&HP Steam Boilers - LV3'!S15+'New Comm 1'!S15+'New Comm 2'!S15+'New Comm 3'!S15+'New Comm 4'!S15+'New Comm 5'!S15,0) -> 96 | U15: =ROUND('Res. 92-94% Res Furnace'!U15+'Res .95+% Res Furnace - NEW'!U15+'Res Boiler 85%'!U15+'Res Boiler 90%'!U15+'Res Furnace Tune-Up'!U15+'Res Water Heating .62 EF'!U15+'Res Water Heating .67 EF'!U15+'Res Attic Insulation'!U15+'Res Retrofit Bundle'!U15+'Res New Home Bundle'!U15+'Comm 92-94% Furnace'!U15+'Comm 95+% Furnace - NEW'!U15+'Comm Boiler (85%) Level 1'!U15+'Comm Boiler (90%) Level 1'!U15+'Comm LP&HP Steam Boilers - LV1'!U15+'Comm WH .64 EF'!U15+'Comm WH Storage 88% Cond'!U15+'Comm Custom'!U15+'Res .95+% Res Furnace - Replace'!U15+'New Home ES'!U15+'Low Flow Showerhead'!U15+'Programmable Thermostats'!U15+'New Residential 4'!U15+'New Residential 5'!U15+'Comm 95+% Furnace - Replace'!U15+'Comm Boiler (85%) Level 2'!U15+'Comm Boiler (85%) Level 3'!U15+'Comm Boiler (90%) Level 2'!U15+'Comm Boiler (90%) Level 3'!U15+'Comm LP&HP Steam Boilers - LV2'!U15+'Comm LP&HP Steam Boilers - LV3'!U15+'New Comm 1'!U15+'New Comm 2'!U15+'New Comm 3'!U15+'New Comm 4'!U15+'New Comm 5'!U15,0) -> 14260 | V15: =ROUND(+U15+R15,0) -> 57194 | X15: =ROUND('Res. 92-94% Res Furnace'!X15+'Res .95+% Res Furnace - NEW'!X15+'Res Boiler 85%'!X15+'Res Boiler 90%'!X15+'Res Furnace Tune-Up'!X15+'Res Water Heating .62 EF'!X15+'Res Water Heating .67 EF'!X15+'Res Attic Insulation'!X15+'Res Retrofit Bundle'!X15+'Res New Home Bundle'!X15+'Comm 92-94% Furnace'!X15+'Comm 95+% Furnace - NEW'!X15+'Comm Boiler (85%) Level 1'!X15+'Comm Boiler (90%) Level 1'!X15+'Comm LP&HP Steam Boilers - LV1'!X15+'Comm WH .64 EF'!X15+'Comm WH Storage 88% Cond'!X15+'Comm Custom'!X15+'Res .95+% Res Furnace - Replace'!X15+'New Home ES'!X15+'Low Flow Showerhead'!X15+'Programmable Thermostats'!X15+'New Residential 4'!X15+'New Residential 5'!X15+'Comm 95+% Furnace - Replace'!X15+'Comm Boiler (85%) Level 2'!X15+'Comm Boiler (85%) Level 3'!X15+'Comm Boiler (90%) Level 2'!X15+'Comm Boiler (90%) Level 3'!X15+'Comm LP&HP Steam Boilers - LV2'!X15+'Comm LP&HP Steam Boilers - LV3'!X15+'New Comm 1'!X15+'New Comm 2'!X15+'New Comm 3'!X15+'New Comm 4'!X15+'New Comm 5'!X15,0) -> 11462 | Y15: =ROUND('Res. 92-94% Res Furnace'!Y15+'Res .95+% Res Furnace - NEW'!Y15+'Res Boiler 85%'!Y15+'Res Boiler 90%'!Y15+'Res Furnace Tune-Up'!Y15+'Res Water Heating .62 EF'!Y15+'Res Water Heating .67 EF'!Y15+'Res Attic Insulation'!Y15+'Res Retrofit Bundle'!Y15+'Res New Home Bundle'!Y15+'Comm 92-94% Furnace'!Y15+'Comm 95+% Furnace - NEW'!Y15+'Comm Boiler (85%) Level 1'!Y15+'Comm Boiler (90%) Level 1'!Y15+'Comm LP&HP Steam Boilers - LV1'!Y15+'Comm WH .64 EF'!Y15+'Comm WH Storage 88% Cond'!Y15+'Comm Custom'!Y15+'Res .95+% Res Furnace - Replace'!Y15+'New Home ES'!Y15+'Low Flow Showerhead'!Y15+'Programmable Thermostats'!Y15+'New Residential 4'!Y15+'New Residential 5'!Y15+'Comm 95+% Furnace - Replace'!Y15+'Comm Boiler (85%) Level 2'!Y15+'Comm Boiler (85%) Level 3'!Y15+'Comm Boiler (90%) Level 2'!Y15+'Comm Boiler (90%) Level 3'!Y15+'Comm LP&HP Steam Boilers - LV2'!Y15+'Comm LP&HP Steam Boilers - LV3'!Y15+'New Comm 1'!Y15+'New Comm 2'!Y15+'New Comm 3'!Y15+'New Comm 4'!Y15+'New Comm 5'!Y15,0) -> 21000 | Z15: =ROUND('Res. 92-94% Res Furnace'!Z15+'Res .95+% Res Furnace - NEW'!Z15+'Res Boiler 85%'!Z15+'Res Boiler 90%'!Z15+'Res Furnace Tune-Up'!Z15+'Res Water Heating .62 EF'!Z15+'Res Water Heating .67 EF'!Z15+'Res Attic Insulation'!Z15+'Res Retrofit Bundle'!Z15+'Res New Home Bundle'!Z15+'Comm 92-94% Furnace'!Z15+'Comm 95+% Furnace - NEW'!Z15+'Comm Boiler (85%) Level 1'!Z15+'Comm Boiler (90%) Level 1'!Z15+'Comm LP&HP Steam Boilers - LV1'!Z15+'Comm WH .64 EF'!Z15+'Comm WH Storage 88% Cond'!Z15+'Comm Custom'!Z15+'Res .95+% Res Furnace - Replace'!Z15+'New Home ES'!Z15+'Low Flow Showerhead'!Z15+'Programmable Thermostats'!Z15+'New Residential 4'!Z15+'New Residential 5'!Z15+'Comm 95+% Furnace - Replace'!Z15+'Comm Boiler (85%) Level 2'!Z15+'Comm Boiler (85%) Level 3'!Z15+'Comm Boiler (90%) Level 2'!Z15+'Comm Boiler (90%) Level 3'!Z15+'Comm LP&HP Steam Boilers - LV2'!Z15+'Comm LP&HP Steam Boilers - LV3'!Z15+'New Comm 1'!Z15+'New Comm 2'!Z15+'New Comm 3'!Z15+'New Comm 4'!Z15+'New Comm 5'!Z15,0) -> 134800 | AA15: 167262 | AB15: -110068 | AE15: =AE14+1 -> 2016 | AF15: 42934 | AG15: 14260 | AH15: =+AG15+AF15 -> 57194 | AJ15: =ROUND(Y15,0) -> 21000 | AK15: 134800 | AL15: 155800 | AN15: -98606 | AQ15: =AQ14+1 -> 2016 | AR15: 42934 | AS15: 14260 | AU15: =ROUND('Res. 92-94% Res Furnace'!AU15+'Res .95+% Res Furnace - NEW'!AU15+'Res Boiler 85%'!AU15+'Res Boiler 90%'!AU15+'Res Furnace Tune-Up'!AU15+'Res Water Heating .62 EF'!AU15+'Res Water Heating .67 EF'!AU15+'Res Attic Insulation'!AU15+'Res Retrofit Bundle'!AU15+'Res New Home Bundle'!AU15+'Comm 92-94% Furnace'!AU15+'Comm 95+% Furnace - NEW'!AU15+'Comm Boiler (85%) Level 1'!AU15+'Comm Boiler (90%) Level 1'!AU15+'Comm LP&HP Steam Boilers - LV1'!AU15+'Comm WH .64 EF'!AU15+'Comm WH Storage 88% Cond'!AU15+'Comm Custom'!AU15+'Res .95+% Res Furnace - Replace'!AU15+'New Home ES'!AU15+'Low Flow Showerhead'!AU15+'Programmable Thermostats'!AU15+'New Residential 4'!AU15+'New Residential 5'!AU15+'Comm 95+% Furnace - Replace'!AU15+'Comm Boiler (85%) Level 2'!AU15+'Comm Boiler (85%) Level 3'!AU15+'Comm Boiler (90%) Level 2'!AU15+'Comm Boiler (90%) Level 3'!AU15+'Comm LP&HP Steam Boilers - LV2'!AU15+'Comm LP&HP Steam Boilers - LV3'!AU15+'New Comm 1'!AU15+'New Comm 2'!AU15+'New Comm 3'!AU15+'New Comm 4'!AU15+'New Comm 5'!AU15,0) -> 13204 | AW15: =ROUND('Res. 92-94% Res Furnace'!AW15+'Res .95+% Res Furnace - NEW'!AW15+'Res Boiler 85%'!AW15+'Res Boiler 90%'!AW15+'Res Furnace Tune-Up'!AW15+'Res Water Heating .62 EF'!AW15+'Res Water Heating .67 EF'!AW15+'Res Attic Insulation'!AW15+'Res Retrofit Bundle'!AW15+'Res New Home Bundle'!AW15+'Comm 92-94% Furnace'!AW15+'Comm 95+% Furnace - NEW'!AW15+'Comm Boiler (85%) Level 1'!AW15+'Comm Boiler (90%) Level 1'!AW15+'Comm LP&HP Steam Boilers - LV1'!AW15+'Comm WH .64 EF'!AW15+'Comm WH Storage 88% Cond'!AW15+'Comm Custom'!AW15+'Res .95+% Res Furnace - Replace'!AW15+'New Home ES'!AW15+'Low Flow Showerhead'!AW15+'Programmable Thermostats'!AW15+'New Residential 4'!AW15+'New Residential 5'!AW15+'Comm 95+% Furnace - Replace'!AW15+'Comm Boiler (85%) Level 2'!AW15+'Comm Boiler (85%) Level 3'!AW15+'Comm Boiler (90%) Level 2'!AW15+'Comm Boiler (90%) Level 3'!AW15+'Comm LP&HP Steam Boilers - LV2'!AW15+'Comm LP&HP Steam Boilers - LV3'!AW15+'New Comm 1'!AW15+'New Comm 2'!AW15+'New Comm 3'!AW15+'New Comm 4'!AW15+'New Comm 5'!AW15,0) -> 3503 | AZ15: =ROUND(AR15+AS15+AU15+AW15+AY15,0) -> 73901 | BB15: =ROUND('Res. 92-94% Res Furnace'!BB15+'Res .95+% Res Furnace - NEW'!BB15+'Res Boiler 85%'!BB15+'Res Boiler 90%'!BB15+'Res Furnace Tune-Up'!BB15+'Res Water Heating .62 EF'!BB15+'Res Water Heating .67 EF'!BB15+'Res Attic Insulation'!BB15+'Res Retrofit Bundle'!BB15+'Res New Home Bundle'!BB15+'Comm 92-94% Furnace'!BB15+'Comm 95+% Furnace - NEW'!BB15+'Comm Boiler (85%) Level 1'!BB15+'Comm Boiler (90%) Level 1'!BB15+'Comm LP&HP Steam Boilers - LV1'!BB15+'Comm WH .64 EF'!BB15+'Comm WH Storage 88% Cond'!BB15+'Comm Custom'!BB15+'Res .95+% Res Furnace - Replace'!BB15+'New Home ES'!BB15+'Low Flow Showerhead'!BB15+'Programmable Thermostats'!BB15+'New Residential 4'!BB15+'New Residential 5'!BB15+'Comm 95+% Furnace - Replace'!BB15+'Comm Boiler (85%) Level 2'!BB15+'Comm Boiler (85%) Level 3'!BB15+'Comm Boiler (90%) Level 2'!BB15+'Comm Boiler (90%) Level 3'!BB15+'Comm LP&HP Steam Boilers - LV2'!BB15+'Comm LP&HP Steam Boilers - LV3'!BB15+'New Comm 1'!BB15+'New Comm 2'!BB15+'New Comm 3'!BB15+'New Comm 4'!BB15+'New Comm 5'!BB15,0) -> 155800 | BC15: =ROUND('Res. 92-94% Res Furnace'!BC15+'Res .95+% Res Furnace - NEW'!BC15+'Res Boiler 85%'!BC15+'Res Boiler 90%'!BC15+'Res Furnace Tune-Up'!BC15+'Res Water Heating .62 EF'!BC15+'Res Water Heating .67 EF'!BC15+'Res Attic Insulation'!BC15+'Res Retrofit Bundle'!BC15+'Res New Home Bundle'!BC15+'Comm 92-94% Furnace'!BC15+'Comm 95+% Furnace - NEW'!BC15+'Comm Boiler (85%) Level 1'!BC15+'Comm Boiler (90%) Level 1'!BC15+'Comm LP&HP Steam Boilers - LV1'!BC15+'Comm WH .64 EF'!BC15+'Comm WH Storage 88% Cond'!BC15+'Comm Custom'!BC15+'Res .95+% Res Furnace - Replace'!BC15+'New Home ES'!BC15+'Low Flow Showerhead'!BC15+'Programmable Thermostats'!BC15+'New Residential 4'!BC15+'New Residential 5'!BC15+'Comm 95+% Furnace - Replace'!BC15+'Comm Boiler (85%) Level 2'!BC15+'Comm Boiler (85%) Level 3'!BC15+'Comm Boiler (90%) Level 2'!BC15+'Comm Boiler (90%) Level 3'!BC15+'Comm LP&HP Steam Boilers - LV2'!BC15+'Comm LP&HP Steam Boilers - LV3'!BC15+'New Comm 1'!BC15+'New Comm 2'!BC15+'New Comm 3'!BC15+'New Comm 4'!BC15+'New Comm 5'!BC15,0) -> 102444 | BD15: =BB15+BC15 -> 258244 | BE15: -184343 | BH15: =BH14+1 -> 2016 | BI15: =ROUND('Res. 92-94% Res Furnace'!BI15+'Res .95+% Res Furnace - NEW'!BI15+'Res Boiler 85%'!BI15+'Res Boiler 90%'!BI15+'Res Furnace Tune-Up'!BI15+'Res Water Heating .62 EF'!BI15+'Res Water Heating .67 EF'!BI15+'Res Attic Insulation'!BI15+'Res Retrofit Bundle'!BI15+'Res New Home Bundle'!BI15+'Comm 92-94% Furnace'!BI15+'Comm 95+% Furnace - NEW'!BI15+'Comm Boiler (85%) Level 1'!BI15+'Comm Boiler (90%) Level 1'!BI15+'Comm LP&HP Steam Boilers - LV1'!BI15+'Comm WH .64 EF'!BI15+'Comm WH Storage 88% Cond'!BI15+'Comm Custom'!BI15+'Res .95+% Res Furnace - Replace'!BI15+'New Home ES'!BI15+'Low Flow Showerhead'!BI15+'Programmable Thermostats'!BI15+'New Residential 4'!BI15+'New Residential 5'!BI15+'Comm 95+% Furnace - Replace'!BI15+'Comm Boiler (85%) Level 2'!BI15+'Comm Boiler (85%) Level 3'!BI15+'Comm Boiler (90%) Level 2'!BI15+'Comm Boiler (90%) Level 3'!BI15+'Comm LP&HP Steam Boilers - LV2'!BI15+'Comm LP&HP Steam Boilers - LV3'!BI15+'New Comm 1'!BI15+'New Comm 2'!BI15+'New Comm 3'!BI15+'New Comm 4'!BI15+'New Comm 5'!BI15,0) -> 134800 | BJ15: =ROUND('Res. 92-94% Res Furnace'!BJ15+'Res .95+% Res Furnace - NEW'!BJ15+'Res Boiler 85%'!BJ15+'Res Boiler 90%'!BJ15+'Res Furnace Tune-Up'!BJ15+'Res Water Heating .62 EF'!BJ15+'Res Water Heating .67 EF'!BJ15+'Res Attic Insulation'!BJ15+'Res Retrofit Bundle'!BJ15+'Res New Home Bundle'!BJ15+'Comm 92-94% Furnace'!BJ15+'Comm 95+% Furnace - NEW'!BJ15+'Comm Boiler (85%) Level 1'!BJ15+'Comm Boiler (90%) Level 1'!BJ15+'Comm LP&HP Steam Boilers - LV1'!BJ15+'Comm WH .64 EF'!BJ15+'Comm WH Storage 88% Cond'!BJ15+'Comm Custom'!BJ15+'Res .95+% Res Furnace - Replace'!BJ15+'New Home ES'!BJ15+'Low Flow Showerhead'!BJ15+'Programmable Thermostats'!BJ15+'New Residential 4'!BJ15+'New Residential 5'!BJ15+'Comm 95+% Furnace - Replace'!BJ15+'Comm Boiler (85%) Level 2'!BJ15+'Comm Boiler (85%) Level 3'!BJ15+'Comm Boiler (90%) Level 2'!BJ15+'Comm Boiler (90%) Level 3'!BJ15+'Comm LP&HP Steam Boilers - LV2'!BJ15+'Comm LP&HP Steam Boilers - LV3'!BJ15+'New Comm 1'!BJ15+'New Comm 2'!BJ15+'New Comm 3'!BJ15+'New Comm 4'!BJ15+'New Comm 5'!BJ15,0) -> 9573 | BL15: =ROUND('Res. 92-94% Res Furnace'!BL15+'Res .95+% Res Furnace - NEW'!BL15+'Res Boiler 85%'!BL15+'Res Boiler 90%'!BL15+'Res Furnace Tune-Up'!BL15+'Res Water Heating .62 EF'!BL15+'Res Water Heating .67 EF'!BL15+'Res Attic Insulation'!BL15+'Res Retrofit Bundle'!BL15+'Res New Home Bundle'!BL15+'Comm 92-94% Furnace'!BL15+'Comm 95+% Furnace - NEW'!BL15+'Comm Boiler (85%) Level 1'!BL15+'Comm Boiler (90%) Level 1'!BL15+'Comm LP&HP Steam Boilers - LV1'!BL15+'Comm WH .64 EF'!BL15+'Comm WH Storage 88% Cond'!BL15+'Comm Custom'!BL15+'Res .95+% Res Furnace - Replace'!BL15+'New Home ES'!BL15+'Low Flow Showerhead'!BL15+'Programmable Thermostats'!BL15+'New Residential 4'!BL15+'New Residential 5'!BL15+'Comm 95+% Furnace - Replace'!BL15+'Comm Boiler (85%) Level 2'!BL15+'Comm Boiler (85%) Level 3'!BL15+'Comm Boiler (90%) Level 2'!BL15+'Comm Boiler (90%) Level 3'!BL15+'Comm LP&HP Steam Boilers - LV2'!BL15+'Comm LP&HP Steam Boilers - LV3'!BL15+'New Comm 1'!BL15+'New Comm 2'!BL15+'New Comm 3'!BL15+'New Comm 4'!BL15+'New Comm 5'!BL15,0) -> 78623 | BN15: =ROUND('Res. 92-94% Res Furnace'!BN15+'Res .95+% Res Furnace - NEW'!BN15+'Res Boiler 85%'!BN15+'Res Boiler 90%'!BN15+'Res Furnace Tune-Up'!BN15+'Res Water Heating .62 EF'!BN15+'Res Water Heating .67 EF'!BN15+'Res Attic Insulation'!BN15+'Res Retrofit Bundle'!BN15+'Res New Home Bundle'!BN15+'Comm 92-94% Furnace'!BN15+'Comm 95+% Furnace - NEW'!BN15+'Comm Boiler (85%) Level 1'!BN15+'Comm Boiler (90%) Level 1'!BN15+'Comm LP&HP Steam Boilers - LV1'!BN15+'Comm WH .64 EF'!BN15+'Comm WH Storage 88% Cond'!BN15+'Comm Custom'!BN15+'Res .95+% Res Furnace - Replace'!BN15+'New Home ES'!BN15+'Low Flow Showerhead'!BN15+'Programmable Thermostats'!BN15+'New Residential 4'!BN15+'New Residential 5'!BN15+'Comm 95+% Furnace - Replace'!BN15+'Comm Boiler (85%) Level 2'!BN15+'Comm Boiler (85%) Level 3'!BN15+'Comm Boiler (90%) Level 2'!BN15+'Comm Boiler (90%) Level 3'!BN15+'Comm LP&HP Steam Boilers - LV2'!BN15+'Comm LP&HP Steam Boilers - LV3'!BN15+'New Comm 1'!BN15+'New Comm 2'!BN15+'New Comm 3'!BN15+'New Comm 4'!BN15+'New Comm 5'!BN15,0) -> 81105 | BP15: 294528 | BR15: =ROUND('Res. 92-94% Res Furnace'!BR15+'Res .95+% Res Furnace - NEW'!BR15+'Res Boiler 85%'!BR15+'Res Boiler 90%'!BR15+'Res Furnace Tune-Up'!BR15+'Res Water Heating .62 EF'!BR15+'Res Water Heating .67 EF'!BR15+'Res Attic Insulation'!BR15+'Res Retrofit Bundle'!BR15+'Res New Home Bundle'!BR15+'Comm 92-94% Furnace'!BR15+'Comm 95+% Furnace - NEW'!BR15+'Comm Boiler (85%) Level 1'!BR15+'Comm Boiler (90%) Level 1'!BR15+'Comm LP&HP Steam Boilers - LV1'!BR15+'Comm WH .64 EF'!BR15+'Comm WH Storage 88% Cond'!BR15+'Comm Custom'!BR15+'Res .95+% Res Furnace - Replace'!BR15+'New Home ES'!BR15+'Low Flow Showerhead'!BR15+'Programmable Thermostats'!BR15+'New Residential 4'!BR15+'New Residential 5'!BR15+'Comm 95+% Furnace - Replace'!BR15+'Comm Boiler (85%) Level 2'!BR15+'Comm Boiler (85%) Level 3'!BR15+'Comm Boiler (90%) Level 2'!BR15+'Comm Boiler (90%) Level 3'!BR15+'Comm LP&HP Steam Boilers - LV2'!BR15+'Comm LP&HP Steam Boilers - LV3'!BR15+'New Comm 1'!BR15+'New Comm 2'!BR15+'New Comm 3'!BR15+'New Comm 4'!BR15+'New Comm 5'!BR15,0) -> 237244 | BT15: =BP15-BR15 -> 57284 | BW15: =BW14+1 -> 2016 | BX15: 42934 | BY15: =U15 -> 14260 | BZ15: =AU15 -> 13204 | CA15: =SUM(BX15:BZ15) -> 70398 | CC15: =BB15 -> 155800 | CD15: 102444 | CE15: =SUM(CC15:CD15) -> 258244 | CG15: =CA15-CE15 -> -187846
J16: 3 | L16: 2017 | M16: =ROUND('Res. 92-94% Res Furnace'!M16+'Res .95+% Res Furnace - NEW'!M16+'Res Boiler 85%'!M16+'Res Boiler 90%'!M16+'Res Furnace Tune-Up'!M16+'Res Water Heating .62 EF'!M16+'Res Water Heating .67 EF'!M16+'Res Attic Insulation'!M16+'Res Retrofit Bundle'!M16+'Res New Home Bundle'!M16+'Comm 92-94% Furnace'!M16+'Comm 95+% Furnace - NEW'!M16+'Comm Boiler (85%) Level 1'!M16+'Comm Boiler (90%) Level 1'!M16+'Comm LP&HP Steam Boilers - LV1'!M16+'Comm WH .64 EF'!M16+'Comm WH Storage 88% Cond'!M16+'Comm Custom'!M16+'Res .95+% Res Furnace - Replace'!M16+'New Home ES'!M16+'Low Flow Showerhead'!M16+'Programmable Thermostats'!M16+'New Residential 4'!M16+'New Residential 5'!M16+'Comm 95+% Furnace - Replace'!M16+'Comm Boiler (85%) Level 2'!M16+'Comm Boiler (85%) Level 3'!M16+'Comm Boiler (90%) Level 2'!M16+'Comm Boiler (90%) Level 3'!M16+'Comm LP&HP Steam Boilers - LV2'!M16+'Comm LP&HP Steam Boilers - LV3'!M16+'New Comm 1'!M16+'New Comm 2'!M16+'New Comm 3'!M16+'New Comm 4'!M16+'New Comm 5'!M16,0) -> 15142 | O16: =ROUND('Res. 92-94% Res Furnace'!O16+'Res .95+% Res Furnace - NEW'!O16+'Res Boiler 85%'!O16+'Res Boiler 90%'!O16+'Res Furnace Tune-Up'!O16+'Res Water Heating .62 EF'!O16+'Res Water Heating .67 EF'!O16+'Res Attic Insulation'!O16+'Res Retrofit Bundle'!O16+'Res New Home Bundle'!O16+'Comm 92-94% Furnace'!O16+'Comm 95+% Furnace - NEW'!O16+'Comm Boiler (85%) Level 1'!O16+'Comm Boiler (90%) Level 1'!O16+'Comm LP&HP Steam Boilers - LV1'!O16+'Comm WH .64 EF'!O16+'Comm WH Storage 88% Cond'!O16+'Comm Custom'!O16+'Res .95+% Res Furnace - Replace'!O16+'New Home ES'!O16+'Low Flow Showerhead'!O16+'Programmable Thermostats'!O16+'New Residential 4'!O16+'New Residential 5'!O16+'Comm 95+% Furnace - Replace'!O16+'Comm Boiler (85%) Level 2'!O16+'Comm Boiler (85%) Level 3'!O16+'Comm Boiler (90%) Level 2'!O16+'Comm Boiler (90%) Level 3'!O16+'Comm LP&HP Steam Boilers - LV2'!O16+'Comm LP&HP Steam Boilers - LV3'!O16+'New Comm 1'!O16+'New Comm 2'!O16+'New Comm 3'!O16+'New Comm 4'!O16+'New Comm 5'!O16,0) -> 70289 | Q16: =ROUND('Res. 92-94% Res Furnace'!Q16+'Res .95+% Res Furnace - NEW'!Q16+'Res Boiler 85%'!Q16+'Res Boiler 90%'!Q16+'Res Furnace Tune-Up'!Q16+'Res Water Heating .62 EF'!Q16+'Res Water Heating .67 EF'!Q16+'Res Attic Insulation'!Q16+'Res Retrofit Bundle'!Q16+'Res New Home Bundle'!Q16+'Comm 92-94% Furnace'!Q16+'Comm 95+% Furnace - NEW'!Q16+'Comm Boiler (85%) Level 1'!Q16+'Comm Boiler (90%) Level 1'!Q16+'Comm LP&HP Steam Boilers - LV1'!Q16+'Comm WH .64 EF'!Q16+'Comm WH Storage 88% Cond'!Q16+'Comm Custom'!Q16+'Res .95+% Res Furnace - Replace'!Q16+'New Home ES'!Q16+'Low Flow Showerhead'!Q16+'Programmable Thermostats'!Q16+'New Residential 4'!Q16+'New Residential 5'!Q16+'Comm 95+% Furnace - Replace'!Q16+'Comm Boiler (85%) Level 2'!Q16+'Comm Boiler (85%) Level 3'!Q16+'Comm Boiler (90%) Level 2'!Q16+'Comm Boiler (90%) Level 3'!Q16+'Comm LP&HP Steam Boilers - LV2'!Q16+'Comm LP&HP Steam Boilers - LV3'!Q16+'New Comm 1'!Q16+'New Comm 2'!Q16+'New Comm 3'!Q16+'New Comm 4'!Q16+'New Comm 5'!Q16,0) -> 0 | R16: =ROUND('Res. 92-94% Res Furnace'!R16+'Res .95+% Res Furnace - NEW'!R16+'Res Boiler 85%'!R16+'Res Boiler 90%'!R16+'Res Furnace Tune-Up'!R16+'Res Water Heating .62 EF'!R16+'Res Water Heating .67 EF'!R16+'Res Attic Insulation'!R16+'Res Retrofit Bundle'!R16+'Res New Home Bundle'!R16+'Comm 92-94% Furnace'!R16+'Comm 95+% Furnace - NEW'!R16+'Comm Boiler (85%) Level 1'!R16+'Comm Boiler (90%) Level 1'!R16+'Comm LP&HP Steam Boilers - LV1'!R16+'Comm WH .64 EF'!R16+'Comm WH Storage 88% Cond'!R16+'Comm Custom'!R16+'Res .95+% Res Furnace - Replace'!R16+'New Home ES'!R16+'Low Flow Showerhead'!R16+'Programmable Thermostats'!R16+'New Residential 4'!R16+'New Residential 5'!R16+'Comm 95+% Furnace - Replace'!R16+'Comm Boiler (85%) Level 2'!R16+'Comm Boiler (85%) Level 3'!R16+'Comm Boiler (90%) Level 2'!R16+'Comm Boiler (90%) Level 3'!R16+'Comm LP&HP Steam Boilers - LV2'!R16+'Comm LP&HP Steam Boilers - LV3'!R16+'New Comm 1'!R16+'New Comm 2'!R16+'New Comm 3'!R16+'New Comm 4'!R16+'New Comm 5'!R16,0) -> 70289 | S16: =ROUND('Res. 92-94% Res Furnace'!S16+'Res .95+% Res Furnace - NEW'!S16+'Res Boiler 85%'!S16+'Res Boiler 90%'!S16+'Res Furnace Tune-Up'!S16+'Res Water Heating .62 EF'!S16+'Res Water Heating .67 EF'!S16+'Res Attic Insulation'!S16+'Res Retrofit Bundle'!S16+'Res New Home Bundle'!S16+'Comm 92-94% Furnace'!S16+'Comm 95+% Furnace - NEW'!S16+'Comm Boiler (85%) Level 1'!S16+'Comm Boiler (90%) Level 1'!S16+'Comm LP&HP Steam Boilers - LV1'!S16+'Comm WH .64 EF'!S16+'Comm WH Storage 88% Cond'!S16+'Comm Custom'!S16+'Res .95+% Res Furnace - Replace'!S16+'New Home ES'!S16+'Low Flow Showerhead'!S16+'Programmable Thermostats'!S16+'New Residential 4'!S16+'New Residential 5'!S16+'Comm 95+% Furnace - Replace'!S16+'Comm Boiler (85%) Level 2'!S16+'Comm Boiler (85%) Level 3'!S16+'Comm Boiler (90%) Level 2'!S16+'Comm Boiler (90%) Level 3'!S16+'Comm LP&HP Steam Boilers - LV2'!S16+'Comm LP&HP Steam Boilers - LV3'!S16+'New Comm 1'!S16+'New Comm 2'!S16+'New Comm 3'!S16+'New Comm 4'!S16+'New Comm 5'!S16,0) -> 151 | U16: =ROUND('Res. 92-94% Res Furnace'!U16+'Res .95+% Res Furnace - NEW'!U16+'Res Boiler 85%'!U16+'Res Boiler 90%'!U16+'Res Furnace Tune-Up'!U16+'Res Water Heating .62 EF'!U16+'Res Water Heating .67 EF'!U16+'Res Attic Insulation'!U16+'Res Retrofit Bundle'!U16+'Res New Home Bundle'!U16+'Comm 92-94% Furnace'!U16+'Comm 95+% Furnace - NEW'!U16+'Comm Boiler (85%) Level 1'!U16+'Comm Boiler (90%) Level 1'!U16+'Comm LP&HP Steam Boilers - LV1'!U16+'Comm WH .64 EF'!U16+'Comm WH Storage 88% Cond'!U16+'Comm Custom'!U16+'Res .95+% Res Furnace - Replace'!U16+'New Home ES'!U16+'Low Flow Showerhead'!U16+'Programmable Thermostats'!U16+'New Residential 4'!U16+'New Residential 5'!U16+'Comm 95+% Furnace - Replace'!U16+'Comm Boiler (85%) Level 2'!U16+'Comm Boiler (85%) Level 3'!U16+'Comm Boiler (90%) Level 2'!U16+'Comm Boiler (90%) Level 3'!U16+'Comm LP&HP Steam Boilers - LV2'!U16+'Comm LP&HP Steam Boilers - LV3'!U16+'New Comm 1'!U16+'New Comm 2'!U16+'New Comm 3'!U16+'New Comm 4'!U16+'New Comm 5'!U16,0) -> 22862 | V16: =ROUND(+U16+R16,0) -> 93151 | X16: =ROUND('Res. 92-94% Res Furnace'!X16+'Res .95+% Res Furnace - NEW'!X16+'Res Boiler 85%'!X16+'Res Boiler 90%'!X16+'Res Furnace Tune-Up'!X16+'Res Water Heating .62 EF'!X16+'Res Water Heating .67 EF'!X16+'Res Attic Insulation'!X16+'Res Retrofit Bundle'!X16+'Res New Home Bundle'!X16+'Comm 92-94% Furnace'!X16+'Comm 95+% Furnace - NEW'!X16+'Comm Boiler (85%) Level 1'!X16+'Comm Boiler (90%) Level 1'!X16+'Comm LP&HP Steam Boilers - LV1'!X16+'Comm WH .64 EF'!X16+'Comm WH Storage 88% Cond'!X16+'Comm Custom'!X16+'Res .95+% Res Furnace - Replace'!X16+'New Home ES'!X16+'Low Flow Showerhead'!X16+'Programmable Thermostats'!X16+'New Residential 4'!X16+'New Residential 5'!X16+'Comm 95+% Furnace - Replace'!X16+'Comm Boiler (85%) Level 2'!X16+'Comm Boiler (85%) Level 3'!X16+'Comm Boiler (90%) Level 2'!X16+'Comm Boiler (90%) Level 3'!X16+'Comm LP&HP Steam Boilers - LV2'!X16+'Comm LP&HP Steam Boilers - LV3'!X16+'New Comm 1'!X16+'New Comm 2'!X16+'New Comm 3'!X16+'New Comm 4'!X16+'New Comm 5'!X16,0) -> 18770 | Y16: =ROUND('Res. 92-94% Res Furnace'!Y16+'Res .95+% Res Furnace - NEW'!Y16+'Res Boiler 85%'!Y16+'Res Boiler 90%'!Y16+'Res Furnace Tune-Up'!Y16+'Res Water Heating .62 EF'!Y16+'Res Water Heating .67 EF'!Y16+'Res Attic Insulation'!Y16+'Res Retrofit Bundle'!Y16+'Res New Home Bundle'!Y16+'Comm 92-94% Furnace'!Y16+'Comm 95+% Furnace - NEW'!Y16+'Comm Boiler (85%) Level 1'!Y16+'Comm Boiler (90%) Level 1'!Y16+'Comm LP&HP Steam Boilers - LV1'!Y16+'Comm WH .64 EF'!Y16+'Comm WH Storage 88% Cond'!Y16+'Comm Custom'!Y16+'Res .95+% Res Furnace - Replace'!Y16+'New Home ES'!Y16+'Low Flow Showerhead'!Y16+'Programmable Thermostats'!Y16+'New Residential 4'!Y16+'New Residential 5'!Y16+'Comm 95+% Furnace - Replace'!Y16+'Comm Boiler (85%) Level 2'!Y16+'Comm Boiler (85%) Level 3'!Y16+'Comm Boiler (90%) Level 2'!Y16+'Comm Boiler (90%) Level 3'!Y16+'Comm LP&HP Steam Boilers - LV2'!Y16+'Comm LP&HP Steam Boilers - LV3'!Y16+'New Comm 1'!Y16+'New Comm 2'!Y16+'New Comm 3'!Y16+'New Comm 4'!Y16+'New Comm 5'!Y16,0) -> 24000 | Z16: =ROUND('Res. 92-94% Res Furnace'!Z16+'Res .95+% Res Furnace - NEW'!Z16+'Res Boiler 85%'!Z16+'Res Boiler 90%'!Z16+'Res Furnace Tune-Up'!Z16+'Res Water Heating .62 EF'!Z16+'Res Water Heating .67 EF'!Z16+'Res Attic Insulation'!Z16+'Res Retrofit Bundle'!Z16+'Res New Home Bundle'!Z16+'Comm 92-94% Furnace'!Z16+'Comm 95+% Furnace - NEW'!Z16+'Comm Boiler (85%) Level 1'!Z16+'Comm Boiler (90%) Level 1'!Z16+'Comm LP&HP Steam Boilers - LV1'!Z16+'Comm WH .64 EF'!Z16+'Comm WH Storage 88% Cond'!Z16+'Comm Custom'!Z16+'Res .95+% Res Furnace - Replace'!Z16+'New Home ES'!Z16+'Low Flow Showerhead'!Z16+'Programmable Thermostats'!Z16+'New Residential 4'!Z16+'New Residential 5'!Z16+'Comm 95+% Furnace - Replace'!Z16+'Comm Boiler (85%) Level 2'!Z16+'Comm Boiler (85%) Level 3'!Z16+'Comm Boiler (90%) Level 2'!Z16+'Comm Boiler (90%) Level 3'!Z16+'Comm LP&HP Steam Boilers - LV2'!Z16+'Comm LP&HP Steam Boilers - LV3'!Z16+'New Comm 1'!Z16+'New Comm 2'!Z16+'New Comm 3'!Z16+'New Comm 4'!Z16+'New Comm 5'!Z16,0) -> 149300 | AA16: =SUM(X16:Z16) -> 192070 | AB16: =V16-AA16 -> -98919 | AE16: 2017 | AF16: =+R16 -> 70289 | AG16: =+U16 -> 22862 | AH16: =+AG16+AF16 -> 93151 | AJ16: =ROUND(Y16,0) -> 24000 | AK16: =ROUND(Z16,0) -> 149300 | AL16: =SUM(AJ16:AK16) -> 173300 | AN16: =+AH16-AL16 -> -80149 | AQ16: 2017 | AR16: =AF16 -> 70289 | AS16: =+AG16 -> 22862 | AU16: =ROUND('Res. 92-94% Res Furnace'!AU16+'Res .95+% Res Furnace - NEW'!AU16+'Res Boiler 85%'!AU16+'Res Boiler 90%'!AU16+'Res Furnace Tune-Up'!AU16+'Res Water Heating .62 EF'!AU16+'Res Water Heating .67 EF'!AU16+'Res Attic Insulation'!AU16+'Res Retrofit Bundle'!AU16+'Res New Home Bundle'!AU16+'Comm 92-94% Furnace'!AU16+'Comm 95+% Furnace - NEW'!AU16+'Comm Boiler (85%) Level 1'!AU16+'Comm Boiler (90%) Level 1'!AU16+'Comm LP&HP Steam Boilers - LV1'!AU16+'Comm WH .64 EF'!AU16+'Comm WH Storage 88% Cond'!AU16+'Comm Custom'!AU16+'Res .95+% Res Furnace - Replace'!AU16+'New Home ES'!AU16+'Low Flow Showerhead'!AU16+'Programmable Thermostats'!AU16+'New Residential 4'!AU16+'New Residential 5'!AU16+'Comm 95+% Furnace - Replace'!AU16+'Comm Boiler (85%) Level 2'!AU16+'Comm Boiler (85%) Level 3'!AU16+'Comm Boiler (90%) Level 2'!AU16+'Comm Boiler (90%) Level 3'!AU16+'Comm LP&HP Steam Boilers - LV2'!AU16+'Comm LP&HP Steam Boilers - LV3'!AU16+'New Comm 1'!AU16+'New Comm 2'!AU16+'New Comm 3'!AU16+'New Comm 4'!AU16+'New Comm 5'!AU16,0) -> 21903 | AW16: =ROUND('Res. 92-94% Res Furnace'!AW16+'Res .95+% Res Furnace - NEW'!AW16+'Res Boiler 85%'!AW16+'Res Boiler 90%'!AW16+'Res Furnace Tune-Up'!AW16+'Res Water Heating .62 EF'!AW16+'Res Water Heating .67 EF'!AW16+'Res Attic Insulation'!AW16+'Res Retrofit Bundle'!AW16+'Res New Home Bundle'!AW16+'Comm 92-94% Furnace'!AW16+'Comm 95+% Furnace - NEW'!AW16+'Comm Boiler (85%) Level 1'!AW16+'Comm Boiler (90%) Level 1'!AW16+'Comm LP&HP Steam Boilers - LV1'!AW16+'Comm WH .64 EF'!AW16+'Comm WH Storage 88% Cond'!AW16+'Comm Custom'!AW16+'Res .95+% Res Furnace - Replace'!AW16+'New Home ES'!AW16+'Low Flow Showerhead'!AW16+'Programmable Thermostats'!AW16+'New Residential 4'!AW16+'New Residential 5'!AW16+'Comm 95+% Furnace - Replace'!AW16+'Comm Boiler (85%) Level 2'!AW16+'Comm Boiler (85%) Level 3'!AW16+'Comm Boiler (90%) Level 2'!AW16+'Comm Boiler (90%) Level 3'!AW16+'Comm LP&HP Steam Boilers - LV2'!AW16+'Comm LP&HP Steam Boilers - LV3'!AW16+'New Comm 1'!AW16+'New Comm 2'!AW16+'New Comm 3'!AW16+'New Comm 4'!AW16+'New Comm 5'!AW16,0) -> 5680 | AZ16: =ROUND(AR16+AS16+AU16+AW16+AY16,0) -> 120734 | BB16: =ROUND('Res. 92-94% Res Furnace'!BB16+'Res .95+% Res Furnace - NEW'!BB16+'Res Boiler 85%'!BB16+'Res Boiler 90%'!BB16+'Res Furnace Tune-Up'!BB16+'Res Water Heating .62 EF'!BB16+'Res Water Heating .67 EF'!BB16+'Res Attic Insulation'!BB16+'Res Retrofit Bundle'!BB16+'Res New Home Bundle'!BB16+'Comm 92-94% Furnace'!BB16+'Comm 95+% Furnace - NEW'!BB16+'Comm Boiler (85%) Level 1'!BB16+'Comm Boiler (90%) Level 1'!BB16+'Comm LP&HP Steam Boilers - LV1'!BB16+'Comm WH .64 EF'!BB16+'Comm WH Storage 88% Cond'!BB16+'Comm Custom'!BB16+'Res .95+% Res Furnace - Replace'!BB16+'New Home ES'!BB16+'Low Flow Showerhead'!BB16+'Programmable Thermostats'!BB16+'New Residential 4'!BB16+'New Residential 5'!BB16+'Comm 95+% Furnace - Replace'!BB16+'Comm Boiler (85%) Level 2'!BB16+'Comm Boiler (85%) Level 3'!BB16+'Comm Boiler (90%) Level 2'!BB16+'Comm Boiler (90%) Level 3'!BB16+'Comm LP&HP Steam Boilers - LV2'!BB16+'Comm LP&HP Steam Boilers - LV3'!BB16+'New Comm 1'!BB16+'New Comm 2'!BB16+'New Comm 3'!BB16+'New Comm 4'!BB16+'New Comm 5'!BB16,0) -> 173300 | BC16: =ROUND('Res. 92-94% Res Furnace'!BC16+'Res .95+% Res Furnace - NEW'!BC16+'Res Boiler 85%'!BC16+'Res Boiler 90%'!BC16+'Res Furnace Tune-Up'!BC16+'Res Water Heating .62 EF'!BC16+'Res Water Heating .67 EF'!BC16+'Res Attic Insulation'!BC16+'Res Retrofit Bundle'!BC16+'Res New Home Bundle'!BC16+'Comm 92-94% Furnace'!BC16+'Comm 95+% Furnace - NEW'!BC16+'Comm Boiler (85%) Level 1'!BC16+'Comm Boiler (90%) Level 1'!BC16+'Comm LP&HP Steam Boilers - LV1'!BC16+'Comm WH .64 EF'!BC16+'Comm WH Storage 88% Cond'!BC16+'Comm Custom'!BC16+'Res .95+% Res Furnace - Replace'!BC16+'New Home ES'!BC16+'Low Flow Showerhead'!BC16+'Programmable Thermostats'!BC16+'New Residential 4'!BC16+'New Residential 5'!BC16+'Comm 95+% Furnace - Replace'!BC16+'Comm Boiler (85%) Level 2'!BC16+'Comm Boiler (85%) Level 3'!BC16+'Comm Boiler (90%) Level 2'!BC16+'Comm Boiler (90%) Level 3'!BC16+'Comm LP&HP Steam Boilers - LV2'!BC16+'Comm LP&HP Steam Boilers - LV3'!BC16+'New Comm 1'!BC16+'New Comm 2'!BC16+'New Comm 3'!BC16+'New Comm 4'!BC16+'New Comm 5'!BC16,0) -> 112734 | BD16: =BB16+BC16 -> 286034 | BE16: =AZ16-BD16 -> -165300 | BH16: 2017 | BI16: =ROUND('Res. 92-94% Res Furnace'!BI16+'Res .95+% Res Furnace - NEW'!BI16+'Res Boiler 85%'!BI16+'Res Boiler 90%'!BI16+'Res Furnace Tune-Up'!BI16+'Res Water Heating .62 EF'!BI16+'Res Water Heating .67 EF'!BI16+'Res Attic Insulation'!BI16+'Res Retrofit Bundle'!BI16+'Res New Home Bundle'!BI16+'Comm 92-94% Furnace'!BI16+'Comm 95+% Furnace - NEW'!BI16+'Comm Boiler (85%) Level 1'!BI16+'Comm Boiler (90%) Level 1'!BI16+'Comm LP&HP Steam Boilers - LV1'!BI16+'Comm WH .64 EF'!BI16+'Comm WH Storage 88% Cond'!BI16+'Comm Custom'!BI16+'Res .95+% Res Furnace - Replace'!BI16+'New Home ES'!BI16+'Low Flow Showerhead'!BI16+'Programmable Thermostats'!BI16+'New Residential 4'!BI16+'New Residential 5'!BI16+'Comm 95+% Furnace - Replace'!BI16+'Comm Boiler (85%) Level 2'!BI16+'Comm Boiler (85%) Level 3'!BI16+'Comm Boiler (90%) Level 2'!BI16+'Comm Boiler (90%) Level 3'!BI16+'Comm LP&HP Steam Boilers - LV2'!BI16+'Comm LP&HP Steam Boilers - LV3'!BI16+'New Comm 1'!BI16+'New Comm 2'!BI16+'New Comm 3'!BI16+'New Comm 4'!BI16+'New Comm 5'!BI16,0) -> 149300 | BJ16: =ROUND('Res. 92-94% Res Furnace'!BJ16+'Res .95+% Res Furnace - NEW'!BJ16+'Res Boiler 85%'!BJ16+'Res Boiler 90%'!BJ16+'Res Furnace Tune-Up'!BJ16+'Res Water Heating .62 EF'!BJ16+'Res Water Heating .67 EF'!BJ16+'Res Attic Insulation'!BJ16+'Res Retrofit Bundle'!BJ16+'Res New Home Bundle'!BJ16+'Comm 92-94% Furnace'!BJ16+'Comm 95+% Furnace - NEW'!BJ16+'Comm Boiler (85%) Level 1'!BJ16+'Comm Boiler (90%) Level 1'!BJ16+'Comm LP&HP Steam Boilers - LV1'!BJ16+'Comm WH .64 EF'!BJ16+'Comm WH Storage 88% Cond'!BJ16+'Comm Custom'!BJ16+'Res .95+% Res Furnace - Replace'!BJ16+'New Home ES'!BJ16+'Low Flow Showerhead'!BJ16+'Programmable Thermostats'!BJ16+'New Residential 4'!BJ16+'New Residential 5'!BJ16+'Comm 95+% Furnace - Replace'!BJ16+'Comm Boiler (85%) Level 2'!BJ16+'Comm Boiler (85%) Level 3'!BJ16+'Comm Boiler (90%) Level 2'!BJ16+'Comm Boiler (90%) Level 3'!BJ16+'Comm LP&HP Steam Boilers - LV2'!BJ16+'Comm LP&HP Steam Boilers - LV3'!BJ16+'New Comm 1'!BJ16+'New Comm 2'!BJ16+'New Comm 3'!BJ16+'New Comm 4'!BJ16+'New Comm 5'!BJ16,0) -> 15142 | BL16: =ROUND('Res. 92-94% Res Furnace'!BL16+'Res .95+% Res Furnace - NEW'!BL16+'Res Boiler 85%'!BL16+'Res Boiler 90%'!BL16+'Res Furnace Tune-Up'!BL16+'Res Water Heating .62 EF'!BL16+'Res Water Heating .67 EF'!BL16+'Res Attic Insulation'!BL16+'Res Retrofit Bundle'!BL16+'Res New Home Bundle'!BL16+'Comm 92-94% Furnace'!BL16+'Comm 95+% Furnace - NEW'!BL16+'Comm Boiler (85%) Level 1'!BL16+'Comm Boiler (90%) Level 1'!BL16+'Comm LP&HP Steam Boilers - LV1'!BL16+'Comm WH .64 EF'!BL16+'Comm WH Storage 88% Cond'!BL16+'Comm Custom'!BL16+'Res .95+% Res Furnace - Replace'!BL16+'New Home ES'!BL16+'Low Flow Showerhead'!BL16+'Programmable Thermostats'!BL16+'New Residential 4'!BL16+'New Residential 5'!BL16+'Comm 95+% Furnace - Replace'!BL16+'Comm Boiler (85%) Level 2'!BL16+'Comm Boiler (85%) Level 3'!BL16+'Comm Boiler (90%) Level 2'!BL16+'Comm Boiler (90%) Level 3'!BL16+'Comm LP&HP Steam Boilers - LV2'!BL16+'Comm LP&HP Steam Boilers - LV3'!BL16+'New Comm 1'!BL16+'New Comm 2'!BL16+'New Comm 3'!BL16+'New Comm 4'!BL16+'New Comm 5'!BL16,0) -> 128707 | BN16: =ROUND('Res. 92-94% Res Furnace'!BN16+'Res .95+% Res Furnace - NEW'!BN16+'Res Boiler 85%'!BN16+'Res Boiler 90%'!BN16+'Res Furnace Tune-Up'!BN16+'Res Water Heating .62 EF'!BN16+'Res Water Heating .67 EF'!BN16+'Res Attic Insulation'!BN16+'Res Retrofit Bundle'!BN16+'Res New Home Bundle'!BN16+'Comm 92-94% Furnace'!BN16+'Comm 95+% Furnace - NEW'!BN16+'Comm Boiler (85%) Level 1'!BN16+'Comm Boiler (90%) Level 1'!BN16+'Comm LP&HP Steam Boilers - LV1'!BN16+'Comm WH .64 EF'!BN16+'Comm WH Storage 88% Cond'!BN16+'Comm Custom'!BN16+'Res .95+% Res Furnace - Replace'!BN16+'New Home ES'!BN16+'Low Flow Showerhead'!BN16+'Programmable Thermostats'!BN16+'New Residential 4'!BN16+'New Residential 5'!BN16+'Comm 95+% Furnace - Replace'!BN16+'Comm Boiler (85%) Level 2'!BN16+'Comm Boiler (85%) Level 3'!BN16+'Comm Boiler (90%) Level 2'!BN16+'Comm Boiler (90%) Level 3'!BN16+'Comm LP&HP Steam Boilers - LV2'!BN16+'Comm LP&HP Steam Boilers - LV3'!BN16+'New Comm 1'!BN16+'New Comm 2'!BN16+'New Comm 3'!BN16+'New Comm 4'!BN16+'New Comm 5'!BN16,0) -> 133416 | BP16: =BI16+BL16+BN16+BO16 -> 411423 | BR16: =ROUND('Res. 92-94% Res Furnace'!BR16+'Res .95+% Res Furnace - NEW'!BR16+'Res Boiler 85%'!BR16+'Res Boiler 90%'!BR16+'Res Furnace Tune-Up'!BR16+'Res Water Heating .62 EF'!BR16+'Res Water Heating .67 EF'!BR16+'Res Attic Insulation'!BR16+'Res Retrofit Bundle'!BR16+'Res New Home Bundle'!BR16+'Comm 92-94% Furnace'!BR16+'Comm 95+% Furnace - NEW'!BR16+'Comm Boiler (85%) Level 1'!BR16+'Comm Boiler (90%) Level 1'!BR16+'Comm LP&HP Steam Boilers - LV1'!BR16+'Comm WH .64 EF'!BR16+'Comm WH Storage 88% Cond'!BR16+'Comm Custom'!BR16+'Res .95+% Res Furnace - Replace'!BR16+'New Home ES'!BR16+'Low Flow Showerhead'!BR16+'Programmable Thermostats'!BR16+'New Residential 4'!BR16+'New Residential 5'!BR16+'Comm 95+% Furnace - Replace'!BR16+'Comm Boiler (85%) Level 2'!BR16+'Comm Boiler (85%) Level 3'!BR16+'Comm Boiler (90%) Level 2'!BR16+'Comm Boiler (90%) Level 3'!BR16+'Comm LP&HP Steam Boilers - LV2'!BR16+'Comm LP&HP Steam Boilers - LV3'!BR16+'New Comm 1'!BR16+'New Comm 2'!BR16+'New Comm 3'!BR16+'New Comm 4'!BR16+'New Comm 5'!BR16,0) -> 262034 | BT16: =BP16-BR16 -> 149389 | BW16: 2017 | BX16: 70289 | BY16: =U16 -> 22862 | BZ16: =AU16 -> 21903 | CA16: =SUM(BX16:BZ16) -> 115054 | CC16: =BB16 -> 173300 | CD16: =BC16 -> 112734 | CE16: =SUM(CC16:CD16) -> 286034 | CG16: =CA16-CE16 -> -170980
A17: 3) Commodity Cost ($/Dk) = | E17: 18) Participant Non-Energy Costs (Annual $/Part.) = | J17: 4 | L17: 2018 | M17: =ROUND('Res. 92-94% Res Furnace'!M17+'Res .95+% Res Furnace - NEW'!M17+'Res Boiler 85%'!M17+'Res Boiler 90%'!M17+'Res Furnace Tune-Up'!M17+'Res Water Heating .62 EF'!M17+'Res Water Heating .67 EF'!M17+'Res Attic Insulation'!M17+'Res Retrofit Bundle'!M17+'Res New Home Bundle'!M17+'Comm 92-94% Furnace'!M17+'Comm 95+% Furnace - NEW'!M17+'Comm Boiler (85%) Level 1'!M17+'Comm Boiler (90%) Level 1'!M17+'Comm LP&HP Steam Boilers - LV1'!M17+'Comm WH .64 EF'!M17+'Comm WH Storage 88% Cond'!M17+'Comm Custom'!M17+'Res .95+% Res Furnace - Replace'!M17+'New Home ES'!M17+'Low Flow Showerhead'!M17+'Programmable Thermostats'!M17+'New Residential 4'!M17+'New Residential 5'!M17+'Comm 95+% Furnace - Replace'!M17+'Comm Boiler (85%) Level 2'!M17+'Comm Boiler (85%) Level 3'!M17+'Comm Boiler (90%) Level 2'!M17+'Comm Boiler (90%) Level 3'!M17+'Comm LP&HP Steam Boilers - LV2'!M17+'Comm LP&HP Steam Boilers - LV3'!M17+'New Comm 1'!M17+'New Comm 2'!M17+'New Comm 3'!M17+'New Comm 4'!M17+'New Comm 5'!M17,0) -> 15142 | O17: =ROUND('Res. 92-94% Res Furnace'!O17+'Res .95+% Res Furnace - NEW'!O17+'Res Boiler 85%'!O17+'Res Boiler 90%'!O17+'Res Furnace Tune-Up'!O17+'Res Water Heating .62 EF'!O17+'Res Water Heating .67 EF'!O17+'Res Attic Insulation'!O17+'Res Retrofit Bundle'!O17+'Res New Home Bundle'!O17+'Comm 92-94% Furnace'!O17+'Comm 95+% Furnace - NEW'!O17+'Comm Boiler (85%) Level 1'!O17+'Comm Boiler (90%) Level 1'!O17+'Comm LP&HP Steam Boilers - LV1'!O17+'Comm WH .64 EF'!O17+'Comm WH Storage 88% Cond'!O17+'Comm Custom'!O17+'Res .95+% Res Furnace - Replace'!O17+'New Home ES'!O17+'Low Flow Showerhead'!O17+'Programmable Thermostats'!O17+'New Residential 4'!O17+'New Residential 5'!O17+'Comm 95+% Furnace - Replace'!O17+'Comm Boiler (85%) Level 2'!O17+'Comm Boiler (85%) Level 3'!O17+'Comm Boiler (90%) Level 2'!O17+'Comm Boiler (90%) Level 3'!O17+'Comm LP&HP Steam Boilers - LV2'!O17+'Comm LP&HP Steam Boilers - LV3'!O17+'New Comm 1'!O17+'New Comm 2'!O17+'New Comm 3'!O17+'New Comm 4'!O17+'New Comm 5'!O17,0) -> 72757 | Q17: =ROUND('Res. 92-94% Res Furnace'!Q17+'Res .95+% Res Furnace - NEW'!Q17+'Res Boiler 85%'!Q17+'Res Boiler 90%'!Q17+'Res Furnace Tune-Up'!Q17+'Res Water Heating .62 EF'!Q17+'Res Water Heating .67 EF'!Q17+'Res Attic Insulation'!Q17+'Res Retrofit Bundle'!Q17+'Res New Home Bundle'!Q17+'Comm 92-94% Furnace'!Q17+'Comm 95+% Furnace - NEW'!Q17+'Comm Boiler (85%) Level 1'!Q17+'Comm Boiler (90%) Level 1'!Q17+'Comm LP&HP Steam Boilers - LV1'!Q17+'Comm WH .64 EF'!Q17+'Comm WH Storage 88% Cond'!Q17+'Comm Custom'!Q17+'Res .95+% Res Furnace - Replace'!Q17+'New Home ES'!Q17+'Low Flow Showerhead'!Q17+'Programmable Thermostats'!Q17+'New Residential 4'!Q17+'New Residential 5'!Q17+'Comm 95+% Furnace - Replace'!Q17+'Comm Boiler (85%) Level 2'!Q17+'Comm Boiler (85%) Level 3'!Q17+'Comm Boiler (90%) Level 2'!Q17+'Comm Boiler (90%) Level 3'!Q17+'Comm LP&HP Steam Boilers - LV2'!Q17+'Comm LP&HP Steam Boilers - LV3'!Q17+'New Comm 1'!Q17+'New Comm 2'!Q17+'New Comm 3'!Q17+'New Comm 4'!Q17+'New Comm 5'!Q17,0) -> 0 | R17: =ROUND('Res. 92-94% Res Furnace'!R17+'Res .95+% Res Furnace - NEW'!R17+'Res Boiler 85%'!R17+'Res Boiler 90%'!R17+'Res Furnace Tune-Up'!R17+'Res Water Heating .62 EF'!R17+'Res Water Heating .67 EF'!R17+'Res Attic Insulation'!R17+'Res Retrofit Bundle'!R17+'Res New Home Bundle'!R17+'Comm 92-94% Furnace'!R17+'Comm 95+% Furnace - NEW'!R17+'Comm Boiler (85%) Level 1'!R17+'Comm Boiler (90%) Level 1'!R17+'Comm LP&HP Steam Boilers - LV1'!R17+'Comm WH .64 EF'!R17+'Comm WH Storage 88% Cond'!R17+'Comm Custom'!R17+'Res .95+% Res Furnace - Replace'!R17+'New Home ES'!R17+'Low Flow Showerhead'!R17+'Programmable Thermostats'!R17+'New Residential 4'!R17+'New Residential 5'!R17+'Comm 95+% Furnace - Replace'!R17+'Comm Boiler (85%) Level 2'!R17+'Comm Boiler (85%) Level 3'!R17+'Comm Boiler (90%) Level 2'!R17+'Comm Boiler (90%) Level 3'!R17+'Comm LP&HP Steam Boilers - LV2'!R17+'Comm LP&HP Steam Boilers - LV3'!R17+'New Comm 1'!R17+'New Comm 2'!R17+'New Comm 3'!R17+'New Comm 4'!R17+'New Comm 5'!R17,0) -> 72757 | S17: =ROUND('Res. 92-94% Res Furnace'!S17+'Res .95+% Res Furnace - NEW'!S17+'Res Boiler 85%'!S17+'Res Boiler 90%'!S17+'Res Furnace Tune-Up'!S17+'Res Water Heating .62 EF'!S17+'Res Water Heating .67 EF'!S17+'Res Attic Insulation'!S17+'Res Retrofit Bundle'!S17+'Res New Home Bundle'!S17+'Comm 92-94% Furnace'!S17+'Comm 95+% Furnace - NEW'!S17+'Comm Boiler (85%) Level 1'!S17+'Comm Boiler (90%) Level 1'!S17+'Comm LP&HP Steam Boilers - LV1'!S17+'Comm WH .64 EF'!S17+'Comm WH Storage 88% Cond'!S17+'Comm Custom'!S17+'Res .95+% Res Furnace - Replace'!S17+'New Home ES'!S17+'Low Flow Showerhead'!S17+'Programmable Thermostats'!S17+'New Residential 4'!S17+'New Residential 5'!S17+'Comm 95+% Furnace - Replace'!S17+'Comm Boiler (85%) Level 2'!S17+'Comm Boiler (85%) Level 3'!S17+'Comm Boiler (90%) Level 2'!S17+'Comm Boiler (90%) Level 3'!S17+'Comm LP&HP Steam Boilers - LV2'!S17+'Comm LP&HP Steam Boilers - LV3'!S17+'New Comm 1'!S17+'New Comm 2'!S17+'New Comm 3'!S17+'New Comm 4'!S17+'New Comm 5'!S17,0) -> 151 | U17: =ROUND('Res. 92-94% Res Furnace'!U17+'Res .95+% Res Furnace - NEW'!U17+'Res Boiler 85%'!U17+'Res Boiler 90%'!U17+'Res Furnace Tune-Up'!U17+'Res Water Heating .62 EF'!U17+'Res Water Heating .67 EF'!U17+'Res Attic Insulation'!U17+'Res Retrofit Bundle'!U17+'Res New Home Bundle'!U17+'Comm 92-94% Furnace'!U17+'Comm 95+% Furnace - NEW'!U17+'Comm Boiler (85%) Level 1'!U17+'Comm Boiler (90%) Level 1'!U17+'Comm LP&HP Steam Boilers - LV1'!U17+'Comm WH .64 EF'!U17+'Comm WH Storage 88% Cond'!U17+'Comm Custom'!U17+'Res .95+% Res Furnace - Replace'!U17+'New Home ES'!U17+'Low Flow Showerhead'!U17+'Programmable Thermostats'!U17+'New Residential 4'!U17+'New Residential 5'!U17+'Comm 95+% Furnace - Replace'!U17+'Comm Boiler (85%) Level 2'!U17+'Comm Boiler (85%) Level 3'!U17+'Comm Boiler (90%) Level 2'!U17+'Comm Boiler (90%) Level 3'!U17+'Comm LP&HP Steam Boilers - LV2'!U17+'Comm LP&HP Steam Boilers - LV3'!U17+'New Comm 1'!U17+'New Comm 2'!U17+'New Comm 3'!U17+'New Comm 4'!U17+'New Comm 5'!U17,0) -> 23012 | V17: 95769 | X17: =ROUND('Res. 92-94% Res Furnace'!X17+'Res .95+% Res Furnace - NEW'!X17+'Res Boiler 85%'!X17+'Res Boiler 90%'!X17+'Res Furnace Tune-Up'!X17+'Res Water Heating .62 EF'!X17+'Res Water Heating .67 EF'!X17+'Res Attic Insulation'!X17+'Res Retrofit Bundle'!X17+'Res New Home Bundle'!X17+'Comm 92-94% Furnace'!X17+'Comm 95+% Furnace - NEW'!X17+'Comm Boiler (85%) Level 1'!X17+'Comm Boiler (90%) Level 1'!X17+'Comm LP&HP Steam Boilers - LV1'!X17+'Comm WH .64 EF'!X17+'Comm WH Storage 88% Cond'!X17+'Comm Custom'!X17+'Res .95+% Res Furnace - Replace'!X17+'New Home ES'!X17+'Low Flow Showerhead'!X17+'Programmable Thermostats'!X17+'New Residential 4'!X17+'New Residential 5'!X17+'Comm 95+% Furnace - Replace'!X17+'Comm Boiler (85%) Level 2'!X17+'Comm Boiler (85%) Level 3'!X17+'Comm Boiler (90%) Level 2'!X17+'Comm Boiler (90%) Level 3'!X17+'Comm LP&HP Steam Boilers - LV2'!X17+'Comm LP&HP Steam Boilers - LV3'!X17+'New Comm 1'!X17+'New Comm 2'!X17+'New Comm 3'!X17+'New Comm 4'!X17+'New Comm 5'!X17,0) -> 19419 | Y17: =ROUND('Res. 92-94% Res Furnace'!Y17+'Res .95+% Res Furnace - NEW'!Y17+'Res Boiler 85%'!Y17+'Res Boiler 90%'!Y17+'Res Furnace Tune-Up'!Y17+'Res Water Heating .62 EF'!Y17+'Res Water Heating .67 EF'!Y17+'Res Attic Insulation'!Y17+'Res Retrofit Bundle'!Y17+'Res New Home Bundle'!Y17+'Comm 92-94% Furnace'!Y17+'Comm 95+% Furnace - NEW'!Y17+'Comm Boiler (85%) Level 1'!Y17+'Comm Boiler (90%) Level 1'!Y17+'Comm LP&HP Steam Boilers - LV1'!Y17+'Comm WH .64 EF'!Y17+'Comm WH Storage 88% Cond'!Y17+'Comm Custom'!Y17+'Res .95+% Res Furnace - Replace'!Y17+'New Home ES'!Y17+'Low Flow Showerhead'!Y17+'Programmable Thermostats'!Y17+'New Residential 4'!Y17+'New Residential 5'!Y17+'Comm 95+% Furnace - Replace'!Y17+'Comm Boiler (85%) Level 2'!Y17+'Comm Boiler (85%) Level 3'!Y17+'Comm Boiler (90%) Level 2'!Y17+'Comm Boiler (90%) Level 3'!Y17+'Comm LP&HP Steam Boilers - LV2'!Y17+'Comm LP&HP Steam Boilers - LV3'!Y17+'New Comm 1'!Y17+'New Comm 2'!Y17+'New Comm 3'!Y17+'New Comm 4'!Y17+'New Comm 5'!Y17,0) -> 0 | Z17: =ROUND('Res. 92-94% Res Furnace'!Z17+'Res .95+% Res Furnace - NEW'!Z17+'Res Boiler 85%'!Z17+'Res Boiler 90%'!Z17+'Res Furnace Tune-Up'!Z17+'Res Water Heating .62 EF'!Z17+'Res Water Heating .67 EF'!Z17+'Res Attic Insulation'!Z17+'Res Retrofit Bundle'!Z17+'Res New Home Bundle'!Z17+'Comm 92-94% Furnace'!Z17+'Comm 95+% Furnace - NEW'!Z17+'Comm Boiler (85%) Level 1'!Z17+'Comm Boiler (90%) Level 1'!Z17+'Comm LP&HP Steam Boilers - LV1'!Z17+'Comm WH .64 EF'!Z17+'Comm WH Storage 88% Cond'!Z17+'Comm Custom'!Z17+'Res .95+% Res Furnace - Replace'!Z17+'New Home ES'!Z17+'Low Flow Showerhead'!Z17+'Programmable Thermostats'!Z17+'New Residential 4'!Z17+'New Residential 5'!Z17+'Comm 95+% Furnace - Replace'!Z17+'Comm Boiler (85%) Level 2'!Z17+'Comm Boiler (85%) Level 3'!Z17+'Comm Boiler (90%) Level 2'!Z17+'Comm Boiler (90%) Level 3'!Z17+'Comm LP&HP Steam Boilers - LV2'!Z17+'Comm LP&HP Steam Boilers - LV3'!Z17+'New Comm 1'!Z17+'New Comm 2'!Z17+'New Comm 3'!Z17+'New Comm 4'!Z17+'New Comm 5'!Z17,0) -> 0 | AA17: 19419 | AB17: 76350 | AE17: 2018 | AF17: 72757 | AG17: 23012 | AH17: 95769 | AJ17: 0 | AK17: 0 | AL17: 0 | AN17: 95769 | AQ17: 2018 | AR17: 72757 | AS17: 23012 | AU17: =ROUND('Res. 92-94% Res Furnace'!AU17+'Res .95+% Res Furnace - NEW'!AU17+'Res Boiler 85%'!AU17+'Res Boiler 90%'!AU17+'Res Furnace Tune-Up'!AU17+'Res Water Heating .62 EF'!AU17+'Res Water Heating .67 EF'!AU17+'Res Attic Insulation'!AU17+'Res Retrofit Bundle'!AU17+'Res New Home Bundle'!AU17+'Comm 92-94% Furnace'!AU17+'Comm 95+% Furnace - NEW'!AU17+'Comm Boiler (85%) Level 1'!AU17+'Comm Boiler (90%) Level 1'!AU17+'Comm LP&HP Steam Boilers - LV1'!AU17+'Comm WH .64 EF'!AU17+'Comm WH Storage 88% Cond'!AU17+'Comm Custom'!AU17+'Res .95+% Res Furnace - Replace'!AU17+'New Home ES'!AU17+'Low Flow Showerhead'!AU17+'Programmable Thermostats'!AU17+'New Residential 4'!AU17+'New Residential 5'!AU17+'Comm 95+% Furnace - Replace'!AU17+'Comm Boiler (85%) Level 2'!AU17+'Comm Boiler (85%) Level 3'!AU17+'Comm Boiler (90%) Level 2'!AU17+'Comm Boiler (90%) Level 3'!AU17+'Comm LP&HP Steam Boilers - LV2'!AU17+'Comm LP&HP Steam Boilers - LV3'!AU17+'New Comm 1'!AU17+'New Comm 2'!AU17+'New Comm 3'!AU17+'New Comm 4'!AU17+'New Comm 5'!AU17,0) -> 22856 | AW17: =ROUND('Res. 92-94% Res Furnace'!AW17+'Res .95+% Res Furnace - NEW'!AW17+'Res Boiler 85%'!AW17+'Res Boiler 90%'!AW17+'Res Furnace Tune-Up'!AW17+'Res Water Heating .62 EF'!AW17+'Res Water Heating .67 EF'!AW17+'Res Attic Insulation'!AW17+'Res Retrofit Bundle'!AW17+'Res New Home Bundle'!AW17+'Comm 92-94% Furnace'!AW17+'Comm 95+% Furnace - NEW'!AW17+'Comm Boiler (85%) Level 1'!AW17+'Comm Boiler (90%) Level 1'!AW17+'Comm LP&HP Steam Boilers - LV1'!AW17+'Comm WH .64 EF'!AW17+'Comm WH Storage 88% Cond'!AW17+'Comm Custom'!AW17+'Res .95+% Res Furnace - Replace'!AW17+'New Home ES'!AW17+'Low Flow Showerhead'!AW17+'Programmable Thermostats'!AW17+'New Residential 4'!AW17+'New Residential 5'!AW17+'Comm 95+% Furnace - Replace'!AW17+'Comm Boiler (85%) Level 2'!AW17+'Comm Boiler (85%) Level 3'!AW17+'Comm Boiler (90%) Level 2'!AW17+'Comm Boiler (90%) Level 3'!AW17+'Comm LP&HP Steam Boilers - LV2'!AW17+'Comm LP&HP Steam Boilers - LV3'!AW17+'New Comm 1'!AW17+'New Comm 2'!AW17+'New Comm 3'!AW17+'New Comm 4'!AW17+'New Comm 5'!AW17,0) -> 5800 | AZ17: 124425 | BB17: =ROUND('Res. 92-94% Res Furnace'!BB17+'Res .95+% Res Furnace - NEW'!BB17+'Res Boiler 85%'!BB17+'Res Boiler 90%'!BB17+'Res Furnace Tune-Up'!BB17+'Res Water Heating .62 EF'!BB17+'Res Water Heating .67 EF'!BB17+'Res Attic Insulation'!BB17+'Res Retrofit Bundle'!BB17+'Res New Home Bundle'!BB17+'Comm 92-94% Furnace'!BB17+'Comm 95+% Furnace - NEW'!BB17+'Comm Boiler (85%) Level 1'!BB17+'Comm Boiler (90%) Level 1'!BB17+'Comm LP&HP Steam Boilers - LV1'!BB17+'Comm WH .64 EF'!BB17+'Comm WH Storage 88% Cond'!BB17+'Comm Custom'!BB17+'Res .95+% Res Furnace - Replace'!BB17+'New Home ES'!BB17+'Low Flow Showerhead'!BB17+'Programmable Thermostats'!BB17+'New Residential 4'!BB17+'New Residential 5'!BB17+'Comm 95+% Furnace - Replace'!BB17+'Comm Boiler (85%) Level 2'!BB17+'Comm Boiler (85%) Level 3'!BB17+'Comm Boiler (90%) Level 2'!BB17+'Comm Boiler (90%) Level 3'!BB17+'Comm LP&HP Steam Boilers - LV2'!BB17+'Comm LP&HP Steam Boilers - LV3'!BB17+'New Comm 1'!BB17+'New Comm 2'!BB17+'New Comm 3'!BB17+'New Comm 4'!BB17+'New Comm 5'!BB17,0) -> 0 | BC17: =ROUND('Res. 92-94% Res Furnace'!BC17+'Res .95+% Res Furnace - NEW'!BC17+'Res Boiler 85%'!BC17+'Res Boiler 90%'!BC17+'Res Furnace Tune-Up'!BC17+'Res Water Heating .62 EF'!BC17+'Res Water Heating .67 EF'!BC17+'Res Attic Insulation'!BC17+'Res Retrofit Bundle'!BC17+'Res New Home Bundle'!BC17+'Comm 92-94% Furnace'!BC17+'Comm 95+% Furnace - NEW'!BC17+'Comm Boiler (85%) Level 1'!BC17+'Comm Boiler (90%) Level 1'!BC17+'Comm LP&HP Steam Boilers - LV1'!BC17+'Comm WH .64 EF'!BC17+'Comm WH Storage 88% Cond'!BC17+'Comm Custom'!BC17+'Res .95+% Res Furnace - Replace'!BC17+'New Home ES'!BC17+'Low Flow Showerhead'!BC17+'Programmable Thermostats'!BC17+'New Residential 4'!BC17+'New Residential 5'!BC17+'Comm 95+% Furnace - Replace'!BC17+'Comm Boiler (85%) Level 2'!BC17+'Comm Boiler (85%) Level 3'!BC17+'Comm Boiler (90%) Level 2'!BC17+'Comm Boiler (90%) Level 3'!BC17+'Comm LP&HP Steam Boilers - LV2'!BC17+'Comm LP&HP Steam Boilers - LV3'!BC17+'New Comm 1'!BC17+'New Comm 2'!BC17+'New Comm 3'!BC17+'New Comm 4'!BC17+'New Comm 5'!BC17,0) -> 0 | BD17: 0 | BE17: 124425 | BH17: 2018 | BI17: =ROUND('Res. 92-94% Res Furnace'!BI17+'Res .95+% Res Furnace - NEW'!BI17+'Res Boiler 85%'!BI17+'Res Boiler 90%'!BI17+'Res Furnace Tune-Up'!BI17+'Res Water Heating .62 EF'!BI17+'Res Water Heating .67 EF'!BI17+'Res Attic Insulation'!BI17+'Res Retrofit Bundle'!BI17+'Res New Home Bundle'!BI17+'Comm 92-94% Furnace'!BI17+'Comm 95+% Furnace - NEW'!BI17+'Comm Boiler (85%) Level 1'!BI17+'Comm Boiler (90%) Level 1'!BI17+'Comm LP&HP Steam Boilers - LV1'!BI17+'Comm WH .64 EF'!BI17+'Comm WH Storage 88% Cond'!BI17+'Comm Custom'!BI17+'Res .95+% Res Furnace - Replace'!BI17+'New Home ES'!BI17+'Low Flow Showerhead'!BI17+'Programmable Thermostats'!BI17+'New Residential 4'!BI17+'New Residential 5'!BI17+'Comm 95+% Furnace - Replace'!BI17+'Comm Boiler (85%) Level 2'!BI17+'Comm Boiler (85%) Level 3'!BI17+'Comm Boiler (90%) Level 2'!BI17+'Comm Boiler (90%) Level 3'!BI17+'Comm LP&HP Steam Boilers - LV2'!BI17+'Comm LP&HP Steam Boilers - LV3'!BI17+'New Comm 1'!BI17+'New Comm 2'!BI17+'New Comm 3'!BI17+'New Comm 4'!BI17+'New Comm 5'!BI17,0) -> 0 | BJ17: =ROUND('Res. 92-94% Res Furnace'!BJ17+'Res .95+% Res Furnace - NEW'!BJ17+'Res Boiler 85%'!BJ17+'Res Boiler 90%'!BJ17+'Res Furnace Tune-Up'!BJ17+'Res Water Heating .62 EF'!BJ17+'Res Water Heating .67 EF'!BJ17+'Res Attic Insulation'!BJ17+'Res Retrofit Bundle'!BJ17+'Res New Home Bundle'!BJ17+'Comm 92-94% Furnace'!BJ17+'Comm 95+% Furnace - NEW'!BJ17+'Comm Boiler (85%) Level 1'!BJ17+'Comm Boiler (90%) Level 1'!BJ17+'Comm LP&HP Steam Boilers - LV1'!BJ17+'Comm WH .64 EF'!BJ17+'Comm WH Storage 88% Cond'!BJ17+'Comm Custom'!BJ17+'Res .95+% Res Furnace - Replace'!BJ17+'New Home ES'!BJ17+'Low Flow Showerhead'!BJ17+'Programmable Thermostats'!BJ17+'New Residential 4'!BJ17+'New Residential 5'!BJ17+'Comm 95+% Furnace - Replace'!BJ17+'Comm Boiler (85%) Level 2'!BJ17+'Comm Boiler (85%) Level 3'!BJ17+'Comm Boiler (90%) Level 2'!BJ17+'Comm Boiler (90%) Level 3'!BJ17+'Comm LP&HP Steam Boilers - LV2'!BJ17+'Comm LP&HP Steam Boilers - LV3'!BJ17+'New Comm 1'!BJ17+'New Comm 2'!BJ17+'New Comm 3'!BJ17+'New Comm 4'!BJ17+'New Comm 5'!BJ17,0) -> 15142 | BL17: =ROUND('Res. 92-94% Res Furnace'!BL17+'Res .95+% Res Furnace - NEW'!BL17+'Res Boiler 85%'!BL17+'Res Boiler 90%'!BL17+'Res Furnace Tune-Up'!BL17+'Res Water Heating .62 EF'!BL17+'Res Water Heating .67 EF'!BL17+'Res Attic Insulation'!BL17+'Res Retrofit Bundle'!BL17+'Res New Home Bundle'!BL17+'Comm 92-94% Furnace'!BL17+'Comm 95+% Furnace - NEW'!BL17+'Comm Boiler (85%) Level 1'!BL17+'Comm Boiler (90%) Level 1'!BL17+'Comm LP&HP Steam Boilers - LV1'!BL17+'Comm WH .64 EF'!BL17+'Comm WH Storage 88% Cond'!BL17+'Comm Custom'!BL17+'Res .95+% Res Furnace - Replace'!BL17+'New Home ES'!BL17+'Low Flow Showerhead'!BL17+'Programmable Thermostats'!BL17+'New Residential 4'!BL17+'New Residential 5'!BL17+'Comm 95+% Furnace - Replace'!BL17+'Comm Boiler (85%) Level 2'!BL17+'Comm Boiler (85%) Level 3'!BL17+'Comm Boiler (90%) Level 2'!BL17+'Comm Boiler (90%) Level 3'!BL17+'Comm LP&HP Steam Boilers - LV2'!BL17+'Comm LP&HP Steam Boilers - LV3'!BL17+'New Comm 1'!BL17+'New Comm 2'!BL17+'New Comm 3'!BL17+'New Comm 4'!BL17+'New Comm 5'!BL17,0) -> 133219 | BN17: =ROUND('Res. 92-94% Res Furnace'!BN17+'Res .95+% Res Furnace - NEW'!BN17+'Res Boiler 85%'!BN17+'Res Boiler 90%'!BN17+'Res Furnace Tune-Up'!BN17+'Res Water Heating .62 EF'!BN17+'Res Water Heating .67 EF'!BN17+'Res Attic Insulation'!BN17+'Res Retrofit Bundle'!BN17+'Res New Home Bundle'!BN17+'Comm 92-94% Furnace'!BN17+'Comm 95+% Furnace - NEW'!BN17+'Comm Boiler (85%) Level 1'!BN17+'Comm Boiler (90%) Level 1'!BN17+'Comm LP&HP Steam Boilers - LV1'!BN17+'Comm WH .64 EF'!BN17+'Comm WH Storage 88% Cond'!BN17+'Comm Custom'!BN17+'Res .95+% Res Furnace - Replace'!BN17+'New Home ES'!BN17+'Low Flow Showerhead'!BN17+'Programmable Thermostats'!BN17+'New Residential 4'!BN17+'New Residential 5'!BN17+'Comm 95+% Furnace - Replace'!BN17+'Comm Boiler (85%) Level 2'!BN17+'Comm Boiler (85%) Level 3'!BN17+'Comm Boiler (90%) Level 2'!BN17+'Comm Boiler (90%) Level 3'!BN17+'Comm LP&HP Steam Boilers - LV2'!BN17+'Comm LP&HP Steam Boilers - LV3'!BN17+'New Comm 1'!BN17+'New Comm 2'!BN17+'New Comm 3'!BN17+'New Comm 4'!BN17+'New Comm 5'!BN17,0) -> 138178 | BP17: 271397 | BR17: =ROUND('Res. 92-94% Res Furnace'!BR17+'Res .95+% Res Furnace - NEW'!BR17+'Res Boiler 85%'!BR17+'Res Boiler 90%'!BR17+'Res Furnace Tune-Up'!BR17+'Res Water Heating .62 EF'!BR17+'Res Water Heating .67 EF'!BR17+'Res Attic Insulation'!BR17+'Res Retrofit Bundle'!BR17+'Res New Home Bundle'!BR17+'Comm 92-94% Furnace'!BR17+'Comm 95+% Furnace - NEW'!BR17+'Comm Boiler (85%) Level 1'!BR17+'Comm Boiler (90%) Level 1'!BR17+'Comm LP&HP Steam Boilers - LV1'!BR17+'Comm WH .64 EF'!BR17+'Comm WH Storage 88% Cond'!BR17+'Comm Custom'!BR17+'Res .95+% Res Furnace - Replace'!BR17+'New Home ES'!BR17+'Low Flow Showerhead'!BR17+'Programmable Thermostats'!BR17+'New Residential 4'!BR17+'New Residential 5'!BR17+'Comm 95+% Furnace - Replace'!BR17+'Comm Boiler (85%) Level 2'!BR17+'Comm Boiler (85%) Level 3'!BR17+'Comm Boiler (90%) Level 2'!BR17+'Comm Boiler (90%) Level 3'!BR17+'Comm LP&HP Steam Boilers - LV2'!BR17+'Comm LP&HP Steam Boilers - LV3'!BR17+'New Comm 1'!BR17+'New Comm 2'!BR17+'New Comm 3'!BR17+'New Comm 4'!BR17+'New Comm 5'!BR17,0) -> 0 | BT17: 271397 | BW17: 2018 | BX17: 72757 | BY17: 23012 | BZ17: 22856 | CA17: 118625 | CC17: 0 | CD17: 0 | CE17: 0 | CG17: 118625
A18: Escalation Rate = | E18: Escalation Rate = | J18: 5 | L18: 2019 | M18: =ROUND('Res. 92-94% Res Furnace'!M18+'Res .95+% Res Furnace - NEW'!M18+'Res Boiler 85%'!M18+'Res Boiler 90%'!M18+'Res Furnace Tune-Up'!M18+'Res Water Heating .62 EF'!M18+'Res Water Heating .67 EF'!M18+'Res Attic Insulation'!M18+'Res Retrofit Bundle'!M18+'Res New Home Bundle'!M18+'Comm 92-94% Furnace'!M18+'Comm 95+% Furnace - NEW'!M18+'Comm Boiler (85%) Level 1'!M18+'Comm Boiler (90%) Level 1'!M18+'Comm LP&HP Steam Boilers - LV1'!M18+'Comm WH .64 EF'!M18+'Comm WH Storage 88% Cond'!M18+'Comm Custom'!M18+'Res .95+% Res Furnace - Replace'!M18+'New Home ES'!M18+'Low Flow Showerhead'!M18+'Programmable Thermostats'!M18+'New Residential 4'!M18+'New Residential 5'!M18+'Comm 95+% Furnace - Replace'!M18+'Comm Boiler (85%) Level 2'!M18+'Comm Boiler (85%) Level 3'!M18+'Comm Boiler (90%) Level 2'!M18+'Comm Boiler (90%) Level 3'!M18+'Comm LP&HP Steam Boilers - LV2'!M18+'Comm LP&HP Steam Boilers - LV3'!M18+'New Comm 1'!M18+'New Comm 2'!M18+'New Comm 3'!M18+'New Comm 4'!M18+'New Comm 5'!M18,0) -> 15142 | O18: =ROUND('Res. 92-94% Res Furnace'!O18+'Res .95+% Res Furnace - NEW'!O18+'Res Boiler 85%'!O18+'Res Boiler 90%'!O18+'Res Furnace Tune-Up'!O18+'Res Water Heating .62 EF'!O18+'Res Water Heating .67 EF'!O18+'Res Attic Insulation'!O18+'Res Retrofit Bundle'!O18+'Res New Home Bundle'!O18+'Comm 92-94% Furnace'!O18+'Comm 95+% Furnace - NEW'!O18+'Comm Boiler (85%) Level 1'!O18+'Comm Boiler (90%) Level 1'!O18+'Comm LP&HP Steam Boilers - LV1'!O18+'Comm WH .64 EF'!O18+'Comm WH Storage 88% Cond'!O18+'Comm Custom'!O18+'Res .95+% Res Furnace - Replace'!O18+'New Home ES'!O18+'Low Flow Showerhead'!O18+'Programmable Thermostats'!O18+'New Residential 4'!O18+'New Residential 5'!O18+'Comm 95+% Furnace - Replace'!O18+'Comm Boiler (85%) Level 2'!O18+'Comm Boiler (85%) Level 3'!O18+'Comm Boiler (90%) Level 2'!O18+'Comm Boiler (90%) Level 3'!O18+'Comm LP&HP Steam Boilers - LV2'!O18+'Comm LP&HP Steam Boilers - LV3'!O18+'New Comm 1'!O18+'New Comm 2'!O18+'New Comm 3'!O18+'New Comm 4'!O18+'New Comm 5'!O18,0) -> 75300 | Q18: =ROUND('Res. 92-94% Res Furnace'!Q18+'Res .95+% Res Furnace - NEW'!Q18+'Res Boiler 85%'!Q18+'Res Boiler 90%'!Q18+'Res Furnace Tune-Up'!Q18+'Res Water Heating .62 EF'!Q18+'Res Water Heating .67 EF'!Q18+'Res Attic Insulation'!Q18+'Res Retrofit Bundle'!Q18+'Res New Home Bundle'!Q18+'Comm 92-94% Furnace'!Q18+'Comm 95+% Furnace - NEW'!Q18+'Comm Boiler (85%) Level 1'!Q18+'Comm Boiler (90%) Level 1'!Q18+'Comm LP&HP Steam Boilers - LV1'!Q18+'Comm WH .64 EF'!Q18+'Comm WH Storage 88% Cond'!Q18+'Comm Custom'!Q18+'Res .95+% Res Furnace - Replace'!Q18+'New Home ES'!Q18+'Low Flow Showerhead'!Q18+'Programmable Thermostats'!Q18+'New Residential 4'!Q18+'New Residential 5'!Q18+'Comm 95+% Furnace - Replace'!Q18+'Comm Boiler (85%) Level 2'!Q18+'Comm Boiler (85%) Level 3'!Q18+'Comm Boiler (90%) Level 2'!Q18+'Comm Boiler (90%) Level 3'!Q18+'Comm LP&HP Steam Boilers - LV2'!Q18+'Comm LP&HP Steam Boilers - LV3'!Q18+'New Comm 1'!Q18+'New Comm 2'!Q18+'New Comm 3'!Q18+'New Comm 4'!Q18+'New Comm 5'!Q18,0) -> 0 | R18: =ROUND('Res. 92-94% Res Furnace'!R18+'Res .95+% Res Furnace - NEW'!R18+'Res Boiler 85%'!R18+'Res Boiler 90%'!R18+'Res Furnace Tune-Up'!R18+'Res Water Heating .62 EF'!R18+'Res Water Heating .67 EF'!R18+'Res Attic Insulation'!R18+'Res Retrofit Bundle'!R18+'Res New Home Bundle'!R18+'Comm 92-94% Furnace'!R18+'Comm 95+% Furnace - NEW'!R18+'Comm Boiler (85%) Level 1'!R18+'Comm Boiler (90%) Level 1'!R18+'Comm LP&HP Steam Boilers - LV1'!R18+'Comm WH .64 EF'!R18+'Comm WH Storage 88% Cond'!R18+'Comm Custom'!R18+'Res .95+% Res Furnace - Replace'!R18+'New Home ES'!R18+'Low Flow Showerhead'!R18+'Programmable Thermostats'!R18+'New Residential 4'!R18+'New Residential 5'!R18+'Comm 95+% Furnace - Replace'!R18+'Comm Boiler (85%) Level 2'!R18+'Comm Boiler (85%) Level 3'!R18+'Comm Boiler (90%) Level 2'!R18+'Comm Boiler (90%) Level 3'!R18+'Comm LP&HP Steam Boilers - LV2'!R18+'Comm LP&HP Steam Boilers - LV3'!R18+'New Comm 1'!R18+'New Comm 2'!R18+'New Comm 3'!R18+'New Comm 4'!R18+'New Comm 5'!R18,0) -> 75300 | S18: =ROUND('Res. 92-94% Res Furnace'!S18+'Res .95+% Res Furnace - NEW'!S18+'Res Boiler 85%'!S18+'Res Boiler 90%'!S18+'Res Furnace Tune-Up'!S18+'Res Water Heating .62 EF'!S18+'Res Water Heating .67 EF'!S18+'Res Attic Insulation'!S18+'Res Retrofit Bundle'!S18+'Res New Home Bundle'!S18+'Comm 92-94% Furnace'!S18+'Comm 95+% Furnace - NEW'!S18+'Comm Boiler (85%) Level 1'!S18+'Comm Boiler (90%) Level 1'!S18+'Comm LP&HP Steam Boilers - LV1'!S18+'Comm WH .64 EF'!S18+'Comm WH Storage 88% Cond'!S18+'Comm Custom'!S18+'Res .95+% Res Furnace - Replace'!S18+'New Home ES'!S18+'Low Flow Showerhead'!S18+'Programmable Thermostats'!S18+'New Residential 4'!S18+'New Residential 5'!S18+'Comm 95+% Furnace - Replace'!S18+'Comm Boiler (85%) Level 2'!S18+'Comm Boiler (85%) Level 3'!S18+'Comm Boiler (90%) Level 2'!S18+'Comm Boiler (90%) Level 3'!S18+'Comm LP&HP Steam Boilers - LV2'!S18+'Comm LP&HP Steam Boilers - LV3'!S18+'New Comm 1'!S18+'New Comm 2'!S18+'New Comm 3'!S18+'New Comm 4'!S18+'New Comm 5'!S18,0) -> 151 | U18: =ROUND('Res. 92-94% Res Furnace'!U18+'Res .95+% Res Furnace - NEW'!U18+'Res Boiler 85%'!U18+'Res Boiler 90%'!U18+'Res Furnace Tune-Up'!U18+'Res Water Heating .62 EF'!U18+'Res Water Heating .67 EF'!U18+'Res Attic Insulation'!U18+'Res Retrofit Bundle'!U18+'Res New Home Bundle'!U18+'Comm 92-94% Furnace'!U18+'Comm 95+% Furnace - NEW'!U18+'Comm Boiler (85%) Level 1'!U18+'Comm Boiler (90%) Level 1'!U18+'Comm LP&HP Steam Boilers - LV1'!U18+'Comm WH .64 EF'!U18+'Comm WH Storage 88% Cond'!U18+'Comm Custom'!U18+'Res .95+% Res Furnace - Replace'!U18+'New Home ES'!U18+'Low Flow Showerhead'!U18+'Programmable Thermostats'!U18+'New Residential 4'!U18+'New Residential 5'!U18+'Comm 95+% Furnace - Replace'!U18+'Comm Boiler (85%) Level 2'!U18+'Comm Boiler (85%) Level 3'!U18+'Comm Boiler (90%) Level 2'!U18+'Comm Boiler (90%) Level 3'!U18+'Comm LP&HP Steam Boilers - LV2'!U18+'Comm LP&HP Steam Boilers - LV3'!U18+'New Comm 1'!U18+'New Comm 2'!U18+'New Comm 3'!U18+'New Comm 4'!U18+'New Comm 5'!U18,0) -> 23315 | V18: 98615 | X18: =ROUND('Res. 92-94% Res Furnace'!X18+'Res .95+% Res Furnace - NEW'!X18+'Res Boiler 85%'!X18+'Res Boiler 90%'!X18+'Res Furnace Tune-Up'!X18+'Res Water Heating .62 EF'!X18+'Res Water Heating .67 EF'!X18+'Res Attic Insulation'!X18+'Res Retrofit Bundle'!X18+'Res New Home Bundle'!X18+'Comm 92-94% Furnace'!X18+'Comm 95+% Furnace - NEW'!X18+'Comm Boiler (85%) Level 1'!X18+'Comm Boiler (90%) Level 1'!X18+'Comm LP&HP Steam Boilers - LV1'!X18+'Comm WH .64 EF'!X18+'Comm WH Storage 88% Cond'!X18+'Comm Custom'!X18+'Res .95+% Res Furnace - Replace'!X18+'New Home ES'!X18+'Low Flow Showerhead'!X18+'Programmable Thermostats'!X18+'New Residential 4'!X18+'New Residential 5'!X18+'Comm 95+% Furnace - Replace'!X18+'Comm Boiler (85%) Level 2'!X18+'Comm Boiler (85%) Level 3'!X18+'Comm Boiler (90%) Level 2'!X18+'Comm Boiler (90%) Level 3'!X18+'Comm LP&HP Steam Boilers - LV2'!X18+'Comm LP&HP Steam Boilers - LV3'!X18+'New Comm 1'!X18+'New Comm 2'!X18+'New Comm 3'!X18+'New Comm 4'!X18+'New Comm 5'!X18,0) -> 20098 | Y18: =ROUND('Res. 92-94% Res Furnace'!Y18+'Res .95+% Res Furnace - NEW'!Y18+'Res Boiler 85%'!Y18+'Res Boiler 90%'!Y18+'Res Furnace Tune-Up'!Y18+'Res Water Heating .62 EF'!Y18+'Res Water Heating .67 EF'!Y18+'Res Attic Insulation'!Y18+'Res Retrofit Bundle'!Y18+'Res New Home Bundle'!Y18+'Comm 92-94% Furnace'!Y18+'Comm 95+% Furnace - NEW'!Y18+'Comm Boiler (85%) Level 1'!Y18+'Comm Boiler (90%) Level 1'!Y18+'Comm LP&HP Steam Boilers - LV1'!Y18+'Comm WH .64 EF'!Y18+'Comm WH Storage 88% Cond'!Y18+'Comm Custom'!Y18+'Res .95+% Res Furnace - Replace'!Y18+'New Home ES'!Y18+'Low Flow Showerhead'!Y18+'Programmable Thermostats'!Y18+'New Residential 4'!Y18+'New Residential 5'!Y18+'Comm 95+% Furnace - Replace'!Y18+'Comm Boiler (85%) Level 2'!Y18+'Comm Boiler (85%) Level 3'!Y18+'Comm Boiler (90%) Level 2'!Y18+'Comm Boiler (90%) Level 3'!Y18+'Comm LP&HP Steam Boilers - LV2'!Y18+'Comm LP&HP Steam Boilers - LV3'!Y18+'New Comm 1'!Y18+'New Comm 2'!Y18+'New Comm 3'!Y18+'New Comm 4'!Y18+'New Comm 5'!Y18,0) -> 0 | Z18: =ROUND('Res. 92-94% Res Furnace'!Z18+'Res .95+% Res Furnace - NEW'!Z18+'Res Boiler 85%'!Z18+'Res Boiler 90%'!Z18+'Res Furnace Tune-Up'!Z18+'Res Water Heating .62 EF'!Z18+'Res Water Heating .67 EF'!Z18+'Res Attic Insulation'!Z18+'Res Retrofit Bundle'!Z18+'Res New Home Bundle'!Z18+'Comm 92-94% Furnace'!Z18+'Comm 95+% Furnace - NEW'!Z18+'Comm Boiler (85%) Level 1'!Z18+'Comm Boiler (90%) Level 1'!Z18+'Comm LP&HP Steam Boilers - LV1'!Z18+'Comm WH .64 EF'!Z18+'Comm WH Storage 88% Cond'!Z18+'Comm Custom'!Z18+'Res .95+% Res Furnace - Replace'!Z18+'New Home ES'!Z18+'Low Flow Showerhead'!Z18+'Programmable Thermostats'!Z18+'New Residential 4'!Z18+'New Residential 5'!Z18+'Comm 95+% Furnace - Replace'!Z18+'Comm Boiler (85%) Level 2'!Z18+'Comm Boiler (85%) Level 3'!Z18+'Comm Boiler (90%) Level 2'!Z18+'Comm Boiler (90%) Level 3'!Z18+'Comm LP&HP Steam Boilers - LV2'!Z18+'Comm LP&HP Steam Boilers - LV3'!Z18+'New Comm 1'!Z18+'New Comm 2'!Z18+'New Comm 3'!Z18+'New Comm 4'!Z18+'New Comm 5'!Z18,0) -> 0 | AA18: 20098 | AB18: 78517 | AE18: 2019 | AF18: 75300 | AG18: 23315 | AH18: 98615 | AJ18: 0 | AK18: 0 | AL18: 0 | AN18: 98615 | AQ18: 2019 | AR18: 75300 | AS18: 23315 | AU18: =ROUND('Res. 92-94% Res Furnace'!AU18+'Res .95+% Res Furnace - NEW'!AU18+'Res Boiler 85%'!AU18+'Res Boiler 90%'!AU18+'Res Furnace Tune-Up'!AU18+'Res Water Heating .62 EF'!AU18+'Res Water Heating .67 EF'!AU18+'Res Attic Insulation'!AU18+'Res Retrofit Bundle'!AU18+'Res New Home Bundle'!AU18+'Comm 92-94% Furnace'!AU18+'Comm 95+% Furnace - NEW'!AU18+'Comm Boiler (85%) Level 1'!AU18+'Comm Boiler (90%) Level 1'!AU18+'Comm LP&HP Steam Boilers - LV1'!AU18+'Comm WH .64 EF'!AU18+'Comm WH Storage 88% Cond'!AU18+'Comm Custom'!AU18+'Res .95+% Res Furnace - Replace'!AU18+'New Home ES'!AU18+'Low Flow Showerhead'!AU18+'Programmable Thermostats'!AU18+'New Residential 4'!AU18+'New Residential 5'!AU18+'Comm 95+% Furnace - Replace'!AU18+'Comm Boiler (85%) Level 2'!AU18+'Comm Boiler (85%) Level 3'!AU18+'Comm Boiler (90%) Level 2'!AU18+'Comm Boiler (90%) Level 3'!AU18+'Comm LP&HP Steam Boilers - LV2'!AU18+'Comm LP&HP Steam Boilers - LV3'!AU18+'New Comm 1'!AU18+'New Comm 2'!AU18+'New Comm 3'!AU18+'New Comm 4'!AU18+'New Comm 5'!AU18,0) -> 23809 | AW18: =ROUND('Res. 92-94% Res Furnace'!AW18+'Res .95+% Res Furnace - NEW'!AW18+'Res Boiler 85%'!AW18+'Res Boiler 90%'!AW18+'Res Furnace Tune-Up'!AW18+'Res Water Heating .62 EF'!AW18+'Res Water Heating .67 EF'!AW18+'Res Attic Insulation'!AW18+'Res Retrofit Bundle'!AW18+'Res New Home Bundle'!AW18+'Comm 92-94% Furnace'!AW18+'Comm 95+% Furnace - NEW'!AW18+'Comm Boiler (85%) Level 1'!AW18+'Comm Boiler (90%) Level 1'!AW18+'Comm LP&HP Steam Boilers - LV1'!AW18+'Comm WH .64 EF'!AW18+'Comm WH Storage 88% Cond'!AW18+'Comm Custom'!AW18+'Res .95+% Res Furnace - Replace'!AW18+'New Home ES'!AW18+'Low Flow Showerhead'!AW18+'Programmable Thermostats'!AW18+'New Residential 4'!AW18+'New Residential 5'!AW18+'Comm 95+% Furnace - Replace'!AW18+'Comm Boiler (85%) Level 2'!AW18+'Comm Boiler (85%) Level 3'!AW18+'Comm Boiler (90%) Level 2'!AW18+'Comm Boiler (90%) Level 3'!AW18+'Comm LP&HP Steam Boilers - LV2'!AW18+'Comm LP&HP Steam Boilers - LV3'!AW18+'New Comm 1'!AW18+'New Comm 2'!AW18+'New Comm 3'!AW18+'New Comm 4'!AW18+'New Comm 5'!AW18,0) -> 5936 | AZ18: 128360 | BB18: =ROUND('Res. 92-94% Res Furnace'!BB18+'Res .95+% Res Furnace - NEW'!BB18+'Res Boiler 85%'!BB18+'Res Boiler 90%'!BB18+'Res Furnace Tune-Up'!BB18+'Res Water Heating .62 EF'!BB18+'Res Water Heating .67 EF'!BB18+'Res Attic Insulation'!BB18+'Res Retrofit Bundle'!BB18+'Res New Home Bundle'!BB18+'Comm 92-94% Furnace'!BB18+'Comm 95+% Furnace - NEW'!BB18+'Comm Boiler (85%) Level 1'!BB18+'Comm Boiler (90%) Level 1'!BB18+'Comm LP&HP Steam Boilers - LV1'!BB18+'Comm WH .64 EF'!BB18+'Comm WH Storage 88% Cond'!BB18+'Comm Custom'!BB18+'Res .95+% Res Furnace - Replace'!BB18+'New Home ES'!BB18+'Low Flow Showerhead'!BB18+'Programmable Thermostats'!BB18+'New Residential 4'!BB18+'New Residential 5'!BB18+'Comm 95+% Furnace - Replace'!BB18+'Comm Boiler (85%) Level 2'!BB18+'Comm Boiler (85%) Level 3'!BB18+'Comm Boiler (90%) Level 2'!BB18+'Comm Boiler (90%) Level 3'!BB18+'Comm LP&HP Steam Boilers - LV2'!BB18+'Comm LP&HP Steam Boilers - LV3'!BB18+'New Comm 1'!BB18+'New Comm 2'!BB18+'New Comm 3'!BB18+'New Comm 4'!BB18+'New Comm 5'!BB18,0) -> 0 | BC18: =ROUND('Res. 92-94% Res Furnace'!BC18+'Res .95+% Res Furnace - NEW'!BC18+'Res Boiler 85%'!BC18+'Res Boiler 90%'!BC18+'Res Furnace Tune-Up'!BC18+'Res Water Heating .62 EF'!BC18+'Res Water Heating .67 EF'!BC18+'Res Attic Insulation'!BC18+'Res Retrofit Bundle'!BC18+'Res New Home Bundle'!BC18+'Comm 92-94% Furnace'!BC18+'Comm 95+% Furnace - NEW'!BC18+'Comm Boiler (85%) Level 1'!BC18+'Comm Boiler (90%) Level 1'!BC18+'Comm LP&HP Steam Boilers - LV1'!BC18+'Comm WH .64 EF'!BC18+'Comm WH Storage 88% Cond'!BC18+'Comm Custom'!BC18+'Res .95+% Res Furnace - Replace'!BC18+'New Home ES'!BC18+'Low Flow Showerhead'!BC18+'Programmable Thermostats'!BC18+'New Residential 4'!BC18+'New Residential 5'!BC18+'Comm 95+% Furnace - Replace'!BC18+'Comm Boiler (85%) Level 2'!BC18+'Comm Boiler (85%) Level 3'!BC18+'Comm Boiler (90%) Level 2'!BC18+'Comm Boiler (90%) Level 3'!BC18+'Comm LP&HP Steam Boilers - LV2'!BC18+'Comm LP&HP Steam Boilers - LV3'!BC18+'New Comm 1'!BC18+'New Comm 2'!BC18+'New Comm 3'!BC18+'New Comm 4'!BC18+'New Comm 5'!BC18,0) -> 0 | BD18: 0 | BE18: 128360 | BH18: 2019 | BI18: =ROUND('Res. 92-94% Res Furnace'!BI18+'Res .95+% Res Furnace - NEW'!BI18+'Res Boiler 85%'!BI18+'Res Boiler 90%'!BI18+'Res Furnace Tune-Up'!BI18+'Res Water Heating .62 EF'!BI18+'Res Water Heating .67 EF'!BI18+'Res Attic Insulation'!BI18+'Res Retrofit Bundle'!BI18+'Res New Home Bundle'!BI18+'Comm 92-94% Furnace'!BI18+'Comm 95+% Furnace - NEW'!BI18+'Comm Boiler (85%) Level 1'!BI18+'Comm Boiler (90%) Level 1'!BI18+'Comm LP&HP Steam Boilers - LV1'!BI18+'Comm WH .64 EF'!BI18+'Comm WH Storage 88% Cond'!BI18+'Comm Custom'!BI18+'Res .95+% Res Furnace - Replace'!BI18+'New Home ES'!BI18+'Low Flow Showerhead'!BI18+'Programmable Thermostats'!BI18+'New Residential 4'!BI18+'New Residential 5'!BI18+'Comm 95+% Furnace - Replace'!BI18+'Comm Boiler (85%) Level 2'!BI18+'Comm Boiler (85%) Level 3'!BI18+'Comm Boiler (90%) Level 2'!BI18+'Comm Boiler (90%) Level 3'!BI18+'Comm LP&HP Steam Boilers - LV2'!BI18+'Comm LP&HP Steam Boilers - LV3'!BI18+'New Comm 1'!BI18+'New Comm 2'!BI18+'New Comm 3'!BI18+'New Comm 4'!BI18+'New Comm 5'!BI18,0) -> 0 | BJ18: =ROUND('Res. 92-94% Res Furnace'!BJ18+'Res .95+% Res Furnace - NEW'!BJ18+'Res Boiler 85%'!BJ18+'Res Boiler 90%'!BJ18+'Res Furnace Tune-Up'!BJ18+'Res Water Heating .62 EF'!BJ18+'Res Water Heating .67 EF'!BJ18+'Res Attic Insulation'!BJ18+'Res Retrofit Bundle'!BJ18+'Res New Home Bundle'!BJ18+'Comm 92-94% Furnace'!BJ18+'Comm 95+% Furnace - NEW'!BJ18+'Comm Boiler (85%) Level 1'!BJ18+'Comm Boiler (90%) Level 1'!BJ18+'Comm LP&HP Steam Boilers - LV1'!BJ18+'Comm WH .64 EF'!BJ18+'Comm WH Storage 88% Cond'!BJ18+'Comm Custom'!BJ18+'Res .95+% Res Furnace - Replace'!BJ18+'New Home ES'!BJ18+'Low Flow Showerhead'!BJ18+'Programmable Thermostats'!BJ18+'New Residential 4'!BJ18+'New Residential 5'!BJ18+'Comm 95+% Furnace - Replace'!BJ18+'Comm Boiler (85%) Level 2'!BJ18+'Comm Boiler (85%) Level 3'!BJ18+'Comm Boiler (90%) Level 2'!BJ18+'Comm Boiler (90%) Level 3'!BJ18+'Comm LP&HP Steam Boilers - LV2'!BJ18+'Comm LP&HP Steam Boilers - LV3'!BJ18+'New Comm 1'!BJ18+'New Comm 2'!BJ18+'New Comm 3'!BJ18+'New Comm 4'!BJ18+'New Comm 5'!BJ18,0) -> 15142 | BL18: =ROUND('Res. 92-94% Res Furnace'!BL18+'Res .95+% Res Furnace - NEW'!BL18+'Res Boiler 85%'!BL18+'Res Boiler 90%'!BL18+'Res Furnace Tune-Up'!BL18+'Res Water Heating .62 EF'!BL18+'Res Water Heating .67 EF'!BL18+'Res Attic Insulation'!BL18+'Res Retrofit Bundle'!BL18+'Res New Home Bundle'!BL18+'Comm 92-94% Furnace'!BL18+'Comm 95+% Furnace - NEW'!BL18+'Comm Boiler (85%) Level 1'!BL18+'Comm Boiler (90%) Level 1'!BL18+'Comm LP&HP Steam Boilers - LV1'!BL18+'Comm WH .64 EF'!BL18+'Comm WH Storage 88% Cond'!BL18+'Comm Custom'!BL18+'Res .95+% Res Furnace - Replace'!BL18+'New Home ES'!BL18+'Low Flow Showerhead'!BL18+'Programmable Thermostats'!BL18+'New Residential 4'!BL18+'New Residential 5'!BL18+'Comm 95+% Furnace - Replace'!BL18+'Comm Boiler (85%) Level 2'!BL18+'Comm Boiler (85%) Level 3'!BL18+'Comm Boiler (90%) Level 2'!BL18+'Comm Boiler (90%) Level 3'!BL18+'Comm LP&HP Steam Boilers - LV2'!BL18+'Comm LP&HP Steam Boilers - LV3'!BL18+'New Comm 1'!BL18+'New Comm 2'!BL18+'New Comm 3'!BL18+'New Comm 4'!BL18+'New Comm 5'!BL18,0) -> 137870 | BN18: =ROUND('Res. 92-94% Res Furnace'!BN18+'Res .95+% Res Furnace - NEW'!BN18+'Res Boiler 85%'!BN18+'Res Boiler 90%'!BN18+'Res Furnace Tune-Up'!BN18+'Res Water Heating .62 EF'!BN18+'Res Water Heating .67 EF'!BN18+'Res Attic Insulation'!BN18+'Res Retrofit Bundle'!BN18+'Res New Home Bundle'!BN18+'Comm 92-94% Furnace'!BN18+'Comm 95+% Furnace - NEW'!BN18+'Comm Boiler (85%) Level 1'!BN18+'Comm Boiler (90%) Level 1'!BN18+'Comm LP&HP Steam Boilers - LV1'!BN18+'Comm WH .64 EF'!BN18+'Comm WH Storage 88% Cond'!BN18+'Comm Custom'!BN18+'Res .95+% Res Furnace - Replace'!BN18+'New Home ES'!BN18+'Low Flow Showerhead'!BN18+'Programmable Thermostats'!BN18+'New Residential 4'!BN18+'New Residential 5'!BN18+'Comm 95+% Furnace - Replace'!BN18+'Comm Boiler (85%) Level 2'!BN18+'Comm Boiler (85%) Level 3'!BN18+'Comm Boiler (90%) Level 2'!BN18+'Comm Boiler (90%) Level 3'!BN18+'Comm LP&HP Steam Boilers - LV2'!BN18+'Comm LP&HP Steam Boilers - LV3'!BN18+'New Comm 1'!BN18+'New Comm 2'!BN18+'New Comm 3'!BN18+'New Comm 4'!BN18+'New Comm 5'!BN18,0) -> 142970 | BP18: 280840 | BR18: =ROUND('Res. 92-94% Res Furnace'!BR18+'Res .95+% Res Furnace - NEW'!BR18+'Res Boiler 85%'!BR18+'Res Boiler 90%'!BR18+'Res Furnace Tune-Up'!BR18+'Res Water Heating .62 EF'!BR18+'Res Water Heating .67 EF'!BR18+'Res Attic Insulation'!BR18+'Res Retrofit Bundle'!BR18+'Res New Home Bundle'!BR18+'Comm 92-94% Furnace'!BR18+'Comm 95+% Furnace - NEW'!BR18+'Comm Boiler (85%) Level 1'!BR18+'Comm Boiler (90%) Level 1'!BR18+'Comm LP&HP Steam Boilers - LV1'!BR18+'Comm WH .64 EF'!BR18+'Comm WH Storage 88% Cond'!BR18+'Comm Custom'!BR18+'Res .95+% Res Furnace - Replace'!BR18+'New Home ES'!BR18+'Low Flow Showerhead'!BR18+'Programmable Thermostats'!BR18+'New Residential 4'!BR18+'New Residential 5'!BR18+'Comm 95+% Furnace - Replace'!BR18+'Comm Boiler (85%) Level 2'!BR18+'Comm Boiler (85%) Level 3'!BR18+'Comm Boiler (90%) Level 2'!BR18+'Comm Boiler (90%) Level 3'!BR18+'Comm LP&HP Steam Boilers - LV2'!BR18+'Comm LP&HP Steam Boilers - LV3'!BR18+'New Comm 1'!BR18+'New Comm 2'!BR18+'New Comm 3'!BR18+'New Comm 4'!BR18+'New Comm 5'!BR18,0) -> 0 | BT18: 280840 | BW18: 2019 | BX18: 75300 | BY18: 23315 | BZ18: 23809 | CA18: 122424 | CC18: 0 | CD18: 0 | CE18: 0 | CG18: 122424 | DB18: t
J19: 6 | L19: 2020 | M19: =ROUND('Res. 92-94% Res Furnace'!M19+'Res .95+% Res Furnace - NEW'!M19+'Res Boiler 85%'!M19+'Res Boiler 90%'!M19+'Res Furnace Tune-Up'!M19+'Res Water Heating .62 EF'!M19+'Res Water Heating .67 EF'!M19+'Res Attic Insulation'!M19+'Res Retrofit Bundle'!M19+'Res New Home Bundle'!M19+'Comm 92-94% Furnace'!M19+'Comm 95+% Furnace - NEW'!M19+'Comm Boiler (85%) Level 1'!M19+'Comm Boiler (90%) Level 1'!M19+'Comm LP&HP Steam Boilers - LV1'!M19+'Comm WH .64 EF'!M19+'Comm WH Storage 88% Cond'!M19+'Comm Custom'!M19+'Res .95+% Res Furnace - Replace'!M19+'New Home ES'!M19+'Low Flow Showerhead'!M19+'Programmable Thermostats'!M19+'New Residential 4'!M19+'New Residential 5'!M19+'Comm 95+% Furnace - Replace'!M19+'Comm Boiler (85%) Level 2'!M19+'Comm Boiler (85%) Level 3'!M19+'Comm Boiler (90%) Level 2'!M19+'Comm Boiler (90%) Level 3'!M19+'Comm LP&HP Steam Boilers - LV2'!M19+'Comm LP&HP Steam Boilers - LV3'!M19+'New Comm 1'!M19+'New Comm 2'!M19+'New Comm 3'!M19+'New Comm 4'!M19+'New Comm 5'!M19,0) -> 15142 | O19: =ROUND('Res. 92-94% Res Furnace'!O19+'Res .95+% Res Furnace - NEW'!O19+'Res Boiler 85%'!O19+'Res Boiler 90%'!O19+'Res Furnace Tune-Up'!O19+'Res Water Heating .62 EF'!O19+'Res Water Heating .67 EF'!O19+'Res Attic Insulation'!O19+'Res Retrofit Bundle'!O19+'Res New Home Bundle'!O19+'Comm 92-94% Furnace'!O19+'Comm 95+% Furnace - NEW'!O19+'Comm Boiler (85%) Level 1'!O19+'Comm Boiler (90%) Level 1'!O19+'Comm LP&HP Steam Boilers - LV1'!O19+'Comm WH .64 EF'!O19+'Comm WH Storage 88% Cond'!O19+'Comm Custom'!O19+'Res .95+% Res Furnace - Replace'!O19+'New Home ES'!O19+'Low Flow Showerhead'!O19+'Programmable Thermostats'!O19+'New Residential 4'!O19+'New Residential 5'!O19+'Comm 95+% Furnace - Replace'!O19+'Comm Boiler (85%) Level 2'!O19+'Comm Boiler (85%) Level 3'!O19+'Comm Boiler (90%) Level 2'!O19+'Comm Boiler (90%) Level 3'!O19+'Comm LP&HP Steam Boilers - LV2'!O19+'Comm LP&HP Steam Boilers - LV3'!O19+'New Comm 1'!O19+'New Comm 2'!O19+'New Comm 3'!O19+'New Comm 4'!O19+'New Comm 5'!O19,0) -> 77936 | Q19: =ROUND('Res. 92-94% Res Furnace'!Q19+'Res .95+% Res Furnace - NEW'!Q19+'Res Boiler 85%'!Q19+'Res Boiler 90%'!Q19+'Res Furnace Tune-Up'!Q19+'Res Water Heating .62 EF'!Q19+'Res Water Heating .67 EF'!Q19+'Res Attic Insulation'!Q19+'Res Retrofit Bundle'!Q19+'Res New Home Bundle'!Q19+'Comm 92-94% Furnace'!Q19+'Comm 95+% Furnace - NEW'!Q19+'Comm Boiler (85%) Level 1'!Q19+'Comm Boiler (90%) Level 1'!Q19+'Comm LP&HP Steam Boilers - LV1'!Q19+'Comm WH .64 EF'!Q19+'Comm WH Storage 88% Cond'!Q19+'Comm Custom'!Q19+'Res .95+% Res Furnace - Replace'!Q19+'New Home ES'!Q19+'Low Flow Showerhead'!Q19+'Programmable Thermostats'!Q19+'New Residential 4'!Q19+'New Residential 5'!Q19+'Comm 95+% Furnace - Replace'!Q19+'Comm Boiler (85%) Level 2'!Q19+'Comm Boiler (85%) Level 3'!Q19+'Comm Boiler (90%) Level 2'!Q19+'Comm Boiler (90%) Level 3'!Q19+'Comm LP&HP Steam Boilers - LV2'!Q19+'Comm LP&HP Steam Boilers - LV3'!Q19+'New Comm 1'!Q19+'New Comm 2'!Q19+'New Comm 3'!Q19+'New Comm 4'!Q19+'New Comm 5'!Q19,0) -> 0 | R19: =ROUND('Res. 92-94% Res Furnace'!R19+'Res .95+% Res Furnace - NEW'!R19+'Res Boiler 85%'!R19+'Res Boiler 90%'!R19+'Res Furnace Tune-Up'!R19+'Res Water Heating .62 EF'!R19+'Res Water Heating .67 EF'!R19+'Res Attic Insulation'!R19+'Res Retrofit Bundle'!R19+'Res New Home Bundle'!R19+'Comm 92-94% Furnace'!R19+'Comm 95+% Furnace - NEW'!R19+'Comm Boiler (85%) Level 1'!R19+'Comm Boiler (90%) Level 1'!R19+'Comm LP&HP Steam Boilers - LV1'!R19+'Comm WH .64 EF'!R19+'Comm WH Storage 88% Cond'!R19+'Comm Custom'!R19+'Res .95+% Res Furnace - Replace'!R19+'New Home ES'!R19+'Low Flow Showerhead'!R19+'Programmable Thermostats'!R19+'New Residential 4'!R19+'New Residential 5'!R19+'Comm 95+% Furnace - Replace'!R19+'Comm Boiler (85%) Level 2'!R19+'Comm Boiler (85%) Level 3'!R19+'Comm Boiler (90%) Level 2'!R19+'Comm Boiler (90%) Level 3'!R19+'Comm LP&HP Steam Boilers - LV2'!R19+'Comm LP&HP Steam Boilers - LV3'!R19+'New Comm 1'!R19+'New Comm 2'!R19+'New Comm 3'!R19+'New Comm 4'!R19+'New Comm 5'!R19,0) -> 77936 | S19: =ROUND('Res. 92-94% Res Furnace'!S19+'Res .95+% Res Furnace - NEW'!S19+'Res Boiler 85%'!S19+'Res Boiler 90%'!S19+'Res Furnace Tune-Up'!S19+'Res Water Heating .62 EF'!S19+'Res Water Heating .67 EF'!S19+'Res Attic Insulation'!S19+'Res Retrofit Bundle'!S19+'Res New Home Bundle'!S19+'Comm 92-94% Furnace'!S19+'Comm 95+% Furnace - NEW'!S19+'Comm Boiler (85%) Level 1'!S19+'Comm Boiler (90%) Level 1'!S19+'Comm LP&HP Steam Boilers - LV1'!S19+'Comm WH .64 EF'!S19+'Comm WH Storage 88% Cond'!S19+'Comm Custom'!S19+'Res .95+% Res Furnace - Replace'!S19+'New Home ES'!S19+'Low Flow Showerhead'!S19+'Programmable Thermostats'!S19+'New Residential 4'!S19+'New Residential 5'!S19+'Comm 95+% Furnace - Replace'!S19+'Comm Boiler (85%) Level 2'!S19+'Comm Boiler (85%) Level 3'!S19+'Comm Boiler (90%) Level 2'!S19+'Comm Boiler (90%) Level 3'!S19+'Comm LP&HP Steam Boilers - LV2'!S19+'Comm LP&HP Steam Boilers - LV3'!S19+'New Comm 1'!S19+'New Comm 2'!S19+'New Comm 3'!S19+'New Comm 4'!S19+'New Comm 5'!S19,0) -> 151 | U19: =ROUND('Res. 92-94% Res Furnace'!U19+'Res .95+% Res Furnace - NEW'!U19+'Res Boiler 85%'!U19+'Res Boiler 90%'!U19+'Res Furnace Tune-Up'!U19+'Res Water Heating .62 EF'!U19+'Res Water Heating .67 EF'!U19+'Res Attic Insulation'!U19+'Res Retrofit Bundle'!U19+'Res New Home Bundle'!U19+'Comm 92-94% Furnace'!U19+'Comm 95+% Furnace - NEW'!U19+'Comm Boiler (85%) Level 1'!U19+'Comm Boiler (90%) Level 1'!U19+'Comm LP&HP Steam Boilers - LV1'!U19+'Comm WH .64 EF'!U19+'Comm WH Storage 88% Cond'!U19+'Comm Custom'!U19+'Res .95+% Res Furnace - Replace'!U19+'New Home ES'!U19+'Low Flow Showerhead'!U19+'Programmable Thermostats'!U19+'New Residential 4'!U19+'New Residential 5'!U19+'Comm 95+% Furnace - Replace'!U19+'Comm Boiler (85%) Level 2'!U19+'Comm Boiler (85%) Level 3'!U19+'Comm Boiler (90%) Level 2'!U19+'Comm Boiler (90%) Level 3'!U19+'Comm LP&HP Steam Boilers - LV2'!U19+'Comm LP&HP Steam Boilers - LV3'!U19+'New Comm 1'!U19+'New Comm 2'!U19+'New Comm 3'!U19+'New Comm 4'!U19+'New Comm 5'!U19,0) -> 23468 | V19: 101404 | X19: =ROUND('Res. 92-94% Res Furnace'!X19+'Res .95+% Res Furnace - NEW'!X19+'Res Boiler 85%'!X19+'Res Boiler 90%'!X19+'Res Furnace Tune-Up'!X19+'Res Water Heating .62 EF'!X19+'Res Water Heating .67 EF'!X19+'Res Attic Insulation'!X19+'Res Retrofit Bundle'!X19+'Res New Home Bundle'!X19+'Comm 92-94% Furnace'!X19+'Comm 95+% Furnace - NEW'!X19+'Comm Boiler (85%) Level 1'!X19+'Comm Boiler (90%) Level 1'!X19+'Comm LP&HP Steam Boilers - LV1'!X19+'Comm WH .64 EF'!X19+'Comm WH Storage 88% Cond'!X19+'Comm Custom'!X19+'Res .95+% Res Furnace - Replace'!X19+'New Home ES'!X19+'Low Flow Showerhead'!X19+'Programmable Thermostats'!X19+'New Residential 4'!X19+'New Residential 5'!X19+'Comm 95+% Furnace - Replace'!X19+'Comm Boiler (85%) Level 2'!X19+'Comm Boiler (85%) Level 3'!X19+'Comm Boiler (90%) Level 2'!X19+'Comm Boiler (90%) Level 3'!X19+'Comm LP&HP Steam Boilers - LV2'!X19+'Comm LP&HP Steam Boilers - LV3'!X19+'New Comm 1'!X19+'New Comm 2'!X19+'New Comm 3'!X19+'New Comm 4'!X19+'New Comm 5'!X19,0) -> 20806 | Y19: =ROUND('Res. 92-94% Res Furnace'!Y19+'Res .95+% Res Furnace - NEW'!Y19+'Res Boiler 85%'!Y19+'Res Boiler 90%'!Y19+'Res Furnace Tune-Up'!Y19+'Res Water Heating .62 EF'!Y19+'Res Water Heating .67 EF'!Y19+'Res Attic Insulation'!Y19+'Res Retrofit Bundle'!Y19+'Res New Home Bundle'!Y19+'Comm 92-94% Furnace'!Y19+'Comm 95+% Furnace - NEW'!Y19+'Comm Boiler (85%) Level 1'!Y19+'Comm Boiler (90%) Level 1'!Y19+'Comm LP&HP Steam Boilers - LV1'!Y19+'Comm WH .64 EF'!Y19+'Comm WH Storage 88% Cond'!Y19+'Comm Custom'!Y19+'Res .95+% Res Furnace - Replace'!Y19+'New Home ES'!Y19+'Low Flow Showerhead'!Y19+'Programmable Thermostats'!Y19+'New Residential 4'!Y19+'New Residential 5'!Y19+'Comm 95+% Furnace - Replace'!Y19+'Comm Boiler (85%) Level 2'!Y19+'Comm Boiler (85%) Level 3'!Y19+'Comm Boiler (90%) Level 2'!Y19+'Comm Boiler (90%) Level 3'!Y19+'Comm LP&HP Steam Boilers - LV2'!Y19+'Comm LP&HP Steam Boilers - LV3'!Y19+'New Comm 1'!Y19+'New Comm 2'!Y19+'New Comm 3'!Y19+'New Comm 4'!Y19+'New Comm 5'!Y19,0) -> 0 | Z19: =ROUND('Res. 92-94% Res Furnace'!Z19+'Res .95+% Res Furnace - NEW'!Z19+'Res Boiler 85%'!Z19+'Res Boiler 90%'!Z19+'Res Furnace Tune-Up'!Z19+'Res Water Heating .62 EF'!Z19+'Res Water Heating .67 EF'!Z19+'Res Attic Insulation'!Z19+'Res Retrofit Bundle'!Z19+'Res New Home Bundle'!Z19+'Comm 92-94% Furnace'!Z19+'Comm 95+% Furnace - NEW'!Z19+'Comm Boiler (85%) Level 1'!Z19+'Comm Boiler (90%) Level 1'!Z19+'Comm LP&HP Steam Boilers - LV1'!Z19+'Comm WH .64 EF'!Z19+'Comm WH Storage 88% Cond'!Z19+'Comm Custom'!Z19+'Res .95+% Res Furnace - Replace'!Z19+'New Home ES'!Z19+'Low Flow Showerhead'!Z19+'Programmable Thermostats'!Z19+'New Residential 4'!Z19+'New Residential 5'!Z19+'Comm 95+% Furnace - Replace'!Z19+'Comm Boiler (85%) Level 2'!Z19+'Comm Boiler (85%) Level 3'!Z19+'Comm Boiler (90%) Level 2'!Z19+'Comm Boiler (90%) Level 3'!Z19+'Comm LP&HP Steam Boilers - LV2'!Z19+'Comm LP&HP Steam Boilers - LV3'!Z19+'New Comm 1'!Z19+'New Comm 2'!Z19+'New Comm 3'!Z19+'New Comm 4'!Z19+'New Comm 5'!Z19,0) -> 0 | AA19: 20806 | AB19: 80598 | AE19: 2020 | AF19: 77936 | AG19: 23468 | AH19: 101404 | AJ19: 0 | AK19: 0 | AL19: 0 | AN19: 101404 | AQ19: 2020 | AR19: 77936 | AS19: 23468 | AU19: =ROUND('Res. 92-94% Res Furnace'!AU19+'Res .95+% Res Furnace - NEW'!AU19+'Res Boiler 85%'!AU19+'Res Boiler 90%'!AU19+'Res Furnace Tune-Up'!AU19+'Res Water Heating .62 EF'!AU19+'Res Water Heating .67 EF'!AU19+'Res Attic Insulation'!AU19+'Res Retrofit Bundle'!AU19+'Res New Home Bundle'!AU19+'Comm 92-94% Furnace'!AU19+'Comm 95+% Furnace - NEW'!AU19+'Comm Boiler (85%) Level 1'!AU19+'Comm Boiler (90%) Level 1'!AU19+'Comm LP&HP Steam Boilers - LV1'!AU19+'Comm WH .64 EF'!AU19+'Comm WH Storage 88% Cond'!AU19+'Comm Custom'!AU19+'Res .95+% Res Furnace - Replace'!AU19+'New Home ES'!AU19+'Low Flow Showerhead'!AU19+'Programmable Thermostats'!AU19+'New Residential 4'!AU19+'New Residential 5'!AU19+'Comm 95+% Furnace - Replace'!AU19+'Comm Boiler (85%) Level 2'!AU19+'Comm Boiler (85%) Level 3'!AU19+'Comm Boiler (90%) Level 2'!AU19+'Comm Boiler (90%) Level 3'!AU19+'Comm LP&HP Steam Boilers - LV2'!AU19+'Comm LP&HP Steam Boilers - LV3'!AU19+'New Comm 1'!AU19+'New Comm 2'!AU19+'New Comm 3'!AU19+'New Comm 4'!AU19+'New Comm 5'!AU19,0) -> 24760 | AW19: =ROUND('Res. 92-94% Res Furnace'!AW19+'Res .95+% Res Furnace - NEW'!AW19+'Res Boiler 85%'!AW19+'Res Boiler 90%'!AW19+'Res Furnace Tune-Up'!AW19+'Res Water Heating .62 EF'!AW19+'Res Water Heating .67 EF'!AW19+'Res Attic Insulation'!AW19+'Res Retrofit Bundle'!AW19+'Res New Home Bundle'!AW19+'Comm 92-94% Furnace'!AW19+'Comm 95+% Furnace - NEW'!AW19+'Comm Boiler (85%) Level 1'!AW19+'Comm Boiler (90%) Level 1'!AW19+'Comm LP&HP Steam Boilers - LV1'!AW19+'Comm WH .64 EF'!AW19+'Comm WH Storage 88% Cond'!AW19+'Comm Custom'!AW19+'Res .95+% Res Furnace - Replace'!AW19+'New Home ES'!AW19+'Low Flow Showerhead'!AW19+'Programmable Thermostats'!AW19+'New Residential 4'!AW19+'New Residential 5'!AW19+'Comm 95+% Furnace - Replace'!AW19+'Comm Boiler (85%) Level 2'!AW19+'Comm Boiler (85%) Level 3'!AW19+'Comm Boiler (90%) Level 2'!AW19+'Comm Boiler (90%) Level 3'!AW19+'Comm LP&HP Steam Boilers - LV2'!AW19+'Comm LP&HP Steam Boilers - LV3'!AW19+'New Comm 1'!AW19+'New Comm 2'!AW19+'New Comm 3'!AW19+'New Comm 4'!AW19+'New Comm 5'!AW19,0) -> 6072 | AZ19: 132236 | BB19: =ROUND('Res. 92-94% Res Furnace'!BB19+'Res .95+% Res Furnace - NEW'!BB19+'Res Boiler 85%'!BB19+'Res Boiler 90%'!BB19+'Res Furnace Tune-Up'!BB19+'Res Water Heating .62 EF'!BB19+'Res Water Heating .67 EF'!BB19+'Res Attic Insulation'!BB19+'Res Retrofit Bundle'!BB19+'Res New Home Bundle'!BB19+'Comm 92-94% Furnace'!BB19+'Comm 95+% Furnace - NEW'!BB19+'Comm Boiler (85%) Level 1'!BB19+'Comm Boiler (90%) Level 1'!BB19+'Comm LP&HP Steam Boilers - LV1'!BB19+'Comm WH .64 EF'!BB19+'Comm WH Storage 88% Cond'!BB19+'Comm Custom'!BB19+'Res .95+% Res Furnace - Replace'!BB19+'New Home ES'!BB19+'Low Flow Showerhead'!BB19+'Programmable Thermostats'!BB19+'New Residential 4'!BB19+'New Residential 5'!BB19+'Comm 95+% Furnace - Replace'!BB19+'Comm Boiler (85%) Level 2'!BB19+'Comm Boiler (85%) Level 3'!BB19+'Comm Boiler (90%) Level 2'!BB19+'Comm Boiler (90%) Level 3'!BB19+'Comm LP&HP Steam Boilers - LV2'!BB19+'Comm LP&HP Steam Boilers - LV3'!BB19+'New Comm 1'!BB19+'New Comm 2'!BB19+'New Comm 3'!BB19+'New Comm 4'!BB19+'New Comm 5'!BB19,0) -> 0 | BC19: =ROUND('Res. 92-94% Res Furnace'!BC19+'Res .95+% Res Furnace - NEW'!BC19+'Res Boiler 85%'!BC19+'Res Boiler 90%'!BC19+'Res Furnace Tune-Up'!BC19+'Res Water Heating .62 EF'!BC19+'Res Water Heating .67 EF'!BC19+'Res Attic Insulation'!BC19+'Res Retrofit Bundle'!BC19+'Res New Home Bundle'!BC19+'Comm 92-94% Furnace'!BC19+'Comm 95+% Furnace - NEW'!BC19+'Comm Boiler (85%) Level 1'!BC19+'Comm Boiler (90%) Level 1'!BC19+'Comm LP&HP Steam Boilers - LV1'!BC19+'Comm WH .64 EF'!BC19+'Comm WH Storage 88% Cond'!BC19+'Comm Custom'!BC19+'Res .95+% Res Furnace - Replace'!BC19+'New Home ES'!BC19+'Low Flow Showerhead'!BC19+'Programmable Thermostats'!BC19+'New Residential 4'!BC19+'New Residential 5'!BC19+'Comm 95+% Furnace - Replace'!BC19+'Comm Boiler (85%) Level 2'!BC19+'Comm Boiler (85%) Level 3'!BC19+'Comm Boiler (90%) Level 2'!BC19+'Comm Boiler (90%) Level 3'!BC19+'Comm LP&HP Steam Boilers - LV2'!BC19+'Comm LP&HP Steam Boilers - LV3'!BC19+'New Comm 1'!BC19+'New Comm 2'!BC19+'New Comm 3'!BC19+'New Comm 4'!BC19+'New Comm 5'!BC19,0) -> 0 | BD19: 0 | BE19: 132236 | BH19: 2020 | BI19: =ROUND('Res. 92-94% Res Furnace'!BI19+'Res .95+% Res Furnace - NEW'!BI19+'Res Boiler 85%'!BI19+'Res Boiler 90%'!BI19+'Res Furnace Tune-Up'!BI19+'Res Water Heating .62 EF'!BI19+'Res Water Heating .67 EF'!BI19+'Res Attic Insulation'!BI19+'Res Retrofit Bundle'!BI19+'Res New Home Bundle'!BI19+'Comm 92-94% Furnace'!BI19+'Comm 95+% Furnace - NEW'!BI19+'Comm Boiler (85%) Level 1'!BI19+'Comm Boiler (90%) Level 1'!BI19+'Comm LP&HP Steam Boilers - LV1'!BI19+'Comm WH .64 EF'!BI19+'Comm WH Storage 88% Cond'!BI19+'Comm Custom'!BI19+'Res .95+% Res Furnace - Replace'!BI19+'New Home ES'!BI19+'Low Flow Showerhead'!BI19+'Programmable Thermostats'!BI19+'New Residential 4'!BI19+'New Residential 5'!BI19+'Comm 95+% Furnace - Replace'!BI19+'Comm Boiler (85%) Level 2'!BI19+'Comm Boiler (85%) Level 3'!BI19+'Comm Boiler (90%) Level 2'!BI19+'Comm Boiler (90%) Level 3'!BI19+'Comm LP&HP Steam Boilers - LV2'!BI19+'Comm LP&HP Steam Boilers - LV3'!BI19+'New Comm 1'!BI19+'New Comm 2'!BI19+'New Comm 3'!BI19+'New Comm 4'!BI19+'New Comm 5'!BI19,0) -> 0 | BJ19: =ROUND('Res. 92-94% Res Furnace'!BJ19+'Res .95+% Res Furnace - NEW'!BJ19+'Res Boiler 85%'!BJ19+'Res Boiler 90%'!BJ19+'Res Furnace Tune-Up'!BJ19+'Res Water Heating .62 EF'!BJ19+'Res Water Heating .67 EF'!BJ19+'Res Attic Insulation'!BJ19+'Res Retrofit Bundle'!BJ19+'Res New Home Bundle'!BJ19+'Comm 92-94% Furnace'!BJ19+'Comm 95+% Furnace - NEW'!BJ19+'Comm Boiler (85%) Level 1'!BJ19+'Comm Boiler (90%) Level 1'!BJ19+'Comm LP&HP Steam Boilers - LV1'!BJ19+'Comm WH .64 EF'!BJ19+'Comm WH Storage 88% Cond'!BJ19+'Comm Custom'!BJ19+'Res .95+% Res Furnace - Replace'!BJ19+'New Home ES'!BJ19+'Low Flow Showerhead'!BJ19+'Programmable Thermostats'!BJ19+'New Residential 4'!BJ19+'New Residential 5'!BJ19+'Comm 95+% Furnace - Replace'!BJ19+'Comm Boiler (85%) Level 2'!BJ19+'Comm Boiler (85%) Level 3'!BJ19+'Comm Boiler (90%) Level 2'!BJ19+'Comm Boiler (90%) Level 3'!BJ19+'Comm LP&HP Steam Boilers - LV2'!BJ19+'Comm LP&HP Steam Boilers - LV3'!BJ19+'New Comm 1'!BJ19+'New Comm 2'!BJ19+'New Comm 3'!BJ19+'New Comm 4'!BJ19+'New Comm 5'!BJ19,0) -> 15142 | BL19: =ROUND('Res. 92-94% Res Furnace'!BL19+'Res .95+% Res Furnace - NEW'!BL19+'Res Boiler 85%'!BL19+'Res Boiler 90%'!BL19+'Res Furnace Tune-Up'!BL19+'Res Water Heating .62 EF'!BL19+'Res Water Heating .67 EF'!BL19+'Res Attic Insulation'!BL19+'Res Retrofit Bundle'!BL19+'Res New Home Bundle'!BL19+'Comm 92-94% Furnace'!BL19+'Comm 95+% Furnace - NEW'!BL19+'Comm Boiler (85%) Level 1'!BL19+'Comm Boiler (90%) Level 1'!BL19+'Comm LP&HP Steam Boilers - LV1'!BL19+'Comm WH .64 EF'!BL19+'Comm WH Storage 88% Cond'!BL19+'Comm Custom'!BL19+'Res .95+% Res Furnace - Replace'!BL19+'New Home ES'!BL19+'Low Flow Showerhead'!BL19+'Programmable Thermostats'!BL19+'New Residential 4'!BL19+'New Residential 5'!BL19+'Comm 95+% Furnace - Replace'!BL19+'Comm Boiler (85%) Level 2'!BL19+'Comm Boiler (85%) Level 3'!BL19+'Comm Boiler (90%) Level 2'!BL19+'Comm Boiler (90%) Level 3'!BL19+'Comm LP&HP Steam Boilers - LV2'!BL19+'Comm LP&HP Steam Boilers - LV3'!BL19+'New Comm 1'!BL19+'New Comm 2'!BL19+'New Comm 3'!BL19+'New Comm 4'!BL19+'New Comm 5'!BL19,0) -> 142699 | BN19: =ROUND('Res. 92-94% Res Furnace'!BN19+'Res .95+% Res Furnace - NEW'!BN19+'Res Boiler 85%'!BN19+'Res Boiler 90%'!BN19+'Res Furnace Tune-Up'!BN19+'Res Water Heating .62 EF'!BN19+'Res Water Heating .67 EF'!BN19+'Res Attic Insulation'!BN19+'Res Retrofit Bundle'!BN19+'Res New Home Bundle'!BN19+'Comm 92-94% Furnace'!BN19+'Comm 95+% Furnace - NEW'!BN19+'Comm Boiler (85%) Level 1'!BN19+'Comm Boiler (90%) Level 1'!BN19+'Comm LP&HP Steam Boilers - LV1'!BN19+'Comm WH .64 EF'!BN19+'Comm WH Storage 88% Cond'!BN19+'Comm Custom'!BN19+'Res .95+% Res Furnace - Replace'!BN19+'New Home ES'!BN19+'Low Flow Showerhead'!BN19+'Programmable Thermostats'!BN19+'New Residential 4'!BN19+'New Residential 5'!BN19+'Comm 95+% Furnace - Replace'!BN19+'Comm Boiler (85%) Level 2'!BN19+'Comm Boiler (85%) Level 3'!BN19+'Comm Boiler (90%) Level 2'!BN19+'Comm Boiler (90%) Level 3'!BN19+'Comm LP&HP Steam Boilers - LV2'!BN19+'Comm LP&HP Steam Boilers - LV3'!BN19+'New Comm 1'!BN19+'New Comm 2'!BN19+'New Comm 3'!BN19+'New Comm 4'!BN19+'New Comm 5'!BN19,0) -> 147732 | BP19: 290431 | BR19: =ROUND('Res. 92-94% Res Furnace'!BR19+'Res .95+% Res Furnace - NEW'!BR19+'Res Boiler 85%'!BR19+'Res Boiler 90%'!BR19+'Res Furnace Tune-Up'!BR19+'Res Water Heating .62 EF'!BR19+'Res Water Heating .67 EF'!BR19+'Res Attic Insulation'!BR19+'Res Retrofit Bundle'!BR19+'Res New Home Bundle'!BR19+'Comm 92-94% Furnace'!BR19+'Comm 95+% Furnace - NEW'!BR19+'Comm Boiler (85%) Level 1'!BR19+'Comm Boiler (90%) Level 1'!BR19+'Comm LP&HP Steam Boilers - LV1'!BR19+'Comm WH .64 EF'!BR19+'Comm WH Storage 88% Cond'!BR19+'Comm Custom'!BR19+'Res .95+% Res Furnace - Replace'!BR19+'New Home ES'!BR19+'Low Flow Showerhead'!BR19+'Programmable Thermostats'!BR19+'New Residential 4'!BR19+'New Residential 5'!BR19+'Comm 95+% Furnace - Replace'!BR19+'Comm Boiler (85%) Level 2'!BR19+'Comm Boiler (85%) Level 3'!BR19+'Comm Boiler (90%) Level 2'!BR19+'Comm Boiler (90%) Level 3'!BR19+'Comm LP&HP Steam Boilers - LV2'!BR19+'Comm LP&HP Steam Boilers - LV3'!BR19+'New Comm 1'!BR19+'New Comm 2'!BR19+'New Comm 3'!BR19+'New Comm 4'!BR19+'New Comm 5'!BR19,0) -> 0 | BT19: 290431 | BW19: 2020 | BX19: 77936 | BY19: 23468 | BZ19: 24760 | CA19: 126164 | CC19: 0 | CD19: 0 | CE19: 0 | CG19: 126164
A20: 4) Demand Cost ($/Unit/Yr) = | E20: 19) Participant Non-Energy Savings (Annual $/Part) = | J20: 7 | L20: 2021 | M20: =ROUND('Res. 92-94% Res Furnace'!M20+'Res .95+% Res Furnace - NEW'!M20+'Res Boiler 85%'!M20+'Res Boiler 90%'!M20+'Res Furnace Tune-Up'!M20+'Res Water Heating .62 EF'!M20+'Res Water Heating .67 EF'!M20+'Res Attic Insulation'!M20+'Res Retrofit Bundle'!M20+'Res New Home Bundle'!M20+'Comm 92-94% Furnace'!M20+'Comm 95+% Furnace - NEW'!M20+'Comm Boiler (85%) Level 1'!M20+'Comm Boiler (90%) Level 1'!M20+'Comm LP&HP Steam Boilers - LV1'!M20+'Comm WH .64 EF'!M20+'Comm WH Storage 88% Cond'!M20+'Comm Custom'!M20+'Res .95+% Res Furnace - Replace'!M20+'New Home ES'!M20+'Low Flow Showerhead'!M20+'Programmable Thermostats'!M20+'New Residential 4'!M20+'New Residential 5'!M20+'Comm 95+% Furnace - Replace'!M20+'Comm Boiler (85%) Level 2'!M20+'Comm Boiler (85%) Level 3'!M20+'Comm Boiler (90%) Level 2'!M20+'Comm Boiler (90%) Level 3'!M20+'Comm LP&HP Steam Boilers - LV2'!M20+'Comm LP&HP Steam Boilers - LV3'!M20+'New Comm 1'!M20+'New Comm 2'!M20+'New Comm 3'!M20+'New Comm 4'!M20+'New Comm 5'!M20,0) -> 15142 | O20: =ROUND('Res. 92-94% Res Furnace'!O20+'Res .95+% Res Furnace - NEW'!O20+'Res Boiler 85%'!O20+'Res Boiler 90%'!O20+'Res Furnace Tune-Up'!O20+'Res Water Heating .62 EF'!O20+'Res Water Heating .67 EF'!O20+'Res Attic Insulation'!O20+'Res Retrofit Bundle'!O20+'Res New Home Bundle'!O20+'Comm 92-94% Furnace'!O20+'Comm 95+% Furnace - NEW'!O20+'Comm Boiler (85%) Level 1'!O20+'Comm Boiler (90%) Level 1'!O20+'Comm LP&HP Steam Boilers - LV1'!O20+'Comm WH .64 EF'!O20+'Comm WH Storage 88% Cond'!O20+'Comm Custom'!O20+'Res .95+% Res Furnace - Replace'!O20+'New Home ES'!O20+'Low Flow Showerhead'!O20+'Programmable Thermostats'!O20+'New Residential 4'!O20+'New Residential 5'!O20+'Comm 95+% Furnace - Replace'!O20+'Comm Boiler (85%) Level 2'!O20+'Comm Boiler (85%) Level 3'!O20+'Comm Boiler (90%) Level 2'!O20+'Comm Boiler (90%) Level 3'!O20+'Comm LP&HP Steam Boilers - LV2'!O20+'Comm LP&HP Steam Boilers - LV3'!O20+'New Comm 1'!O20+'New Comm 2'!O20+'New Comm 3'!O20+'New Comm 4'!O20+'New Comm 5'!O20,0) -> 80662 | Q20: =ROUND('Res. 92-94% Res Furnace'!Q20+'Res .95+% Res Furnace - NEW'!Q20+'Res Boiler 85%'!Q20+'Res Boiler 90%'!Q20+'Res Furnace Tune-Up'!Q20+'Res Water Heating .62 EF'!Q20+'Res Water Heating .67 EF'!Q20+'Res Attic Insulation'!Q20+'Res Retrofit Bundle'!Q20+'Res New Home Bundle'!Q20+'Comm 92-94% Furnace'!Q20+'Comm 95+% Furnace - NEW'!Q20+'Comm Boiler (85%) Level 1'!Q20+'Comm Boiler (90%) Level 1'!Q20+'Comm LP&HP Steam Boilers - LV1'!Q20+'Comm WH .64 EF'!Q20+'Comm WH Storage 88% Cond'!Q20+'Comm Custom'!Q20+'Res .95+% Res Furnace - Replace'!Q20+'New Home ES'!Q20+'Low Flow Showerhead'!Q20+'Programmable Thermostats'!Q20+'New Residential 4'!Q20+'New Residential 5'!Q20+'Comm 95+% Furnace - Replace'!Q20+'Comm Boiler (85%) Level 2'!Q20+'Comm Boiler (85%) Level 3'!Q20+'Comm Boiler (90%) Level 2'!Q20+'Comm Boiler (90%) Level 3'!Q20+'Comm LP&HP Steam Boilers - LV2'!Q20+'Comm LP&HP Steam Boilers - LV3'!Q20+'New Comm 1'!Q20+'New Comm 2'!Q20+'New Comm 3'!Q20+'New Comm 4'!Q20+'New Comm 5'!Q20,0) -> 0 | R20: =ROUND('Res. 92-94% Res Furnace'!R20+'Res .95+% Res Furnace - NEW'!R20+'Res Boiler 85%'!R20+'Res Boiler 90%'!R20+'Res Furnace Tune-Up'!R20+'Res Water Heating .62 EF'!R20+'Res Water Heating .67 EF'!R20+'Res Attic Insulation'!R20+'Res Retrofit Bundle'!R20+'Res New Home Bundle'!R20+'Comm 92-94% Furnace'!R20+'Comm 95+% Furnace - NEW'!R20+'Comm Boiler (85%) Level 1'!R20+'Comm Boiler (90%) Level 1'!R20+'Comm LP&HP Steam Boilers - LV1'!R20+'Comm WH .64 EF'!R20+'Comm WH Storage 88% Cond'!R20+'Comm Custom'!R20+'Res .95+% Res Furnace - Replace'!R20+'New Home ES'!R20+'Low Flow Showerhead'!R20+'Programmable Thermostats'!R20+'New Residential 4'!R20+'New Residential 5'!R20+'Comm 95+% Furnace - Replace'!R20+'Comm Boiler (85%) Level 2'!R20+'Comm Boiler (85%) Level 3'!R20+'Comm Boiler (90%) Level 2'!R20+'Comm Boiler (90%) Level 3'!R20+'Comm LP&HP Steam Boilers - LV2'!R20+'Comm LP&HP Steam Boilers - LV3'!R20+'New Comm 1'!R20+'New Comm 2'!R20+'New Comm 3'!R20+'New Comm 4'!R20+'New Comm 5'!R20,0) -> 80662 | S20: =ROUND('Res. 92-94% Res Furnace'!S20+'Res .95+% Res Furnace - NEW'!S20+'Res Boiler 85%'!S20+'Res Boiler 90%'!S20+'Res Furnace Tune-Up'!S20+'Res Water Heating .62 EF'!S20+'Res Water Heating .67 EF'!S20+'Res Attic Insulation'!S20+'Res Retrofit Bundle'!S20+'Res New Home Bundle'!S20+'Comm 92-94% Furnace'!S20+'Comm 95+% Furnace - NEW'!S20+'Comm Boiler (85%) Level 1'!S20+'Comm Boiler (90%) Level 1'!S20+'Comm LP&HP Steam Boilers - LV1'!S20+'Comm WH .64 EF'!S20+'Comm WH Storage 88% Cond'!S20+'Comm Custom'!S20+'Res .95+% Res Furnace - Replace'!S20+'New Home ES'!S20+'Low Flow Showerhead'!S20+'Programmable Thermostats'!S20+'New Residential 4'!S20+'New Residential 5'!S20+'Comm 95+% Furnace - Replace'!S20+'Comm Boiler (85%) Level 2'!S20+'Comm Boiler (85%) Level 3'!S20+'Comm Boiler (90%) Level 2'!S20+'Comm Boiler (90%) Level 3'!S20+'Comm LP&HP Steam Boilers - LV2'!S20+'Comm LP&HP Steam Boilers - LV3'!S20+'New Comm 1'!S20+'New Comm 2'!S20+'New Comm 3'!S20+'New Comm 4'!S20+'New Comm 5'!S20,0) -> 151 | U20: =ROUND('Res. 92-94% Res Furnace'!U20+'Res .95+% Res Furnace - NEW'!U20+'Res Boiler 85%'!U20+'Res Boiler 90%'!U20+'Res Furnace Tune-Up'!U20+'Res Water Heating .62 EF'!U20+'Res Water Heating .67 EF'!U20+'Res Attic Insulation'!U20+'Res Retrofit Bundle'!U20+'Res New Home Bundle'!U20+'Comm 92-94% Furnace'!U20+'Comm 95+% Furnace - NEW'!U20+'Comm Boiler (85%) Level 1'!U20+'Comm Boiler (90%) Level 1'!U20+'Comm LP&HP Steam Boilers - LV1'!U20+'Comm WH .64 EF'!U20+'Comm WH Storage 88% Cond'!U20+'Comm Custom'!U20+'Res .95+% Res Furnace - Replace'!U20+'New Home ES'!U20+'Low Flow Showerhead'!U20+'Programmable Thermostats'!U20+'New Residential 4'!U20+'New Residential 5'!U20+'Comm 95+% Furnace - Replace'!U20+'Comm Boiler (85%) Level 2'!U20+'Comm Boiler (85%) Level 3'!U20+'Comm Boiler (90%) Level 2'!U20+'Comm Boiler (90%) Level 3'!U20+'Comm LP&HP Steam Boilers - LV2'!U20+'Comm LP&HP Steam Boilers - LV3'!U20+'New Comm 1'!U20+'New Comm 2'!U20+'New Comm 3'!U20+'New Comm 4'!U20+'New Comm 5'!U20,0) -> 23770 | V20: 104432 | X20: =ROUND('Res. 92-94% Res Furnace'!X20+'Res .95+% Res Furnace - NEW'!X20+'Res Boiler 85%'!X20+'Res Boiler 90%'!X20+'Res Furnace Tune-Up'!X20+'Res Water Heating .62 EF'!X20+'Res Water Heating .67 EF'!X20+'Res Attic Insulation'!X20+'Res Retrofit Bundle'!X20+'Res New Home Bundle'!X20+'Comm 92-94% Furnace'!X20+'Comm 95+% Furnace - NEW'!X20+'Comm Boiler (85%) Level 1'!X20+'Comm Boiler (90%) Level 1'!X20+'Comm LP&HP Steam Boilers - LV1'!X20+'Comm WH .64 EF'!X20+'Comm WH Storage 88% Cond'!X20+'Comm Custom'!X20+'Res .95+% Res Furnace - Replace'!X20+'New Home ES'!X20+'Low Flow Showerhead'!X20+'Programmable Thermostats'!X20+'New Residential 4'!X20+'New Residential 5'!X20+'Comm 95+% Furnace - Replace'!X20+'Comm Boiler (85%) Level 2'!X20+'Comm Boiler (85%) Level 3'!X20+'Comm Boiler (90%) Level 2'!X20+'Comm Boiler (90%) Level 3'!X20+'Comm LP&HP Steam Boilers - LV2'!X20+'Comm LP&HP Steam Boilers - LV3'!X20+'New Comm 1'!X20+'New Comm 2'!X20+'New Comm 3'!X20+'New Comm 4'!X20+'New Comm 5'!X20,0) -> 21534 | Y20: =ROUND('Res. 92-94% Res Furnace'!Y20+'Res .95+% Res Furnace - NEW'!Y20+'Res Boiler 85%'!Y20+'Res Boiler 90%'!Y20+'Res Furnace Tune-Up'!Y20+'Res Water Heating .62 EF'!Y20+'Res Water Heating .67 EF'!Y20+'Res Attic Insulation'!Y20+'Res Retrofit Bundle'!Y20+'Res New Home Bundle'!Y20+'Comm 92-94% Furnace'!Y20+'Comm 95+% Furnace - NEW'!Y20+'Comm Boiler (85%) Level 1'!Y20+'Comm Boiler (90%) Level 1'!Y20+'Comm LP&HP Steam Boilers - LV1'!Y20+'Comm WH .64 EF'!Y20+'Comm WH Storage 88% Cond'!Y20+'Comm Custom'!Y20+'Res .95+% Res Furnace - Replace'!Y20+'New Home ES'!Y20+'Low Flow Showerhead'!Y20+'Programmable Thermostats'!Y20+'New Residential 4'!Y20+'New Residential 5'!Y20+'Comm 95+% Furnace - Replace'!Y20+'Comm Boiler (85%) Level 2'!Y20+'Comm Boiler (85%) Level 3'!Y20+'Comm Boiler (90%) Level 2'!Y20+'Comm Boiler (90%) Level 3'!Y20+'Comm LP&HP Steam Boilers - LV2'!Y20+'Comm LP&HP Steam Boilers - LV3'!Y20+'New Comm 1'!Y20+'New Comm 2'!Y20+'New Comm 3'!Y20+'New Comm 4'!Y20+'New Comm 5'!Y20,0) -> 0 | Z20: =ROUND('Res. 92-94% Res Furnace'!Z20+'Res .95+% Res Furnace - NEW'!Z20+'Res Boiler 85%'!Z20+'Res Boiler 90%'!Z20+'Res Furnace Tune-Up'!Z20+'Res Water Heating .62 EF'!Z20+'Res Water Heating .67 EF'!Z20+'Res Attic Insulation'!Z20+'Res Retrofit Bundle'!Z20+'Res New Home Bundle'!Z20+'Comm 92-94% Furnace'!Z20+'Comm 95+% Furnace - NEW'!Z20+'Comm Boiler (85%) Level 1'!Z20+'Comm Boiler (90%) Level 1'!Z20+'Comm LP&HP Steam Boilers - LV1'!Z20+'Comm WH .64 EF'!Z20+'Comm WH Storage 88% Cond'!Z20+'Comm Custom'!Z20+'Res .95+% Res Furnace - Replace'!Z20+'New Home ES'!Z20+'Low Flow Showerhead'!Z20+'Programmable Thermostats'!Z20+'New Residential 4'!Z20+'New Residential 5'!Z20+'Comm 95+% Furnace - Replace'!Z20+'Comm Boiler (85%) Level 2'!Z20+'Comm Boiler (85%) Level 3'!Z20+'Comm Boiler (90%) Level 2'!Z20+'Comm Boiler (90%) Level 3'!Z20+'Comm LP&HP Steam Boilers - LV2'!Z20+'Comm LP&HP Steam Boilers - LV3'!Z20+'New Comm 1'!Z20+'New Comm 2'!Z20+'New Comm 3'!Z20+'New Comm 4'!Z20+'New Comm 5'!Z20,0) -> 0 | AA20: 21534 | AB20: 82898 | AE20: 2021 | AF20: 80662 | AG20: 23770 | AH20: 104432 | AJ20: 0 | AK20: 0 | AL20: 0 | AN20: 104432 | AQ20: 2021 | AR20: 80662 | AS20: 23770 | AU20: =ROUND('Res. 92-94% Res Furnace'!AU20+'Res .95+% Res Furnace - NEW'!AU20+'Res Boiler 85%'!AU20+'Res Boiler 90%'!AU20+'Res Furnace Tune-Up'!AU20+'Res Water Heating .62 EF'!AU20+'Res Water Heating .67 EF'!AU20+'Res Attic Insulation'!AU20+'Res Retrofit Bundle'!AU20+'Res New Home Bundle'!AU20+'Comm 92-94% Furnace'!AU20+'Comm 95+% Furnace - NEW'!AU20+'Comm Boiler (85%) Level 1'!AU20+'Comm Boiler (90%) Level 1'!AU20+'Comm LP&HP Steam Boilers - LV1'!AU20+'Comm WH .64 EF'!AU20+'Comm WH Storage 88% Cond'!AU20+'Comm Custom'!AU20+'Res .95+% Res Furnace - Replace'!AU20+'New Home ES'!AU20+'Low Flow Showerhead'!AU20+'Programmable Thermostats'!AU20+'New Residential 4'!AU20+'New Residential 5'!AU20+'Comm 95+% Furnace - Replace'!AU20+'Comm Boiler (85%) Level 2'!AU20+'Comm Boiler (85%) Level 3'!AU20+'Comm Boiler (90%) Level 2'!AU20+'Comm Boiler (90%) Level 3'!AU20+'Comm LP&HP Steam Boilers - LV2'!AU20+'Comm LP&HP Steam Boilers - LV3'!AU20+'New Comm 1'!AU20+'New Comm 2'!AU20+'New Comm 3'!AU20+'New Comm 4'!AU20+'New Comm 5'!AU20,0) -> 25714 | AW20: =ROUND('Res. 92-94% Res Furnace'!AW20+'Res .95+% Res Furnace - NEW'!AW20+'Res Boiler 85%'!AW20+'Res Boiler 90%'!AW20+'Res Furnace Tune-Up'!AW20+'Res Water Heating .62 EF'!AW20+'Res Water Heating .67 EF'!AW20+'Res Attic Insulation'!AW20+'Res Retrofit Bundle'!AW20+'Res New Home Bundle'!AW20+'Comm 92-94% Furnace'!AW20+'Comm 95+% Furnace - NEW'!AW20+'Comm Boiler (85%) Level 1'!AW20+'Comm Boiler (90%) Level 1'!AW20+'Comm LP&HP Steam Boilers - LV1'!AW20+'Comm WH .64 EF'!AW20+'Comm WH Storage 88% Cond'!AW20+'Comm Custom'!AW20+'Res .95+% Res Furnace - Replace'!AW20+'New Home ES'!AW20+'Low Flow Showerhead'!AW20+'Programmable Thermostats'!AW20+'New Residential 4'!AW20+'New Residential 5'!AW20+'Comm 95+% Furnace - Replace'!AW20+'Comm Boiler (85%) Level 2'!AW20+'Comm Boiler (85%) Level 3'!AW20+'Comm Boiler (90%) Level 2'!AW20+'Comm Boiler (90%) Level 3'!AW20+'Comm LP&HP Steam Boilers - LV2'!AW20+'Comm LP&HP Steam Boilers - LV3'!AW20+'New Comm 1'!AW20+'New Comm 2'!AW20+'New Comm 3'!AW20+'New Comm 4'!AW20+'New Comm 5'!AW20,0) -> 6210 | AZ20: 136356 | BB20: =ROUND('Res. 92-94% Res Furnace'!BB20+'Res .95+% Res Furnace - NEW'!BB20+'Res Boiler 85%'!BB20+'Res Boiler 90%'!BB20+'Res Furnace Tune-Up'!BB20+'Res Water Heating .62 EF'!BB20+'Res Water Heating .67 EF'!BB20+'Res Attic Insulation'!BB20+'Res Retrofit Bundle'!BB20+'Res New Home Bundle'!BB20+'Comm 92-94% Furnace'!BB20+'Comm 95+% Furnace - NEW'!BB20+'Comm Boiler (85%) Level 1'!BB20+'Comm Boiler (90%) Level 1'!BB20+'Comm LP&HP Steam Boilers - LV1'!BB20+'Comm WH .64 EF'!BB20+'Comm WH Storage 88% Cond'!BB20+'Comm Custom'!BB20+'Res .95+% Res Furnace - Replace'!BB20+'New Home ES'!BB20+'Low Flow Showerhead'!BB20+'Programmable Thermostats'!BB20+'New Residential 4'!BB20+'New Residential 5'!BB20+'Comm 95+% Furnace - Replace'!BB20+'Comm Boiler (85%) Level 2'!BB20+'Comm Boiler (85%) Level 3'!BB20+'Comm Boiler (90%) Level 2'!BB20+'Comm Boiler (90%) Level 3'!BB20+'Comm LP&HP Steam Boilers - LV2'!BB20+'Comm LP&HP Steam Boilers - LV3'!BB20+'New Comm 1'!BB20+'New Comm 2'!BB20+'New Comm 3'!BB20+'New Comm 4'!BB20+'New Comm 5'!BB20,0) -> 0 | BC20: =ROUND('Res. 92-94% Res Furnace'!BC20+'Res .95+% Res Furnace - NEW'!BC20+'Res Boiler 85%'!BC20+'Res Boiler 90%'!BC20+'Res Furnace Tune-Up'!BC20+'Res Water Heating .62 EF'!BC20+'Res Water Heating .67 EF'!BC20+'Res Attic Insulation'!BC20+'Res Retrofit Bundle'!BC20+'Res New Home Bundle'!BC20+'Comm 92-94% Furnace'!BC20+'Comm 95+% Furnace - NEW'!BC20+'Comm Boiler (85%) Level 1'!BC20+'Comm Boiler (90%) Level 1'!BC20+'Comm LP&HP Steam Boilers - LV1'!BC20+'Comm WH .64 EF'!BC20+'Comm WH Storage 88% Cond'!BC20+'Comm Custom'!BC20+'Res .95+% Res Furnace - Replace'!BC20+'New Home ES'!BC20+'Low Flow Showerhead'!BC20+'Programmable Thermostats'!BC20+'New Residential 4'!BC20+'New Residential 5'!BC20+'Comm 95+% Furnace - Replace'!BC20+'Comm Boiler (85%) Level 2'!BC20+'Comm Boiler (85%) Level 3'!BC20+'Comm Boiler (90%) Level 2'!BC20+'Comm Boiler (90%) Level 3'!BC20+'Comm LP&HP Steam Boilers - LV2'!BC20+'Comm LP&HP Steam Boilers - LV3'!BC20+'New Comm 1'!BC20+'New Comm 2'!BC20+'New Comm 3'!BC20+'New Comm 4'!BC20+'New Comm 5'!BC20,0) -> 0 | BD20: 0 | BE20: 136356 | BH20: 2021 | BI20: =ROUND('Res. 92-94% Res Furnace'!BI20+'Res .95+% Res Furnace - NEW'!BI20+'Res Boiler 85%'!BI20+'Res Boiler 90%'!BI20+'Res Furnace Tune-Up'!BI20+'Res Water Heating .62 EF'!BI20+'Res Water Heating .67 EF'!BI20+'Res Attic Insulation'!BI20+'Res Retrofit Bundle'!BI20+'Res New Home Bundle'!BI20+'Comm 92-94% Furnace'!BI20+'Comm 95+% Furnace - NEW'!BI20+'Comm Boiler (85%) Level 1'!BI20+'Comm Boiler (90%) Level 1'!BI20+'Comm LP&HP Steam Boilers - LV1'!BI20+'Comm WH .64 EF'!BI20+'Comm WH Storage 88% Cond'!BI20+'Comm Custom'!BI20+'Res .95+% Res Furnace - Replace'!BI20+'New Home ES'!BI20+'Low Flow Showerhead'!BI20+'Programmable Thermostats'!BI20+'New Residential 4'!BI20+'New Residential 5'!BI20+'Comm 95+% Furnace - Replace'!BI20+'Comm Boiler (85%) Level 2'!BI20+'Comm Boiler (85%) Level 3'!BI20+'Comm Boiler (90%) Level 2'!BI20+'Comm Boiler (90%) Level 3'!BI20+'Comm LP&HP Steam Boilers - LV2'!BI20+'Comm LP&HP Steam Boilers - LV3'!BI20+'New Comm 1'!BI20+'New Comm 2'!BI20+'New Comm 3'!BI20+'New Comm 4'!BI20+'New Comm 5'!BI20,0) -> 0 | BJ20: =ROUND('Res. 92-94% Res Furnace'!BJ20+'Res .95+% Res Furnace - NEW'!BJ20+'Res Boiler 85%'!BJ20+'Res Boiler 90%'!BJ20+'Res Furnace Tune-Up'!BJ20+'Res Water Heating .62 EF'!BJ20+'Res Water Heating .67 EF'!BJ20+'Res Attic Insulation'!BJ20+'Res Retrofit Bundle'!BJ20+'Res New Home Bundle'!BJ20+'Comm 92-94% Furnace'!BJ20+'Comm 95+% Furnace - NEW'!BJ20+'Comm Boiler (85%) Level 1'!BJ20+'Comm Boiler (90%) Level 1'!BJ20+'Comm LP&HP Steam Boilers - LV1'!BJ20+'Comm WH .64 EF'!BJ20+'Comm WH Storage 88% Cond'!BJ20+'Comm Custom'!BJ20+'Res .95+% Res Furnace - Replace'!BJ20+'New Home ES'!BJ20+'Low Flow Showerhead'!BJ20+'Programmable Thermostats'!BJ20+'New Residential 4'!BJ20+'New Residential 5'!BJ20+'Comm 95+% Furnace - Replace'!BJ20+'Comm Boiler (85%) Level 2'!BJ20+'Comm Boiler (85%) Level 3'!BJ20+'Comm Boiler (90%) Level 2'!BJ20+'Comm Boiler (90%) Level 3'!BJ20+'Comm LP&HP Steam Boilers - LV2'!BJ20+'Comm LP&HP Steam Boilers - LV3'!BJ20+'New Comm 1'!BJ20+'New Comm 2'!BJ20+'New Comm 3'!BJ20+'New Comm 4'!BJ20+'New Comm 5'!BJ20,0) -> 15142 | BL20: =ROUND('Res. 92-94% Res Furnace'!BL20+'Res .95+% Res Furnace - NEW'!BL20+'Res Boiler 85%'!BL20+'Res Boiler 90%'!BL20+'Res Furnace Tune-Up'!BL20+'Res Water Heating .62 EF'!BL20+'Res Water Heating .67 EF'!BL20+'Res Attic Insulation'!BL20+'Res Retrofit Bundle'!BL20+'Res New Home Bundle'!BL20+'Comm 92-94% Furnace'!BL20+'Comm 95+% Furnace - NEW'!BL20+'Comm Boiler (85%) Level 1'!BL20+'Comm Boiler (90%) Level 1'!BL20+'Comm LP&HP Steam Boilers - LV1'!BL20+'Comm WH .64 EF'!BL20+'Comm WH Storage 88% Cond'!BL20+'Comm Custom'!BL20+'Res .95+% Res Furnace - Replace'!BL20+'New Home ES'!BL20+'Low Flow Showerhead'!BL20+'Programmable Thermostats'!BL20+'New Residential 4'!BL20+'New Residential 5'!BL20+'Comm 95+% Furnace - Replace'!BL20+'Comm Boiler (85%) Level 2'!BL20+'Comm Boiler (85%) Level 3'!BL20+'Comm Boiler (90%) Level 2'!BL20+'Comm Boiler (90%) Level 3'!BL20+'Comm LP&HP Steam Boilers - LV2'!BL20+'Comm LP&HP Steam Boilers - LV3'!BL20+'New Comm 1'!BL20+'New Comm 2'!BL20+'New Comm 3'!BL20+'New Comm 4'!BL20+'New Comm 5'!BL20,0) -> 147695 | BN20: =ROUND('Res. 92-94% Res Furnace'!BN20+'Res .95+% Res Furnace - NEW'!BN20+'Res Boiler 85%'!BN20+'Res Boiler 90%'!BN20+'Res Furnace Tune-Up'!BN20+'Res Water Heating .62 EF'!BN20+'Res Water Heating .67 EF'!BN20+'Res Attic Insulation'!BN20+'Res Retrofit Bundle'!BN20+'Res New Home Bundle'!BN20+'Comm 92-94% Furnace'!BN20+'Comm 95+% Furnace - NEW'!BN20+'Comm Boiler (85%) Level 1'!BN20+'Comm Boiler (90%) Level 1'!BN20+'Comm LP&HP Steam Boilers - LV1'!BN20+'Comm WH .64 EF'!BN20+'Comm WH Storage 88% Cond'!BN20+'Comm Custom'!BN20+'Res .95+% Res Furnace - Replace'!BN20+'New Home ES'!BN20+'Low Flow Showerhead'!BN20+'Programmable Thermostats'!BN20+'New Residential 4'!BN20+'New Residential 5'!BN20+'Comm 95+% Furnace - Replace'!BN20+'Comm Boiler (85%) Level 2'!BN20+'Comm Boiler (85%) Level 3'!BN20+'Comm Boiler (90%) Level 2'!BN20+'Comm Boiler (90%) Level 3'!BN20+'Comm LP&HP Steam Boilers - LV2'!BN20+'Comm LP&HP Steam Boilers - LV3'!BN20+'New Comm 1'!BN20+'New Comm 2'!BN20+'New Comm 3'!BN20+'New Comm 4'!BN20+'New Comm 5'!BN20,0) -> 153446 | BP20: 301141 | BR20: =ROUND('Res. 92-94% Res Furnace'!BR20+'Res .95+% Res Furnace - NEW'!BR20+'Res Boiler 85%'!BR20+'Res Boiler 90%'!BR20+'Res Furnace Tune-Up'!BR20+'Res Water Heating .62 EF'!BR20+'Res Water Heating .67 EF'!BR20+'Res Attic Insulation'!BR20+'Res Retrofit Bundle'!BR20+'Res New Home Bundle'!BR20+'Comm 92-94% Furnace'!BR20+'Comm 95+% Furnace - NEW'!BR20+'Comm Boiler (85%) Level 1'!BR20+'Comm Boiler (90%) Level 1'!BR20+'Comm LP&HP Steam Boilers - LV1'!BR20+'Comm WH .64 EF'!BR20+'Comm WH Storage 88% Cond'!BR20+'Comm Custom'!BR20+'Res .95+% Res Furnace - Replace'!BR20+'New Home ES'!BR20+'Low Flow Showerhead'!BR20+'Programmable Thermostats'!BR20+'New Residential 4'!BR20+'New Residential 5'!BR20+'Comm 95+% Furnace - Replace'!BR20+'Comm Boiler (85%) Level 2'!BR20+'Comm Boiler (85%) Level 3'!BR20+'Comm Boiler (90%) Level 2'!BR20+'Comm Boiler (90%) Level 3'!BR20+'Comm LP&HP Steam Boilers - LV2'!BR20+'Comm LP&HP Steam Boilers - LV3'!BR20+'New Comm 1'!BR20+'New Comm 2'!BR20+'New Comm 3'!BR20+'New Comm 4'!BR20+'New Comm 5'!BR20,0) -> 0 | BT20: 301141 | BW20: 2021 | BX20: 80662 | BY20: 23770 | BZ20: 25714 | CA20: 130146 | CC20: 0 | CD20: 0 | CE20: 0 | CG20: 130146
A21: Escalation Rate = | E21: Escalation Rate = | J21: 8 | L21: 2022 | M21: =ROUND('Res. 92-94% Res Furnace'!M21+'Res .95+% Res Furnace - NEW'!M21+'Res Boiler 85%'!M21+'Res Boiler 90%'!M21+'Res Furnace Tune-Up'!M21+'Res Water Heating .62 EF'!M21+'Res Water Heating .67 EF'!M21+'Res Attic Insulation'!M21+'Res Retrofit Bundle'!M21+'Res New Home Bundle'!M21+'Comm 92-94% Furnace'!M21+'Comm 95+% Furnace - NEW'!M21+'Comm Boiler (85%) Level 1'!M21+'Comm Boiler (90%) Level 1'!M21+'Comm LP&HP Steam Boilers - LV1'!M21+'Comm WH .64 EF'!M21+'Comm WH Storage 88% Cond'!M21+'Comm Custom'!M21+'Res .95+% Res Furnace - Replace'!M21+'New Home ES'!M21+'Low Flow Showerhead'!M21+'Programmable Thermostats'!M21+'New Residential 4'!M21+'New Residential 5'!M21+'Comm 95+% Furnace - Replace'!M21+'Comm Boiler (85%) Level 2'!M21+'Comm Boiler (85%) Level 3'!M21+'Comm Boiler (90%) Level 2'!M21+'Comm Boiler (90%) Level 3'!M21+'Comm LP&HP Steam Boilers - LV2'!M21+'Comm LP&HP Steam Boilers - LV3'!M21+'New Comm 1'!M21+'New Comm 2'!M21+'New Comm 3'!M21+'New Comm 4'!M21+'New Comm 5'!M21,0) -> 15142 | O21: =ROUND('Res. 92-94% Res Furnace'!O21+'Res .95+% Res Furnace - NEW'!O21+'Res Boiler 85%'!O21+'Res Boiler 90%'!O21+'Res Furnace Tune-Up'!O21+'Res Water Heating .62 EF'!O21+'Res Water Heating .67 EF'!O21+'Res Attic Insulation'!O21+'Res Retrofit Bundle'!O21+'Res New Home Bundle'!O21+'Comm 92-94% Furnace'!O21+'Comm 95+% Furnace - NEW'!O21+'Comm Boiler (85%) Level 1'!O21+'Comm Boiler (90%) Level 1'!O21+'Comm LP&HP Steam Boilers - LV1'!O21+'Comm WH .64 EF'!O21+'Comm WH Storage 88% Cond'!O21+'Comm Custom'!O21+'Res .95+% Res Furnace - Replace'!O21+'New Home ES'!O21+'Low Flow Showerhead'!O21+'Programmable Thermostats'!O21+'New Residential 4'!O21+'New Residential 5'!O21+'Comm 95+% Furnace - Replace'!O21+'Comm Boiler (85%) Level 2'!O21+'Comm Boiler (85%) Level 3'!O21+'Comm Boiler (90%) Level 2'!O21+'Comm Boiler (90%) Level 3'!O21+'Comm LP&HP Steam Boilers - LV2'!O21+'Comm LP&HP Steam Boilers - LV3'!O21+'New Comm 1'!O21+'New Comm 2'!O21+'New Comm 3'!O21+'New Comm 4'!O21+'New Comm 5'!O21,0) -> 83477 | Q21: =ROUND('Res. 92-94% Res Furnace'!Q21+'Res .95+% Res Furnace - NEW'!Q21+'Res Boiler 85%'!Q21+'Res Boiler 90%'!Q21+'Res Furnace Tune-Up'!Q21+'Res Water Heating .62 EF'!Q21+'Res Water Heating .67 EF'!Q21+'Res Attic Insulation'!Q21+'Res Retrofit Bundle'!Q21+'Res New Home Bundle'!Q21+'Comm 92-94% Furnace'!Q21+'Comm 95+% Furnace - NEW'!Q21+'Comm Boiler (85%) Level 1'!Q21+'Comm Boiler (90%) Level 1'!Q21+'Comm LP&HP Steam Boilers - LV1'!Q21+'Comm WH .64 EF'!Q21+'Comm WH Storage 88% Cond'!Q21+'Comm Custom'!Q21+'Res .95+% Res Furnace - Replace'!Q21+'New Home ES'!Q21+'Low Flow Showerhead'!Q21+'Programmable Thermostats'!Q21+'New Residential 4'!Q21+'New Residential 5'!Q21+'Comm 95+% Furnace - Replace'!Q21+'Comm Boiler (85%) Level 2'!Q21+'Comm Boiler (85%) Level 3'!Q21+'Comm Boiler (90%) Level 2'!Q21+'Comm Boiler (90%) Level 3'!Q21+'Comm LP&HP Steam Boilers - LV2'!Q21+'Comm LP&HP Steam Boilers - LV3'!Q21+'New Comm 1'!Q21+'New Comm 2'!Q21+'New Comm 3'!Q21+'New Comm 4'!Q21+'New Comm 5'!Q21,0) -> 0 | R21: =ROUND('Res. 92-94% Res Furnace'!R21+'Res .95+% Res Furnace - NEW'!R21+'Res Boiler 85%'!R21+'Res Boiler 90%'!R21+'Res Furnace Tune-Up'!R21+'Res Water Heating .62 EF'!R21+'Res Water Heating .67 EF'!R21+'Res Attic Insulation'!R21+'Res Retrofit Bundle'!R21+'Res New Home Bundle'!R21+'Comm 92-94% Furnace'!R21+'Comm 95+% Furnace - NEW'!R21+'Comm Boiler (85%) Level 1'!R21+'Comm Boiler (90%) Level 1'!R21+'Comm LP&HP Steam Boilers - LV1'!R21+'Comm WH .64 EF'!R21+'Comm WH Storage 88% Cond'!R21+'Comm Custom'!R21+'Res .95+% Res Furnace - Replace'!R21+'New Home ES'!R21+'Low Flow Showerhead'!R21+'Programmable Thermostats'!R21+'New Residential 4'!R21+'New Residential 5'!R21+'Comm 95+% Furnace - Replace'!R21+'Comm Boiler (85%) Level 2'!R21+'Comm Boiler (85%) Level 3'!R21+'Comm Boiler (90%) Level 2'!R21+'Comm Boiler (90%) Level 3'!R21+'Comm LP&HP Steam Boilers - LV2'!R21+'Comm LP&HP Steam Boilers - LV3'!R21+'New Comm 1'!R21+'New Comm 2'!R21+'New Comm 3'!R21+'New Comm 4'!R21+'New Comm 5'!R21,0) -> 83477 | S21: =ROUND('Res. 92-94% Res Furnace'!S21+'Res .95+% Res Furnace - NEW'!S21+'Res Boiler 85%'!S21+'Res Boiler 90%'!S21+'Res Furnace Tune-Up'!S21+'Res Water Heating .62 EF'!S21+'Res Water Heating .67 EF'!S21+'Res Attic Insulation'!S21+'Res Retrofit Bundle'!S21+'Res New Home Bundle'!S21+'Comm 92-94% Furnace'!S21+'Comm 95+% Furnace - NEW'!S21+'Comm Boiler (85%) Level 1'!S21+'Comm Boiler (90%) Level 1'!S21+'Comm LP&HP Steam Boilers - LV1'!S21+'Comm WH .64 EF'!S21+'Comm WH Storage 88% Cond'!S21+'Comm Custom'!S21+'Res .95+% Res Furnace - Replace'!S21+'New Home ES'!S21+'Low Flow Showerhead'!S21+'Programmable Thermostats'!S21+'New Residential 4'!S21+'New Residential 5'!S21+'Comm 95+% Furnace - Replace'!S21+'Comm Boiler (85%) Level 2'!S21+'Comm Boiler (85%) Level 3'!S21+'Comm Boiler (90%) Level 2'!S21+'Comm Boiler (90%) Level 3'!S21+'Comm LP&HP Steam Boilers - LV2'!S21+'Comm LP&HP Steam Boilers - LV3'!S21+'New Comm 1'!S21+'New Comm 2'!S21+'New Comm 3'!S21+'New Comm 4'!S21+'New Comm 5'!S21,0) -> 151 | U21: =ROUND('Res. 92-94% Res Furnace'!U21+'Res .95+% Res Furnace - NEW'!U21+'Res Boiler 85%'!U21+'Res Boiler 90%'!U21+'Res Furnace Tune-Up'!U21+'Res Water Heating .62 EF'!U21+'Res Water Heating .67 EF'!U21+'Res Attic Insulation'!U21+'Res Retrofit Bundle'!U21+'Res New Home Bundle'!U21+'Comm 92-94% Furnace'!U21+'Comm 95+% Furnace - NEW'!U21+'Comm Boiler (85%) Level 1'!U21+'Comm Boiler (90%) Level 1'!U21+'Comm LP&HP Steam Boilers - LV1'!U21+'Comm WH .64 EF'!U21+'Comm WH Storage 88% Cond'!U21+'Comm Custom'!U21+'Res .95+% Res Furnace - Replace'!U21+'New Home ES'!U21+'Low Flow Showerhead'!U21+'Programmable Thermostats'!U21+'New Residential 4'!U21+'New Residential 5'!U21+'Comm 95+% Furnace - Replace'!U21+'Comm Boiler (85%) Level 2'!U21+'Comm Boiler (85%) Level 3'!U21+'Comm Boiler (90%) Level 2'!U21+'Comm Boiler (90%) Level 3'!U21+'Comm LP&HP Steam Boilers - LV2'!U21+'Comm LP&HP Steam Boilers - LV3'!U21+'New Comm 1'!U21+'New Comm 2'!U21+'New Comm 3'!U21+'New Comm 4'!U21+'New Comm 5'!U21,0) -> 23922 | V21: 107399 | X21: =ROUND('Res. 92-94% Res Furnace'!X21+'Res .95+% Res Furnace - NEW'!X21+'Res Boiler 85%'!X21+'Res Boiler 90%'!X21+'Res Furnace Tune-Up'!X21+'Res Water Heating .62 EF'!X21+'Res Water Heating .67 EF'!X21+'Res Attic Insulation'!X21+'Res Retrofit Bundle'!X21+'Res New Home Bundle'!X21+'Comm 92-94% Furnace'!X21+'Comm 95+% Furnace - NEW'!X21+'Comm Boiler (85%) Level 1'!X21+'Comm Boiler (90%) Level 1'!X21+'Comm LP&HP Steam Boilers - LV1'!X21+'Comm WH .64 EF'!X21+'Comm WH Storage 88% Cond'!X21+'Comm Custom'!X21+'Res .95+% Res Furnace - Replace'!X21+'New Home ES'!X21+'Low Flow Showerhead'!X21+'Programmable Thermostats'!X21+'New Residential 4'!X21+'New Residential 5'!X21+'Comm 95+% Furnace - Replace'!X21+'Comm Boiler (85%) Level 2'!X21+'Comm Boiler (85%) Level 3'!X21+'Comm Boiler (90%) Level 2'!X21+'Comm Boiler (90%) Level 3'!X21+'Comm LP&HP Steam Boilers - LV2'!X21+'Comm LP&HP Steam Boilers - LV3'!X21+'New Comm 1'!X21+'New Comm 2'!X21+'New Comm 3'!X21+'New Comm 4'!X21+'New Comm 5'!X21,0) -> 22291 | Y21: =ROUND('Res. 92-94% Res Furnace'!Y21+'Res .95+% Res Furnace - NEW'!Y21+'Res Boiler 85%'!Y21+'Res Boiler 90%'!Y21+'Res Furnace Tune-Up'!Y21+'Res Water Heating .62 EF'!Y21+'Res Water Heating .67 EF'!Y21+'Res Attic Insulation'!Y21+'Res Retrofit Bundle'!Y21+'Res New Home Bundle'!Y21+'Comm 92-94% Furnace'!Y21+'Comm 95+% Furnace - NEW'!Y21+'Comm Boiler (85%) Level 1'!Y21+'Comm Boiler (90%) Level 1'!Y21+'Comm LP&HP Steam Boilers - LV1'!Y21+'Comm WH .64 EF'!Y21+'Comm WH Storage 88% Cond'!Y21+'Comm Custom'!Y21+'Res .95+% Res Furnace - Replace'!Y21+'New Home ES'!Y21+'Low Flow Showerhead'!Y21+'Programmable Thermostats'!Y21+'New Residential 4'!Y21+'New Residential 5'!Y21+'Comm 95+% Furnace - Replace'!Y21+'Comm Boiler (85%) Level 2'!Y21+'Comm Boiler (85%) Level 3'!Y21+'Comm Boiler (90%) Level 2'!Y21+'Comm Boiler (90%) Level 3'!Y21+'Comm LP&HP Steam Boilers - LV2'!Y21+'Comm LP&HP Steam Boilers - LV3'!Y21+'New Comm 1'!Y21+'New Comm 2'!Y21+'New Comm 3'!Y21+'New Comm 4'!Y21+'New Comm 5'!Y21,0) -> 0 | Z21: =ROUND('Res. 92-94% Res Furnace'!Z21+'Res .95+% Res Furnace - NEW'!Z21+'Res Boiler 85%'!Z21+'Res Boiler 90%'!Z21+'Res Furnace Tune-Up'!Z21+'Res Water Heating .62 EF'!Z21+'Res Water Heating .67 EF'!Z21+'Res Attic Insulation'!Z21+'Res Retrofit Bundle'!Z21+'Res New Home Bundle'!Z21+'Comm 92-94% Furnace'!Z21+'Comm 95+% Furnace - NEW'!Z21+'Comm Boiler (85%) Level 1'!Z21+'Comm Boiler (90%) Level 1'!Z21+'Comm LP&HP Steam Boilers - LV1'!Z21+'Comm WH .64 EF'!Z21+'Comm WH Storage 88% Cond'!Z21+'Comm Custom'!Z21+'Res .95+% Res Furnace - Replace'!Z21+'New Home ES'!Z21+'Low Flow Showerhead'!Z21+'Programmable Thermostats'!Z21+'New Residential 4'!Z21+'New Residential 5'!Z21+'Comm 95+% Furnace - Replace'!Z21+'Comm Boiler (85%) Level 2'!Z21+'Comm Boiler (85%) Level 3'!Z21+'Comm Boiler (90%) Level 2'!Z21+'Comm Boiler (90%) Level 3'!Z21+'Comm LP&HP Steam Boilers - LV2'!Z21+'Comm LP&HP Steam Boilers - LV3'!Z21+'New Comm 1'!Z21+'New Comm 2'!Z21+'New Comm 3'!Z21+'New Comm 4'!Z21+'New Comm 5'!Z21,0) -> 0 | AA21: 22291 | AB21: 85108 | AE21: 2022 | AF21: 83477 | AG21: 23922 | AH21: 107399 | AJ21: 0 | AK21: 0 | AL21: 0 | AN21: 107399 | AQ21: 2022 | AR21: 83477 | AS21: 23922 | AU21: =ROUND('Res. 92-94% Res Furnace'!AU21+'Res .95+% Res Furnace - NEW'!AU21+'Res Boiler 85%'!AU21+'Res Boiler 90%'!AU21+'Res Furnace Tune-Up'!AU21+'Res Water Heating .62 EF'!AU21+'Res Water Heating .67 EF'!AU21+'Res Attic Insulation'!AU21+'Res Retrofit Bundle'!AU21+'Res New Home Bundle'!AU21+'Comm 92-94% Furnace'!AU21+'Comm 95+% Furnace - NEW'!AU21+'Comm Boiler (85%) Level 1'!AU21+'Comm Boiler (90%) Level 1'!AU21+'Comm LP&HP Steam Boilers - LV1'!AU21+'Comm WH .64 EF'!AU21+'Comm WH Storage 88% Cond'!AU21+'Comm Custom'!AU21+'Res .95+% Res Furnace - Replace'!AU21+'New Home ES'!AU21+'Low Flow Showerhead'!AU21+'Programmable Thermostats'!AU21+'New Residential 4'!AU21+'New Residential 5'!AU21+'Comm 95+% Furnace - Replace'!AU21+'Comm Boiler (85%) Level 2'!AU21+'Comm Boiler (85%) Level 3'!AU21+'Comm Boiler (90%) Level 2'!AU21+'Comm Boiler (90%) Level 3'!AU21+'Comm LP&HP Steam Boilers - LV2'!AU21+'Comm LP&HP Steam Boilers - LV3'!AU21+'New Comm 1'!AU21+'New Comm 2'!AU21+'New Comm 3'!AU21+'New Comm 4'!AU21+'New Comm 5'!AU21,0) -> 26665 | AW21: =ROUND('Res. 92-94% Res Furnace'!AW21+'Res .95+% Res Furnace - NEW'!AW21+'Res Boiler 85%'!AW21+'Res Boiler 90%'!AW21+'Res Furnace Tune-Up'!AW21+'Res Water Heating .62 EF'!AW21+'Res Water Heating .67 EF'!AW21+'Res Attic Insulation'!AW21+'Res Retrofit Bundle'!AW21+'Res New Home Bundle'!AW21+'Comm 92-94% Furnace'!AW21+'Comm 95+% Furnace - NEW'!AW21+'Comm Boiler (85%) Level 1'!AW21+'Comm Boiler (90%) Level 1'!AW21+'Comm LP&HP Steam Boilers - LV1'!AW21+'Comm WH .64 EF'!AW21+'Comm WH Storage 88% Cond'!AW21+'Comm Custom'!AW21+'Res .95+% Res Furnace - Replace'!AW21+'New Home ES'!AW21+'Low Flow Showerhead'!AW21+'Programmable Thermostats'!AW21+'New Residential 4'!AW21+'New Residential 5'!AW21+'Comm 95+% Furnace - Replace'!AW21+'Comm Boiler (85%) Level 2'!AW21+'Comm Boiler (85%) Level 3'!AW21+'Comm Boiler (90%) Level 2'!AW21+'Comm Boiler (90%) Level 3'!AW21+'Comm LP&HP Steam Boilers - LV2'!AW21+'Comm LP&HP Steam Boilers - LV3'!AW21+'New Comm 1'!AW21+'New Comm 2'!AW21+'New Comm 3'!AW21+'New Comm 4'!AW21+'New Comm 5'!AW21,0) -> 6360 | AZ21: 140424 | BB21: =ROUND('Res. 92-94% Res Furnace'!BB21+'Res .95+% Res Furnace - NEW'!BB21+'Res Boiler 85%'!BB21+'Res Boiler 90%'!BB21+'Res Furnace Tune-Up'!BB21+'Res Water Heating .62 EF'!BB21+'Res Water Heating .67 EF'!BB21+'Res Attic Insulation'!BB21+'Res Retrofit Bundle'!BB21+'Res New Home Bundle'!BB21+'Comm 92-94% Furnace'!BB21+'Comm 95+% Furnace - NEW'!BB21+'Comm Boiler (85%) Level 1'!BB21+'Comm Boiler (90%) Level 1'!BB21+'Comm LP&HP Steam Boilers - LV1'!BB21+'Comm WH .64 EF'!BB21+'Comm WH Storage 88% Cond'!BB21+'Comm Custom'!BB21+'Res .95+% Res Furnace - Replace'!BB21+'New Home ES'!BB21+'Low Flow Showerhead'!BB21+'Programmable Thermostats'!BB21+'New Residential 4'!BB21+'New Residential 5'!BB21+'Comm 95+% Furnace - Replace'!BB21+'Comm Boiler (85%) Level 2'!BB21+'Comm Boiler (85%) Level 3'!BB21+'Comm Boiler (90%) Level 2'!BB21+'Comm Boiler (90%) Level 3'!BB21+'Comm LP&HP Steam Boilers - LV2'!BB21+'Comm LP&HP Steam Boilers - LV3'!BB21+'New Comm 1'!BB21+'New Comm 2'!BB21+'New Comm 3'!BB21+'New Comm 4'!BB21+'New Comm 5'!BB21,0) -> 0 | BC21: =ROUND('Res. 92-94% Res Furnace'!BC21+'Res .95+% Res Furnace - NEW'!BC21+'Res Boiler 85%'!BC21+'Res Boiler 90%'!BC21+'Res Furnace Tune-Up'!BC21+'Res Water Heating .62 EF'!BC21+'Res Water Heating .67 EF'!BC21+'Res Attic Insulation'!BC21+'Res Retrofit Bundle'!BC21+'Res New Home Bundle'!BC21+'Comm 92-94% Furnace'!BC21+'Comm 95+% Furnace - NEW'!BC21+'Comm Boiler (85%) Level 1'!BC21+'Comm Boiler (90%) Level 1'!BC21+'Comm LP&HP Steam Boilers - LV1'!BC21+'Comm WH .64 EF'!BC21+'Comm WH Storage 88% Cond'!BC21+'Comm Custom'!BC21+'Res .95+% Res Furnace - Replace'!BC21+'New Home ES'!BC21+'Low Flow Showerhead'!BC21+'Programmable Thermostats'!BC21+'New Residential 4'!BC21+'New Residential 5'!BC21+'Comm 95+% Furnace - Replace'!BC21+'Comm Boiler (85%) Level 2'!BC21+'Comm Boiler (85%) Level 3'!BC21+'Comm Boiler (90%) Level 2'!BC21+'Comm Boiler (90%) Level 3'!BC21+'Comm LP&HP Steam Boilers - LV2'!BC21+'Comm LP&HP Steam Boilers - LV3'!BC21+'New Comm 1'!BC21+'New Comm 2'!BC21+'New Comm 3'!BC21+'New Comm 4'!BC21+'New Comm 5'!BC21,0) -> 0 | BD21: 0 | BE21: 140424 | BH21: 2022 | BI21: =ROUND('Res. 92-94% Res Furnace'!BI21+'Res .95+% Res Furnace - NEW'!BI21+'Res Boiler 85%'!BI21+'Res Boiler 90%'!BI21+'Res Furnace Tune-Up'!BI21+'Res Water Heating .62 EF'!BI21+'Res Water Heating .67 EF'!BI21+'Res Attic Insulation'!BI21+'Res Retrofit Bundle'!BI21+'Res New Home Bundle'!BI21+'Comm 92-94% Furnace'!BI21+'Comm 95+% Furnace - NEW'!BI21+'Comm Boiler (85%) Level 1'!BI21+'Comm Boiler (90%) Level 1'!BI21+'Comm LP&HP Steam Boilers - LV1'!BI21+'Comm WH .64 EF'!BI21+'Comm WH Storage 88% Cond'!BI21+'Comm Custom'!BI21+'Res .95+% Res Furnace - Replace'!BI21+'New Home ES'!BI21+'Low Flow Showerhead'!BI21+'Programmable Thermostats'!BI21+'New Residential 4'!BI21+'New Residential 5'!BI21+'Comm 95+% Furnace - Replace'!BI21+'Comm Boiler (85%) Level 2'!BI21+'Comm Boiler (85%) Level 3'!BI21+'Comm Boiler (90%) Level 2'!BI21+'Comm Boiler (90%) Level 3'!BI21+'Comm LP&HP Steam Boilers - LV2'!BI21+'Comm LP&HP Steam Boilers - LV3'!BI21+'New Comm 1'!BI21+'New Comm 2'!BI21+'New Comm 3'!BI21+'New Comm 4'!BI21+'New Comm 5'!BI21,0) -> 0 | BJ21: =ROUND('Res. 92-94% Res Furnace'!BJ21+'Res .95+% Res Furnace - NEW'!BJ21+'Res Boiler 85%'!BJ21+'Res Boiler 90%'!BJ21+'Res Furnace Tune-Up'!BJ21+'Res Water Heating .62 EF'!BJ21+'Res Water Heating .67 EF'!BJ21+'Res Attic Insulation'!BJ21+'Res Retrofit Bundle'!BJ21+'Res New Home Bundle'!BJ21+'Comm 92-94% Furnace'!BJ21+'Comm 95+% Furnace - NEW'!BJ21+'Comm Boiler (85%) Level 1'!BJ21+'Comm Boiler (90%) Level 1'!BJ21+'Comm LP&HP Steam Boilers - LV1'!BJ21+'Comm WH .64 EF'!BJ21+'Comm WH Storage 88% Cond'!BJ21+'Comm Custom'!BJ21+'Res .95+% Res Furnace - Replace'!BJ21+'New Home ES'!BJ21+'Low Flow Showerhead'!BJ21+'Programmable Thermostats'!BJ21+'New Residential 4'!BJ21+'New Residential 5'!BJ21+'Comm 95+% Furnace - Replace'!BJ21+'Comm Boiler (85%) Level 2'!BJ21+'Comm Boiler (85%) Level 3'!BJ21+'Comm Boiler (90%) Level 2'!BJ21+'Comm Boiler (90%) Level 3'!BJ21+'Comm LP&HP Steam Boilers - LV2'!BJ21+'Comm LP&HP Steam Boilers - LV3'!BJ21+'New Comm 1'!BJ21+'New Comm 2'!BJ21+'New Comm 3'!BJ21+'New Comm 4'!BJ21+'New Comm 5'!BJ21,0) -> 15142 | BL21: =ROUND('Res. 92-94% Res Furnace'!BL21+'Res .95+% Res Furnace - NEW'!BL21+'Res Boiler 85%'!BL21+'Res Boiler 90%'!BL21+'Res Furnace Tune-Up'!BL21+'Res Water Heating .62 EF'!BL21+'Res Water Heating .67 EF'!BL21+'Res Attic Insulation'!BL21+'Res Retrofit Bundle'!BL21+'Res New Home Bundle'!BL21+'Comm 92-94% Furnace'!BL21+'Comm 95+% Furnace - NEW'!BL21+'Comm Boiler (85%) Level 1'!BL21+'Comm Boiler (90%) Level 1'!BL21+'Comm LP&HP Steam Boilers - LV1'!BL21+'Comm WH .64 EF'!BL21+'Comm WH Storage 88% Cond'!BL21+'Comm Custom'!BL21+'Res .95+% Res Furnace - Replace'!BL21+'New Home ES'!BL21+'Low Flow Showerhead'!BL21+'Programmable Thermostats'!BL21+'New Residential 4'!BL21+'New Residential 5'!BL21+'Comm 95+% Furnace - Replace'!BL21+'Comm Boiler (85%) Level 2'!BL21+'Comm Boiler (85%) Level 3'!BL21+'Comm Boiler (90%) Level 2'!BL21+'Comm Boiler (90%) Level 3'!BL21+'Comm LP&HP Steam Boilers - LV2'!BL21+'Comm LP&HP Steam Boilers - LV3'!BL21+'New Comm 1'!BL21+'New Comm 2'!BL21+'New Comm 3'!BL21+'New Comm 4'!BL21+'New Comm 5'!BL21,0) -> 152872 | BN21: =ROUND('Res. 92-94% Res Furnace'!BN21+'Res .95+% Res Furnace - NEW'!BN21+'Res Boiler 85%'!BN21+'Res Boiler 90%'!BN21+'Res Furnace Tune-Up'!BN21+'Res Water Heating .62 EF'!BN21+'Res Water Heating .67 EF'!BN21+'Res Attic Insulation'!BN21+'Res Retrofit Bundle'!BN21+'Res New Home Bundle'!BN21+'Comm 92-94% Furnace'!BN21+'Comm 95+% Furnace - NEW'!BN21+'Comm Boiler (85%) Level 1'!BN21+'Comm Boiler (90%) Level 1'!BN21+'Comm LP&HP Steam Boilers - LV1'!BN21+'Comm WH .64 EF'!BN21+'Comm WH Storage 88% Cond'!BN21+'Comm Custom'!BN21+'Res .95+% Res Furnace - Replace'!BN21+'New Home ES'!BN21+'Low Flow Showerhead'!BN21+'Programmable Thermostats'!BN21+'New Residential 4'!BN21+'New Residential 5'!BN21+'Comm 95+% Furnace - Replace'!BN21+'Comm Boiler (85%) Level 2'!BN21+'Comm Boiler (85%) Level 3'!BN21+'Comm Boiler (90%) Level 2'!BN21+'Comm Boiler (90%) Level 3'!BN21+'Comm LP&HP Steam Boilers - LV2'!BN21+'Comm LP&HP Steam Boilers - LV3'!BN21+'New Comm 1'!BN21+'New Comm 2'!BN21+'New Comm 3'!BN21+'New Comm 4'!BN21+'New Comm 5'!BN21,0) -> 158207 | BP21: 311079 | BR21: =ROUND('Res. 92-94% Res Furnace'!BR21+'Res .95+% Res Furnace - NEW'!BR21+'Res Boiler 85%'!BR21+'Res Boiler 90%'!BR21+'Res Furnace Tune-Up'!BR21+'Res Water Heating .62 EF'!BR21+'Res Water Heating .67 EF'!BR21+'Res Attic Insulation'!BR21+'Res Retrofit Bundle'!BR21+'Res New Home Bundle'!BR21+'Comm 92-94% Furnace'!BR21+'Comm 95+% Furnace - NEW'!BR21+'Comm Boiler (85%) Level 1'!BR21+'Comm Boiler (90%) Level 1'!BR21+'Comm LP&HP Steam Boilers - LV1'!BR21+'Comm WH .64 EF'!BR21+'Comm WH Storage 88% Cond'!BR21+'Comm Custom'!BR21+'Res .95+% Res Furnace - Replace'!BR21+'New Home ES'!BR21+'Low Flow Showerhead'!BR21+'Programmable Thermostats'!BR21+'New Residential 4'!BR21+'New Residential 5'!BR21+'Comm 95+% Furnace - Replace'!BR21+'Comm Boiler (85%) Level 2'!BR21+'Comm Boiler (85%) Level 3'!BR21+'Comm Boiler (90%) Level 2'!BR21+'Comm Boiler (90%) Level 3'!BR21+'Comm LP&HP Steam Boilers - LV2'!BR21+'Comm LP&HP Steam Boilers - LV3'!BR21+'New Comm 1'!BR21+'New Comm 2'!BR21+'New Comm 3'!BR21+'New Comm 4'!BR21+'New Comm 5'!BR21,0) -> 0 | BT21: 311079 | BW21: 2022 | BX21: 83477 | BY21: 23922 | BZ21: 26665 | CA21: 134064 | CC21: 0 | CD21: 0 | CE21: 0 | CG21: 134064 | DB21: =$J14 -> 1
J22: 9 | L22: 2023 | M22: =ROUND('Res. 92-94% Res Furnace'!M22+'Res .95+% Res Furnace - NEW'!M22+'Res Boiler 85%'!M22+'Res Boiler 90%'!M22+'Res Furnace Tune-Up'!M22+'Res Water Heating .62 EF'!M22+'Res Water Heating .67 EF'!M22+'Res Attic Insulation'!M22+'Res Retrofit Bundle'!M22+'Res New Home Bundle'!M22+'Comm 92-94% Furnace'!M22+'Comm 95+% Furnace - NEW'!M22+'Comm Boiler (85%) Level 1'!M22+'Comm Boiler (90%) Level 1'!M22+'Comm LP&HP Steam Boilers - LV1'!M22+'Comm WH .64 EF'!M22+'Comm WH Storage 88% Cond'!M22+'Comm Custom'!M22+'Res .95+% Res Furnace - Replace'!M22+'New Home ES'!M22+'Low Flow Showerhead'!M22+'Programmable Thermostats'!M22+'New Residential 4'!M22+'New Residential 5'!M22+'Comm 95+% Furnace - Replace'!M22+'Comm Boiler (85%) Level 2'!M22+'Comm Boiler (85%) Level 3'!M22+'Comm Boiler (90%) Level 2'!M22+'Comm Boiler (90%) Level 3'!M22+'Comm LP&HP Steam Boilers - LV2'!M22+'Comm LP&HP Steam Boilers - LV3'!M22+'New Comm 1'!M22+'New Comm 2'!M22+'New Comm 3'!M22+'New Comm 4'!M22+'New Comm 5'!M22,0) -> 15142 | O22: =ROUND('Res. 92-94% Res Furnace'!O22+'Res .95+% Res Furnace - NEW'!O22+'Res Boiler 85%'!O22+'Res Boiler 90%'!O22+'Res Furnace Tune-Up'!O22+'Res Water Heating .62 EF'!O22+'Res Water Heating .67 EF'!O22+'Res Attic Insulation'!O22+'Res Retrofit Bundle'!O22+'Res New Home Bundle'!O22+'Comm 92-94% Furnace'!O22+'Comm 95+% Furnace - NEW'!O22+'Comm Boiler (85%) Level 1'!O22+'Comm Boiler (90%) Level 1'!O22+'Comm LP&HP Steam Boilers - LV1'!O22+'Comm WH .64 EF'!O22+'Comm WH Storage 88% Cond'!O22+'Comm Custom'!O22+'Res .95+% Res Furnace - Replace'!O22+'New Home ES'!O22+'Low Flow Showerhead'!O22+'Programmable Thermostats'!O22+'New Residential 4'!O22+'New Residential 5'!O22+'Comm 95+% Furnace - Replace'!O22+'Comm Boiler (85%) Level 2'!O22+'Comm Boiler (85%) Level 3'!O22+'Comm Boiler (90%) Level 2'!O22+'Comm Boiler (90%) Level 3'!O22+'Comm LP&HP Steam Boilers - LV2'!O22+'Comm LP&HP Steam Boilers - LV3'!O22+'New Comm 1'!O22+'New Comm 2'!O22+'New Comm 3'!O22+'New Comm 4'!O22+'New Comm 5'!O22,0) -> 86401 | Q22: =ROUND('Res. 92-94% Res Furnace'!Q22+'Res .95+% Res Furnace - NEW'!Q22+'Res Boiler 85%'!Q22+'Res Boiler 90%'!Q22+'Res Furnace Tune-Up'!Q22+'Res Water Heating .62 EF'!Q22+'Res Water Heating .67 EF'!Q22+'Res Attic Insulation'!Q22+'Res Retrofit Bundle'!Q22+'Res New Home Bundle'!Q22+'Comm 92-94% Furnace'!Q22+'Comm 95+% Furnace - NEW'!Q22+'Comm Boiler (85%) Level 1'!Q22+'Comm Boiler (90%) Level 1'!Q22+'Comm LP&HP Steam Boilers - LV1'!Q22+'Comm WH .64 EF'!Q22+'Comm WH Storage 88% Cond'!Q22+'Comm Custom'!Q22+'Res .95+% Res Furnace - Replace'!Q22+'New Home ES'!Q22+'Low Flow Showerhead'!Q22+'Programmable Thermostats'!Q22+'New Residential 4'!Q22+'New Residential 5'!Q22+'Comm 95+% Furnace - Replace'!Q22+'Comm Boiler (85%) Level 2'!Q22+'Comm Boiler (85%) Level 3'!Q22+'Comm Boiler (90%) Level 2'!Q22+'Comm Boiler (90%) Level 3'!Q22+'Comm LP&HP Steam Boilers - LV2'!Q22+'Comm LP&HP Steam Boilers - LV3'!Q22+'New Comm 1'!Q22+'New Comm 2'!Q22+'New Comm 3'!Q22+'New Comm 4'!Q22+'New Comm 5'!Q22,0) -> 0 | R22: =ROUND('Res. 92-94% Res Furnace'!R22+'Res .95+% Res Furnace - NEW'!R22+'Res Boiler 85%'!R22+'Res Boiler 90%'!R22+'Res Furnace Tune-Up'!R22+'Res Water Heating .62 EF'!R22+'Res Water Heating .67 EF'!R22+'Res Attic Insulation'!R22+'Res Retrofit Bundle'!R22+'Res New Home Bundle'!R22+'Comm 92-94% Furnace'!R22+'Comm 95+% Furnace - NEW'!R22+'Comm Boiler (85%) Level 1'!R22+'Comm Boiler (90%) Level 1'!R22+'Comm LP&HP Steam Boilers - LV1'!R22+'Comm WH .64 EF'!R22+'Comm WH Storage 88% Cond'!R22+'Comm Custom'!R22+'Res .95+% Res Furnace - Replace'!R22+'New Home ES'!R22+'Low Flow Showerhead'!R22+'Programmable Thermostats'!R22+'New Residential 4'!R22+'New Residential 5'!R22+'Comm 95+% Furnace - Replace'!R22+'Comm Boiler (85%) Level 2'!R22+'Comm Boiler (85%) Level 3'!R22+'Comm Boiler (90%) Level 2'!R22+'Comm Boiler (90%) Level 3'!R22+'Comm LP&HP Steam Boilers - LV2'!R22+'Comm LP&HP Steam Boilers - LV3'!R22+'New Comm 1'!R22+'New Comm 2'!R22+'New Comm 3'!R22+'New Comm 4'!R22+'New Comm 5'!R22,0) -> 86401 | S22: =ROUND('Res. 92-94% Res Furnace'!S22+'Res .95+% Res Furnace - NEW'!S22+'Res Boiler 85%'!S22+'Res Boiler 90%'!S22+'Res Furnace Tune-Up'!S22+'Res Water Heating .62 EF'!S22+'Res Water Heating .67 EF'!S22+'Res Attic Insulation'!S22+'Res Retrofit Bundle'!S22+'Res New Home Bundle'!S22+'Comm 92-94% Furnace'!S22+'Comm 95+% Furnace - NEW'!S22+'Comm Boiler (85%) Level 1'!S22+'Comm Boiler (90%) Level 1'!S22+'Comm LP&HP Steam Boilers - LV1'!S22+'Comm WH .64 EF'!S22+'Comm WH Storage 88% Cond'!S22+'Comm Custom'!S22+'Res .95+% Res Furnace - Replace'!S22+'New Home ES'!S22+'Low Flow Showerhead'!S22+'Programmable Thermostats'!S22+'New Residential 4'!S22+'New Residential 5'!S22+'Comm 95+% Furnace - Replace'!S22+'Comm Boiler (85%) Level 2'!S22+'Comm Boiler (85%) Level 3'!S22+'Comm Boiler (90%) Level 2'!S22+'Comm Boiler (90%) Level 3'!S22+'Comm LP&HP Steam Boilers - LV2'!S22+'Comm LP&HP Steam Boilers - LV3'!S22+'New Comm 1'!S22+'New Comm 2'!S22+'New Comm 3'!S22+'New Comm 4'!S22+'New Comm 5'!S22,0) -> 151 | U22: =ROUND('Res. 92-94% Res Furnace'!U22+'Res .95+% Res Furnace - NEW'!U22+'Res Boiler 85%'!U22+'Res Boiler 90%'!U22+'Res Furnace Tune-Up'!U22+'Res Water Heating .62 EF'!U22+'Res Water Heating .67 EF'!U22+'Res Attic Insulation'!U22+'Res Retrofit Bundle'!U22+'Res New Home Bundle'!U22+'Comm 92-94% Furnace'!U22+'Comm 95+% Furnace - NEW'!U22+'Comm Boiler (85%) Level 1'!U22+'Comm Boiler (90%) Level 1'!U22+'Comm LP&HP Steam Boilers - LV1'!U22+'Comm WH .64 EF'!U22+'Comm WH Storage 88% Cond'!U22+'Comm Custom'!U22+'Res .95+% Res Furnace - Replace'!U22+'New Home ES'!U22+'Low Flow Showerhead'!U22+'Programmable Thermostats'!U22+'New Residential 4'!U22+'New Residential 5'!U22+'Comm 95+% Furnace - Replace'!U22+'Comm Boiler (85%) Level 2'!U22+'Comm Boiler (85%) Level 3'!U22+'Comm Boiler (90%) Level 2'!U22+'Comm Boiler (90%) Level 3'!U22+'Comm LP&HP Steam Boilers - LV2'!U22+'Comm LP&HP Steam Boilers - LV3'!U22+'New Comm 1'!U22+'New Comm 2'!U22+'New Comm 3'!U22+'New Comm 4'!U22+'New Comm 5'!U22,0) -> 24224 | V22: 110625 | X22: =ROUND('Res. 92-94% Res Furnace'!X22+'Res .95+% Res Furnace - NEW'!X22+'Res Boiler 85%'!X22+'Res Boiler 90%'!X22+'Res Furnace Tune-Up'!X22+'Res Water Heating .62 EF'!X22+'Res Water Heating .67 EF'!X22+'Res Attic Insulation'!X22+'Res Retrofit Bundle'!X22+'Res New Home Bundle'!X22+'Comm 92-94% Furnace'!X22+'Comm 95+% Furnace - NEW'!X22+'Comm Boiler (85%) Level 1'!X22+'Comm Boiler (90%) Level 1'!X22+'Comm LP&HP Steam Boilers - LV1'!X22+'Comm WH .64 EF'!X22+'Comm WH Storage 88% Cond'!X22+'Comm Custom'!X22+'Res .95+% Res Furnace - Replace'!X22+'New Home ES'!X22+'Low Flow Showerhead'!X22+'Programmable Thermostats'!X22+'New Residential 4'!X22+'New Residential 5'!X22+'Comm 95+% Furnace - Replace'!X22+'Comm Boiler (85%) Level 2'!X22+'Comm Boiler (85%) Level 3'!X22+'Comm Boiler (90%) Level 2'!X22+'Comm Boiler (90%) Level 3'!X22+'Comm LP&HP Steam Boilers - LV2'!X22+'Comm LP&HP Steam Boilers - LV3'!X22+'New Comm 1'!X22+'New Comm 2'!X22+'New Comm 3'!X22+'New Comm 4'!X22+'New Comm 5'!X22,0) -> 23068 | Y22: =ROUND('Res. 92-94% Res Furnace'!Y22+'Res .95+% Res Furnace - NEW'!Y22+'Res Boiler 85%'!Y22+'Res Boiler 90%'!Y22+'Res Furnace Tune-Up'!Y22+'Res Water Heating .62 EF'!Y22+'Res Water Heating .67 EF'!Y22+'Res Attic Insulation'!Y22+'Res Retrofit Bundle'!Y22+'Res New Home Bundle'!Y22+'Comm 92-94% Furnace'!Y22+'Comm 95+% Furnace - NEW'!Y22+'Comm Boiler (85%) Level 1'!Y22+'Comm Boiler (90%) Level 1'!Y22+'Comm LP&HP Steam Boilers - LV1'!Y22+'Comm WH .64 EF'!Y22+'Comm WH Storage 88% Cond'!Y22+'Comm Custom'!Y22+'Res .95+% Res Furnace - Replace'!Y22+'New Home ES'!Y22+'Low Flow Showerhead'!Y22+'Programmable Thermostats'!Y22+'New Residential 4'!Y22+'New Residential 5'!Y22+'Comm 95+% Furnace - Replace'!Y22+'Comm Boiler (85%) Level 2'!Y22+'Comm Boiler (85%) Level 3'!Y22+'Comm Boiler (90%) Level 2'!Y22+'Comm Boiler (90%) Level 3'!Y22+'Comm LP&HP Steam Boilers - LV2'!Y22+'Comm LP&HP Steam Boilers - LV3'!Y22+'New Comm 1'!Y22+'New Comm 2'!Y22+'New Comm 3'!Y22+'New Comm 4'!Y22+'New Comm 5'!Y22,0) -> 0 | Z22: =ROUND('Res. 92-94% Res Furnace'!Z22+'Res .95+% Res Furnace - NEW'!Z22+'Res Boiler 85%'!Z22+'Res Boiler 90%'!Z22+'Res Furnace Tune-Up'!Z22+'Res Water Heating .62 EF'!Z22+'Res Water Heating .67 EF'!Z22+'Res Attic Insulation'!Z22+'Res Retrofit Bundle'!Z22+'Res New Home Bundle'!Z22+'Comm 92-94% Furnace'!Z22+'Comm 95+% Furnace - NEW'!Z22+'Comm Boiler (85%) Level 1'!Z22+'Comm Boiler (90%) Level 1'!Z22+'Comm LP&HP Steam Boilers - LV1'!Z22+'Comm WH .64 EF'!Z22+'Comm WH Storage 88% Cond'!Z22+'Comm Custom'!Z22+'Res .95+% Res Furnace - Replace'!Z22+'New Home ES'!Z22+'Low Flow Showerhead'!Z22+'Programmable Thermostats'!Z22+'New Residential 4'!Z22+'New Residential 5'!Z22+'Comm 95+% Furnace - Replace'!Z22+'Comm Boiler (85%) Level 2'!Z22+'Comm Boiler (85%) Level 3'!Z22+'Comm Boiler (90%) Level 2'!Z22+'Comm Boiler (90%) Level 3'!Z22+'Comm LP&HP Steam Boilers - LV2'!Z22+'Comm LP&HP Steam Boilers - LV3'!Z22+'New Comm 1'!Z22+'New Comm 2'!Z22+'New Comm 3'!Z22+'New Comm 4'!Z22+'New Comm 5'!Z22,0) -> 0 | AA22: 23068 | AB22: 87557 | AE22: 2023 | AF22: 86401 | AG22: 24224 | AH22: 110625 | AJ22: 0 | AK22: 0 | AL22: 0 | AN22: 110625 | AQ22: 2023 | AR22: 86401 | AS22: 24224 | AU22: =ROUND('Res. 92-94% Res Furnace'!AU22+'Res .95+% Res Furnace - NEW'!AU22+'Res Boiler 85%'!AU22+'Res Boiler 90%'!AU22+'Res Furnace Tune-Up'!AU22+'Res Water Heating .62 EF'!AU22+'Res Water Heating .67 EF'!AU22+'Res Attic Insulation'!AU22+'Res Retrofit Bundle'!AU22+'Res New Home Bundle'!AU22+'Comm 92-94% Furnace'!AU22+'Comm 95+% Furnace - NEW'!AU22+'Comm Boiler (85%) Level 1'!AU22+'Comm Boiler (90%) Level 1'!AU22+'Comm LP&HP Steam Boilers - LV1'!AU22+'Comm WH .64 EF'!AU22+'Comm WH Storage 88% Cond'!AU22+'Comm Custom'!AU22+'Res .95+% Res Furnace - Replace'!AU22+'New Home ES'!AU22+'Low Flow Showerhead'!AU22+'Programmable Thermostats'!AU22+'New Residential 4'!AU22+'New Residential 5'!AU22+'Comm 95+% Furnace - Replace'!AU22+'Comm Boiler (85%) Level 2'!AU22+'Comm Boiler (85%) Level 3'!AU22+'Comm Boiler (90%) Level 2'!AU22+'Comm Boiler (90%) Level 3'!AU22+'Comm LP&HP Steam Boilers - LV2'!AU22+'Comm LP&HP Steam Boilers - LV3'!AU22+'New Comm 1'!AU22+'New Comm 2'!AU22+'New Comm 3'!AU22+'New Comm 4'!AU22+'New Comm 5'!AU22,0) -> 27617 | AW22: =ROUND('Res. 92-94% Res Furnace'!AW22+'Res .95+% Res Furnace - NEW'!AW22+'Res Boiler 85%'!AW22+'Res Boiler 90%'!AW22+'Res Furnace Tune-Up'!AW22+'Res Water Heating .62 EF'!AW22+'Res Water Heating .67 EF'!AW22+'Res Attic Insulation'!AW22+'Res Retrofit Bundle'!AW22+'Res New Home Bundle'!AW22+'Comm 92-94% Furnace'!AW22+'Comm 95+% Furnace - NEW'!AW22+'Comm Boiler (85%) Level 1'!AW22+'Comm Boiler (90%) Level 1'!AW22+'Comm LP&HP Steam Boilers - LV1'!AW22+'Comm WH .64 EF'!AW22+'Comm WH Storage 88% Cond'!AW22+'Comm Custom'!AW22+'Res .95+% Res Furnace - Replace'!AW22+'New Home ES'!AW22+'Low Flow Showerhead'!AW22+'Programmable Thermostats'!AW22+'New Residential 4'!AW22+'New Residential 5'!AW22+'Comm 95+% Furnace - Replace'!AW22+'Comm Boiler (85%) Level 2'!AW22+'Comm Boiler (85%) Level 3'!AW22+'Comm Boiler (90%) Level 2'!AW22+'Comm Boiler (90%) Level 3'!AW22+'Comm LP&HP Steam Boilers - LV2'!AW22+'Comm LP&HP Steam Boilers - LV3'!AW22+'New Comm 1'!AW22+'New Comm 2'!AW22+'New Comm 3'!AW22+'New Comm 4'!AW22+'New Comm 5'!AW22,0) -> 6496 | AZ22: 144738 | BB22: =ROUND('Res. 92-94% Res Furnace'!BB22+'Res .95+% Res Furnace - NEW'!BB22+'Res Boiler 85%'!BB22+'Res Boiler 90%'!BB22+'Res Furnace Tune-Up'!BB22+'Res Water Heating .62 EF'!BB22+'Res Water Heating .67 EF'!BB22+'Res Attic Insulation'!BB22+'Res Retrofit Bundle'!BB22+'Res New Home Bundle'!BB22+'Comm 92-94% Furnace'!BB22+'Comm 95+% Furnace - NEW'!BB22+'Comm Boiler (85%) Level 1'!BB22+'Comm Boiler (90%) Level 1'!BB22+'Comm LP&HP Steam Boilers - LV1'!BB22+'Comm WH .64 EF'!BB22+'Comm WH Storage 88% Cond'!BB22+'Comm Custom'!BB22+'Res .95+% Res Furnace - Replace'!BB22+'New Home ES'!BB22+'Low Flow Showerhead'!BB22+'Programmable Thermostats'!BB22+'New Residential 4'!BB22+'New Residential 5'!BB22+'Comm 95+% Furnace - Replace'!BB22+'Comm Boiler (85%) Level 2'!BB22+'Comm Boiler (85%) Level 3'!BB22+'Comm Boiler (90%) Level 2'!BB22+'Comm Boiler (90%) Level 3'!BB22+'Comm LP&HP Steam Boilers - LV2'!BB22+'Comm LP&HP Steam Boilers - LV3'!BB22+'New Comm 1'!BB22+'New Comm 2'!BB22+'New Comm 3'!BB22+'New Comm 4'!BB22+'New Comm 5'!BB22,0) -> 0 | BC22: =ROUND('Res. 92-94% Res Furnace'!BC22+'Res .95+% Res Furnace - NEW'!BC22+'Res Boiler 85%'!BC22+'Res Boiler 90%'!BC22+'Res Furnace Tune-Up'!BC22+'Res Water Heating .62 EF'!BC22+'Res Water Heating .67 EF'!BC22+'Res Attic Insulation'!BC22+'Res Retrofit Bundle'!BC22+'Res New Home Bundle'!BC22+'Comm 92-94% Furnace'!BC22+'Comm 95+% Furnace - NEW'!BC22+'Comm Boiler (85%) Level 1'!BC22+'Comm Boiler (90%) Level 1'!BC22+'Comm LP&HP Steam Boilers - LV1'!BC22+'Comm WH .64 EF'!BC22+'Comm WH Storage 88% Cond'!BC22+'Comm Custom'!BC22+'Res .95+% Res Furnace - Replace'!BC22+'New Home ES'!BC22+'Low Flow Showerhead'!BC22+'Programmable Thermostats'!BC22+'New Residential 4'!BC22+'New Residential 5'!BC22+'Comm 95+% Furnace - Replace'!BC22+'Comm Boiler (85%) Level 2'!BC22+'Comm Boiler (85%) Level 3'!BC22+'Comm Boiler (90%) Level 2'!BC22+'Comm Boiler (90%) Level 3'!BC22+'Comm LP&HP Steam Boilers - LV2'!BC22+'Comm LP&HP Steam Boilers - LV3'!BC22+'New Comm 1'!BC22+'New Comm 2'!BC22+'New Comm 3'!BC22+'New Comm 4'!BC22+'New Comm 5'!BC22,0) -> 0 | BD22: 0 | BE22: 144738 | BH22: 2023 | BI22: =ROUND('Res. 92-94% Res Furnace'!BI22+'Res .95+% Res Furnace - NEW'!BI22+'Res Boiler 85%'!BI22+'Res Boiler 90%'!BI22+'Res Furnace Tune-Up'!BI22+'Res Water Heating .62 EF'!BI22+'Res Water Heating .67 EF'!BI22+'Res Attic Insulation'!BI22+'Res Retrofit Bundle'!BI22+'Res New Home Bundle'!BI22+'Comm 92-94% Furnace'!BI22+'Comm 95+% Furnace - NEW'!BI22+'Comm Boiler (85%) Level 1'!BI22+'Comm Boiler (90%) Level 1'!BI22+'Comm LP&HP Steam Boilers - LV1'!BI22+'Comm WH .64 EF'!BI22+'Comm WH Storage 88% Cond'!BI22+'Comm Custom'!BI22+'Res .95+% Res Furnace - Replace'!BI22+'New Home ES'!BI22+'Low Flow Showerhead'!BI22+'Programmable Thermostats'!BI22+'New Residential 4'!BI22+'New Residential 5'!BI22+'Comm 95+% Furnace - Replace'!BI22+'Comm Boiler (85%) Level 2'!BI22+'Comm Boiler (85%) Level 3'!BI22+'Comm Boiler (90%) Level 2'!BI22+'Comm Boiler (90%) Level 3'!BI22+'Comm LP&HP Steam Boilers - LV2'!BI22+'Comm LP&HP Steam Boilers - LV3'!BI22+'New Comm 1'!BI22+'New Comm 2'!BI22+'New Comm 3'!BI22+'New Comm 4'!BI22+'New Comm 5'!BI22,0) -> 0 | BJ22: =ROUND('Res. 92-94% Res Furnace'!BJ22+'Res .95+% Res Furnace - NEW'!BJ22+'Res Boiler 85%'!BJ22+'Res Boiler 90%'!BJ22+'Res Furnace Tune-Up'!BJ22+'Res Water Heating .62 EF'!BJ22+'Res Water Heating .67 EF'!BJ22+'Res Attic Insulation'!BJ22+'Res Retrofit Bundle'!BJ22+'Res New Home Bundle'!BJ22+'Comm 92-94% Furnace'!BJ22+'Comm 95+% Furnace - NEW'!BJ22+'Comm Boiler (85%) Level 1'!BJ22+'Comm Boiler (90%) Level 1'!BJ22+'Comm LP&HP Steam Boilers - LV1'!BJ22+'Comm WH .64 EF'!BJ22+'Comm WH Storage 88% Cond'!BJ22+'Comm Custom'!BJ22+'Res .95+% Res Furnace - Replace'!BJ22+'New Home ES'!BJ22+'Low Flow Showerhead'!BJ22+'Programmable Thermostats'!BJ22+'New Residential 4'!BJ22+'New Residential 5'!BJ22+'Comm 95+% Furnace - Replace'!BJ22+'Comm Boiler (85%) Level 2'!BJ22+'Comm Boiler (85%) Level 3'!BJ22+'Comm Boiler (90%) Level 2'!BJ22+'Comm Boiler (90%) Level 3'!BJ22+'Comm LP&HP Steam Boilers - LV2'!BJ22+'Comm LP&HP Steam Boilers - LV3'!BJ22+'New Comm 1'!BJ22+'New Comm 2'!BJ22+'New Comm 3'!BJ22+'New Comm 4'!BJ22+'New Comm 5'!BJ22,0) -> 15142 | BL22: =ROUND('Res. 92-94% Res Furnace'!BL22+'Res .95+% Res Furnace - NEW'!BL22+'Res Boiler 85%'!BL22+'Res Boiler 90%'!BL22+'Res Furnace Tune-Up'!BL22+'Res Water Heating .62 EF'!BL22+'Res Water Heating .67 EF'!BL22+'Res Attic Insulation'!BL22+'Res Retrofit Bundle'!BL22+'Res New Home Bundle'!BL22+'Comm 92-94% Furnace'!BL22+'Comm 95+% Furnace - NEW'!BL22+'Comm Boiler (85%) Level 1'!BL22+'Comm Boiler (90%) Level 1'!BL22+'Comm LP&HP Steam Boilers - LV1'!BL22+'Comm WH .64 EF'!BL22+'Comm WH Storage 88% Cond'!BL22+'Comm Custom'!BL22+'Res .95+% Res Furnace - Replace'!BL22+'New Home ES'!BL22+'Low Flow Showerhead'!BL22+'Programmable Thermostats'!BL22+'New Residential 4'!BL22+'New Residential 5'!BL22+'Comm 95+% Furnace - Replace'!BL22+'Comm Boiler (85%) Level 2'!BL22+'Comm Boiler (85%) Level 3'!BL22+'Comm Boiler (90%) Level 2'!BL22+'Comm Boiler (90%) Level 3'!BL22+'Comm LP&HP Steam Boilers - LV2'!BL22+'Comm LP&HP Steam Boilers - LV3'!BL22+'New Comm 1'!BL22+'New Comm 2'!BL22+'New Comm 3'!BL22+'New Comm 4'!BL22+'New Comm 5'!BL22,0) -> 158215 | BN22: =ROUND('Res. 92-94% Res Furnace'!BN22+'Res .95+% Res Furnace - NEW'!BN22+'Res Boiler 85%'!BN22+'Res Boiler 90%'!BN22+'Res Furnace Tune-Up'!BN22+'Res Water Heating .62 EF'!BN22+'Res Water Heating .67 EF'!BN22+'Res Attic Insulation'!BN22+'Res Retrofit Bundle'!BN22+'Res New Home Bundle'!BN22+'Comm 92-94% Furnace'!BN22+'Comm 95+% Furnace - NEW'!BN22+'Comm Boiler (85%) Level 1'!BN22+'Comm Boiler (90%) Level 1'!BN22+'Comm LP&HP Steam Boilers - LV1'!BN22+'Comm WH .64 EF'!BN22+'Comm WH Storage 88% Cond'!BN22+'Comm Custom'!BN22+'Res .95+% Res Furnace - Replace'!BN22+'New Home ES'!BN22+'Low Flow Showerhead'!BN22+'Programmable Thermostats'!BN22+'New Residential 4'!BN22+'New Residential 5'!BN22+'Comm 95+% Furnace - Replace'!BN22+'Comm Boiler (85%) Level 2'!BN22+'Comm Boiler (85%) Level 3'!BN22+'Comm Boiler (90%) Level 2'!BN22+'Comm Boiler (90%) Level 3'!BN22+'Comm LP&HP Steam Boilers - LV2'!BN22+'Comm LP&HP Steam Boilers - LV3'!BN22+'New Comm 1'!BN22+'New Comm 2'!BN22+'New Comm 3'!BN22+'New Comm 4'!BN22+'New Comm 5'!BN22,0) -> 163921 | BP22: 322136 | BR22: =ROUND('Res. 92-94% Res Furnace'!BR22+'Res .95+% Res Furnace - NEW'!BR22+'Res Boiler 85%'!BR22+'Res Boiler 90%'!BR22+'Res Furnace Tune-Up'!BR22+'Res Water Heating .62 EF'!BR22+'Res Water Heating .67 EF'!BR22+'Res Attic Insulation'!BR22+'Res Retrofit Bundle'!BR22+'Res New Home Bundle'!BR22+'Comm 92-94% Furnace'!BR22+'Comm 95+% Furnace - NEW'!BR22+'Comm Boiler (85%) Level 1'!BR22+'Comm Boiler (90%) Level 1'!BR22+'Comm LP&HP Steam Boilers - LV1'!BR22+'Comm WH .64 EF'!BR22+'Comm WH Storage 88% Cond'!BR22+'Comm Custom'!BR22+'Res .95+% Res Furnace - Replace'!BR22+'New Home ES'!BR22+'Low Flow Showerhead'!BR22+'Programmable Thermostats'!BR22+'New Residential 4'!BR22+'New Residential 5'!BR22+'Comm 95+% Furnace - Replace'!BR22+'Comm Boiler (85%) Level 2'!BR22+'Comm Boiler (85%) Level 3'!BR22+'Comm Boiler (90%) Level 2'!BR22+'Comm Boiler (90%) Level 3'!BR22+'Comm LP&HP Steam Boilers - LV2'!BR22+'Comm LP&HP Steam Boilers - LV3'!BR22+'New Comm 1'!BR22+'New Comm 2'!BR22+'New Comm 3'!BR22+'New Comm 4'!BR22+'New Comm 5'!BR22,0) -> 0 | BT22: 322136 | BW22: 2023 | BX22: 86401 | BY22: 24224 | BZ22: 27617 | CA22: 138242 | CC22: 0 | CD22: 0 | CE22: 0 | CG22: 138242 | DB22: =$J15 -> 2
A23: 5) Peak Reduction Factor = | E23: 20) Project Life (Years) = | J23: 10 | L23: 2024 | M23: =ROUND('Res. 92-94% Res Furnace'!M23+'Res .95+% Res Furnace - NEW'!M23+'Res Boiler 85%'!M23+'Res Boiler 90%'!M23+'Res Furnace Tune-Up'!M23+'Res Water Heating .62 EF'!M23+'Res Water Heating .67 EF'!M23+'Res Attic Insulation'!M23+'Res Retrofit Bundle'!M23+'Res New Home Bundle'!M23+'Comm 92-94% Furnace'!M23+'Comm 95+% Furnace - NEW'!M23+'Comm Boiler (85%) Level 1'!M23+'Comm Boiler (90%) Level 1'!M23+'Comm LP&HP Steam Boilers - LV1'!M23+'Comm WH .64 EF'!M23+'Comm WH Storage 88% Cond'!M23+'Comm Custom'!M23+'Res .95+% Res Furnace - Replace'!M23+'New Home ES'!M23+'Low Flow Showerhead'!M23+'Programmable Thermostats'!M23+'New Residential 4'!M23+'New Residential 5'!M23+'Comm 95+% Furnace - Replace'!M23+'Comm Boiler (85%) Level 2'!M23+'Comm Boiler (85%) Level 3'!M23+'Comm Boiler (90%) Level 2'!M23+'Comm Boiler (90%) Level 3'!M23+'Comm LP&HP Steam Boilers - LV2'!M23+'Comm LP&HP Steam Boilers - LV3'!M23+'New Comm 1'!M23+'New Comm 2'!M23+'New Comm 3'!M23+'New Comm 4'!M23+'New Comm 5'!M23,0) -> 15142 | O23: =ROUND('Res. 92-94% Res Furnace'!O23+'Res .95+% Res Furnace - NEW'!O23+'Res Boiler 85%'!O23+'Res Boiler 90%'!O23+'Res Furnace Tune-Up'!O23+'Res Water Heating .62 EF'!O23+'Res Water Heating .67 EF'!O23+'Res Attic Insulation'!O23+'Res Retrofit Bundle'!O23+'Res New Home Bundle'!O23+'Comm 92-94% Furnace'!O23+'Comm 95+% Furnace - NEW'!O23+'Comm Boiler (85%) Level 1'!O23+'Comm Boiler (90%) Level 1'!O23+'Comm LP&HP Steam Boilers - LV1'!O23+'Comm WH .64 EF'!O23+'Comm WH Storage 88% Cond'!O23+'Comm Custom'!O23+'Res .95+% Res Furnace - Replace'!O23+'New Home ES'!O23+'Low Flow Showerhead'!O23+'Programmable Thermostats'!O23+'New Residential 4'!O23+'New Residential 5'!O23+'Comm 95+% Furnace - Replace'!O23+'Comm Boiler (85%) Level 2'!O23+'Comm Boiler (85%) Level 3'!O23+'Comm Boiler (90%) Level 2'!O23+'Comm Boiler (90%) Level 3'!O23+'Comm LP&HP Steam Boilers - LV2'!O23+'Comm LP&HP Steam Boilers - LV3'!O23+'New Comm 1'!O23+'New Comm 2'!O23+'New Comm 3'!O23+'New Comm 4'!O23+'New Comm 5'!O23,0) -> 89430 | Q23: =ROUND('Res. 92-94% Res Furnace'!Q23+'Res .95+% Res Furnace - NEW'!Q23+'Res Boiler 85%'!Q23+'Res Boiler 90%'!Q23+'Res Furnace Tune-Up'!Q23+'Res Water Heating .62 EF'!Q23+'Res Water Heating .67 EF'!Q23+'Res Attic Insulation'!Q23+'Res Retrofit Bundle'!Q23+'Res New Home Bundle'!Q23+'Comm 92-94% Furnace'!Q23+'Comm 95+% Furnace - NEW'!Q23+'Comm Boiler (85%) Level 1'!Q23+'Comm Boiler (90%) Level 1'!Q23+'Comm LP&HP Steam Boilers - LV1'!Q23+'Comm WH .64 EF'!Q23+'Comm WH Storage 88% Cond'!Q23+'Comm Custom'!Q23+'Res .95+% Res Furnace - Replace'!Q23+'New Home ES'!Q23+'Low Flow Showerhead'!Q23+'Programmable Thermostats'!Q23+'New Residential 4'!Q23+'New Residential 5'!Q23+'Comm 95+% Furnace - Replace'!Q23+'Comm Boiler (85%) Level 2'!Q23+'Comm Boiler (85%) Level 3'!Q23+'Comm Boiler (90%) Level 2'!Q23+'Comm Boiler (90%) Level 3'!Q23+'Comm LP&HP Steam Boilers - LV2'!Q23+'Comm LP&HP Steam Boilers - LV3'!Q23+'New Comm 1'!Q23+'New Comm 2'!Q23+'New Comm 3'!Q23+'New Comm 4'!Q23+'New Comm 5'!Q23,0) -> 0 | R23: =ROUND('Res. 92-94% Res Furnace'!R23+'Res .95+% Res Furnace - NEW'!R23+'Res Boiler 85%'!R23+'Res Boiler 90%'!R23+'Res Furnace Tune-Up'!R23+'Res Water Heating .62 EF'!R23+'Res Water Heating .67 EF'!R23+'Res Attic Insulation'!R23+'Res Retrofit Bundle'!R23+'Res New Home Bundle'!R23+'Comm 92-94% Furnace'!R23+'Comm 95+% Furnace - NEW'!R23+'Comm Boiler (85%) Level 1'!R23+'Comm Boiler (90%) Level 1'!R23+'Comm LP&HP Steam Boilers - LV1'!R23+'Comm WH .64 EF'!R23+'Comm WH Storage 88% Cond'!R23+'Comm Custom'!R23+'Res .95+% Res Furnace - Replace'!R23+'New Home ES'!R23+'Low Flow Showerhead'!R23+'Programmable Thermostats'!R23+'New Residential 4'!R23+'New Residential 5'!R23+'Comm 95+% Furnace - Replace'!R23+'Comm Boiler (85%) Level 2'!R23+'Comm Boiler (85%) Level 3'!R23+'Comm Boiler (90%) Level 2'!R23+'Comm Boiler (90%) Level 3'!R23+'Comm LP&HP Steam Boilers - LV2'!R23+'Comm LP&HP Steam Boilers - LV3'!R23+'New Comm 1'!R23+'New Comm 2'!R23+'New Comm 3'!R23+'New Comm 4'!R23+'New Comm 5'!R23,0) -> 89430 | S23: =ROUND('Res. 92-94% Res Furnace'!S23+'Res .95+% Res Furnace - NEW'!S23+'Res Boiler 85%'!S23+'Res Boiler 90%'!S23+'Res Furnace Tune-Up'!S23+'Res Water Heating .62 EF'!S23+'Res Water Heating .67 EF'!S23+'Res Attic Insulation'!S23+'Res Retrofit Bundle'!S23+'Res New Home Bundle'!S23+'Comm 92-94% Furnace'!S23+'Comm 95+% Furnace - NEW'!S23+'Comm Boiler (85%) Level 1'!S23+'Comm Boiler (90%) Level 1'!S23+'Comm LP&HP Steam Boilers - LV1'!S23+'Comm WH .64 EF'!S23+'Comm WH Storage 88% Cond'!S23+'Comm Custom'!S23+'Res .95+% Res Furnace - Replace'!S23+'New Home ES'!S23+'Low Flow Showerhead'!S23+'Programmable Thermostats'!S23+'New Residential 4'!S23+'New Residential 5'!S23+'Comm 95+% Furnace - Replace'!S23+'Comm Boiler (85%) Level 2'!S23+'Comm Boiler (85%) Level 3'!S23+'Comm Boiler (90%) Level 2'!S23+'Comm Boiler (90%) Level 3'!S23+'Comm LP&HP Steam Boilers - LV2'!S23+'Comm LP&HP Steam Boilers - LV3'!S23+'New Comm 1'!S23+'New Comm 2'!S23+'New Comm 3'!S23+'New Comm 4'!S23+'New Comm 5'!S23,0) -> 151 | U23: =ROUND('Res. 92-94% Res Furnace'!U23+'Res .95+% Res Furnace - NEW'!U23+'Res Boiler 85%'!U23+'Res Boiler 90%'!U23+'Res Furnace Tune-Up'!U23+'Res Water Heating .62 EF'!U23+'Res Water Heating .67 EF'!U23+'Res Attic Insulation'!U23+'Res Retrofit Bundle'!U23+'Res New Home Bundle'!U23+'Comm 92-94% Furnace'!U23+'Comm 95+% Furnace - NEW'!U23+'Comm Boiler (85%) Level 1'!U23+'Comm Boiler (90%) Level 1'!U23+'Comm LP&HP Steam Boilers - LV1'!U23+'Comm WH .64 EF'!U23+'Comm WH Storage 88% Cond'!U23+'Comm Custom'!U23+'Res .95+% Res Furnace - Replace'!U23+'New Home ES'!U23+'Low Flow Showerhead'!U23+'Programmable Thermostats'!U23+'New Residential 4'!U23+'New Residential 5'!U23+'Comm 95+% Furnace - Replace'!U23+'Comm Boiler (85%) Level 2'!U23+'Comm Boiler (85%) Level 3'!U23+'Comm Boiler (90%) Level 2'!U23+'Comm Boiler (90%) Level 3'!U23+'Comm LP&HP Steam Boilers - LV2'!U23+'Comm LP&HP Steam Boilers - LV3'!U23+'New Comm 1'!U23+'New Comm 2'!U23+'New Comm 3'!U23+'New Comm 4'!U23+'New Comm 5'!U23,0) -> 24526 | V23: 113956 | X23: =ROUND('Res. 92-94% Res Furnace'!X23+'Res .95+% Res Furnace - NEW'!X23+'Res Boiler 85%'!X23+'Res Boiler 90%'!X23+'Res Furnace Tune-Up'!X23+'Res Water Heating .62 EF'!X23+'Res Water Heating .67 EF'!X23+'Res Attic Insulation'!X23+'Res Retrofit Bundle'!X23+'Res New Home Bundle'!X23+'Comm 92-94% Furnace'!X23+'Comm 95+% Furnace - NEW'!X23+'Comm Boiler (85%) Level 1'!X23+'Comm Boiler (90%) Level 1'!X23+'Comm LP&HP Steam Boilers - LV1'!X23+'Comm WH .64 EF'!X23+'Comm WH Storage 88% Cond'!X23+'Comm Custom'!X23+'Res .95+% Res Furnace - Replace'!X23+'New Home ES'!X23+'Low Flow Showerhead'!X23+'Programmable Thermostats'!X23+'New Residential 4'!X23+'New Residential 5'!X23+'Comm 95+% Furnace - Replace'!X23+'Comm Boiler (85%) Level 2'!X23+'Comm Boiler (85%) Level 3'!X23+'Comm Boiler (90%) Level 2'!X23+'Comm Boiler (90%) Level 3'!X23+'Comm LP&HP Steam Boilers - LV2'!X23+'Comm LP&HP Steam Boilers - LV3'!X23+'New Comm 1'!X23+'New Comm 2'!X23+'New Comm 3'!X23+'New Comm 4'!X23+'New Comm 5'!X23,0) -> 23874 | Y23: =ROUND('Res. 92-94% Res Furnace'!Y23+'Res .95+% Res Furnace - NEW'!Y23+'Res Boiler 85%'!Y23+'Res Boiler 90%'!Y23+'Res Furnace Tune-Up'!Y23+'Res Water Heating .62 EF'!Y23+'Res Water Heating .67 EF'!Y23+'Res Attic Insulation'!Y23+'Res Retrofit Bundle'!Y23+'Res New Home Bundle'!Y23+'Comm 92-94% Furnace'!Y23+'Comm 95+% Furnace - NEW'!Y23+'Comm Boiler (85%) Level 1'!Y23+'Comm Boiler (90%) Level 1'!Y23+'Comm LP&HP Steam Boilers - LV1'!Y23+'Comm WH .64 EF'!Y23+'Comm WH Storage 88% Cond'!Y23+'Comm Custom'!Y23+'Res .95+% Res Furnace - Replace'!Y23+'New Home ES'!Y23+'Low Flow Showerhead'!Y23+'Programmable Thermostats'!Y23+'New Residential 4'!Y23+'New Residential 5'!Y23+'Comm 95+% Furnace - Replace'!Y23+'Comm Boiler (85%) Level 2'!Y23+'Comm Boiler (85%) Level 3'!Y23+'Comm Boiler (90%) Level 2'!Y23+'Comm Boiler (90%) Level 3'!Y23+'Comm LP&HP Steam Boilers - LV2'!Y23+'Comm LP&HP Steam Boilers - LV3'!Y23+'New Comm 1'!Y23+'New Comm 2'!Y23+'New Comm 3'!Y23+'New Comm 4'!Y23+'New Comm 5'!Y23,0) -> 0 | Z23: =ROUND('Res. 92-94% Res Furnace'!Z23+'Res .95+% Res Furnace - NEW'!Z23+'Res Boiler 85%'!Z23+'Res Boiler 90%'!Z23+'Res Furnace Tune-Up'!Z23+'Res Water Heating .62 EF'!Z23+'Res Water Heating .67 EF'!Z23+'Res Attic Insulation'!Z23+'Res Retrofit Bundle'!Z23+'Res New Home Bundle'!Z23+'Comm 92-94% Furnace'!Z23+'Comm 95+% Furnace - NEW'!Z23+'Comm Boiler (85%) Level 1'!Z23+'Comm Boiler (90%) Level 1'!Z23+'Comm LP&HP Steam Boilers - LV1'!Z23+'Comm WH .64 EF'!Z23+'Comm WH Storage 88% Cond'!Z23+'Comm Custom'!Z23+'Res .95+% Res Furnace - Replace'!Z23+'New Home ES'!Z23+'Low Flow Showerhead'!Z23+'Programmable Thermostats'!Z23+'New Residential 4'!Z23+'New Residential 5'!Z23+'Comm 95+% Furnace - Replace'!Z23+'Comm Boiler (85%) Level 2'!Z23+'Comm Boiler (85%) Level 3'!Z23+'Comm Boiler (90%) Level 2'!Z23+'Comm Boiler (90%) Level 3'!Z23+'Comm LP&HP Steam Boilers - LV2'!Z23+'Comm LP&HP Steam Boilers - LV3'!Z23+'New Comm 1'!Z23+'New Comm 2'!Z23+'New Comm 3'!Z23+'New Comm 4'!Z23+'New Comm 5'!Z23,0) -> 0 | AA23: 23874 | AB23: 90082 | AE23: 2024 | AF23: 89430 | AG23: 24526 | AH23: 113956 | AJ23: 0 | AK23: 0 | AL23: 0 | AN23: 113956 | AQ23: 2024 | AR23: 89430 | AS23: 24526 | AU23: =ROUND('Res. 92-94% Res Furnace'!AU23+'Res .95+% Res Furnace - NEW'!AU23+'Res Boiler 85%'!AU23+'Res Boiler 90%'!AU23+'Res Furnace Tune-Up'!AU23+'Res Water Heating .62 EF'!AU23+'Res Water Heating .67 EF'!AU23+'Res Attic Insulation'!AU23+'Res Retrofit Bundle'!AU23+'Res New Home Bundle'!AU23+'Comm 92-94% Furnace'!AU23+'Comm 95+% Furnace - NEW'!AU23+'Comm Boiler (85%) Level 1'!AU23+'Comm Boiler (90%) Level 1'!AU23+'Comm LP&HP Steam Boilers - LV1'!AU23+'Comm WH .64 EF'!AU23+'Comm WH Storage 88% Cond'!AU23+'Comm Custom'!AU23+'Res .95+% Res Furnace - Replace'!AU23+'New Home ES'!AU23+'Low Flow Showerhead'!AU23+'Programmable Thermostats'!AU23+'New Residential 4'!AU23+'New Residential 5'!AU23+'Comm 95+% Furnace - Replace'!AU23+'Comm Boiler (85%) Level 2'!AU23+'Comm Boiler (85%) Level 3'!AU23+'Comm Boiler (90%) Level 2'!AU23+'Comm Boiler (90%) Level 3'!AU23+'Comm LP&HP Steam Boilers - LV2'!AU23+'Comm LP&HP Steam Boilers - LV3'!AU23+'New Comm 1'!AU23+'New Comm 2'!AU23+'New Comm 3'!AU23+'New Comm 4'!AU23+'New Comm 5'!AU23,0) -> 28571 | AW23: =ROUND('Res. 92-94% Res Furnace'!AW23+'Res .95+% Res Furnace - NEW'!AW23+'Res Boiler 85%'!AW23+'Res Boiler 90%'!AW23+'Res Furnace Tune-Up'!AW23+'Res Water Heating .62 EF'!AW23+'Res Water Heating .67 EF'!AW23+'Res Attic Insulation'!AW23+'Res Retrofit Bundle'!AW23+'Res New Home Bundle'!AW23+'Comm 92-94% Furnace'!AW23+'Comm 95+% Furnace - NEW'!AW23+'Comm Boiler (85%) Level 1'!AW23+'Comm Boiler (90%) Level 1'!AW23+'Comm LP&HP Steam Boilers - LV1'!AW23+'Comm WH .64 EF'!AW23+'Comm WH Storage 88% Cond'!AW23+'Comm Custom'!AW23+'Res .95+% Res Furnace - Replace'!AW23+'New Home ES'!AW23+'Low Flow Showerhead'!AW23+'Programmable Thermostats'!AW23+'New Residential 4'!AW23+'New Residential 5'!AW23+'Comm 95+% Furnace - Replace'!AW23+'Comm Boiler (85%) Level 2'!AW23+'Comm Boiler (85%) Level 3'!AW23+'Comm Boiler (90%) Level 2'!AW23+'Comm Boiler (90%) Level 3'!AW23+'Comm LP&HP Steam Boilers - LV2'!AW23+'Comm LP&HP Steam Boilers - LV3'!AW23+'New Comm 1'!AW23+'New Comm 2'!AW23+'New Comm 3'!AW23+'New Comm 4'!AW23+'New Comm 5'!AW23,0) -> 6647 | AZ23: 149174 | BB23: =ROUND('Res. 92-94% Res Furnace'!BB23+'Res .95+% Res Furnace - NEW'!BB23+'Res Boiler 85%'!BB23+'Res Boiler 90%'!BB23+'Res Furnace Tune-Up'!BB23+'Res Water Heating .62 EF'!BB23+'Res Water Heating .67 EF'!BB23+'Res Attic Insulation'!BB23+'Res Retrofit Bundle'!BB23+'Res New Home Bundle'!BB23+'Comm 92-94% Furnace'!BB23+'Comm 95+% Furnace - NEW'!BB23+'Comm Boiler (85%) Level 1'!BB23+'Comm Boiler (90%) Level 1'!BB23+'Comm LP&HP Steam Boilers - LV1'!BB23+'Comm WH .64 EF'!BB23+'Comm WH Storage 88% Cond'!BB23+'Comm Custom'!BB23+'Res .95+% Res Furnace - Replace'!BB23+'New Home ES'!BB23+'Low Flow Showerhead'!BB23+'Programmable Thermostats'!BB23+'New Residential 4'!BB23+'New Residential 5'!BB23+'Comm 95+% Furnace - Replace'!BB23+'Comm Boiler (85%) Level 2'!BB23+'Comm Boiler (85%) Level 3'!BB23+'Comm Boiler (90%) Level 2'!BB23+'Comm Boiler (90%) Level 3'!BB23+'Comm LP&HP Steam Boilers - LV2'!BB23+'Comm LP&HP Steam Boilers - LV3'!BB23+'New Comm 1'!BB23+'New Comm 2'!BB23+'New Comm 3'!BB23+'New Comm 4'!BB23+'New Comm 5'!BB23,0) -> 0 | BC23: =ROUND('Res. 92-94% Res Furnace'!BC23+'Res .95+% Res Furnace - NEW'!BC23+'Res Boiler 85%'!BC23+'Res Boiler 90%'!BC23+'Res Furnace Tune-Up'!BC23+'Res Water Heating .62 EF'!BC23+'Res Water Heating .67 EF'!BC23+'Res Attic Insulation'!BC23+'Res Retrofit Bundle'!BC23+'Res New Home Bundle'!BC23+'Comm 92-94% Furnace'!BC23+'Comm 95+% Furnace - NEW'!BC23+'Comm Boiler (85%) Level 1'!BC23+'Comm Boiler (90%) Level 1'!BC23+'Comm LP&HP Steam Boilers - LV1'!BC23+'Comm WH .64 EF'!BC23+'Comm WH Storage 88% Cond'!BC23+'Comm Custom'!BC23+'Res .95+% Res Furnace - Replace'!BC23+'New Home ES'!BC23+'Low Flow Showerhead'!BC23+'Programmable Thermostats'!BC23+'New Residential 4'!BC23+'New Residential 5'!BC23+'Comm 95+% Furnace - Replace'!BC23+'Comm Boiler (85%) Level 2'!BC23+'Comm Boiler (85%) Level 3'!BC23+'Comm Boiler (90%) Level 2'!BC23+'Comm Boiler (90%) Level 3'!BC23+'Comm LP&HP Steam Boilers - LV2'!BC23+'Comm LP&HP Steam Boilers - LV3'!BC23+'New Comm 1'!BC23+'New Comm 2'!BC23+'New Comm 3'!BC23+'New Comm 4'!BC23+'New Comm 5'!BC23,0) -> 0 | BD23: 0 | BE23: 149174 | BH23: 2024 | BI23: =ROUND('Res. 92-94% Res Furnace'!BI23+'Res .95+% Res Furnace - NEW'!BI23+'Res Boiler 85%'!BI23+'Res Boiler 90%'!BI23+'Res Furnace Tune-Up'!BI23+'Res Water Heating .62 EF'!BI23+'Res Water Heating .67 EF'!BI23+'Res Attic Insulation'!BI23+'Res Retrofit Bundle'!BI23+'Res New Home Bundle'!BI23+'Comm 92-94% Furnace'!BI23+'Comm 95+% Furnace - NEW'!BI23+'Comm Boiler (85%) Level 1'!BI23+'Comm Boiler (90%) Level 1'!BI23+'Comm LP&HP Steam Boilers - LV1'!BI23+'Comm WH .64 EF'!BI23+'Comm WH Storage 88% Cond'!BI23+'Comm Custom'!BI23+'Res .95+% Res Furnace - Replace'!BI23+'New Home ES'!BI23+'Low Flow Showerhead'!BI23+'Programmable Thermostats'!BI23+'New Residential 4'!BI23+'New Residential 5'!BI23+'Comm 95+% Furnace - Replace'!BI23+'Comm Boiler (85%) Level 2'!BI23+'Comm Boiler (85%) Level 3'!BI23+'Comm Boiler (90%) Level 2'!BI23+'Comm Boiler (90%) Level 3'!BI23+'Comm LP&HP Steam Boilers - LV2'!BI23+'Comm LP&HP Steam Boilers - LV3'!BI23+'New Comm 1'!BI23+'New Comm 2'!BI23+'New Comm 3'!BI23+'New Comm 4'!BI23+'New Comm 5'!BI23,0) -> 0 | BJ23: =ROUND('Res. 92-94% Res Furnace'!BJ23+'Res .95+% Res Furnace - NEW'!BJ23+'Res Boiler 85%'!BJ23+'Res Boiler 90%'!BJ23+'Res Furnace Tune-Up'!BJ23+'Res Water Heating .62 EF'!BJ23+'Res Water Heating .67 EF'!BJ23+'Res Attic Insulation'!BJ23+'Res Retrofit Bundle'!BJ23+'Res New Home Bundle'!BJ23+'Comm 92-94% Furnace'!BJ23+'Comm 95+% Furnace - NEW'!BJ23+'Comm Boiler (85%) Level 1'!BJ23+'Comm Boiler (90%) Level 1'!BJ23+'Comm LP&HP Steam Boilers - LV1'!BJ23+'Comm WH .64 EF'!BJ23+'Comm WH Storage 88% Cond'!BJ23+'Comm Custom'!BJ23+'Res .95+% Res Furnace - Replace'!BJ23+'New Home ES'!BJ23+'Low Flow Showerhead'!BJ23+'Programmable Thermostats'!BJ23+'New Residential 4'!BJ23+'New Residential 5'!BJ23+'Comm 95+% Furnace - Replace'!BJ23+'Comm Boiler (85%) Level 2'!BJ23+'Comm Boiler (85%) Level 3'!BJ23+'Comm Boiler (90%) Level 2'!BJ23+'Comm Boiler (90%) Level 3'!BJ23+'Comm LP&HP Steam Boilers - LV2'!BJ23+'Comm LP&HP Steam Boilers - LV3'!BJ23+'New Comm 1'!BJ23+'New Comm 2'!BJ23+'New Comm 3'!BJ23+'New Comm 4'!BJ23+'New Comm 5'!BJ23,0) -> 15142 | BL23: =ROUND('Res. 92-94% Res Furnace'!BL23+'Res .95+% Res Furnace - NEW'!BL23+'Res Boiler 85%'!BL23+'Res Boiler 90%'!BL23+'Res Furnace Tune-Up'!BL23+'Res Water Heating .62 EF'!BL23+'Res Water Heating .67 EF'!BL23+'Res Attic Insulation'!BL23+'Res Retrofit Bundle'!BL23+'Res New Home Bundle'!BL23+'Comm 92-94% Furnace'!BL23+'Comm 95+% Furnace - NEW'!BL23+'Comm Boiler (85%) Level 1'!BL23+'Comm Boiler (90%) Level 1'!BL23+'Comm LP&HP Steam Boilers - LV1'!BL23+'Comm WH .64 EF'!BL23+'Comm WH Storage 88% Cond'!BL23+'Comm Custom'!BL23+'Res .95+% Res Furnace - Replace'!BL23+'New Home ES'!BL23+'Low Flow Showerhead'!BL23+'Programmable Thermostats'!BL23+'New Residential 4'!BL23+'New Residential 5'!BL23+'Comm 95+% Furnace - Replace'!BL23+'Comm Boiler (85%) Level 2'!BL23+'Comm Boiler (85%) Level 3'!BL23+'Comm Boiler (90%) Level 2'!BL23+'Comm Boiler (90%) Level 3'!BL23+'Comm LP&HP Steam Boilers - LV2'!BL23+'Comm LP&HP Steam Boilers - LV3'!BL23+'New Comm 1'!BL23+'New Comm 2'!BL23+'New Comm 3'!BL23+'New Comm 4'!BL23+'New Comm 5'!BL23,0) -> 163755 | BN23: =ROUND('Res. 92-94% Res Furnace'!BN23+'Res .95+% Res Furnace - NEW'!BN23+'Res Boiler 85%'!BN23+'Res Boiler 90%'!BN23+'Res Furnace Tune-Up'!BN23+'Res Water Heating .62 EF'!BN23+'Res Water Heating .67 EF'!BN23+'Res Attic Insulation'!BN23+'Res Retrofit Bundle'!BN23+'Res New Home Bundle'!BN23+'Comm 92-94% Furnace'!BN23+'Comm 95+% Furnace - NEW'!BN23+'Comm Boiler (85%) Level 1'!BN23+'Comm Boiler (90%) Level 1'!BN23+'Comm LP&HP Steam Boilers - LV1'!BN23+'Comm WH .64 EF'!BN23+'Comm WH Storage 88% Cond'!BN23+'Comm Custom'!BN23+'Res .95+% Res Furnace - Replace'!BN23+'New Home ES'!BN23+'Low Flow Showerhead'!BN23+'Programmable Thermostats'!BN23+'New Residential 4'!BN23+'New Residential 5'!BN23+'Comm 95+% Furnace - Replace'!BN23+'Comm Boiler (85%) Level 2'!BN23+'Comm Boiler (85%) Level 3'!BN23+'Comm Boiler (90%) Level 2'!BN23+'Comm Boiler (90%) Level 3'!BN23+'Comm LP&HP Steam Boilers - LV2'!BN23+'Comm LP&HP Steam Boilers - LV3'!BN23+'New Comm 1'!BN23+'New Comm 2'!BN23+'New Comm 3'!BN23+'New Comm 4'!BN23+'New Comm 5'!BN23,0) -> 169635 | BP23: 333390 | BR23: =ROUND('Res. 92-94% Res Furnace'!BR23+'Res .95+% Res Furnace - NEW'!BR23+'Res Boiler 85%'!BR23+'Res Boiler 90%'!BR23+'Res Furnace Tune-Up'!BR23+'Res Water Heating .62 EF'!BR23+'Res Water Heating .67 EF'!BR23+'Res Attic Insulation'!BR23+'Res Retrofit Bundle'!BR23+'Res New Home Bundle'!BR23+'Comm 92-94% Furnace'!BR23+'Comm 95+% Furnace - NEW'!BR23+'Comm Boiler (85%) Level 1'!BR23+'Comm Boiler (90%) Level 1'!BR23+'Comm LP&HP Steam Boilers - LV1'!BR23+'Comm WH .64 EF'!BR23+'Comm WH Storage 88% Cond'!BR23+'Comm Custom'!BR23+'Res .95+% Res Furnace - Replace'!BR23+'New Home ES'!BR23+'Low Flow Showerhead'!BR23+'Programmable Thermostats'!BR23+'New Residential 4'!BR23+'New Residential 5'!BR23+'Comm 95+% Furnace - Replace'!BR23+'Comm Boiler (85%) Level 2'!BR23+'Comm Boiler (85%) Level 3'!BR23+'Comm Boiler (90%) Level 2'!BR23+'Comm Boiler (90%) Level 3'!BR23+'Comm LP&HP Steam Boilers - LV2'!BR23+'Comm LP&HP Steam Boilers - LV3'!BR23+'New Comm 1'!BR23+'New Comm 2'!BR23+'New Comm 3'!BR23+'New Comm 4'!BR23+'New Comm 5'!BR23,0) -> 0 | BT23: 333390 | BW23: 2024 | BX23: 89430 | BY23: 24526 | BZ23: 28571 | CA23: 142527 | CC23: 0 | CD23: 0 | CE23: 0 | CG23: 142527 | DB23: =$J16 -> 3
J24: 11 | L24: 2025 | M24: =ROUND('Res. 92-94% Res Furnace'!M24+'Res .95+% Res Furnace - NEW'!M24+'Res Boiler 85%'!M24+'Res Boiler 90%'!M24+'Res Furnace Tune-Up'!M24+'Res Water Heating .62 EF'!M24+'Res Water Heating .67 EF'!M24+'Res Attic Insulation'!M24+'Res Retrofit Bundle'!M24+'Res New Home Bundle'!M24+'Comm 92-94% Furnace'!M24+'Comm 95+% Furnace - NEW'!M24+'Comm Boiler (85%) Level 1'!M24+'Comm Boiler (90%) Level 1'!M24+'Comm LP&HP Steam Boilers - LV1'!M24+'Comm WH .64 EF'!M24+'Comm WH Storage 88% Cond'!M24+'Comm Custom'!M24+'Res .95+% Res Furnace - Replace'!M24+'New Home ES'!M24+'Low Flow Showerhead'!M24+'Programmable Thermostats'!M24+'New Residential 4'!M24+'New Residential 5'!M24+'Comm 95+% Furnace - Replace'!M24+'Comm Boiler (85%) Level 2'!M24+'Comm Boiler (85%) Level 3'!M24+'Comm Boiler (90%) Level 2'!M24+'Comm Boiler (90%) Level 3'!M24+'Comm LP&HP Steam Boilers - LV2'!M24+'Comm LP&HP Steam Boilers - LV3'!M24+'New Comm 1'!M24+'New Comm 2'!M24+'New Comm 3'!M24+'New Comm 4'!M24+'New Comm 5'!M24,0) -> 14764 | O24: =ROUND('Res. 92-94% Res Furnace'!O24+'Res .95+% Res Furnace - NEW'!O24+'Res Boiler 85%'!O24+'Res Boiler 90%'!O24+'Res Furnace Tune-Up'!O24+'Res Water Heating .62 EF'!O24+'Res Water Heating .67 EF'!O24+'Res Attic Insulation'!O24+'Res Retrofit Bundle'!O24+'Res New Home Bundle'!O24+'Comm 92-94% Furnace'!O24+'Comm 95+% Furnace - NEW'!O24+'Comm Boiler (85%) Level 1'!O24+'Comm Boiler (90%) Level 1'!O24+'Comm LP&HP Steam Boilers - LV1'!O24+'Comm WH .64 EF'!O24+'Comm WH Storage 88% Cond'!O24+'Comm Custom'!O24+'Res .95+% Res Furnace - Replace'!O24+'New Home ES'!O24+'Low Flow Showerhead'!O24+'Programmable Thermostats'!O24+'New Residential 4'!O24+'New Residential 5'!O24+'Comm 95+% Furnace - Replace'!O24+'Comm Boiler (85%) Level 2'!O24+'Comm Boiler (85%) Level 3'!O24+'Comm Boiler (90%) Level 2'!O24+'Comm Boiler (90%) Level 3'!O24+'Comm LP&HP Steam Boilers - LV2'!O24+'Comm LP&HP Steam Boilers - LV3'!O24+'New Comm 1'!O24+'New Comm 2'!O24+'New Comm 3'!O24+'New Comm 4'!O24+'New Comm 5'!O24,0) -> 90253 | Q24: =ROUND('Res. 92-94% Res Furnace'!Q24+'Res .95+% Res Furnace - NEW'!Q24+'Res Boiler 85%'!Q24+'Res Boiler 90%'!Q24+'Res Furnace Tune-Up'!Q24+'Res Water Heating .62 EF'!Q24+'Res Water Heating .67 EF'!Q24+'Res Attic Insulation'!Q24+'Res Retrofit Bundle'!Q24+'Res New Home Bundle'!Q24+'Comm 92-94% Furnace'!Q24+'Comm 95+% Furnace - NEW'!Q24+'Comm Boiler (85%) Level 1'!Q24+'Comm Boiler (90%) Level 1'!Q24+'Comm LP&HP Steam Boilers - LV1'!Q24+'Comm WH .64 EF'!Q24+'Comm WH Storage 88% Cond'!Q24+'Comm Custom'!Q24+'Res .95+% Res Furnace - Replace'!Q24+'New Home ES'!Q24+'Low Flow Showerhead'!Q24+'Programmable Thermostats'!Q24+'New Residential 4'!Q24+'New Residential 5'!Q24+'Comm 95+% Furnace - Replace'!Q24+'Comm Boiler (85%) Level 2'!Q24+'Comm Boiler (85%) Level 3'!Q24+'Comm Boiler (90%) Level 2'!Q24+'Comm Boiler (90%) Level 3'!Q24+'Comm LP&HP Steam Boilers - LV2'!Q24+'Comm LP&HP Steam Boilers - LV3'!Q24+'New Comm 1'!Q24+'New Comm 2'!Q24+'New Comm 3'!Q24+'New Comm 4'!Q24+'New Comm 5'!Q24,0) -> 0 | R24: =ROUND('Res. 92-94% Res Furnace'!R24+'Res .95+% Res Furnace - NEW'!R24+'Res Boiler 85%'!R24+'Res Boiler 90%'!R24+'Res Furnace Tune-Up'!R24+'Res Water Heating .62 EF'!R24+'Res Water Heating .67 EF'!R24+'Res Attic Insulation'!R24+'Res Retrofit Bundle'!R24+'Res New Home Bundle'!R24+'Comm 92-94% Furnace'!R24+'Comm 95+% Furnace - NEW'!R24+'Comm Boiler (85%) Level 1'!R24+'Comm Boiler (90%) Level 1'!R24+'Comm LP&HP Steam Boilers - LV1'!R24+'Comm WH .64 EF'!R24+'Comm WH Storage 88% Cond'!R24+'Comm Custom'!R24+'Res .95+% Res Furnace - Replace'!R24+'New Home ES'!R24+'Low Flow Showerhead'!R24+'Programmable Thermostats'!R24+'New Residential 4'!R24+'New Residential 5'!R24+'Comm 95+% Furnace - Replace'!R24+'Comm Boiler (85%) Level 2'!R24+'Comm Boiler (85%) Level 3'!R24+'Comm Boiler (90%) Level 2'!R24+'Comm Boiler (90%) Level 3'!R24+'Comm LP&HP Steam Boilers - LV2'!R24+'Comm LP&HP Steam Boilers - LV3'!R24+'New Comm 1'!R24+'New Comm 2'!R24+'New Comm 3'!R24+'New Comm 4'!R24+'New Comm 5'!R24,0) -> 90253 | S24: =ROUND('Res. 92-94% Res Furnace'!S24+'Res .95+% Res Furnace - NEW'!S24+'Res Boiler 85%'!S24+'Res Boiler 90%'!S24+'Res Furnace Tune-Up'!S24+'Res Water Heating .62 EF'!S24+'Res Water Heating .67 EF'!S24+'Res Attic Insulation'!S24+'Res Retrofit Bundle'!S24+'Res New Home Bundle'!S24+'Comm 92-94% Furnace'!S24+'Comm 95+% Furnace - NEW'!S24+'Comm Boiler (85%) Level 1'!S24+'Comm Boiler (90%) Level 1'!S24+'Comm LP&HP Steam Boilers - LV1'!S24+'Comm WH .64 EF'!S24+'Comm WH Storage 88% Cond'!S24+'Comm Custom'!S24+'Res .95+% Res Furnace - Replace'!S24+'New Home ES'!S24+'Low Flow Showerhead'!S24+'Programmable Thermostats'!S24+'New Residential 4'!S24+'New Residential 5'!S24+'Comm 95+% Furnace - Replace'!S24+'Comm Boiler (85%) Level 2'!S24+'Comm Boiler (85%) Level 3'!S24+'Comm Boiler (90%) Level 2'!S24+'Comm Boiler (90%) Level 3'!S24+'Comm LP&HP Steam Boilers - LV2'!S24+'Comm LP&HP Steam Boilers - LV3'!S24+'New Comm 1'!S24+'New Comm 2'!S24+'New Comm 3'!S24+'New Comm 4'!S24+'New Comm 5'!S24,0) -> 148 | U24: =ROUND('Res. 92-94% Res Furnace'!U24+'Res .95+% Res Furnace - NEW'!U24+'Res Boiler 85%'!U24+'Res Boiler 90%'!U24+'Res Furnace Tune-Up'!U24+'Res Water Heating .62 EF'!U24+'Res Water Heating .67 EF'!U24+'Res Attic Insulation'!U24+'Res Retrofit Bundle'!U24+'Res New Home Bundle'!U24+'Comm 92-94% Furnace'!U24+'Comm 95+% Furnace - NEW'!U24+'Comm Boiler (85%) Level 1'!U24+'Comm Boiler (90%) Level 1'!U24+'Comm LP&HP Steam Boilers - LV1'!U24+'Comm WH .64 EF'!U24+'Comm WH Storage 88% Cond'!U24+'Comm Custom'!U24+'Res .95+% Res Furnace - Replace'!U24+'New Home ES'!U24+'Low Flow Showerhead'!U24+'Programmable Thermostats'!U24+'New Residential 4'!U24+'New Residential 5'!U24+'Comm 95+% Furnace - Replace'!U24+'Comm Boiler (85%) Level 2'!U24+'Comm Boiler (85%) Level 3'!U24+'Comm Boiler (90%) Level 2'!U24+'Comm Boiler (90%) Level 3'!U24+'Comm LP&HP Steam Boilers - LV2'!U24+'Comm LP&HP Steam Boilers - LV3'!U24+'New Comm 1'!U24+'New Comm 2'!U24+'New Comm 3'!U24+'New Comm 4'!U24+'New Comm 5'!U24,0) -> 24059 | V24: 114312 | X24: =ROUND('Res. 92-94% Res Furnace'!X24+'Res .95+% Res Furnace - NEW'!X24+'Res Boiler 85%'!X24+'Res Boiler 90%'!X24+'Res Furnace Tune-Up'!X24+'Res Water Heating .62 EF'!X24+'Res Water Heating .67 EF'!X24+'Res Attic Insulation'!X24+'Res Retrofit Bundle'!X24+'Res New Home Bundle'!X24+'Comm 92-94% Furnace'!X24+'Comm 95+% Furnace - NEW'!X24+'Comm Boiler (85%) Level 1'!X24+'Comm Boiler (90%) Level 1'!X24+'Comm LP&HP Steam Boilers - LV1'!X24+'Comm WH .64 EF'!X24+'Comm WH Storage 88% Cond'!X24+'Comm Custom'!X24+'Res .95+% Res Furnace - Replace'!X24+'New Home ES'!X24+'Low Flow Showerhead'!X24+'Programmable Thermostats'!X24+'New Residential 4'!X24+'New Residential 5'!X24+'Comm 95+% Furnace - Replace'!X24+'Comm Boiler (85%) Level 2'!X24+'Comm Boiler (85%) Level 3'!X24+'Comm Boiler (90%) Level 2'!X24+'Comm Boiler (90%) Level 3'!X24+'Comm LP&HP Steam Boilers - LV2'!X24+'Comm LP&HP Steam Boilers - LV3'!X24+'New Comm 1'!X24+'New Comm 2'!X24+'New Comm 3'!X24+'New Comm 4'!X24+'New Comm 5'!X24,0) -> 24084 | Y24: =ROUND('Res. 92-94% Res Furnace'!Y24+'Res .95+% Res Furnace - NEW'!Y24+'Res Boiler 85%'!Y24+'Res Boiler 90%'!Y24+'Res Furnace Tune-Up'!Y24+'Res Water Heating .62 EF'!Y24+'Res Water Heating .67 EF'!Y24+'Res Attic Insulation'!Y24+'Res Retrofit Bundle'!Y24+'Res New Home Bundle'!Y24+'Comm 92-94% Furnace'!Y24+'Comm 95+% Furnace - NEW'!Y24+'Comm Boiler (85%) Level 1'!Y24+'Comm Boiler (90%) Level 1'!Y24+'Comm LP&HP Steam Boilers - LV1'!Y24+'Comm WH .64 EF'!Y24+'Comm WH Storage 88% Cond'!Y24+'Comm Custom'!Y24+'Res .95+% Res Furnace - Replace'!Y24+'New Home ES'!Y24+'Low Flow Showerhead'!Y24+'Programmable Thermostats'!Y24+'New Residential 4'!Y24+'New Residential 5'!Y24+'Comm 95+% Furnace - Replace'!Y24+'Comm Boiler (85%) Level 2'!Y24+'Comm Boiler (85%) Level 3'!Y24+'Comm Boiler (90%) Level 2'!Y24+'Comm Boiler (90%) Level 3'!Y24+'Comm LP&HP Steam Boilers - LV2'!Y24+'Comm LP&HP Steam Boilers - LV3'!Y24+'New Comm 1'!Y24+'New Comm 2'!Y24+'New Comm 3'!Y24+'New Comm 4'!Y24+'New Comm 5'!Y24,0) -> 0 | Z24: =ROUND('Res. 92-94% Res Furnace'!Z24+'Res .95+% Res Furnace - NEW'!Z24+'Res Boiler 85%'!Z24+'Res Boiler 90%'!Z24+'Res Furnace Tune-Up'!Z24+'Res Water Heating .62 EF'!Z24+'Res Water Heating .67 EF'!Z24+'Res Attic Insulation'!Z24+'Res Retrofit Bundle'!Z24+'Res New Home Bundle'!Z24+'Comm 92-94% Furnace'!Z24+'Comm 95+% Furnace - NEW'!Z24+'Comm Boiler (85%) Level 1'!Z24+'Comm Boiler (90%) Level 1'!Z24+'Comm LP&HP Steam Boilers - LV1'!Z24+'Comm WH .64 EF'!Z24+'Comm WH Storage 88% Cond'!Z24+'Comm Custom'!Z24+'Res .95+% Res Furnace - Replace'!Z24+'New Home ES'!Z24+'Low Flow Showerhead'!Z24+'Programmable Thermostats'!Z24+'New Residential 4'!Z24+'New Residential 5'!Z24+'Comm 95+% Furnace - Replace'!Z24+'Comm Boiler (85%) Level 2'!Z24+'Comm Boiler (85%) Level 3'!Z24+'Comm Boiler (90%) Level 2'!Z24+'Comm Boiler (90%) Level 3'!Z24+'Comm LP&HP Steam Boilers - LV2'!Z24+'Comm LP&HP Steam Boilers - LV3'!Z24+'New Comm 1'!Z24+'New Comm 2'!Z24+'New Comm 3'!Z24+'New Comm 4'!Z24+'New Comm 5'!Z24,0) -> 0 | AA24: 24084 | AB24: 90228 | AE24: 2025 | AF24: 90253 | AG24: 24059 | AH24: 114312 | AJ24: 0 | AK24: 0 | AL24: 0 | AN24: 114312 | AQ24: 2025 | AR24: 90253 | AS24: 24059 | AU24: =ROUND('Res. 92-94% Res Furnace'!AU24+'Res .95+% Res Furnace - NEW'!AU24+'Res Boiler 85%'!AU24+'Res Boiler 90%'!AU24+'Res Furnace Tune-Up'!AU24+'Res Water Heating .62 EF'!AU24+'Res Water Heating .67 EF'!AU24+'Res Attic Insulation'!AU24+'Res Retrofit Bundle'!AU24+'Res New Home Bundle'!AU24+'Comm 92-94% Furnace'!AU24+'Comm 95+% Furnace - NEW'!AU24+'Comm Boiler (85%) Level 1'!AU24+'Comm Boiler (90%) Level 1'!AU24+'Comm LP&HP Steam Boilers - LV1'!AU24+'Comm WH .64 EF'!AU24+'Comm WH Storage 88% Cond'!AU24+'Comm Custom'!AU24+'Res .95+% Res Furnace - Replace'!AU24+'New Home ES'!AU24+'Low Flow Showerhead'!AU24+'Programmable Thermostats'!AU24+'New Residential 4'!AU24+'New Residential 5'!AU24+'Comm 95+% Furnace - Replace'!AU24+'Comm Boiler (85%) Level 2'!AU24+'Comm Boiler (85%) Level 3'!AU24+'Comm Boiler (90%) Level 2'!AU24+'Comm Boiler (90%) Level 3'!AU24+'Comm LP&HP Steam Boilers - LV2'!AU24+'Comm LP&HP Steam Boilers - LV3'!AU24+'New Comm 1'!AU24+'New Comm 2'!AU24+'New Comm 3'!AU24+'New Comm 4'!AU24+'New Comm 5'!AU24,0) -> 29522 | AW24: =ROUND('Res. 92-94% Res Furnace'!AW24+'Res .95+% Res Furnace - NEW'!AW24+'Res Boiler 85%'!AW24+'Res Boiler 90%'!AW24+'Res Furnace Tune-Up'!AW24+'Res Water Heating .62 EF'!AW24+'Res Water Heating .67 EF'!AW24+'Res Attic Insulation'!AW24+'Res Retrofit Bundle'!AW24+'Res New Home Bundle'!AW24+'Comm 92-94% Furnace'!AW24+'Comm 95+% Furnace - NEW'!AW24+'Comm Boiler (85%) Level 1'!AW24+'Comm Boiler (90%) Level 1'!AW24+'Comm LP&HP Steam Boilers - LV1'!AW24+'Comm WH .64 EF'!AW24+'Comm WH Storage 88% Cond'!AW24+'Comm Custom'!AW24+'Res .95+% Res Furnace - Replace'!AW24+'New Home ES'!AW24+'Low Flow Showerhead'!AW24+'Programmable Thermostats'!AW24+'New Residential 4'!AW24+'New Residential 5'!AW24+'Comm 95+% Furnace - Replace'!AW24+'Comm Boiler (85%) Level 2'!AW24+'Comm Boiler (85%) Level 3'!AW24+'Comm Boiler (90%) Level 2'!AW24+'Comm Boiler (90%) Level 3'!AW24+'Comm LP&HP Steam Boilers - LV2'!AW24+'Comm LP&HP Steam Boilers - LV3'!AW24+'New Comm 1'!AW24+'New Comm 2'!AW24+'New Comm 3'!AW24+'New Comm 4'!AW24+'New Comm 5'!AW24,0) -> 6629 | AZ24: 150463 | BB24: =ROUND('Res. 92-94% Res Furnace'!BB24+'Res .95+% Res Furnace - NEW'!BB24+'Res Boiler 85%'!BB24+'Res Boiler 90%'!BB24+'Res Furnace Tune-Up'!BB24+'Res Water Heating .62 EF'!BB24+'Res Water Heating .67 EF'!BB24+'Res Attic Insulation'!BB24+'Res Retrofit Bundle'!BB24+'Res New Home Bundle'!BB24+'Comm 92-94% Furnace'!BB24+'Comm 95+% Furnace - NEW'!BB24+'Comm Boiler (85%) Level 1'!BB24+'Comm Boiler (90%) Level 1'!BB24+'Comm LP&HP Steam Boilers - LV1'!BB24+'Comm WH .64 EF'!BB24+'Comm WH Storage 88% Cond'!BB24+'Comm Custom'!BB24+'Res .95+% Res Furnace - Replace'!BB24+'New Home ES'!BB24+'Low Flow Showerhead'!BB24+'Programmable Thermostats'!BB24+'New Residential 4'!BB24+'New Residential 5'!BB24+'Comm 95+% Furnace - Replace'!BB24+'Comm Boiler (85%) Level 2'!BB24+'Comm Boiler (85%) Level 3'!BB24+'Comm Boiler (90%) Level 2'!BB24+'Comm Boiler (90%) Level 3'!BB24+'Comm LP&HP Steam Boilers - LV2'!BB24+'Comm LP&HP Steam Boilers - LV3'!BB24+'New Comm 1'!BB24+'New Comm 2'!BB24+'New Comm 3'!BB24+'New Comm 4'!BB24+'New Comm 5'!BB24,0) -> 0 | BC24: =ROUND('Res. 92-94% Res Furnace'!BC24+'Res .95+% Res Furnace - NEW'!BC24+'Res Boiler 85%'!BC24+'Res Boiler 90%'!BC24+'Res Furnace Tune-Up'!BC24+'Res Water Heating .62 EF'!BC24+'Res Water Heating .67 EF'!BC24+'Res Attic Insulation'!BC24+'Res Retrofit Bundle'!BC24+'Res New Home Bundle'!BC24+'Comm 92-94% Furnace'!BC24+'Comm 95+% Furnace - NEW'!BC24+'Comm Boiler (85%) Level 1'!BC24+'Comm Boiler (90%) Level 1'!BC24+'Comm LP&HP Steam Boilers - LV1'!BC24+'Comm WH .64 EF'!BC24+'Comm WH Storage 88% Cond'!BC24+'Comm Custom'!BC24+'Res .95+% Res Furnace - Replace'!BC24+'New Home ES'!BC24+'Low Flow Showerhead'!BC24+'Programmable Thermostats'!BC24+'New Residential 4'!BC24+'New Residential 5'!BC24+'Comm 95+% Furnace - Replace'!BC24+'Comm Boiler (85%) Level 2'!BC24+'Comm Boiler (85%) Level 3'!BC24+'Comm Boiler (90%) Level 2'!BC24+'Comm Boiler (90%) Level 3'!BC24+'Comm LP&HP Steam Boilers - LV2'!BC24+'Comm LP&HP Steam Boilers - LV3'!BC24+'New Comm 1'!BC24+'New Comm 2'!BC24+'New Comm 3'!BC24+'New Comm 4'!BC24+'New Comm 5'!BC24,0) -> 0 | BD24: 0 | BE24: 150463 | BH24: 2025 | BI24: =ROUND('Res. 92-94% Res Furnace'!BI24+'Res .95+% Res Furnace - NEW'!BI24+'Res Boiler 85%'!BI24+'Res Boiler 90%'!BI24+'Res Furnace Tune-Up'!BI24+'Res Water Heating .62 EF'!BI24+'Res Water Heating .67 EF'!BI24+'Res Attic Insulation'!BI24+'Res Retrofit Bundle'!BI24+'Res New Home Bundle'!BI24+'Comm 92-94% Furnace'!BI24+'Comm 95+% Furnace - NEW'!BI24+'Comm Boiler (85%) Level 1'!BI24+'Comm Boiler (90%) Level 1'!BI24+'Comm LP&HP Steam Boilers - LV1'!BI24+'Comm WH .64 EF'!BI24+'Comm WH Storage 88% Cond'!BI24+'Comm Custom'!BI24+'Res .95+% Res Furnace - Replace'!BI24+'New Home ES'!BI24+'Low Flow Showerhead'!BI24+'Programmable Thermostats'!BI24+'New Residential 4'!BI24+'New Residential 5'!BI24+'Comm 95+% Furnace - Replace'!BI24+'Comm Boiler (85%) Level 2'!BI24+'Comm Boiler (85%) Level 3'!BI24+'Comm Boiler (90%) Level 2'!BI24+'Comm Boiler (90%) Level 3'!BI24+'Comm LP&HP Steam Boilers - LV2'!BI24+'Comm LP&HP Steam Boilers - LV3'!BI24+'New Comm 1'!BI24+'New Comm 2'!BI24+'New Comm 3'!BI24+'New Comm 4'!BI24+'New Comm 5'!BI24,0) -> 0 | BJ24: =ROUND('Res. 92-94% Res Furnace'!BJ24+'Res .95+% Res Furnace - NEW'!BJ24+'Res Boiler 85%'!BJ24+'Res Boiler 90%'!BJ24+'Res Furnace Tune-Up'!BJ24+'Res Water Heating .62 EF'!BJ24+'Res Water Heating .67 EF'!BJ24+'Res Attic Insulation'!BJ24+'Res Retrofit Bundle'!BJ24+'Res New Home Bundle'!BJ24+'Comm 92-94% Furnace'!BJ24+'Comm 95+% Furnace - NEW'!BJ24+'Comm Boiler (85%) Level 1'!BJ24+'Comm Boiler (90%) Level 1'!BJ24+'Comm LP&HP Steam Boilers - LV1'!BJ24+'Comm WH .64 EF'!BJ24+'Comm WH Storage 88% Cond'!BJ24+'Comm Custom'!BJ24+'Res .95+% Res Furnace - Replace'!BJ24+'New Home ES'!BJ24+'Low Flow Showerhead'!BJ24+'Programmable Thermostats'!BJ24+'New Residential 4'!BJ24+'New Residential 5'!BJ24+'Comm 95+% Furnace - Replace'!BJ24+'Comm Boiler (85%) Level 2'!BJ24+'Comm Boiler (85%) Level 3'!BJ24+'Comm Boiler (90%) Level 2'!BJ24+'Comm Boiler (90%) Level 3'!BJ24+'Comm LP&HP Steam Boilers - LV2'!BJ24+'Comm LP&HP Steam Boilers - LV3'!BJ24+'New Comm 1'!BJ24+'New Comm 2'!BJ24+'New Comm 3'!BJ24+'New Comm 4'!BJ24+'New Comm 5'!BJ24,0) -> 14764 | BL24: =ROUND('Res. 92-94% Res Furnace'!BL24+'Res .95+% Res Furnace - NEW'!BL24+'Res Boiler 85%'!BL24+'Res Boiler 90%'!BL24+'Res Furnace Tune-Up'!BL24+'Res Water Heating .62 EF'!BL24+'Res Water Heating .67 EF'!BL24+'Res Attic Insulation'!BL24+'Res Retrofit Bundle'!BL24+'Res New Home Bundle'!BL24+'Comm 92-94% Furnace'!BL24+'Comm 95+% Furnace - NEW'!BL24+'Comm Boiler (85%) Level 1'!BL24+'Comm Boiler (90%) Level 1'!BL24+'Comm LP&HP Steam Boilers - LV1'!BL24+'Comm WH .64 EF'!BL24+'Comm WH Storage 88% Cond'!BL24+'Comm Custom'!BL24+'Res .95+% Res Furnace - Replace'!BL24+'New Home ES'!BL24+'Low Flow Showerhead'!BL24+'Programmable Thermostats'!BL24+'New Residential 4'!BL24+'New Residential 5'!BL24+'Comm 95+% Furnace - Replace'!BL24+'Comm Boiler (85%) Level 2'!BL24+'Comm Boiler (85%) Level 3'!BL24+'Comm Boiler (90%) Level 2'!BL24+'Comm Boiler (90%) Level 3'!BL24+'Comm LP&HP Steam Boilers - LV2'!BL24+'Comm LP&HP Steam Boilers - LV3'!BL24+'New Comm 1'!BL24+'New Comm 2'!BL24+'New Comm 3'!BL24+'New Comm 4'!BL24+'New Comm 5'!BL24,0) -> 165246 | BN24: =ROUND('Res. 92-94% Res Furnace'!BN24+'Res .95+% Res Furnace - NEW'!BN24+'Res Boiler 85%'!BN24+'Res Boiler 90%'!BN24+'Res Furnace Tune-Up'!BN24+'Res Water Heating .62 EF'!BN24+'Res Water Heating .67 EF'!BN24+'Res Attic Insulation'!BN24+'Res Retrofit Bundle'!BN24+'Res New Home Bundle'!BN24+'Comm 92-94% Furnace'!BN24+'Comm 95+% Furnace - NEW'!BN24+'Comm Boiler (85%) Level 1'!BN24+'Comm Boiler (90%) Level 1'!BN24+'Comm LP&HP Steam Boilers - LV1'!BN24+'Comm WH .64 EF'!BN24+'Comm WH Storage 88% Cond'!BN24+'Comm Custom'!BN24+'Res .95+% Res Furnace - Replace'!BN24+'New Home ES'!BN24+'Low Flow Showerhead'!BN24+'Programmable Thermostats'!BN24+'New Residential 4'!BN24+'New Residential 5'!BN24+'Comm 95+% Furnace - Replace'!BN24+'Comm Boiler (85%) Level 2'!BN24+'Comm Boiler (85%) Level 3'!BN24+'Comm Boiler (90%) Level 2'!BN24+'Comm Boiler (90%) Level 3'!BN24+'Comm LP&HP Steam Boilers - LV2'!BN24+'Comm LP&HP Steam Boilers - LV3'!BN24+'New Comm 1'!BN24+'New Comm 2'!BN24+'New Comm 3'!BN24+'New Comm 4'!BN24+'New Comm 5'!BN24,0) -> 176302 | BP24: 341548 | BR24: =ROUND('Res. 92-94% Res Furnace'!BR24+'Res .95+% Res Furnace - NEW'!BR24+'Res Boiler 85%'!BR24+'Res Boiler 90%'!BR24+'Res Furnace Tune-Up'!BR24+'Res Water Heating .62 EF'!BR24+'Res Water Heating .67 EF'!BR24+'Res Attic Insulation'!BR24+'Res Retrofit Bundle'!BR24+'Res New Home Bundle'!BR24+'Comm 92-94% Furnace'!BR24+'Comm 95+% Furnace - NEW'!BR24+'Comm Boiler (85%) Level 1'!BR24+'Comm Boiler (90%) Level 1'!BR24+'Comm LP&HP Steam Boilers - LV1'!BR24+'Comm WH .64 EF'!BR24+'Comm WH Storage 88% Cond'!BR24+'Comm Custom'!BR24+'Res .95+% Res Furnace - Replace'!BR24+'New Home ES'!BR24+'Low Flow Showerhead'!BR24+'Programmable Thermostats'!BR24+'New Residential 4'!BR24+'New Residential 5'!BR24+'Comm 95+% Furnace - Replace'!BR24+'Comm Boiler (85%) Level 2'!BR24+'Comm Boiler (85%) Level 3'!BR24+'Comm Boiler (90%) Level 2'!BR24+'Comm Boiler (90%) Level 3'!BR24+'Comm LP&HP Steam Boilers - LV2'!BR24+'Comm LP&HP Steam Boilers - LV3'!BR24+'New Comm 1'!BR24+'New Comm 2'!BR24+'New Comm 3'!BR24+'New Comm 4'!BR24+'New Comm 5'!BR24,0) -> 0 | BT24: 341548 | BW24: 2025 | BX24: 90253 | BY24: 24059 | BZ24: 29522 | CA24: 143834 | CC24: 0 | CD24: 0 | CE24: 0 | CG24: 143834 | DB24: =$J17 -> 4
A25: 6) Variable O&M ($/Dk) = | E25: 21) Avg. Dk/Part. Saved = | J25: 12 | L25: 2026 | M25: =ROUND('Res. 92-94% Res Furnace'!M25+'Res .95+% Res Furnace - NEW'!M25+'Res Boiler 85%'!M25+'Res Boiler 90%'!M25+'Res Furnace Tune-Up'!M25+'Res Water Heating .62 EF'!M25+'Res Water Heating .67 EF'!M25+'Res Attic Insulation'!M25+'Res Retrofit Bundle'!M25+'Res New Home Bundle'!M25+'Comm 92-94% Furnace'!M25+'Comm 95+% Furnace - NEW'!M25+'Comm Boiler (85%) Level 1'!M25+'Comm Boiler (90%) Level 1'!M25+'Comm LP&HP Steam Boilers - LV1'!M25+'Comm WH .64 EF'!M25+'Comm WH Storage 88% Cond'!M25+'Comm Custom'!M25+'Res .95+% Res Furnace - Replace'!M25+'New Home ES'!M25+'Low Flow Showerhead'!M25+'Programmable Thermostats'!M25+'New Residential 4'!M25+'New Residential 5'!M25+'Comm 95+% Furnace - Replace'!M25+'Comm Boiler (85%) Level 2'!M25+'Comm Boiler (85%) Level 3'!M25+'Comm Boiler (90%) Level 2'!M25+'Comm Boiler (90%) Level 3'!M25+'Comm LP&HP Steam Boilers - LV2'!M25+'Comm LP&HP Steam Boilers - LV3'!M25+'New Comm 1'!M25+'New Comm 2'!M25+'New Comm 3'!M25+'New Comm 4'!M25+'New Comm 5'!M25,0) -> 14344 | O25: =ROUND('Res. 92-94% Res Furnace'!O25+'Res .95+% Res Furnace - NEW'!O25+'Res Boiler 85%'!O25+'Res Boiler 90%'!O25+'Res Furnace Tune-Up'!O25+'Res Water Heating .62 EF'!O25+'Res Water Heating .67 EF'!O25+'Res Attic Insulation'!O25+'Res Retrofit Bundle'!O25+'Res New Home Bundle'!O25+'Comm 92-94% Furnace'!O25+'Comm 95+% Furnace - NEW'!O25+'Comm Boiler (85%) Level 1'!O25+'Comm Boiler (90%) Level 1'!O25+'Comm LP&HP Steam Boilers - LV1'!O25+'Comm WH .64 EF'!O25+'Comm WH Storage 88% Cond'!O25+'Comm Custom'!O25+'Res .95+% Res Furnace - Replace'!O25+'New Home ES'!O25+'Low Flow Showerhead'!O25+'Programmable Thermostats'!O25+'New Residential 4'!O25+'New Residential 5'!O25+'Comm 95+% Furnace - Replace'!O25+'Comm Boiler (85%) Level 2'!O25+'Comm Boiler (85%) Level 3'!O25+'Comm Boiler (90%) Level 2'!O25+'Comm Boiler (90%) Level 3'!O25+'Comm LP&HP Steam Boilers - LV2'!O25+'Comm LP&HP Steam Boilers - LV3'!O25+'New Comm 1'!O25+'New Comm 2'!O25+'New Comm 3'!O25+'New Comm 4'!O25+'New Comm 5'!O25,0) -> 90755 | Q25: =ROUND('Res. 92-94% Res Furnace'!Q25+'Res .95+% Res Furnace - NEW'!Q25+'Res Boiler 85%'!Q25+'Res Boiler 90%'!Q25+'Res Furnace Tune-Up'!Q25+'Res Water Heating .62 EF'!Q25+'Res Water Heating .67 EF'!Q25+'Res Attic Insulation'!Q25+'Res Retrofit Bundle'!Q25+'Res New Home Bundle'!Q25+'Comm 92-94% Furnace'!Q25+'Comm 95+% Furnace - NEW'!Q25+'Comm Boiler (85%) Level 1'!Q25+'Comm Boiler (90%) Level 1'!Q25+'Comm LP&HP Steam Boilers - LV1'!Q25+'Comm WH .64 EF'!Q25+'Comm WH Storage 88% Cond'!Q25+'Comm Custom'!Q25+'Res .95+% Res Furnace - Replace'!Q25+'New Home ES'!Q25+'Low Flow Showerhead'!Q25+'Programmable Thermostats'!Q25+'New Residential 4'!Q25+'New Residential 5'!Q25+'Comm 95+% Furnace - Replace'!Q25+'Comm Boiler (85%) Level 2'!Q25+'Comm Boiler (85%) Level 3'!Q25+'Comm Boiler (90%) Level 2'!Q25+'Comm Boiler (90%) Level 3'!Q25+'Comm LP&HP Steam Boilers - LV2'!Q25+'Comm LP&HP Steam Boilers - LV3'!Q25+'New Comm 1'!Q25+'New Comm 2'!Q25+'New Comm 3'!Q25+'New Comm 4'!Q25+'New Comm 5'!Q25,0) -> 0 | R25: =ROUND('Res. 92-94% Res Furnace'!R25+'Res .95+% Res Furnace - NEW'!R25+'Res Boiler 85%'!R25+'Res Boiler 90%'!R25+'Res Furnace Tune-Up'!R25+'Res Water Heating .62 EF'!R25+'Res Water Heating .67 EF'!R25+'Res Attic Insulation'!R25+'Res Retrofit Bundle'!R25+'Res New Home Bundle'!R25+'Comm 92-94% Furnace'!R25+'Comm 95+% Furnace - NEW'!R25+'Comm Boiler (85%) Level 1'!R25+'Comm Boiler (90%) Level 1'!R25+'Comm LP&HP Steam Boilers - LV1'!R25+'Comm WH .64 EF'!R25+'Comm WH Storage 88% Cond'!R25+'Comm Custom'!R25+'Res .95+% Res Furnace - Replace'!R25+'New Home ES'!R25+'Low Flow Showerhead'!R25+'Programmable Thermostats'!R25+'New Residential 4'!R25+'New Residential 5'!R25+'Comm 95+% Furnace - Replace'!R25+'Comm Boiler (85%) Level 2'!R25+'Comm Boiler (85%) Level 3'!R25+'Comm Boiler (90%) Level 2'!R25+'Comm Boiler (90%) Level 3'!R25+'Comm LP&HP Steam Boilers - LV2'!R25+'Comm LP&HP Steam Boilers - LV3'!R25+'New Comm 1'!R25+'New Comm 2'!R25+'New Comm 3'!R25+'New Comm 4'!R25+'New Comm 5'!R25,0) -> 90755 | S25: =ROUND('Res. 92-94% Res Furnace'!S25+'Res .95+% Res Furnace - NEW'!S25+'Res Boiler 85%'!S25+'Res Boiler 90%'!S25+'Res Furnace Tune-Up'!S25+'Res Water Heating .62 EF'!S25+'Res Water Heating .67 EF'!S25+'Res Attic Insulation'!S25+'Res Retrofit Bundle'!S25+'Res New Home Bundle'!S25+'Comm 92-94% Furnace'!S25+'Comm 95+% Furnace - NEW'!S25+'Comm Boiler (85%) Level 1'!S25+'Comm Boiler (90%) Level 1'!S25+'Comm LP&HP Steam Boilers - LV1'!S25+'Comm WH .64 EF'!S25+'Comm WH Storage 88% Cond'!S25+'Comm Custom'!S25+'Res .95+% Res Furnace - Replace'!S25+'New Home ES'!S25+'Low Flow Showerhead'!S25+'Programmable Thermostats'!S25+'New Residential 4'!S25+'New Residential 5'!S25+'Comm 95+% Furnace - Replace'!S25+'Comm Boiler (85%) Level 2'!S25+'Comm Boiler (85%) Level 3'!S25+'Comm Boiler (90%) Level 2'!S25+'Comm Boiler (90%) Level 3'!S25+'Comm LP&HP Steam Boilers - LV2'!S25+'Comm LP&HP Steam Boilers - LV3'!S25+'New Comm 1'!S25+'New Comm 2'!S25+'New Comm 3'!S25+'New Comm 4'!S25+'New Comm 5'!S25,0) -> 143 | U25: =ROUND('Res. 92-94% Res Furnace'!U25+'Res .95+% Res Furnace - NEW'!U25+'Res Boiler 85%'!U25+'Res Boiler 90%'!U25+'Res Furnace Tune-Up'!U25+'Res Water Heating .62 EF'!U25+'Res Water Heating .67 EF'!U25+'Res Attic Insulation'!U25+'Res Retrofit Bundle'!U25+'Res New Home Bundle'!U25+'Comm 92-94% Furnace'!U25+'Comm 95+% Furnace - NEW'!U25+'Comm Boiler (85%) Level 1'!U25+'Comm Boiler (90%) Level 1'!U25+'Comm LP&HP Steam Boilers - LV1'!U25+'Comm WH .64 EF'!U25+'Comm WH Storage 88% Cond'!U25+'Comm Custom'!U25+'Res .95+% Res Furnace - Replace'!U25+'New Home ES'!U25+'Low Flow Showerhead'!U25+'Programmable Thermostats'!U25+'New Residential 4'!U25+'New Residential 5'!U25+'Comm 95+% Furnace - Replace'!U25+'Comm Boiler (85%) Level 2'!U25+'Comm Boiler (85%) Level 3'!U25+'Comm Boiler (90%) Level 2'!U25+'Comm Boiler (90%) Level 3'!U25+'Comm LP&HP Steam Boilers - LV2'!U25+'Comm LP&HP Steam Boilers - LV3'!U25+'New Comm 1'!U25+'New Comm 2'!U25+'New Comm 3'!U25+'New Comm 4'!U25+'New Comm 5'!U25,0) -> 23662 | V25: 114417 | X25: =ROUND('Res. 92-94% Res Furnace'!X25+'Res .95+% Res Furnace - NEW'!X25+'Res Boiler 85%'!X25+'Res Boiler 90%'!X25+'Res Furnace Tune-Up'!X25+'Res Water Heating .62 EF'!X25+'Res Water Heating .67 EF'!X25+'Res Attic Insulation'!X25+'Res Retrofit Bundle'!X25+'Res New Home Bundle'!X25+'Comm 92-94% Furnace'!X25+'Comm 95+% Furnace - NEW'!X25+'Comm Boiler (85%) Level 1'!X25+'Comm Boiler (90%) Level 1'!X25+'Comm LP&HP Steam Boilers - LV1'!X25+'Comm WH .64 EF'!X25+'Comm WH Storage 88% Cond'!X25+'Comm Custom'!X25+'Res .95+% Res Furnace - Replace'!X25+'New Home ES'!X25+'Low Flow Showerhead'!X25+'Programmable Thermostats'!X25+'New Residential 4'!X25+'New Residential 5'!X25+'Comm 95+% Furnace - Replace'!X25+'Comm Boiler (85%) Level 2'!X25+'Comm Boiler (85%) Level 3'!X25+'Comm Boiler (90%) Level 2'!X25+'Comm Boiler (90%) Level 3'!X25+'Comm LP&HP Steam Boilers - LV2'!X25+'Comm LP&HP Steam Boilers - LV3'!X25+'New Comm 1'!X25+'New Comm 2'!X25+'New Comm 3'!X25+'New Comm 4'!X25+'New Comm 5'!X25,0) -> 24205 | Y25: =ROUND('Res. 92-94% Res Furnace'!Y25+'Res .95+% Res Furnace - NEW'!Y25+'Res Boiler 85%'!Y25+'Res Boiler 90%'!Y25+'Res Furnace Tune-Up'!Y25+'Res Water Heating .62 EF'!Y25+'Res Water Heating .67 EF'!Y25+'Res Attic Insulation'!Y25+'Res Retrofit Bundle'!Y25+'Res New Home Bundle'!Y25+'Comm 92-94% Furnace'!Y25+'Comm 95+% Furnace - NEW'!Y25+'Comm Boiler (85%) Level 1'!Y25+'Comm Boiler (90%) Level 1'!Y25+'Comm LP&HP Steam Boilers - LV1'!Y25+'Comm WH .64 EF'!Y25+'Comm WH Storage 88% Cond'!Y25+'Comm Custom'!Y25+'Res .95+% Res Furnace - Replace'!Y25+'New Home ES'!Y25+'Low Flow Showerhead'!Y25+'Programmable Thermostats'!Y25+'New Residential 4'!Y25+'New Residential 5'!Y25+'Comm 95+% Furnace - Replace'!Y25+'Comm Boiler (85%) Level 2'!Y25+'Comm Boiler (85%) Level 3'!Y25+'Comm Boiler (90%) Level 2'!Y25+'Comm Boiler (90%) Level 3'!Y25+'Comm LP&HP Steam Boilers - LV2'!Y25+'Comm LP&HP Steam Boilers - LV3'!Y25+'New Comm 1'!Y25+'New Comm 2'!Y25+'New Comm 3'!Y25+'New Comm 4'!Y25+'New Comm 5'!Y25,0) -> 0 | Z25: =ROUND('Res. 92-94% Res Furnace'!Z25+'Res .95+% Res Furnace - NEW'!Z25+'Res Boiler 85%'!Z25+'Res Boiler 90%'!Z25+'Res Furnace Tune-Up'!Z25+'Res Water Heating .62 EF'!Z25+'Res Water Heating .67 EF'!Z25+'Res Attic Insulation'!Z25+'Res Retrofit Bundle'!Z25+'Res New Home Bundle'!Z25+'Comm 92-94% Furnace'!Z25+'Comm 95+% Furnace - NEW'!Z25+'Comm Boiler (85%) Level 1'!Z25+'Comm Boiler (90%) Level 1'!Z25+'Comm LP&HP Steam Boilers - LV1'!Z25+'Comm WH .64 EF'!Z25+'Comm WH Storage 88% Cond'!Z25+'Comm Custom'!Z25+'Res .95+% Res Furnace - Replace'!Z25+'New Home ES'!Z25+'Low Flow Showerhead'!Z25+'Programmable Thermostats'!Z25+'New Residential 4'!Z25+'New Residential 5'!Z25+'Comm 95+% Furnace - Replace'!Z25+'Comm Boiler (85%) Level 2'!Z25+'Comm Boiler (85%) Level 3'!Z25+'Comm Boiler (90%) Level 2'!Z25+'Comm Boiler (90%) Level 3'!Z25+'Comm LP&HP Steam Boilers - LV2'!Z25+'Comm LP&HP Steam Boilers - LV3'!Z25+'New Comm 1'!Z25+'New Comm 2'!Z25+'New Comm 3'!Z25+'New Comm 4'!Z25+'New Comm 5'!Z25,0) -> 0 | AA25: 24205 | AB25: 90212 | AE25: 2026 | AF25: 90755 | AG25: 23662 | AH25: 114417 | AJ25: 0 | AK25: 0 | AL25: 0 | AN25: 114417 | AQ25: 2026 | AR25: 90755 | AS25: 23662 | AU25: =ROUND('Res. 92-94% Res Furnace'!AU25+'Res .95+% Res Furnace - NEW'!AU25+'Res Boiler 85%'!AU25+'Res Boiler 90%'!AU25+'Res Furnace Tune-Up'!AU25+'Res Water Heating .62 EF'!AU25+'Res Water Heating .67 EF'!AU25+'Res Attic Insulation'!AU25+'Res Retrofit Bundle'!AU25+'Res New Home Bundle'!AU25+'Comm 92-94% Furnace'!AU25+'Comm 95+% Furnace - NEW'!AU25+'Comm Boiler (85%) Level 1'!AU25+'Comm Boiler (90%) Level 1'!AU25+'Comm LP&HP Steam Boilers - LV1'!AU25+'Comm WH .64 EF'!AU25+'Comm WH Storage 88% Cond'!AU25+'Comm Custom'!AU25+'Res .95+% Res Furnace - Replace'!AU25+'New Home ES'!AU25+'Low Flow Showerhead'!AU25+'Programmable Thermostats'!AU25+'New Residential 4'!AU25+'New Residential 5'!AU25+'Comm 95+% Furnace - Replace'!AU25+'Comm Boiler (85%) Level 2'!AU25+'Comm Boiler (85%) Level 3'!AU25+'Comm Boiler (90%) Level 2'!AU25+'Comm Boiler (90%) Level 3'!AU25+'Comm LP&HP Steam Boilers - LV2'!AU25+'Comm LP&HP Steam Boilers - LV3'!AU25+'New Comm 1'!AU25+'New Comm 2'!AU25+'New Comm 3'!AU25+'New Comm 4'!AU25+'New Comm 5'!AU25,0) -> 30474 | AW25: =ROUND('Res. 92-94% Res Furnace'!AW25+'Res .95+% Res Furnace - NEW'!AW25+'Res Boiler 85%'!AW25+'Res Boiler 90%'!AW25+'Res Furnace Tune-Up'!AW25+'Res Water Heating .62 EF'!AW25+'Res Water Heating .67 EF'!AW25+'Res Attic Insulation'!AW25+'Res Retrofit Bundle'!AW25+'Res New Home Bundle'!AW25+'Comm 92-94% Furnace'!AW25+'Comm 95+% Furnace - NEW'!AW25+'Comm Boiler (85%) Level 1'!AW25+'Comm Boiler (90%) Level 1'!AW25+'Comm LP&HP Steam Boilers - LV1'!AW25+'Comm WH .64 EF'!AW25+'Comm WH Storage 88% Cond'!AW25+'Comm Custom'!AW25+'Res .95+% Res Furnace - Replace'!AW25+'New Home ES'!AW25+'Low Flow Showerhead'!AW25+'Programmable Thermostats'!AW25+'New Residential 4'!AW25+'New Residential 5'!AW25+'Comm 95+% Furnace - Replace'!AW25+'Comm Boiler (85%) Level 2'!AW25+'Comm Boiler (85%) Level 3'!AW25+'Comm Boiler (90%) Level 2'!AW25+'Comm Boiler (90%) Level 3'!AW25+'Comm LP&HP Steam Boilers - LV2'!AW25+'Comm LP&HP Steam Boilers - LV3'!AW25+'New Comm 1'!AW25+'New Comm 2'!AW25+'New Comm 3'!AW25+'New Comm 4'!AW25+'New Comm 5'!AW25,0) -> 6599 | AZ25: 151490 | BB25: =ROUND('Res. 92-94% Res Furnace'!BB25+'Res .95+% Res Furnace - NEW'!BB25+'Res Boiler 85%'!BB25+'Res Boiler 90%'!BB25+'Res Furnace Tune-Up'!BB25+'Res Water Heating .62 EF'!BB25+'Res Water Heating .67 EF'!BB25+'Res Attic Insulation'!BB25+'Res Retrofit Bundle'!BB25+'Res New Home Bundle'!BB25+'Comm 92-94% Furnace'!BB25+'Comm 95+% Furnace - NEW'!BB25+'Comm Boiler (85%) Level 1'!BB25+'Comm Boiler (90%) Level 1'!BB25+'Comm LP&HP Steam Boilers - LV1'!BB25+'Comm WH .64 EF'!BB25+'Comm WH Storage 88% Cond'!BB25+'Comm Custom'!BB25+'Res .95+% Res Furnace - Replace'!BB25+'New Home ES'!BB25+'Low Flow Showerhead'!BB25+'Programmable Thermostats'!BB25+'New Residential 4'!BB25+'New Residential 5'!BB25+'Comm 95+% Furnace - Replace'!BB25+'Comm Boiler (85%) Level 2'!BB25+'Comm Boiler (85%) Level 3'!BB25+'Comm Boiler (90%) Level 2'!BB25+'Comm Boiler (90%) Level 3'!BB25+'Comm LP&HP Steam Boilers - LV2'!BB25+'Comm LP&HP Steam Boilers - LV3'!BB25+'New Comm 1'!BB25+'New Comm 2'!BB25+'New Comm 3'!BB25+'New Comm 4'!BB25+'New Comm 5'!BB25,0) -> 0 | BC25: =ROUND('Res. 92-94% Res Furnace'!BC25+'Res .95+% Res Furnace - NEW'!BC25+'Res Boiler 85%'!BC25+'Res Boiler 90%'!BC25+'Res Furnace Tune-Up'!BC25+'Res Water Heating .62 EF'!BC25+'Res Water Heating .67 EF'!BC25+'Res Attic Insulation'!BC25+'Res Retrofit Bundle'!BC25+'Res New Home Bundle'!BC25+'Comm 92-94% Furnace'!BC25+'Comm 95+% Furnace - NEW'!BC25+'Comm Boiler (85%) Level 1'!BC25+'Comm Boiler (90%) Level 1'!BC25+'Comm LP&HP Steam Boilers - LV1'!BC25+'Comm WH .64 EF'!BC25+'Comm WH Storage 88% Cond'!BC25+'Comm Custom'!BC25+'Res .95+% Res Furnace - Replace'!BC25+'New Home ES'!BC25+'Low Flow Showerhead'!BC25+'Programmable Thermostats'!BC25+'New Residential 4'!BC25+'New Residential 5'!BC25+'Comm 95+% Furnace - Replace'!BC25+'Comm Boiler (85%) Level 2'!BC25+'Comm Boiler (85%) Level 3'!BC25+'Comm Boiler (90%) Level 2'!BC25+'Comm Boiler (90%) Level 3'!BC25+'Comm LP&HP Steam Boilers - LV2'!BC25+'Comm LP&HP Steam Boilers - LV3'!BC25+'New Comm 1'!BC25+'New Comm 2'!BC25+'New Comm 3'!BC25+'New Comm 4'!BC25+'New Comm 5'!BC25,0) -> 0 | BD25: 0 | BE25: 151490 | BH25: 2026 | BI25: =ROUND('Res. 92-94% Res Furnace'!BI25+'Res .95+% Res Furnace - NEW'!BI25+'Res Boiler 85%'!BI25+'Res Boiler 90%'!BI25+'Res Furnace Tune-Up'!BI25+'Res Water Heating .62 EF'!BI25+'Res Water Heating .67 EF'!BI25+'Res Attic Insulation'!BI25+'Res Retrofit Bundle'!BI25+'Res New Home Bundle'!BI25+'Comm 92-94% Furnace'!BI25+'Comm 95+% Furnace - NEW'!BI25+'Comm Boiler (85%) Level 1'!BI25+'Comm Boiler (90%) Level 1'!BI25+'Comm LP&HP Steam Boilers - LV1'!BI25+'Comm WH .64 EF'!BI25+'Comm WH Storage 88% Cond'!BI25+'Comm Custom'!BI25+'Res .95+% Res Furnace - Replace'!BI25+'New Home ES'!BI25+'Low Flow Showerhead'!BI25+'Programmable Thermostats'!BI25+'New Residential 4'!BI25+'New Residential 5'!BI25+'Comm 95+% Furnace - Replace'!BI25+'Comm Boiler (85%) Level 2'!BI25+'Comm Boiler (85%) Level 3'!BI25+'Comm Boiler (90%) Level 2'!BI25+'Comm Boiler (90%) Level 3'!BI25+'Comm LP&HP Steam Boilers - LV2'!BI25+'Comm LP&HP Steam Boilers - LV3'!BI25+'New Comm 1'!BI25+'New Comm 2'!BI25+'New Comm 3'!BI25+'New Comm 4'!BI25+'New Comm 5'!BI25,0) -> 0 | BJ25: =ROUND('Res. 92-94% Res Furnace'!BJ25+'Res .95+% Res Furnace - NEW'!BJ25+'Res Boiler 85%'!BJ25+'Res Boiler 90%'!BJ25+'Res Furnace Tune-Up'!BJ25+'Res Water Heating .62 EF'!BJ25+'Res Water Heating .67 EF'!BJ25+'Res Attic Insulation'!BJ25+'Res Retrofit Bundle'!BJ25+'Res New Home Bundle'!BJ25+'Comm 92-94% Furnace'!BJ25+'Comm 95+% Furnace - NEW'!BJ25+'Comm Boiler (85%) Level 1'!BJ25+'Comm Boiler (90%) Level 1'!BJ25+'Comm LP&HP Steam Boilers - LV1'!BJ25+'Comm WH .64 EF'!BJ25+'Comm WH Storage 88% Cond'!BJ25+'Comm Custom'!BJ25+'Res .95+% Res Furnace - Replace'!BJ25+'New Home ES'!BJ25+'Low Flow Showerhead'!BJ25+'Programmable Thermostats'!BJ25+'New Residential 4'!BJ25+'New Residential 5'!BJ25+'Comm 95+% Furnace - Replace'!BJ25+'Comm Boiler (85%) Level 2'!BJ25+'Comm Boiler (85%) Level 3'!BJ25+'Comm Boiler (90%) Level 2'!BJ25+'Comm Boiler (90%) Level 3'!BJ25+'Comm LP&HP Steam Boilers - LV2'!BJ25+'Comm LP&HP Steam Boilers - LV3'!BJ25+'New Comm 1'!BJ25+'New Comm 2'!BJ25+'New Comm 3'!BJ25+'New Comm 4'!BJ25+'New Comm 5'!BJ25,0) -> 14344 | BL25: =ROUND('Res. 92-94% Res Furnace'!BL25+'Res .95+% Res Furnace - NEW'!BL25+'Res Boiler 85%'!BL25+'Res Boiler 90%'!BL25+'Res Furnace Tune-Up'!BL25+'Res Water Heating .62 EF'!BL25+'Res Water Heating .67 EF'!BL25+'Res Attic Insulation'!BL25+'Res Retrofit Bundle'!BL25+'Res New Home Bundle'!BL25+'Comm 92-94% Furnace'!BL25+'Comm 95+% Furnace - NEW'!BL25+'Comm Boiler (85%) Level 1'!BL25+'Comm Boiler (90%) Level 1'!BL25+'Comm LP&HP Steam Boilers - LV1'!BL25+'Comm WH .64 EF'!BL25+'Comm WH Storage 88% Cond'!BL25+'Comm Custom'!BL25+'Res .95+% Res Furnace - Replace'!BL25+'New Home ES'!BL25+'Low Flow Showerhead'!BL25+'Programmable Thermostats'!BL25+'New Residential 4'!BL25+'New Residential 5'!BL25+'Comm 95+% Furnace - Replace'!BL25+'Comm Boiler (85%) Level 2'!BL25+'Comm Boiler (85%) Level 3'!BL25+'Comm Boiler (90%) Level 2'!BL25+'Comm Boiler (90%) Level 3'!BL25+'Comm LP&HP Steam Boilers - LV2'!BL25+'Comm LP&HP Steam Boilers - LV3'!BL25+'New Comm 1'!BL25+'New Comm 2'!BL25+'New Comm 3'!BL25+'New Comm 4'!BL25+'New Comm 5'!BL25,0) -> 166147 | BN25: =ROUND('Res. 92-94% Res Furnace'!BN25+'Res .95+% Res Furnace - NEW'!BN25+'Res Boiler 85%'!BN25+'Res Boiler 90%'!BN25+'Res Furnace Tune-Up'!BN25+'Res Water Heating .62 EF'!BN25+'Res Water Heating .67 EF'!BN25+'Res Attic Insulation'!BN25+'Res Retrofit Bundle'!BN25+'Res New Home Bundle'!BN25+'Comm 92-94% Furnace'!BN25+'Comm 95+% Furnace - NEW'!BN25+'Comm Boiler (85%) Level 1'!BN25+'Comm Boiler (90%) Level 1'!BN25+'Comm LP&HP Steam Boilers - LV1'!BN25+'Comm WH .64 EF'!BN25+'Comm WH Storage 88% Cond'!BN25+'Comm Custom'!BN25+'Res .95+% Res Furnace - Replace'!BN25+'New Home ES'!BN25+'Low Flow Showerhead'!BN25+'Programmable Thermostats'!BN25+'New Residential 4'!BN25+'New Residential 5'!BN25+'Comm 95+% Furnace - Replace'!BN25+'Comm Boiler (85%) Level 2'!BN25+'Comm Boiler (85%) Level 3'!BN25+'Comm Boiler (90%) Level 2'!BN25+'Comm Boiler (90%) Level 3'!BN25+'Comm LP&HP Steam Boilers - LV2'!BN25+'Comm LP&HP Steam Boilers - LV3'!BN25+'New Comm 1'!BN25+'New Comm 2'!BN25+'New Comm 3'!BN25+'New Comm 4'!BN25+'New Comm 5'!BN25,0) -> 182016 | BP25: 348163 | BR25: =ROUND('Res. 92-94% Res Furnace'!BR25+'Res .95+% Res Furnace - NEW'!BR25+'Res Boiler 85%'!BR25+'Res Boiler 90%'!BR25+'Res Furnace Tune-Up'!BR25+'Res Water Heating .62 EF'!BR25+'Res Water Heating .67 EF'!BR25+'Res Attic Insulation'!BR25+'Res Retrofit Bundle'!BR25+'Res New Home Bundle'!BR25+'Comm 92-94% Furnace'!BR25+'Comm 95+% Furnace - NEW'!BR25+'Comm Boiler (85%) Level 1'!BR25+'Comm Boiler (90%) Level 1'!BR25+'Comm LP&HP Steam Boilers - LV1'!BR25+'Comm WH .64 EF'!BR25+'Comm WH Storage 88% Cond'!BR25+'Comm Custom'!BR25+'Res .95+% Res Furnace - Replace'!BR25+'New Home ES'!BR25+'Low Flow Showerhead'!BR25+'Programmable Thermostats'!BR25+'New Residential 4'!BR25+'New Residential 5'!BR25+'Comm 95+% Furnace - Replace'!BR25+'Comm Boiler (85%) Level 2'!BR25+'Comm Boiler (85%) Level 3'!BR25+'Comm Boiler (90%) Level 2'!BR25+'Comm Boiler (90%) Level 3'!BR25+'Comm LP&HP Steam Boilers - LV2'!BR25+'Comm LP&HP Steam Boilers - LV3'!BR25+'New Comm 1'!BR25+'New Comm 2'!BR25+'New Comm 3'!BR25+'New Comm 4'!BR25+'New Comm 5'!BR25,0) -> 0 | BT25: 348163 | BW25: 2026 | BX25: 90755 | BY25: 23662 | BZ25: 30474 | CA25: 144891 | CC25: 0 | CD25: 0 | CE25: 0 | CG25: 144891
